Workbook

Sheet Рис. 1
A1: Male | B1: Female | C1: Home | D1: Apt | E1: Pregnancy Test | F1: Birth Control | G1: Feminine Hygiene | H1: Folic Acid | I1: Prenatal Vitamins | J1: Prenatal Yoga | K1: Body Pillow | L1: Ginger Ale | M1: Sea Bands | N1: Stopped buying ciggies | O1: Cigarettes | P1: Smoking Cessation | Q1: Stopped buying wine | R1: Wine | S1: Maternity Clothes | U1: PREGNANT
A2: 0 | B2: 1 | C2: 2 | D2: 3 | E2: 4 | F2: 5 | G2: 6 | H2: 7 | I2: 8 | J2: 9 | K2: 10 | L2: 11 | M2: 12 | N2: 13 | O2: 14 | P2: 15 | Q2: 16 | R2: 17 | S2: 18
A3: 1 | B3: 0 | C3: 0 | D3: 1 | E3: 1 | F3: 0 | G3: 0 | H3: 0 | I3: 1 | J3: 0 | K3: 0 | L3: 0 | M3: 0 | N3: 0 | O3: 0 | P3: 0 | Q3: 0 | R3: 0 | S3: 0 | U3: 1
A4: 1 | B4: 0 | C4: 1 | D4: 0 | E4: 1 | F4: 0 | G4: 0 | H4: 0 | I4: 1 | J4: 0 | K4: 0 | L4: 0 | M4: 0 | N4: 0 | O4: 0 | P4: 0 | Q4: 0 | R4: 0 | S4: 0 | U4: 1
A5: 1 | B5: 0 | C5: 1 | D5: 0 | E5: 1 | F5: 0 | G5: 0 | H5: 0 | I5: 0 | J5: 0 | K5: 0 | L5: 0 | M5: 1 | N5: 0 | O5: 0 | P5: 0 | Q5: 0 | R5: 0 | S5: 0 | U5: 1
A6: 0 | B6: 0 | C6: 1 | D6: 0 | E6: 0 | F6: 0 | G6: 0 | H6: 0 | I6: 0 | J6: 0 | K6: 0 | L6: 1 | M6: 0 | N6: 0 | O6: 0 | P6: 0 | Q6: 0 | R6: 0 | S6: 0 | U6: 1
A7: 0 | B7: 1 | C7: 0 | D7: 1 | E7: 0 | F7: 0 | G7: 0 | H7: 0 | I7: 0 | J7: 1 | K7: 0 | L7: 0 | M7: 0 | N7: 0 | O7: 0 | P7: 0 | Q7: 1 | R7: 0 | S7: 0 | U7: 1
A8: 0 | B8: 1 | C8: 1 | D8: 0 | E8: 0 | F8: 0 | G8: 0 | H8: 0 | I8: 1 | J8: 0 | K8: 0 | L8: 0 | M8: 0 | N8: 1 | O8: 0 | P8: 0 | Q8: 0 | R8: 0 | S8: 0 | U8: 1
A9: 1 | B9: 0 | C9: 1 | D9: 0 | E9: 0 | F9: 1 | G9: 0 | H9: 1 | I9: 1 | J9: 0 | K9: 0 | L9: 0 | M9: 0 | N9: 0 | O9: 0 | P9: 0 | Q9: 0 | R9: 0 | S9: 0 | U9: 1
A10: 0 | B10: 1 | C10: 1 | D10: 0 | E10: 0 | F10: 0 | G10: 0 | H10: 0 | I10: 0 | J10: 0 | K10: 0 | L10: 0 | M10: 0 | N10: 0 | O10: 0 | P10: 0 | Q10: 0 | R10: 0 | S10: 1 | U10: 1
A11: 0 | B11: 1 | C11: 1 | D11: 0 | E11: 0 | F11: 0 | G11: 0 | H11: 0 | I11: 0 | J11: 0 | K11: 0 | L11: 1 | M11: 0 | N11: 0 | O11: 0 | P11: 0 | Q11: 0 | R11: 0 | S11: 0 | U11: 1
A12: 0 | B12: 1 | C12: 1 | D12: 0 | E12: 0 | F12: 0 | G12: 0 | H12: 0 | I12: 1 | J12: 0 | K12: 0 | L12: 0 | M12: 0 | N12: 0 | O12: 0 | P12: 0 | Q12: 0 | R12: 0 | S12: 1 | U12: 1
A13: 0 | B13: 1 | C13: 1 | D13: 0 | E13: 0 | F13: 0 | G13: 0 | H13: 0 | I13: 0 | J13: 0 | K13: 0 | L13: 0 | M13: 0 | N13: 0 | O13: 0 | P13: 0 | Q13: 1 | R13: 0 | S13: 0 | U13: 1
A14: 0 | B14: 1 | C14: 0 | D14: 1 | E14: 0 | F14: 0 | G14: 0 | H14: 0 | I14: 0 | J14: 0 | K14: 0 | L14: 0 | M14: 0 | N14: 0 | O14: 1 | P14: 0 | Q14: 1 | R14: 0 | S14: 0 | U14: 1
A15: 0 | B15: 1 | C15: 1 | D15: 0 | E15: 0 | F15: 0 | G15: 0 | H15: 0 | I15: 0 | J15: 0 | K15: 0 | L15: 0 | M15: 0 | N15: 1 | O15: 0 | P15: 1 | Q15: 1 | R15: 0 | S15: 0 | U15: 1
A16: 0 | B16: 0 | C16: 0 | D16: 1 | E16: 0 | F16: 0 | G16: 0 | H16: 1 | I16: 0 | J16: 0 | K16: 0 | L16: 0 | M16: 0 | N16: 0 | O16: 0 | P16: 1 | Q16: 0 | R16: 0 | S16: 0 | U16: 1
A17: 1 | B17: 0 | C17: 0 | D17: 1 | E17: 0 | F17: 0 | G17: 0 | H17: 0 | I17: 1 | J17: 0 | K17: 0 | L17: 0 | M17: 1 | N17: 1 | O17: 0 | P17: 0 | Q17: 1 | R17: 0 | S17: 1 | U17: 1
A18: 1 | B18: 0 | C18: 1 | D18: 0 | E18: 0 | F18: 0 | G18: 0 | H18: 1 | I18: 0 | J18: 0 | K18: 0 | L18: 0 | M18: 0 | N18: 0 | O18: 0 | P18: 0 | Q18: 1 | R18: 0 | S18: 0 | U18: 1
A19: 1 | B19: 0 | C19: 0 | D19: 0 | E19: 0 | F19: 0 | G19: 0 | H19: 0 | I19: 0 | J19: 0 | K19: 0 | L19: 0 | M19: 0 | N19: 1 | O19: 0 | P19: 0 | Q19: 0 | R19: 0 | S19: 0 | U19: 1
A20: 0 | B20: 1 | C20: 1 | D20: 0 | E20: 0 | F20: 0 | G20: 0 | H20: 0 | I20: 0 | J20: 0 | K20: 0 | L20: 1 | M20: 0 | N20: 1 | O20: 0 | P20: 0 | Q20: 0 | R20: 0 | S20: 0 | U20: 1
A21: 1 | B21: 0 | C21: 0 | D21: 1 | E21: 0 | F21: 0 | G21: 0 | H21: 0 | I21: 0 | J21: 0 | K21: 0 | L21: 0 | M21: 0 | N21: 1 | O21: 0 | P21: 0 | Q21: 0 | R21: 0 | S21: 0 | U21: 1
A22: 0 | B22: 1 | C22: 1 | D22: 0 | E22: 1 | F22: 1 | G22: 0 | H22: 0 | I22: 1 | J22: 0 | K22: 0 | L22: 0 | M22: 0 | N22: 0 | O22: 0 | P22: 1 | Q22: 0 | R22: 0 | S22: 1 | U22: 1
A23: 1 | B23: 0 | C23: 0 | D23: 1 | E23: 0 | F23: 0 | G23: 1 | H23: 0 | I23: 0 | J23: 0 | K23: 0 | L23: 0 | M23: 0 | N23: 0 | O23: 0 | P23: 0 | Q23: 0 | R23: 0 | S23: 0 | U23: 1
A24: 0 | B24: 1 | C24: 1 | D24: 0 | E24: 0 | F24: 0 | G24: 1 | H24: 0 | I24: 1 | J24: 0 | K24: 0 | L24: 0 | M24: 0 | N24: 0 | O24: 0 | P24: 0 | Q24: 1 | R24: 0 | S24: 0 | U24: 1
A25: 0 | B25: 1 | C25: 0 | D25: 0 | E25: 0 | F25: 1 | G25: 0 | H25: 0 | I25: 0 | J25: 0 | K25: 0 | L25: 0 | M25: 0 | N25: 0 | O25: 1 | P25: 0 | Q25: 0 | R25: 0 | S25: 0 | U25: 1
A26: 0 | B26: 1 | C26: 1 | D26: 0 | E26: 0 | F26: 0 | G26: 0 | H26: 0 | I26: 0 | J26: 0 | K26: 0 | L26: 0 | M26: 0 | N26: 0 | O26: 0 | P26: 0 | Q26: 0 | R26: 0 | S26: 0 | U26: 1
A27: 1 | B27: 0 | C27: 0 | D27: 1 | E27: 0 | F27: 0 | G27: 0 | H27: 1 | I27: 1 | J27: 0 | K27: 0 | L27: 1 | M27: 0 | N27: 0 | O27: 0 | P27: 0 | Q27: 0 | R27: 0 | S27: 1 | U27: 1
A28: 0 | B28: 1 | C28: 0 | D28: 1 | E28: 0 | F28: 0 | G28: 0 | H28: 1 | I28: 0 | J28: 1 | K28: 0 | L28: 0 | M28: 0 | N28: 0 | O28: 0 | P28: 0 | Q28: 0 | R28: 0 | S28: 1 | U28: 1
A29: 0 | B29: 1 | C29: 1 | D29: 0 | E29: 0 | F29: 1 | G29: 0 | H29: 0 | I29: 0 | J29: 0 | K29: 0 | L29: 0 | M29: 0 | N29: 0 | O29: 0 | P29: 0 | Q29: 1 | R29: 0 | S29: 0 | U29: 1
A30: 1 | B30: 0 | C30: 1 | D30: 0 | E30: 0 | F30: 0 | G30: 1 | H30: 1 | I30: 0 | J30: 0 | K30: 1 | L30: 0 | M30: 0 | N30: 0 | O30: 0 | P30: 0 | Q30: 0 | R30: 0 | S30: 1 | U30: 1
A31: 1 | B31: 0 | C31: 0 | D31: 1 | E31: 0 | F31: 0 | G31: 0 | H31: 1 | I31: 0 | J31: 0 | K31: 0 | L31: 0 | M31: 0 | N31: 0 | O31: 0 | P31: 0 | Q31: 1 | R31: 0 | S31: 0 | U31: 1
A32: 0 | B32: 1 | C32: 0 | D32: 1 | E32: 0 | F32: 0 | G32: 0 | H32: 0 | I32: 0 | J32: 0 | K32: 0 | L32: 0 | M32: 0 | N32: 0 | O32: 0 | P32: 0 | Q32: 0 | R32: 0 | S32: 0 | U32: 1
A33: 0 | B33: 1 | C33: 0 | D33: 1 | E33: 1 | F33: 0 | G33: 0 | H33: 0 | I33: 0 | J33: 0 | K33: 0 | L33: 0 | M33: 0 | N33: 0 | O33: 0 | P33: 1 | Q33: 0 | R33: 0 | S33: 0 | U33: 1
A34: 0 | B34: 1 | C34: 0 | D34: 1 | E34: 0 | F34: 0 | G34: 0 | H34: 1 | I34: 0 | J34: 0 | K34: 0 | L34: 0 | M34: 1 | N34: 0 | O34: 0 | P34: 0 | Q34: 0 | R34: 0 | S34: 0 | U34: 1
A35: 1 | B35: 0 | C35: 1 | D35: 0 | E35: 0 | F35: 0 | G35: 0 | H35: 0 | I35: 0 | J35: 0 | K35: 0 | L35: 0 | M35: 0 | N35: 0 | O35: 0 | P35: 1 | Q35: 0 | R35: 0 | S35: 0 | U35: 1
A36: 0 | B36: 0 | C36: 0 | D36: 1 | E36: 0 | F36: 0 | G36: 0 | H36: 0 | I36: 0 | J36: 0 | K36: 0 | L36: 0 | M36: 0 | N36: 0 | O36: 0 | P36: 0 | Q36: 0 | R36: 1 | S36: 1 | U36: 1
A37: 0 | B37: 1 | C37: 0 | D37: 1 | E37: 0 | F37: 0 | G37: 0 | H37: 0 | I37: 0 | J37: 0 | K37: 0 | L37: 0 | M37: 0 | N37: 1 | O37: 0 | P37: 0 | Q37: 1 | R37: 0 | S37: 0 | U37: 1
A38: 1 | B38: 0 | C38: 1 | D38: 0 | E38: 0 | F38: 0 | G38: 0 | H38: 0 | I38: 0 | J38: 0 | K38: 0 | L38: 0 | M38: 0 | N38: 0 | O38: 0 | P38: 0 | Q38: 0 | R38: 0 | S38: 0 | U38: 1
A39: 1 | B39: 0 | C39: 1 | D39: 0 | E39: 1 | F39: 0 | G39: 0 | H39: 1 | I39: 0 | J39: 0 | K39: 0 | L39: 0 | M39: 0 | N39: 0 | O39: 0 | P39: 0 | Q39: 0 | R39: 0 | S39: 1 | U39: 1
A40: 1 | B40: 0 | C40: 0 | D40: 1 | E40: 0 | F40: 0 | G40: 0 | H40: 0 | I40: 0 | J40: 0 | K40: 0 | L40: 0 | M40: 0 | N40: 0 | O40: 0 | P40: 0 | Q40: 0 | R40: 0 | S40: 0 | U40: 1
A41: 1 | B41: 0 | C41: 1 | D41: 0 | E41: 0 | F41: 0 | G41: 0 | H41: 0 | I41: 0 | J41: 0 | K41: 0 | L41: 0 | M41: 0 | N41: 0 | O41: 0 | P41: 0 | Q41: 1 | R41: 0 | S41: 0 | U41: 1
A42: 0 | B42: 1 | C42: 0 | D42: 0 | E42: 1 | F42: 1 | G42: 0 | H42: 0 | I42: 0 | J42: 0 | K42: 0 | L42: 1 | M42: 0 | N42: 0 | O42: 0 | P42: 1 | Q42: 0 | R42: 0 | S42: 0 | U42: 1
A43: 1 | B43: 0 | C43: 0 | D43: 1 | E43: 0 | F43: 0 | G43: 0 | H43: 0 | I43: 0 | J43: 0 | K43: 0 | L43: 0 | M43: 0 | N43: 0 | O43: 0 | P43: 0 | Q43: 1 | R43: 0 | S43: 0 | U43: 1
A44: 1 | B44: 0 | C44: 0 | D44: 1 | E44: 0 | F44: 0 | G44: 0 | H44: 0 | I44: 0 | J44: 0 | K44: 0 | L44: 0 | M44: 1 | N44: 0 | O44: 0 | P44: 0 | Q44: 0 | R44: 0 | S44: 0 | U44: 1
A45: 0 | B45: 1 | C45: 0 | D45: 1 | E45: 0 | F45: 0 | G45: 0 | H45: 0 | I45: 0 | J45: 0 | K45: 0 | L45: 0 | M45: 0 | N45: 0 | O45: 0 | P45: 0 | Q45: 0 | R45: 1 | S45: 0 | U45: 1
A46: 0 | B46: 1 | C46: 0 | D46: 1 | E46: 0 | F46: 0 | G46: 0 | H46: 1 | I46: 0 | J46: 0 | K46: 0 | L46: 0 | M46: 0 | N46: 0 | O46: 0 | P46: 0 | Q46: 0 | R46: 0 | S46: 0 | U46: 1
A47: 1 | B47: 0 | C47: 0 | D47: 1 | E47: 0 | F47: 0 | G47: 1 | H47: 0 | I47: 0 | J47: 1 | K47: 0 | L47: 0 | M47: 0 | N47: 0 | O47: 0 | P47: 0 | Q47: 0 | R47: 0 | S47: 1 | U47: 1
A48: 0 | B48: 1 | C48: 1 | D48: 0 | E48: 0 | F48: 0 | G48: 0 | H48: 0 | I48: 0 | J48: 0 | K48: 0 | L48: 0 | M48: 0 | N48: 0 | O48: 0 | P48: 0 | Q48: 0 | R48: 0 | S48: 0 | U48: 1
A49: 0 | B49: 1 | C49: 1 | D49: 0 | E49: 0 | F49: 0 | G49: 0 | H49: 1 | I49: 0 | J49: 0 | K49: 0 | L49: 1 | M49: 0 | N49: 0 | O49: 0 | P49: 0 | Q49: 0 | R49: 1 | S49: 1 | U49: 1
A50: 0 | B50: 1 | C50: 0 | D50: 0 | E50: 0 | F50: 0 | G50: 0 | H50: 1 | I50: 0 | J50: 0 | K50: 0 | L50: 0 | M50: 0 | N50: 0 | O50: 0 | P50: 0 | Q50: 0 | R50: 0 | S50: 0 | U50: 1
A51: 1 | B51: 0 | C51: 1 | D51: 0 | E51: 0 | F51: 0 | G51: 0 | H51: 0 | I51: 0 | J51: 0 | K51: 0 | L51: 1 | M51: 0 | N51: 1 | O51: 0 | P51: 0 | Q51: 0 | R51: 0 | S51: 0 | U51: 1
A52: 0 | B52: 1 | C52: 1 | D52: 0 | E52: 1 | F52: 0 | G52: 0 | H52: 0 | I52: 1 | J52: 0 | K52: 0 | L52: 0 | M52: 0 | N52: 1 | O52: 0 | P52: 1 | Q52: 1 | R52: 0 | S52: 0 | U52: 1
A53: 1 | B53: 0 | C53: 0 | D53: 1 | E53: 0 | F53: 0 | G53: 0 | H53: 1 | I53: 0 | J53: 0 | K53: 0 | L53: 0 | M53: 0 | N53: 0 | O53: 0 | P53: 0 | Q53: 1 | R53: 0 | S53: 0 | U53: 1
A54: 1 | B54: 0 | C54: 1 | D54: 0 | E54: 0 | F54: 0 | G54: 0 | H54: 0 | I54: 0 | J54: 0 | K54: 0 | L54: 0 | M54: 0 | N54: 0 | O54: 0 | P54: 0 | Q54: 0 | R54: 0 | S54: 0 | U54: 1
A55: 0 | B55: 0 | C55: 1 | D55: 0 | E55: 0 | F55: 0 | G55: 0 | H55: 1 | I55: 0 | J55: 0 | K55: 0 | L55: 0 | M55: 0 | N55: 0 | O55: 0 | P55: 0 | Q55: 0 | R55: 0 | S55: 0 | U55: 1
A56: 0 | B56: 1 | C56: 1 | D56: 0 | E56: 0 | F56: 0 | G56: 0 | H56: 0 | I56: 0 | J56: 0 | K56: 0 | L56: 0 | M56: 0 | N56: 0 | O56: 0 | P56: 0 | Q56: 0 | R56: 0 | S56: 1 | U56: 1
A57: 0 | B57: 1 | C57: 1 | D57: 0 | E57: 1 | F57: 0 | G57: 1 | H57: 0 | I57: 1 | J57: 0 | K57: 0 | L57: 0 | M57: 0 | N57: 0 | O57: 0 | P57: 0 | Q57: 1 | R57: 0 | S57: 0 | U57: 1
A58: 0 | B58: 0 | C58: 1 | D58: 0 | E58: 1 | F58: 0 | G58: 0 | H58: 1 | I58: 1 | J58: 0 | K58: 0 | L58: 0 | M58: 0 | N58: 0 | O58: 0 | P58: 0 | Q58: 0 | R58: 0 | S58: 0 | U58: 1
A59: 1 | B59: 0 | C59: 0 | D59: 0 | E59: 0 | F59: 0 | G59: 0 | H59: 0 | I59: 0 | J59: 0 | K59: 0 | L59: 0 | M59: 0 | N59: 1 | O59: 0 | P59: 0 | Q59: 0 | R59: 0 | S59: 0 | U59: 1
A60: 0 | B60: 1 | C60: 1 | D60: 0 | E60: 0 | F60: 0 | G60: 0 | H60: 1 | I60: 0 | J60: 0 | K60: 0 | L60: 1 | M60: 0 | N60: 0 | O60: 0 | P60: 0 | Q60: 0 | R60: 0 | S60: 0 | U60: 1
A61: 0 | B61: 0 | C61: 0 | D61: 1 | E61: 0 | F61: 0 | G61: 0 | H61: 0 | I61: 0 | J61: 0 | K61: 0 | L61: 0 | M61: 0 | N61: 0 | O61: 0 | P61: 0 | Q61: 0 | R61: 0 | S61: 0 | U61: 1
A62: 1 | B62: 0 | C62: 0 | D62: 0 | E62: 0 | F62: 1 | G62: 0 | H62: 1 | I62: 1 | J62: 0 | K62: 0 | L62: 0 | M62: 0 | N62: 0 | O62: 0 | P62: 0 | Q62: 0 | R62: 0 | S62: 0 | U62: 1
A63: 0 | B63: 1 | C63: 1 | D63: 0 | E63: 0 | F63: 0 | G63: 0 | H63: 0 | I63: 0 | J63: 0 | K63: 0 | L63: 0 | M63: 0 | N63: 0 | O63: 0 | P63: 0 | Q63: 1 | R63: 0 | S63: 1 | U63: 1
A64: 0 | B64: 1 | C64: 0 | D64: 1 | E64: 0 | F64: 0 | G64: 0 | H64: 0 | I64: 0 | J64: 0 | K64: 0 | L64: 0 | M64: 0 | N64: 1 | O64: 0 | P64: 0 | Q64: 1 | R64: 0 | S64: 1 | U64: 1
A65: 1 | B65: 0 | C65: 0 | D65: 1 | E65: 0 | F65: 0 | G65: 0 | H65: 1 | I65: 0 | J65: 0 | K65: 0 | L65: 0 | M65: 0 | N65: 0 | O65: 0 | P65: 0 | Q65: 0 | R65: 0 | S65: 0 | U65: 1
A66: 0 | B66: 1 | C66: 0 | D66: 1 | E66: 0 | F66: 0 | G66: 0 | H66: 0 | I66: 0 | J66: 0 | K66: 0 | L66: 0 | M66: 0 | N66: 1 | O66: 0 | P66: 0 | Q66: 1 | R66: 0 | S66: 1 | U66: 1
A67: 1 | B67: 0 | C67: 0 | D67: 1 | E67: 0 | F67: 0 | G67: 0 | H67: 0 | I67: 0 | J67: 0 | K67: 0 | L67: 0 | M67: 0 | N67: 0 | O67: 0 | P67: 0 | Q67: 0 | R67: 0 | S67: 0 | U67: 1
A68: 1 | B68: 0 | C68: 0 | D68: 1 | E68: 0 | F68: 0 | G68: 0 | H68: 0 | I68: 0 | J68: 0 | K68: 1 | L68: 0 | M68: 0 | N68: 0 | O68: 0 | P68: 1 | Q68: 0 | R68: 0 | S68: 0 | U68: 1
A69: 1 | B69: 0 | C69: 0 | D69: 1 | E69: 0 | F69: 0 | G69: 0 | H69: 0 | I69: 0 | J69: 0 | K69: 0 | L69: 0 | M69: 0 | N69: 0 | O69: 0 | P69: 0 | Q69: 1 | R69: 0 | S69: 1 | U69: 1
A70: 0 | B70: 0 | C70: 0 | D70: 1 | E70: 0 | F70: 0 | G70: 0 | H70: 0 | I70: 0 | J70: 0 | K70: 0 | L70: 1 | M70: 0 | N70: 0 | O70: 0 | P70: 0 | Q70: 0 | R70: 1 | S70: 0 | U70: 1
A71: 1 | B71: 0 | C71: 0 | D71: 1 | E71: 0 | F71: 0 | G71: 0 | H71: 1 | I71: 0 | J71: 0 | K71: 0 | L71: 0 | M71: 0 | N71: 1 | O71: 0 | P71: 0 | Q71: 0 | R71: 0 | S71: 0 | U71: 1
A72: 0 | B72: 1 | C72: 1 | D72: 0 | E72: 0 | F72: 0 | G72: 0 | H72: 0 | I72: 1 | J72: 0 | K72: 0 | L72: 0 | M72: 0 | N72: 0 | O72: 0 | P72: 0 | Q72: 0 | R72: 0 | S72: 0 | U72: 1
A73: 0 | B73: 1 | C73: 1 | D73: 0 | E73: 0 | F73: 0 | G73: 0 | H73: 0 | I73: 0 | J73: 0 | K73: 0 | L73: 0 | M73: 0 | N73: 1 | O73: 0 | P73: 1 | Q73: 0 | R73: 0 | S73: 1 | U73: 1
A74: 0 | B74: 0 | C74: 0 | D74: 1 | E74: 0 | F74: 0 | G74: 0 | H74: 0 | I74: 0 | J74: 0 | K74: 0 | L74: 0 | M74: 1 | N74: 0 | O74: 0 | P74: 0 | Q74: 0 | R74: 0 | S74: 0 | U74: 1
A75: 1 | B75: 0 | C75: 0 | D75: 0 | E75: 0 | F75: 0 | G75: 0 | H75: 1 | I75: 0 | J75: 0 | K75: 0 | L75: 0 | M75: 0 | N75: 0 | O75: 1 | P75: 0 | Q75: 0 | R75: 0 | S75: 0 | U75: 1
A76: 1 | B76: 0 | C76: 1 | D76: 0 | E76: 0 | F76: 0 | G76: 0 | H76: 0 | I76: 0 | J76: 0 | K76: 0 | L76: 1 | M76: 0 | N76: 0 | O76: 0 | P76: 0 | Q76: 0 | R76: 0 | S76: 0 | U76: 1
A77: 0 | B77: 1 | C77: 0 | D77: 1 | E77: 0 | F77: 0 | G77: 0 | H77: 0 | I77: 1 | J77: 0 | K77: 0 | L77: 0 | M77: 0 | N77: 0 | O77: 1 | P77: 0 | Q77: 0 | R77: 0 | S77: 1 | U77: 1
A78: 1 | B78: 0 | C78: 0 | D78: 1 | E78: 0 | F78: 0 | G78: 0 | H78: 1 | I78: 1 | J78: 0 | K78: 0 | L78: 0 | M78: 0 | N78: 1 | O78: 0 | P78: 0 | Q78: 0 | R78: 0 | S78: 0 | U78: 1
A79: 0 | B79: 1 | C79: 0 | D79: 1 | E79: 0 | F79: 0 | G79: 0 | H79: 0 | I79: 0 | J79: 0 | K79: 0 | L79: 0 | M79: 0 | N79: 1 | O79: 0 | P79: 0 | Q79: 0 | R79: 0 | S79: 0 | U79: 1
A80: 0 | B80: 1 | C80: 0 | D80: 1 | E80: 1 | F80: 0 | G80: 0 | H80: 0 | I80: 0 | J80: 0 | K80: 0 | L80: 0 | M80: 0 | N80: 0 | O80: 0 | P80: 0 | Q80: 0 | R80: 0 | S80: 1 | U80: 1
A81: 0 | B81: 1 | C81: 0 | D81: 0 | E81: 0 | F81: 0 | G81: 0 | H81: 1 | I81: 0 | J81: 0 | K81: 0 | L81: 0 | M81: 0 | N81: 0 | O81: 0 | P81: 0 | Q81: 0 | R81: 0 | S81: 0 | U81: 1
A82: 0 | B82: 1 | C82: 0 | D82: 1 | E82: 0 | F82: 0 | G82: 0 | H82: 0 | I82: 1 | J82: 0 | K82: 0 | L82: 0 | M82: 0 | N82: 0 | O82: 0 | P82: 0 | Q82: 0 | R82: 0 | S82: 0 | U82: 1
A83: 0 | B83: 1 | C83: 1 | D83: 0 | E83: 0 | F83: 0 | G83: 0 | H83: 0 | I83: 0 | J83: 0 | K83: 0 | L83: 0 | M83: 0 | N83: 0 | O83: 0 | P83: 0 | Q83: 1 | R83: 0 | S83: 0 | U83: 1
A84: 1 | B84: 0 | C84: 1 | D84: 0 | E84: 0 | F84: 0 | G84: 0 | H84: 0 | I84: 0 | J84: 1 | K84: 0 | L84: 0 | M84: 0 | N84: 0 | O84: 0 | P84: 0 | Q84: 0 | R84: 0 | S84: 0 | U84: 1
A85: 0 | B85: 0 | C85: 0 | D85: 0 | E85: 1 | F85: 0 | G85: 0 | H85: 0 | I85: 0 | J85: 0 | K85: 0 | L85: 1 | M85: 0 | N85: 0 | O85: 0 | P85: 0 | Q85: 0 | R85: 0 | S85: 0 | U85: 1
A86: 0 | B86: 1 | C86: 0 | D86: 1 | E86: 0 | F86: 0 | G86: 1 | H86: 0 | I86: 0 | J86: 0 | K86: 0 | L86: 0 | M86: 0 | N86: 0 | O86: 0 | P86: 0 | Q86: 0 | R86: 0 | S86: 0 | U86: 1
A87: 0 | B87: 1 | C87: 1 | D87: 0 | E87: 0 | F87: 0 | G87: 0 | H87: 0 | I87: 0 | J87: 0 | K87: 0 | L87: 1 | M87: 0 | N87: 0 | O87: 0 | P87: 0 | Q87: 1 | R87: 0 | S87: 0 | U87: 1
A88: 0 | B88: 1 | C88: 0 | D88: 1 | E88: 1 | F88: 0 | G88: 0 | H88: 1 | I88: 1 | J88: 0 | K88: 0 | L88: 1 | M88: 0 | N88: 1 | O88: 0 | P88: 0 | Q88: 0 | R88: 0 | S88: 0 | U88: 1
A89: 0 | B89: 0 | C89: 0 | D89: 1 | E89: 0 | F89: 0 | G89: 0 | H89: 0 | I89: 0 | J89: 0 | K89: 0 | L89: 0 | M89: 0 | N89: 0 | O89: 0 | P89: 0 | Q89: 0 | R89: 0 | S89: 0 | U89: 1
A90: 0 | B90: 1 | C90: 1 | D90: 0 | E90: 1 | F90: 0 | G90: 0 | H90: 0 | I90: 1 | J90: 0 | K90: 0 | L90: 0 | M90: 0 | N90: 1 | O90: 0 | P90: 0 | Q90: 1 | R90: 0 | S90: 0 | U90: 1
A91: 0 | B91: 0 | C91: 0 | D91: 1 | E91: 0 | F91: 0 | G91: 0 | H91: 0 | I91: 0 | J91: 0 | K91: 0 | L91: 0 | M91: 1 | N91: 0 | O91: 0 | P91: 0 | Q91: 0 | R91: 0 | S91: 0 | U91: 1
A92: 1 | B92: 0 | C92: 1 | D92: 0 | E92: 1 | F92: 0 | G92: 1 | H92: 0 | I92: 0 | J92: 1 | K92: 0 | L92: 0 | M92: 0 | N92: 0 | O92: 0 | P92: 0 | Q92: 0 | R92: 0 | S92: 0 | U92: 1
A93: 0 | B93: 1 | C93: 0 | D93: 1 | E93: 0 | F93: 0 | G93: 0 | H93: 0 | I93: 1 | J93: 0 | K93: 0 | L93: 0 | M93: 0 | N93: 0 | O93: 0 | P93: 0 | Q93: 0 | R93: 0 | S93: 0 | U93: 1
A94: 0 | B94: 1 | C94: 1 | D94: 0 | E94: 0 | F94: 0 | G94: 0 | H94: 1 | I94: 0 | J94: 0 | K94: 0 | L94: 1 | M94: 0 | N94: 0 | O94: 0 | P94: 0 | Q94: 0 | R94: 1 | S94: 1 | U94: 1
A95: 0 | B95: 1 | C95: 0 | D95: 1 | E95: 0 | F95: 0 | G95: 0 | H95: 0 | I95: 0 | J95: 0 | K95: 0 | L95: 0 | M95: 0 | N95: 1 | O95: 0 | P95: 0 | Q95: 1 | R95: 0 | S95: 0 | U95: 1
A96: 1 | B96: 0 | C96: 1 | D96: 0 | E96: 0 | F96: 0 | G96: 1 | H96: 0 | I96: 0 | J96: 0 | K96: 0 | L96: 0 | M96: 0 | N96: 0 | O96: 0 | P96: 0 | Q96: 1 | R96: 0 | S96: 1 | U96: 1
A97: 1 | B97: 0 | C97: 0 | D97: 1 | E97: 0 | F97: 0 | G97: 0 | H97: 0 | I97: 0 | J97: 0 | K97: 0 | L97: 0 | M97: 0 | N97: 0 | O97: 0 | P97: 0 | Q97: 0 | R97: 0 | S97: 0 | U97: 1
A98: 0 | B98: 1 | C98: 0 | D98: 1 | E98: 0 | F98: 0 | G98: 0 | H98: 0 | I98: 1 | J98: 0 | K98: 0 | L98: 0 | M98: 0 | N98: 0 | O98: 0 | P98: 0 | Q98: 0 | R98: 0 | S98: 0 | U98: 1
A99: 0 | B99: 1 | C99: 0 | D99: 0 | E99: 0 | F99: 0 | G99: 0 | H99: 0 | I99: 0 | J99: 0 | K99: 0 | L99: 0 | M99: 0 | N99: 0 | O99: 0 | P99: 0 | Q99: 0 | R99: 0 | S99: 0 | U99: 1
A100: 1 | B100: 0 | C100: 1 | D100: 0 | E100: 0 | F100: 0 | G100: 0 | H100: 1 | I100: 0 | J100: 0 | K100: 0 | L100: 0 | M100: 0 | N100: 0 | O100: 0 | P100: 0 | Q100: 1 | R100: 0 | S100: 0 | U100: 1
A101: 0 | B101: 0 | C101: 0 | D101: 1 | E101: 0 | F101: 0 | G101: 1 | H101: 0 | I101: 0 | J101: 0 | K101: 0 | L101: 0 | M101: 0 | N101: 0 | O101: 0 | P101: 0 | Q101: 0 | R101: 0 | S101: 0 | U101: 1
A102: 1 | B102: 0 | C102: 1 | D102: 0 | E102: 0 | F102: 0 | G102: 0 | H102: 0 | I102: 0 | J102: 1 | K102: 0 | L102: 0 | M102: 0 | N102: 0 | O102: 0 | P102: 0 | Q102: 0 | R102: 0 | S102: 0 | U102: 1
A103: 1 | B103: 0 | C103: 1 | D103: 0 | E103: 0 | F103: 0 | G103: 0 | H103: 1 | I103: 0 | J103: 0 | K103: 0 | L103: 0 | M103: 0 | N103: 0 | O103: 0 | P103: 0 | Q103: 0 | R103: 0 | S103: 0 | U103: 1
A104: 0 | B104: 1 | C104: 0 | D104: 1 | E104: 0 | F104: 0 | G104: 0 | H104: 0 | I104: 0 | J104: 0 | K104: 0 | L104: 1 | M104: 0 | N104: 0 | O104: 1 | P104: 1 | Q104: 0 | R104: 0 | S104: 0 | U104: 1
A105: 0 | B105: 1 | C105: 1 | D105: 0 | E105: 0 | F105: 0 | G105: 1 | H105: 0 | I105: 0 | J105: 0 | K105: 0 | L105: 0 | M105: 0 | N105: 0 | O105: 0 | P105: 0 | Q105: 0 | R105: 0 | S105: 0 | U105: 1
A106: 1 | B106: 0 | C106: 0 | D106: 1 | E106: 0 | F106: 0 | G106: 0 | H106: 0 | I106: 1 | J106: 1 | K106: 0 | L106: 0 | M106: 0 | N106: 0 | O106: 0 | P106: 0 | Q106: 0 | R106: 0 | S106: 0 | U106: 1
A107: 0 | B107: 0 | C107: 1 | D107: 0 | E107: 0 | F107: 0 | G107: 0 | H107: 0 | I107: 0 | J107: 0 | K107: 1 | L107: 0 | M107: 0 | N107: 0 | O107: 0 | P107: 0 | Q107: 0 | R107: 0 | S107: 1 | U107: 1
A108: 1 | B108: 0 | C108: 0 | D108: 1 | E108: 0 | F108: 0 | G108: 0 | H108: 0 | I108: 1 | J108: 0 | K108: 0 | L108: 0 | M108: 0 | N108: 0 | O108: 0 | P108: 0 | Q108: 1 | R108: 0 | S108: 0 | U108: 1
A109: 1 | B109: 0 | C109: 0 | D109: 1 | E109: 0 | F109: 0 | G109: 0 | H109: 0 | I109: 0 | J109: 0 | K109: 0 | L109: 0 | M109: 0 | N109: 0 | O109: 0 | P109: 0 | Q109: 0 | R109: 0 | S109: 1 | U109: 1
A110: 0 | B110: 1 | C110: 1 | D110: 0 | E110: 1 | F110: 0 | G110: 0 | H110: 0 | I110: 0 | J110: 0 | K110: 0 | L110: 0 | M110: 0 | N110: 0 | O110: 0 | P110: 0 | Q110: 0 | R110: 0 | S110: 1 | U110: 1
A111: 0 | B111: 1 | C111: 0 | D111: 1 | E111: 0 | F111: 0 | G111: 0 | H111: 0 | I111: 1 | J111: 0 | K111: 0 | L111: 1 | M111: 0 | N111: 0 | O111: 0 | P111: 0 | Q111: 0 | R111: 0 | S111: 0 | U111: 1
A112: 1 | B112: 0 | C112: 1 | D112: 0 | E112: 1 | F112: 0 | G112: 0 | H112: 0 | I112: 0 | J112: 0 | K112: 0 | L112: 1 | M112: 0 | N112: 0 | O112: 0 | P112: 0 | Q112: 0 | R112: 0 | S112: 0 | U112: 1
A113: 1 | B113: 0 | C113: 1 | D113: 0 | E113: 0 | F113: 0 | G113: 0 | H113: 0 | I113: 0 | J113: 0 | K113: 0 | L113: 0 | M113: 0 | N113: 0 | O113: 0 | P113: 0 | Q113: 0 | R113: 0 | S113: 0 | U113: 1
A114: 1 | B114: 0 | C114: 1 | D114: 0 | E114: 0 | F114: 0 | G114: 0 | H114: 0 | I114: 0 | J114: 0 | K114: 0 | L114: 1 | M114: 0 | N114: 0 | O114: 0 | P114: 1 | Q114: 0 | R114: 0 | S114: 0 | U114: 1
A115: 0 | B115: 1 | C115: 0 | D115: 1 | E115: 0 | F115: 0 | G115: 0 | H115: 0 | I115: 0 | J115: 0 | K115: 0 | L115: 0 | M115: 0 | N115: 0 | O115: 0 | P115: 0 | Q115: 0 | R115: 0 | S115: 0 | U115: 1
A116: 1 | B116: 0 | C116: 0 | D116: 1 | E116: 0 | F116: 0 | G116: 0 | H116: 1 | I116: 0 | J116: 0 | K116: 0 | L116: 0 | M116: 0 | N116: 0 | O116: 0 | P116: 0 | Q116: 0 | R116: 0 | S116: 0 | U116: 1
A117: 1 | B117: 0 | C117: 0 | D117: 1 | E117: 0 | F117: 0 | G117: 0 | H117: 0 | I117: 0 | J117: 0 | K117: 0 | L117: 0 | M117: 0 | N117: 0 | O117: 0 | P117: 0 | Q117: 0 | R117: 0 | S117: 0 | U117: 1
A118: 1 | B118: 0 | C118: 1 | D118: 0 | E118: 0 | F118: 0 | G118: 0 | H118: 0 | I118: 0 | J118: 0 | K118: 0 | L118: 0 | M118: 0 | N118: 1 | O118: 0 | P118: 0 | Q118: 0 | R118: 0 | S118: 0 | U118: 1
A119: 1 | B119: 0 | C119: 0 | D119: 1 | E119: 0 | F119: 0 | G119: 0 | H119: 0 | I119: 0 | J119: 0 | K119: 0 | L119: 1 | M119: 0 | N119: 0 | O119: 0 | P119: 0 | Q119: 0 | R119: 0 | S119: 0 | U119: 1
A120: 0 | B120: 1 | C120: 1 | D120: 0 | E120: 0 | F120: 0 | G120: 0 | H120: 0 | I120: 0 | J120: 1 | K120: 0 | L120: 1 | M120: 0 | N120: 0 | O120: 0 | P120: 0 | Q120: 0 | R120: 0 | S120: 1 | U120: 1
A121: 0 | B121: 0 | C121: 1 | D121: 0 | E121: 0 | F121: 0 | G121: 0 | H121: 0 | I121: 0 | J121: 0 | K121: 0 | L121: 0 | M121: 0 | N121: 0 | O121: 0 | P121: 0 | Q121: 0 | R121: 0 | S121: 1 | U121: 1
A122: 1 | B122: 0 | C122: 1 | D122: 0 | E122: 0 | F122: 0 | G122: 1 | H122: 0 | I122: 0 | J122: 0 | K122: 1 | L122: 0 | M122: 0 | N122: 0 | O122: 0 | P122: 0 | Q122: 0 | R122: 0 | S122: 1 | U122: 1
A123: 0 | B123: 1 | C123: 0 | D123: 1 | E123: 0 | F123: 1 | G123: 0 | H123: 0 | I123: 0 | J123: 0 | K123: 0 | L123: 1 | M123: 0 | N123: 0 | O123: 0 | P123: 0 | Q123: 0 | R123: 0 | S123: 0 | U123: 1
A124: 1 | B124: 0 | C124: 0 | D124: 1 | E124: 0 | F124: 0 | G124: 0 | H124: 0 | I124: 0 | J124: 0 | K124: 0 | L124: 0 | M124: 0 | N124: 0 | O124: 0 | P124: 0 | Q124: 0 | R124: 0 | S124: 1 | U124: 1
A125: 1 | B125: 0 | C125: 1 | D125: 0 | E125: 0 | F125: 0 | G125: 0 | H125: 1 | I125: 1 | J125: 0 | K125: 0 | L125: 0 | M125: 0 | N125: 0 | O125: 0 | P125: 0 | Q125: 0 | R125: 0 | S125: 0 | U125: 1
A126: 0 | B126: 1 | C126: 0 | D126: 1 | E126: 0 | F126: 0 | G126: 0 | H126: 0 | I126: 0 | J126: 0 | K126: 0 | L126: 0 | M126: 0 | N126: 0 | O126: 0 | P126: 0 | Q126: 0 | R126: 0 | S126: 0 | U126: 1
A127: 0 | B127: 1 | C127: 1 | D127: 0 | E127: 1 | F127: 0 | G127: 0 | H127: 1 | I127: 0 | J127: 0 | K127: 0 | L127: 0 | M127: 1 | N127: 0 | O127: 0 | P127: 0 | Q127: 0 | R127: 0 | S127: 1 | U127: 1
A128: 0 | B128: 0 | C128: 0 | D128: 1 | E128: 0 | F128: 0 | G128: 0 | H128: 0 | I128: 0 | J128: 0 | K128: 0 | L128: 0 | M128: 0 | N128: 0 | O128: 0 | P128: 0 | Q128: 0 | R128: 0 | S128: 0 | U128: 1
A129: 0 | B129: 1 | C129: 0 | D129: 0 | E129: 0 | F129: 0 | G129: 0 | H129: 0 | I129: 0 | J129: 0 | K129: 0 | L129: 0 | M129: 0 | N129: 0 | O129: 0 | P129: 0 | Q129: 0 | R129: 0 | S129: 0 | U129: 1
A130: 0 | B130: 1 | C130: 1 | D130: 0 | E130: 0 | F130: 0 | G130: 0 | H130: 0 | I130: 1 | J130: 0 | K130: 1 | L130: 0 | M130: 0 | N130: 1 | O130: 0 | P130: 0 | Q130: 0 | R130: 0 | S130: 1 | U130: 1
A131: 1 | B131: 0 | C131: 1 | D131: 0 | E131: 0 | F131: 0 | G131: 0 | H131: 1 | I131: 0 | J131: 0 | K131: 0 | L131: 0 | M131: 0 | N131: 0 | O131: 1 | P131: 0 | Q131: 1 | R131: 0 | S131: 0 | U131: 1
A132: 0 | B132: 1 | C132: 0 | D132: 1 | E132: 1 | F132: 0 | G132: 1 | H132: 1 | I132: 0 | J132: 1 | K132: 0 | L132: 0 | M132: 0 | N132: 0 | O132: 0 | P132: 0 | Q132: 0 | R132: 0 | S132: 0 | U132: 1
A133: 1 | B133: 0 | C133: 1 | D133: 0 | E133: 0 | F133: 0 | G133: 0 | H133: 0 | I133: 1 | J133: 0 | K133: 1 | L133: 0 | M133: 0 | N133: 1 | O133: 0 | P133: 0 | Q133: 1 | R133: 0 | S133: 0 | U133: 1
A134: 0 | B134: 1 | C134: 1 | D134: 0 | E134: 0 | F134: 0 | G134: 0 | H134: 1 | I134: 0 | J134: 0 | K134: 0 | L134: 1 | M134: 0 | N134: 0 | O134: 0 | P134: 0 | Q134: 1 | R134: 0 | S134: 0 | U134: 1
A135: 0 | B135: 0 | C135: 1 | D135: 0 | E135: 0 | F135: 0 | G135: 0 | H135: 0 | I135: 0 | J135: 0 | K135: 0 | L135: 0 | M135: 0 | N135: 0 | O135: 0 | P135: 0 | Q135: 0 | R135: 0 | S135: 1 | U135: 1
A136: 1 | B136: 0 | C136: 1 | D136: 0 | E136: 0 | F136: 0 | G136: 0 | H136: 0 | I136: 0 | J136: 0 | K136: 0 | L136: 0 | M136: 0 | N136: 0 | O136: 0 | P136: 0 | Q136: 0 | R136: 0 | S136: 0 | U136: 1
A137: 0 | B137: 1 | C137: 1 | D137: 0 | E137: 0 | F137: 0 | G137: 0 | H137: 0 | I137: 1 | J137: 0 | K137: 0 | L137: 0 | M137: 0 | N137: 0 | O137: 0 | P137: 0 | Q137: 0 | R137: 0 | S137: 0 | U137: 1
A138: 1 | B138: 0 | C138: 1 | D138: 0 | E138: 0 | F138: 0 | G138: 0 | H138: 0 | I138: 0 | J138: 0 | K138: 0 | L138: 0 | M138: 0 | N138: 0 | O138: 0 | P138: 0 | Q138: 0 | R138: 0 | S138: 0 | U138: 1
A139: 0 | B139: 1 | C139: 0 | D139: 0 | E139: 0 | F139: 0 | G139: 0 | H139: 0 | I139: 0 | J139: 0 | K139: 0 | L139: 0 | M139: 0 | N139: 0 | O139: 0 | P139: 0 | Q139: 0 | R139: 0 | S139: 0 | U139: 1
A140: 1 | B140: 0 | C140: 1 | D140: 0 | E140: 0 | F140: 0 | G140: 0 | H140: 0 | I140: 1 | J140: 0 | K140: 0 | L140: 0 | M140: 0 | N140: 0 | O140: 0 | P140: 0 | Q140: 0 | R140: 0 | S140: 0 | U140: 1
A141: 1 | B141: 0 | C141: 1 | D141: 0 | E141: 0 | F141: 0 | G141: 0 | H141: 1 | I141: 0 | J141: 0 | K141: 0 | L141: 0 | M141: 0 | N141: 0 | O141: 0 | P141: 0 | Q141: 1 | R141: 0 | S141: 0 | U141: 1
A142: 0 | B142: 0 | C142: 1 | D142: 0 | E142: 0 | F142: 0 | G142: 0 | H142: 1 | I142: 0 | J142: 0 | K142: 0 | L142: 0 | M142: 0 | N142: 0 | O142: 0 | P142: 0 | Q142: 0 | R142: 0 | S142: 0 | U142: 1
A143: 0 | B143: 1 | C143: 0 | D143: 1 | E143: 1 | F143: 0 | G143: 0 | H143: 0 | I143: 1 | J143: 0 | K143: 0 | L143: 0 | M143: 0 | N143: 0 | O143: 0 | P143: 0 | Q143: 1 | R143: 0 | S143: 0 | U143: 1
A144: 0 | B144: 0 | C144: 0 | D144: 1 | E144: 1 | F144: 0 | G144: 0 | H144: 0 | I144: 0 | J144: 0 | K144: 0 | L144: 0 | M144: 0 | N144: 0 | O144: 0 | P144: 0 | Q144: 0 | R144: 0 | S144: 0 | U144: 1
A145: 0 | B145: 1 | C145: 1 | D145: 0 | E145: 0 | F145: 0 | G145: 0 | H145: 0 | I145: 0 | J145: 0 | K145: 0 | L145: 0 | M145: 0 | N145: 0 | O145: 0 | P145: 0 | Q145: 0 | R145: 0 | S145: 0 | U145: 1
A146: 1 | B146: 0 | C146: 1 | D146: 0 | E146: 0 | F146: 0 | G146: 1 | H146: 1 | I146: 0 | J146: 0 | K146: 0 | L146: 0 | M146: 0 | N146: 0 | O146: 0 | P146: 0 | Q146: 0 | R146: 0 | S146: 0 | U146: 1
A147: 0 | B147: 1 | C147: 0 | D147: 1 | E147: 0 | F147: 0 | G147: 0 | H147: 0 | I147: 0 | J147: 0 | K147: 0 | L147: 0 | M147: 0 | N147: 1 | O147: 0 | P147: 0 | Q147: 1 | R147: 0 | S147: 0 | U147: 1
A148: 0 | B148: 1 | C148: 0 | D148: 1 | E148: 1 | F148: 0 | G148: 0 | H148: 0 | I148: 0 | J148: 0 | K148: 0 | L148: 0 | M148: 0 | N148: 0 | O148: 0 | P148: 0 | Q148: 0 | R148: 0 | S148: 0 | U148: 1
A149: 0 | B149: 1 | C149: 1 | D149: 0 | E149: 0 | F149: 0 | G149: 0 | H149: 0 | I149: 0 | J149: 0 | K149: 0 | L149: 0 | M149: 0 | N149: 0 | O149: 0 | P149: 0 | Q149: 0 | R149: 0 | S149: 0 | U149: 1
A150: 0 | B150: 1 | C150: 1 | D150: 0 | E150: 1 | F150: 1 | G150: 0 | H150: 0 | I150: 1 | J150: 0 | K150: 0 | L150: 0 | M150: 0 | N150: 0 | O150: 0 | P150: 0 | Q150: 1 | R150: 0 | S150: 0 | U150: 1
A151: 1 | B151: 0 | C151: 1 | D151: 0 | E151: 0 | F151: 0 | G151: 0 | H151: 0 | I151: 0 | J151: 0 | K151: 0 | L151: 0 | M151: 0 | N151: 0 | O151: 0 | P151: 0 | Q151: 1 | R151: 0 | S151: 1 | U151: 1
A152: 0 | B152: 1 | C152: 1 | D152: 0 | E152: 0 | F152: 0 | G152: 0 | H152: 0 | I152: 0 | J152: 0 | K152: 0 | L152: 1 | M152: 0 | N152: 0 | O152: 0 | P152: 0 | Q152: 1 | R152: 0 | S152: 0 | U152: 1
A153: 0 | B153: 1 | C153: 0 | D153: 1 | E153: 0 | F153: 0 | G153: 0 | H153: 0 | I153: 0 | J153: 0 | K153: 0 | L153: 0 | M153: 0 | N153: 0 | O153: 0 | P153: 0 | Q153: 0 | R153: 1 | S153: 0 | U153: 1
A154: 1 | B154: 0 | C154: 0 | D154: 0 | E154: 0 | F154: 0 | G154: 0 | H154: 0 | I154: 0 | J154: 0 | K154: 0 | L154: 1 | M154: 0 | N154: 0 | O154: 0 | P154: 0 | Q154: 1 | R154: 0 | S154: 0 | U154: 1
A155: 0 | B155: 1 | C155: 0 | D155: 1 | E155: 0 | F155: 0 | G155: 0 | H155: 0 | I155: 0 | J155: 0 | K155: 0 | L155: 0 | M155: 0 | N155: 0 | O155: 0 | P155: 0 | Q155: 1 | R155: 0 | S155: 0 | U155: 1
A156: 0 | B156: 1 | C156: 1 | D156: 0 | E156: 0 | F156: 0 | G156: 0 | H156: 0 | I156: 0 | J156: 0 | K156: 0 | L156: 0 | M156: 0 | N156: 0 | O156: 1 | P156: 0 | Q156: 0 | R156: 0 | S156: 1 | U156: 1
A157: 0 | B157: 1 | C157: 1 | D157: 0 | E157: 0 | F157: 0 | G157: 0 | H157: 0 | I157: 0 | J157: 0 | K157: 0 | L157: 0 | M157: 0 | N157: 0 | O157: 0 | P157: 0 | Q157: 1 | R157: 0 | S157: 0 | U157: 1
A158: 0 | B158: 1 | C158: 1 | D158: 0 | E158: 0 | F158: 0 | G158: 0 | H158: 1 | I158: 0 | J158: 0 | K158: 0 | L158: 0 | M158: 0 | N158: 1 | O158: 0 | P158: 0 | Q158: 0 | R158: 0 | S158: 0 | U158: 1
A159: 0 | B159: 0 | C159: 0 | D159: 0 | E159: 0 | F159: 0 | G159: 0 | H159: 0 | I159: 0 | J159: 0 | K159: 0 | L159: 1 | M159: 0 | N159: 0 | O159: 0 | P159: 0 | Q159: 0 | R159: 0 | S159: 1 | U159: 1
A160: 0 | B160: 0 | C160: 0 | D160: 1 | E160: 0 | F160: 0 | G160: 0 | H160: 0 | I160: 1 | J160: 0 | K160: 0 | L160: 0 | M160: 0 | N160: 0 | O160: 0 | P160: 0 | Q160: 0 | R160: 0 | S160: 0 | U160: 1
A161: 1 | B161: 0 | C161: 1 | D161: 0 | E161: 0 | F161: 0 | G161: 0 | H161: 0 | I161: 1 | J161: 0 | K161: 0 | L161: 1 | M161: 0 | N161: 0 | O161: 1 | P161: 0 | Q161: 0 | R161: 0 | S161: 1 | U161: 1
A162: 0 | B162: 1 | C162: 1 | D162: 0 | E162: 0 | F162: 0 | G162: 0 | H162: 0 | I162: 1 | J162: 0 | K162: 0 | L162: 1 | M162: 0 | N162: 0 | O162: 0 | P162: 1 | Q162: 0 | R162: 0 | S162: 1 | U162: 1
A163: 1 | B163: 0 | C163: 0 | D163: 1 | E163: 0 | F163: 0 | G163: 1 | H163: 0 | I163: 0 | J163: 0 | K163: 0 | L163: 0 | M163: 0 | N163: 0 | O163: 0 | P163: 0 | Q163: 0 | R163: 0 | S163: 0 | U163: 1
A164: 1 | B164: 0 | C164: 0 | D164: 1 | E164: 0 | F164: 0 | G164: 0 | H164: 0 | I164: 0 | J164: 0 | K164: 0 | L164: 0 | M164: 0 | N164: 0 | O164: 0 | P164: 0 | Q164: 0 | R164: 1 | S164: 0 | U164: 1
A165: 0 | B165: 1 | C165: 1 | D165: 0 | E165: 0 | F165: 0 | G165: 1 | H165: 0 | I165: 0 | J165: 0 | K165: 0 | L165: 0 | M165: 0 | N165: 0 | O165: 0 | P165: 0 | Q165: 0 | R165: 0 | S165: 1 | U165: 1
A166: 1 | B166: 0 | C166: 0 | D166: 1 | E166: 0 | F166: 0 | G166: 0 | H166: 0 | I166: 0 | J166: 0 | K166: 0 | L166: 0 | M166: 0 | N166: 0 | O166: 0 | P166: 0 | Q166: 1 | R166: 0 | S166: 0 | U166: 1
A167: 0 | B167: 1 | C167: 1 | D167: 0 | E167: 0 | F167: 0 | G167: 0 | H167: 0 | I167: 1 | J167: 0 | K167: 0 | L167: 0 | M167: 0 | N167: 1 | O167: 0 | P167: 0 | Q167: 1 | R167: 0 | S167: 0 | U167: 1
A168: 1 | B168: 0 | C168: 1 | D168: 0 | E168: 1 | F168: 0 | G168: 0 | H168: 1 | I168: 0 | J168: 0 | K168: 0 | L168: 0 | M168: 0 | N168: 0 | O168: 0 | P168: 1 | Q168: 0 | R168: 0 | S168: 1 | U168: 1
A169: 0 | B169: 0 | C169: 1 | D169: 0 | E169: 0 | F169: 0 | G169: 0 | H169: 0 | I169: 1 | J169: 0 | K169: 0 | L169: 0 | M169: 0 | N169: 0 | O169: 0 | P169: 0 | Q169: 0 | R169: 0 | S169: 0 | U169: 1
A170: 1 | B170: 0 | C170: 0 | D170: 1 | E170: 0 | F170: 0 | G170: 0 | H170: 0 | I170: 0 | J170: 0 | K170: 0 | L170: 0 | M170: 0 | N170: 0 | O170: 0 | P170: 0 | Q170: 0 | R170: 0 | S170: 0 | U170: 1
A171: 0 | B171: 0 | C171: 0 | D171: 0 | E171: 0 | F171: 0 | G171: 0 | H171: 0 | I171: 0 | J171: 0 | K171: 0 | L171: 0 | M171: 0 | N171: 0 | O171: 0 | P171: 0 | Q171: 0 | R171: 0 | S171: 0 | U171: 1
A172: 0 | B172: 1 | C172: 0 | D172: 1 | E172: 0 | F172: 0 | G172: 0 | H172: 0 | I172: 0 | J172: 0 | K172: 0 | L172: 0 | M172: 0 | N172: 0 | O172: 0 | P172: 0 | Q172: 0 | R172: 0 | S172: 0 | U172: 1
A173: 1 | B173: 0 | C173: 1 | D173: 0 | E173: 0 | F173: 0 | G173: 0 | H173: 0 | I173: 0 | J173: 0 | K173: 0 | L173: 0 | M173: 0 | N173: 0 | O173: 0 | P173: 1 | Q173: 1 | R173: 0 | S173: 0 | U173: 1
A174: 1 | B174: 0 | C174: 0 | D174: 1 | E174: 0 | F174: 0 | G174: 0 | H174: 0 | I174: 0 | J174: 0 | K174: 0 | L174: 0 | M174: 0 | N174: 0 | O174: 0 | P174: 0 | Q174: 0 | R174: 0 | S174: 0 | U174: 1
A175: 1 | B175: 0 | C175: 0 | D175: 1 | E175: 0 | F175: 0 | G175: 0 | H175: 0 | I175: 0 | J175: 0 | K175: 0 | L175: 0 | M175: 0 | N175: 0 | O175: 0 | P175: 0 | Q175: 0 | R175: 0 | S175: 0 | U175: 1
A176: 0 | B176: 1 | C176: 1 | D176: 0 | E176: 1 | F176: 0 | G176: 0 | H176: 0 | I176: 0 | J176: 0 | K176: 0 | L176: 0 | M176: 0 | N176: 0 | O176: 0 | P176: 0 | Q176: 0 | R176: 0 | S176: 1 | U176: 1
A177: 0 | B177: 1 | C177: 0 | D177: 1 | E177: 0 | F177: 0 | G177: 0 | H177: 0 | I177: 0 | J177: 0 | K177: 0 | L177: 0 | M177: 0 | N177: 0 | O177: 0 | P177: 0 | Q177: 0 | R177: 0 | S177: 0 | U177: 1
A178: 0 | B178: 0 | C178: 0 | D178: 1 | E178: 0 | F178: 0 | G178: 0 | H178: 0 | I178: 0 | J178: 0 | K178: 0 | L178: 0 | M178: 0 | N178: 1 | O178: 0 | P178: 0 | Q178: 0 | R178: 0 | S178: 0 | U178: 1
A179: 0 | B179: 0 | C179: 0 | D179: 1 | E179: 0 | F179: 0 | G179: 0 | H179: 0 | I179: 0 | J179: 0 | K179: 0 | L179: 0 | M179: 0 | N179: 0 | O179: 0 | P179: 1 | Q179: 1 | R179: 0 | S179: 1 | U179: 1
A180: 0 | B180: 1 | C180: 1 | D180: 0 | E180: 0 | F180: 0 | G180: 0 | H180: 0 | I180: 1 | J180: 0 | K180: 0 | L180: 0 | M180: 0 | N180: 0 | O180: 0 | P180: 0 | Q180: 0 | R180: 0 | S180: 0 | U180: 1
A181: 0 | B181: 1 | C181: 1 | D181: 0 | E181: 0 | F181: 0 | G181: 0 | H181: 0 | I181: 0 | J181: 0 | K181: 0 | L181: 0 | M181: 0 | N181: 0 | O181: 1 | P181: 0 | Q181: 0 | R181: 0 | S181: 0 | U181: 1
A182: 0 | B182: 1 | C182: 1 | D182: 0 | E182: 1 | F182: 0 | G182: 0 | H182: 0 | I182: 1 | J182: 0 | K182: 0 | L182: 0 | M182: 0 | N182: 0 | O182: 0 | P182: 0 | Q182: 0 | R182: 0 | S182: 1 | U182: 1
A183: 0 | B183: 1 | C183: 1 | D183: 0 | E183: 0 | F183: 0 | G183: 0 | H183: 0 | I183: 1 | J183: 0 | K183: 0 | L183: 0 | M183: 1 | N183: 0 | O183: 0 | P183: 0 | Q183: 1 | R183: 0 | S183: 0 | U183: 1
A184: 0 | B184: 1 | C184: 0 | D184: 0 | E184: 0 | F184: 0 | G184: 0 | H184: 1 | I184: 1 | J184: 0 | K184: 0 | L184: 0 | M184: 0 | N184: 0 | O184: 0 | P184: 0 | Q184: 0 | R184: 0 | S184: 0 | U184: 1
A185: 0 | B185: 1 | C185: 0 | D185: 1 | E185: 0 | F185: 0 | G185: 0 | H185: 1 | I185: 0 | J185: 0 | K185: 0 | L185: 0 | M185: 0 | N185: 0 | O185: 0 | P185: 0 | Q185: 1 | R185: 0 | S185: 1 | U185: 1
A186: 1 | B186: 0 | C186: 0 | D186: 1 | E186: 0 | F186: 0 | G186: 0 | H186: 0 | I186: 0 | J186: 0 | K186: 0 | L186: 1 | M186: 0 | N186: 0 | O186: 0 | P186: 1 | Q186: 0 | R186: 0 | S186: 1 | U186: 1
A187: 0 | B187: 1 | C187: 1 | D187: 0 | E187: 0 | F187: 0 | G187: 1 | H187: 0 | I187: 0 | J187: 0 | K187: 0 | L187: 0 | M187: 0 | N187: 0 | O187: 1 | P187: 1 | Q187: 1 | R187: 0 | S187: 0 | U187: 1
A188: 0 | B188: 0 | C188: 1 | D188: 0 | E188: 1 | F188: 0 | G188: 0 | H188: 0 | I188: 0 | J188: 0 | K188: 0 | L188: 0 | M188: 0 | N188: 0 | O188: 0 | P188: 0 | Q188: 1 | R188: 0 | S188: 0 | U188: 1
A189: 0 | B189: 1 | C189: 0 | D189: 1 | E189: 0 | F189: 0 | G189: 0 | H189: 0 | I189: 0 | J189: 0 | K189: 0 | L189: 0 | M189: 0 | N189: 0 | O189: 0 | P189: 0 | Q189: 0 | R189: 0 | S189: 0 | U189: 1
A190: 1 | B190: 0 | C190: 0 | D190: 0 | E190: 1 | F190: 0 | G190: 0 | H190: 0 | I190: 0 | J190: 0 | K190: 0 | L190: 1 | M190: 0 | N190: 0 | O190: 0 | P190: 1 | Q190: 0 | R190: 0 | S190: 1 | U190: 1
A191: 1 | B191: 0 | C191: 0 | D191: 1 | E191: 0 | F191: 0 | G191: 0 | H191: 1 | I191: 0 | J191: 0 | K191: 0 | L191: 0 | M191: 0 | N191: 1 | O191: 0 | P191: 0 | Q191: 0 | R191: 0 | S191: 1 | U191: 1
A192: 1 | B192: 0 | C192: 1 | D192: 0 | E192: 0 | F192: 0 | G192: 0 | H192: 0 | I192: 0 | J192: 0 | K192: 0 | L192: 1 | M192: 0 | N192: 0 | O192: 0 | P192: 0 | Q192: 0 | R192: 0 | S192: 1 | U192: 1
A193: 1 | B193: 0 | C193: 0 | D193: 1 | E193: 1 | F193: 0 | G193: 0 | H193: 0 | I193: 0 | J193: 0 | K193: 0 | L193: 0 | M193: 0 | N193: 0 | O193: 0 | P193: 0 | Q193: 0 | R193: 0 | S193: 0 | U193: 1
A194: 0 | B194: 1 | C194: 0 | D194: 0 | E194: 0 | F194: 0 | G194: 0 | H194: 1 | I194: 0 | J194: 0 | K194: 0 | L194: 0 | M194: 0 | N194: 0 | O194: 0 | P194: 0 | Q194: 0 | R194: 0 | S194: 0 | U194: 1
A195: 0 | B195: 1 | C195: 1 | D195: 0 | E195: 0 | F195: 0 | G195: 0 | H195: 1 | I195: 1 | J195: 0 | K195: 0 | L195: 0 | M195: 0 | N195: 0 | O195: 1 | P195: 0 | Q195: 0 | R195: 0 | S195: 0 | U195: 1
A196: 0 | B196: 1 | C196: 0 | D196: 1 | E196: 0 | F196: 0 | G196: 0 | H196: 0 | I196: 1 | J196: 0 | K196: 0 | L196: 0 | M196: 0 | N196: 0 | O196: 0 | P196: 0 | Q196: 0 | R196: 0 | S196: 0 | U196: 1
A197: 0 | B197: 1 | C197: 0 | D197: 1 | E197: 0 | F197: 0 | G197: 0 | H197: 0 | I197: 0 | J197: 0 | K197: 0 | L197: 0 | M197: 0 | N197: 0 | O197: 0 | P197: 1 | Q197: 0 | R197: 0 | S197: 0 | U197: 1
A198: 1 | B198: 0 | C198: 0 | D198: 1 | E198: 0 | F198: 0 | G198: 1 | H198: 1 | I198: 0 | J198: 0 | K198: 0 | L198: 0 | M198: 0 | N198: 0 | O198: 0 | P198: 0 | Q198: 0 | R198: 0 | S198: 0 | U198: 1
A199: 1 | B199: 0 | C199: 1 | D199: 0 | E199: 1 | F199: 0 | G199: 0 | H199: 0 | I199: 0 | J199: 0 | K199: 0 | L199: 0 | M199: 0 | N199: 1 | O199: 0 | P199: 0 | Q199: 1 | R199: 0 | S199: 0 | U199: 1
A200: 0 | B200: 1 | C200: 0 | D200: 0 | E200: 0 | F200: 0 | G200: 0 | H200: 0 | I200: 0 | J200: 0 | K200: 0 | L200: 0 | M200: 0 | N200: 1 | O200: 0 | P200: 0 | Q200: 0 | R200: 0 | S200: 0 | U200: 1
... 803 more rows

Sheet Рис. 4 и 5
A1: =RAND() -> 0.440363349 | B1: 0.1513964912 | C1: 0.4599361016 | D1: 0.04869868674 | E1: 0.7554869849 | F1: 0.9046592843 | G1: 0.350342134 | H1: 0.9905109859 | I1: 0.209446569 | J1: 0.4429838158 | K1: 0.8856167605 | L1: 0.8343041846 | M1: 0.3557572081 | N1: 0.163611449 | O1: 0.4934342462 | P1: 0.8084610048 | Q1: 0.3191192745 | R1: 0.5805720394 | S1: 0.3506849719
A2: 7 | B2: 6 | C2: 11 | D2: 0 | E2: 3 | F2: 10 | G2: 17 | H2: 2 | I2: 12 | J2: 18 | K2: 1 | L2: 14 | M2: 13 | N2: 8 | O2: 5 | P2: 4 | Q2: 15 | R2: 9 | S2: 16 | U2: PREGNANT | V2: RANDOM
A3: 0 | B3: 0 | C3: 0 | D3: 1 | E3: 0 | F3: 0 | G3: 0 | H3: 1 | I3: 0 | J3: 0 | K3: 0 | L3: 0 | M3: 0 | N3: 0 | O3: 0 | P3: 0 | Q3: 0 | R3: 0 | S3: 0 | U3: 0 | V3: =RAND() -> 0.891378333
A4: 0 | B4: 0 | C4: 0 | D4: 1 | E4: 0 | F4: 0 | G4: 0 | H4: 1 | I4: 0 | J4: 0 | K4: 0 | L4: 0 | M4: 0 | N4: 1 | O4: 0 | P4: 0 | Q4: 0 | R4: 0 | S4: 0 | U4: 1 | V4: 0.9597330381
A5: 1 | B5: 0 | C5: 0 | D5: 1 | E5: 1 | F5: 0 | G5: 0 | H5: 0 | I5: 0 | J5: 0 | K5: 0 | L5: 0 | M5: 0 | N5: 1 | O5: 0 | P5: 0 | Q5: 0 | R5: 0 | S5: 0 | U5: 1 | V5: 0.2930834136
A6: 0 | B6: 0 | C6: 0 | D6: 0 | E6: 1 | F6: 0 | G6: 0 | H6: 0 | I6: 0 | J6: 0 | K6: 1 | L6: 0 | M6: 0 | N6: 0 | O6: 0 | P6: 0 | Q6: 0 | R6: 0 | S6: 0 | U6: 0 | V6: 0.4332129202
A7: 1 | B7: 0 | C7: 1 | D7: 0 | E7: 0 | F7: 0 | G7: 0 | H7: 1 | I7: 0 | J7: 0 | K7: 1 | L7: 0 | M7: 0 | N7: 0 | O7: 0 | P7: 0 | Q7: 0 | R7: 0 | S7: 0 | U7: 1 | V7: 0.1507121387
A8: 0 | B8: 0 | C8: 0 | D8: 0 | E8: 0 | F8: 0 | G8: 0 | H8: 0 | I8: 0 | J8: 0 | K8: 1 | L8: 0 | M8: 1 | N8: 0 | O8: 0 | P8: 0 | Q8: 0 | R8: 0 | S8: 0 | U8: 1 | V8: 0.1673222869
A9: 0 | B9: 0 | C9: 0 | D9: 1 | E9: 1 | F9: 0 | G9: 0 | H9: 0 | I9: 0 | J9: 0 | K9: 0 | L9: 0 | M9: 0 | N9: 0 | O9: 0 | P9: 0 | Q9: 0 | R9: 0 | S9: 0 | U9: 0 | V9: 0.02299133719
A10: 0 | B10: 0 | C10: 0 | D10: 0 | E10: 0 | F10: 0 | G10: 0 | H10: 1 | I10: 0 | J10: 0 | K10: 1 | L10: 0 | M10: 0 | N10: 0 | O10: 0 | P10: 0 | Q10: 0 | R10: 0 | S10: 0 | U10: 1 | V10: 0.2897082589
A11: 1 | B11: 0 | C11: 1 | D11: 0 | E11: 0 | F11: 0 | G11: 1 | H11: 1 | I11: 0 | J11: 1 | K11: 1 | L11: 0 | M11: 0 | N11: 0 | O11: 0 | P11: 0 | Q11: 0 | R11: 0 | S11: 0 | U11: 1 | V11: 0.7909742146
A12: 0 | B12: 0 | C12: 0 | D12: 1 | E12: 1 | F12: 0 | G12: 1 | H12: 0 | I12: 0 | J12: 0 | K12: 0 | L12: 1 | M12: 0 | N12: 0 | O12: 0 | P12: 0 | Q12: 0 | R12: 0 | S12: 0 | U12: 0 | V12: 0.619605256
A13: 1 | B13: 0 | C13: 0 | D13: 1 | E13: 0 | F13: 0 | G13: 1 | H13: 1 | I13: 0 | J13: 1 | K13: 0 | L13: 0 | M13: 1 | N13: 1 | O13: 0 | P13: 0 | Q13: 0 | R13: 0 | S13: 0 | U13: 1 | V13: 0.3872316256
A14: 0 | B14: 0 | C14: 0 | D14: 0 | E14: 0 | F14: 0 | G14: 1 | H14: 1 | I14: 0 | J14: 0 | K14: 1 | L14: 1 | M14: 0 | N14: 0 | O14: 1 | P14: 0 | Q14: 0 | R14: 0 | S14: 0 | U14: 0 | V14: 0.9865104712
A15: 0 | B15: 0 | C15: 0 | D15: 1 | E15: 0 | F15: 0 | G15: 1 | H15: 1 | I15: 0 | J15: 0 | K15: 0 | L15: 0 | M15: 0 | N15: 0 | O15: 1 | P15: 0 | Q15: 0 | R15: 0 | S15: 0 | U15: 0 | V15: 0.298496558
A16: 0 | B16: 0 | C16: 1 | D16: 0 | E16: 0 | F16: 0 | G16: 0 | H16: 1 | I16: 0 | J16: 0 | K16: 0 | L16: 0 | M16: 0 | N16: 0 | O16: 0 | P16: 0 | Q16: 0 | R16: 0 | S16: 0 | U16: 0 | V16: 0.5399295454
A17: 0 | B17: 0 | C17: 0 | D17: 0 | E17: 0 | F17: 0 | G17: 0 | H17: 1 | I17: 0 | J17: 0 | K17: 1 | L17: 0 | M17: 0 | N17: 0 | O17: 0 | P17: 1 | Q17: 0 | R17: 0 | S17: 0 | U17: 1 | V17: 0.8908752491
A18: 0 | B18: 0 | C18: 1 | D18: 0 | E18: 0 | F18: 0 | G18: 0 | H18: 1 | I18: 0 | J18: 1 | K18: 1 | L18: 0 | M18: 0 | N18: 0 | O18: 0 | P18: 0 | Q18: 0 | R18: 1 | S18: 0 | U18: 1 | V18: 0.0661723746
A19: 0 | B19: 0 | C19: 0 | D19: 0 | E19: 1 | F19: 0 | G19: 0 | H19: 0 | I19: 0 | J19: 1 | K19: 1 | L19: 0 | M19: 0 | N19: 0 | O19: 0 | P19: 0 | Q19: 0 | R19: 0 | S19: 0 | U19: 1 | V19: 0.2192681917
A20: 0 | B20: 0 | C20: 0 | D20: 0 | E20: 1 | F20: 0 | G20: 0 | H20: 0 | I20: 0 | J20: 0 | K20: 1 | L20: 0 | M20: 0 | N20: 0 | O20: 0 | P20: 0 | Q20: 0 | R20: 0 | S20: 0 | U20: 1 | V20: 0.6074606596
A21: 0 | B21: 0 | C21: 0 | D21: 1 | E21: 0 | F21: 0 | G21: 1 | H21: 0 | I21: 0 | J21: 0 | K21: 0 | L21: 0 | M21: 1 | N21: 1 | O21: 0 | P21: 0 | Q21: 0 | R21: 0 | S21: 0 | U21: 1 | V21: 0.1683792635
A22: 0 | B22: 0 | C22: 0 | D22: 0 | E22: 1 | F22: 0 | G22: 1 | H22: 0 | I22: 0 | J22: 0 | K22: 1 | L22: 0 | M22: 0 | N22: 0 | O22: 0 | P22: 0 | Q22: 0 | R22: 0 | S22: 0 | U22: 1 | V22: 0.07311947925
A23: 0 | B23: 0 | C23: 0 | D23: 1 | E23: 0 | F23: 0 | G23: 1 | H23: 1 | I23: 0 | J23: 0 | K23: 0 | L23: 1 | M23: 0 | N23: 0 | O23: 0 | P23: 0 | Q23: 0 | R23: 0 | S23: 0 | U23: 0 | V23: 0.4547900626
A24: 0 | B24: 0 | C24: 0 | D24: 0 | E24: 1 | F24: 0 | G24: 0 | H24: 0 | I24: 0 | J24: 0 | K24: 1 | L24: 0 | M24: 0 | N24: 0 | O24: 0 | P24: 0 | Q24: 0 | R24: 0 | S24: 0 | U24: 0 | V24: 0.393306698
A25: 0 | B25: 0 | C25: 0 | D25: 0 | E25: 1 | F25: 0 | G25: 0 | H25: 0 | I25: 0 | J25: 1 | K25: 0 | L25: 0 | M25: 1 | N25: 0 | O25: 0 | P25: 0 | Q25: 0 | R25: 0 | S25: 0 | U25: 0 | V25: 0.3349228948
A26: 0 | B26: 1 | C26: 0 | D26: 1 | E26: 1 | F26: 0 | G26: 0 | H26: 0 | I26: 0 | J26: 0 | K26: 0 | L26: 0 | M26: 0 | N26: 0 | O26: 1 | P26: 0 | Q26: 0 | R26: 0 | S26: 0 | U26: 0 | V26: 0.6001982471
A27: 0 | B27: 0 | C27: 0 | D27: 0 | E27: 0 | F27: 0 | G27: 0 | H27: 1 | I27: 0 | J27: 0 | K27: 1 | L27: 0 | M27: 0 | N27: 0 | O27: 0 | P27: 0 | Q27: 0 | R27: 0 | S27: 1 | U27: 1 | V27: 0.007081481245
A28: 0 | B28: 0 | C28: 0 | D28: 1 | E28: 1 | F28: 0 | G28: 0 | H28: 0 | I28: 0 | J28: 0 | K28: 0 | L28: 0 | M28: 1 | N28: 1 | O28: 0 | P28: 0 | Q28: 0 | R28: 0 | S28: 1 | U28: 1 | V28: 0.3229542352
A29: 0 | B29: 0 | C29: 0 | D29: 1 | E29: 0 | F29: 0 | G29: 0 | H29: 1 | I29: 0 | J29: 0 | K29: 0 | L29: 0 | M29: 0 | N29: 0 | O29: 0 | P29: 0 | Q29: 0 | R29: 0 | S29: 0 | U29: 0 | V29: 0.01097692006
A30: 1 | B30: 0 | C30: 0 | D30: 0 | E30: 0 | F30: 0 | G30: 0 | H30: 1 | I30: 0 | J30: 0 | K30: 0 | L30: 0 | M30: 0 | N30: 0 | O30: 0 | P30: 0 | Q30: 0 | R30: 0 | S30: 0 | U30: 1 | V30: 0.1356169523
A31: 0 | B31: 0 | C31: 0 | D31: 0 | E31: 0 | F31: 0 | G31: 0 | H31: 1 | I31: 0 | J31: 0 | K31: 0 | L31: 0 | M31: 0 | N31: 0 | O31: 0 | P31: 0 | Q31: 0 | R31: 0 | S31: 0 | U31: 0 | V31: 0.6048910886
A32: 0 | B32: 0 | C32: 1 | D32: 1 | E32: 1 | F32: 0 | G32: 0 | H32: 0 | I32: 0 | J32: 1 | K32: 0 | L32: 0 | M32: 0 | N32: 0 | O32: 0 | P32: 0 | Q32: 1 | R32: 0 | S32: 0 | U32: 1 | V32: 0.7692586188
A33: 0 | B33: 0 | C33: 0 | D33: 0 | E33: 0 | F33: 0 | G33: 0 | H33: 1 | I33: 0 | J33: 0 | K33: 1 | L33: 0 | M33: 0 | N33: 0 | O33: 1 | P33: 0 | Q33: 0 | R33: 0 | S33: 0 | U33: 0 | V33: 0.4931599515
A34: 0 | B34: 0 | C34: 0 | D34: 0 | E34: 1 | F34: 0 | G34: 0 | H34: 0 | I34: 0 | J34: 1 | K34: 1 | L34: 0 | M34: 0 | N34: 0 | O34: 1 | P34: 0 | Q34: 0 | R34: 0 | S34: 0 | U34: 0 | V34: 0.03651340167
A35: 0 | B35: 0 | C35: 0 | D35: 0 | E35: 1 | F35: 0 | G35: 0 | H35: 0 | I35: 1 | J35: 0 | K35: 0 | L35: 0 | M35: 0 | N35: 0 | O35: 0 | P35: 0 | Q35: 0 | R35: 0 | S35: 0 | U35: 1 | V35: 0.1859204104
A36: 0 | B36: 0 | C36: 0 | D36: 0 | E36: 0 | F36: 0 | G36: 0 | H36: 1 | I36: 0 | J36: 0 | K36: 1 | L36: 0 | M36: 0 | N36: 1 | O36: 0 | P36: 0 | Q36: 0 | R36: 0 | S36: 0 | U36: 1 | V36: 0.754398528
A37: 0 | B37: 0 | C37: 0 | D37: 1 | E37: 1 | F37: 0 | G37: 1 | H37: 0 | I37: 0 | J37: 0 | K37: 0 | L37: 0 | M37: 0 | N37: 0 | O37: 1 | P37: 0 | Q37: 0 | R37: 0 | S37: 0 | U37: 0 | V37: 0.4934771516
A38: 0 | B38: 0 | C38: 0 | D38: 0 | E38: 0 | F38: 0 | G38: 0 | H38: 1 | I38: 0 | J38: 0 | K38: 0 | L38: 0 | M38: 0 | N38: 0 | O38: 0 | P38: 0 | Q38: 0 | R38: 0 | S38: 0 | U38: 0 | V38: 0.7497970651
A39: 0 | B39: 0 | C39: 0 | D39: 1 | E39: 0 | F39: 0 | G39: 0 | H39: 1 | I39: 0 | J39: 0 | K39: 0 | L39: 0 | M39: 0 | N39: 0 | O39: 0 | P39: 0 | Q39: 0 | R39: 0 | S39: 0 | U39: 1 | V39: 0.8160648934
A40: 0 | B40: 0 | C40: 0 | D40: 1 | E40: 1 | F40: 0 | G40: 1 | H40: 0 | I40: 0 | J40: 0 | K40: 0 | L40: 0 | M40: 0 | N40: 0 | O40: 0 | P40: 0 | Q40: 0 | R40: 0 | S40: 0 | U40: 0 | V40: 0.5225050841
A41: 0 | B41: 0 | C41: 0 | D41: 0 | E41: 1 | F41: 0 | G41: 0 | H41: 0 | I41: 0 | J41: 0 | K41: 1 | L41: 0 | M41: 0 | N41: 0 | O41: 0 | P41: 0 | Q41: 0 | R41: 0 | S41: 0 | U41: 1 | V41: 0.9013135937
A42: 0 | B42: 0 | C42: 0 | D42: 0 | E42: 0 | F42: 0 | G42: 0 | H42: 1 | I42: 0 | J42: 0 | K42: 1 | L42: 0 | M42: 0 | N42: 0 | O42: 0 | P42: 0 | Q42: 0 | R42: 0 | S42: 0 | U42: 0 | V42: 0.5510801038
A43: 0 | B43: 0 | C43: 0 | D43: 0 | E43: 1 | F43: 0 | G43: 0 | H43: 0 | I43: 0 | J43: 0 | K43: 1 | L43: 0 | M43: 0 | N43: 0 | O43: 0 | P43: 0 | Q43: 0 | R43: 0 | S43: 0 | U43: 1 | V43: 0.09658181839
A44: 0 | B44: 0 | C44: 0 | D44: 0 | E44: 0 | F44: 0 | G44: 0 | H44: 1 | I44: 0 | J44: 0 | K44: 1 | L44: 0 | M44: 0 | N44: 0 | O44: 1 | P44: 0 | Q44: 0 | R44: 0 | S44: 0 | U44: 1 | V44: 0.5874984908
A45: 0 | B45: 0 | C45: 0 | D45: 0 | E45: 1 | F45: 0 | G45: 0 | H45: 0 | I45: 0 | J45: 0 | K45: 0 | L45: 0 | M45: 0 | N45: 0 | O45: 0 | P45: 0 | Q45: 0 | R45: 0 | S45: 1 | U45: 1 | V45: 0.5329886184
A46: 1 | B46: 0 | C46: 1 | D46: 0 | E46: 0 | F46: 0 | G46: 0 | H46: 1 | I46: 0 | J46: 0 | K46: 1 | L46: 0 | M46: 0 | N46: 0 | O46: 0 | P46: 0 | Q46: 0 | R46: 0 | S46: 1 | U46: 1 | V46: 0.2973359341
A47: 0 | B47: 0 | C47: 0 | D47: 1 | E47: 1 | F47: 0 | G47: 1 | H47: 0 | I47: 0 | J47: 0 | K47: 0 | L47: 0 | M47: 0 | N47: 0 | O47: 1 | P47: 0 | Q47: 0 | R47: 0 | S47: 0 | U47: 0 | V47: 0.6935865858
A48: 0 | B48: 0 | C48: 0 | D48: 1 | E48: 0 | F48: 0 | G48: 1 | H48: 1 | I48: 0 | J48: 0 | K48: 0 | L48: 0 | M48: 0 | N48: 1 | O48: 0 | P48: 0 | Q48: 0 | R48: 0 | S48: 0 | U48: 1 | V48: 0.4040650581
A49: 0 | B49: 0 | C49: 0 | D49: 0 | E49: 0 | F49: 0 | G49: 0 | H49: 0 | I49: 0 | J49: 0 | K49: 1 | L49: 0 | M49: 0 | N49: 0 | O49: 0 | P49: 0 | Q49: 0 | R49: 0 | S49: 0 | U49: 0 | V49: 0.02191215519
A50: 0 | B50: 0 | C50: 0 | D50: 1 | E50: 1 | F50: 0 | G50: 0 | H50: 0 | I50: 0 | J50: 0 | K50: 0 | L50: 0 | M50: 0 | N50: 0 | O50: 0 | P50: 0 | Q50: 0 | R50: 0 | S50: 0 | U50: 1 | V50: 0.9327907638
A51: 0 | B51: 1 | C51: 0 | D51: 0 | E51: 1 | F51: 0 | G51: 1 | H51: 0 | I51: 0 | J51: 0 | K51: 1 | L51: 0 | M51: 0 | N51: 0 | O51: 0 | P51: 0 | Q51: 0 | R51: 0 | S51: 0 | U51: 0 | V51: 0.3348373198
A52: 0 | B52: 1 | C52: 0 | D52: 1 | E52: 0 | F52: 0 | G52: 1 | H52: 1 | I52: 0 | J52: 0 | K52: 0 | L52: 0 | M52: 0 | N52: 0 | O52: 0 | P52: 0 | Q52: 0 | R52: 0 | S52: 0 | U52: 0 | V52: 0.9460825844
A53: 0 | B53: 0 | C53: 0 | D53: 0 | E53: 1 | F53: 0 | G53: 0 | H53: 0 | I53: 0 | J53: 0 | K53: 1 | L53: 0 | M53: 0 | N53: 0 | O53: 0 | P53: 0 | Q53: 0 | R53: 0 | S53: 0 | U53: 1 | V53: 0.9846692215
A54: 0 | B54: 0 | C54: 0 | D54: 1 | E54: 1 | F54: 0 | G54: 1 | H54: 0 | I54: 0 | J54: 0 | K54: 0 | L54: 0 | M54: 0 | N54: 0 | O54: 0 | P54: 0 | Q54: 0 | R54: 0 | S54: 0 | U54: 0 | V54: 0.7605369638
A55: 0 | B55: 0 | C55: 0 | D55: 0 | E55: 1 | F55: 0 | G55: 0 | H55: 0 | I55: 0 | J55: 0 | K55: 1 | L55: 0 | M55: 0 | N55: 0 | O55: 0 | P55: 0 | Q55: 0 | R55: 0 | S55: 0 | U55: 0 | V55: 0.04798467253
A56: 0 | B56: 0 | C56: 1 | D56: 0 | E56: 0 | F56: 0 | G56: 0 | H56: 0 | I56: 0 | J56: 1 | K56: 0 | L56: 0 | M56: 0 | N56: 0 | O56: 0 | P56: 0 | Q56: 0 | R56: 0 | S56: 0 | U56: 1 | V56: 0.6916052705
A57: 0 | B57: 1 | C57: 0 | D57: 1 | E57: 0 | F57: 0 | G57: 0 | H57: 1 | I57: 0 | J57: 0 | K57: 0 | L57: 0 | M57: 0 | N57: 0 | O57: 0 | P57: 0 | Q57: 0 | R57: 0 | S57: 0 | U57: 0 | V57: 0.09457435246
A58: 1 | B58: 0 | C58: 0 | D58: 0 | E58: 0 | F58: 0 | G58: 0 | H58: 0 | I58: 0 | J58: 0 | K58: 1 | L58: 0 | M58: 0 | N58: 0 | O58: 0 | P58: 0 | Q58: 1 | R58: 0 | S58: 1 | U58: 1 | V58: 0.2478583138
A59: 0 | B59: 0 | C59: 0 | D59: 1 | E59: 1 | F59: 0 | G59: 0 | H59: 0 | I59: 0 | J59: 0 | K59: 0 | L59: 0 | M59: 0 | N59: 0 | O59: 0 | P59: 0 | Q59: 0 | R59: 0 | S59: 0 | U59: 0 | V59: 0.2300837429
A60: 1 | B60: 0 | C60: 0 | D60: 0 | E60: 0 | F60: 0 | G60: 0 | H60: 0 | I60: 0 | J60: 1 | K60: 1 | L60: 0 | M60: 0 | N60: 0 | O60: 0 | P60: 0 | Q60: 0 | R60: 0 | S60: 0 | U60: 1 | V60: 0.4204785568
A61: 0 | B61: 0 | C61: 0 | D61: 0 | E61: 1 | F61: 0 | G61: 0 | H61: 0 | I61: 0 | J61: 0 | K61: 1 | L61: 0 | M61: 0 | N61: 0 | O61: 0 | P61: 0 | Q61: 0 | R61: 0 | S61: 0 | U61: 0 | V61: 0.95470509
A62: 0 | B62: 0 | C62: 0 | D62: 0 | E62: 0 | F62: 0 | G62: 0 | H62: 1 | I62: 0 | J62: 1 | K62: 1 | L62: 0 | M62: 0 | N62: 0 | O62: 1 | P62: 0 | Q62: 0 | R62: 0 | S62: 1 | U62: 0 | V62: 0.4738976312
A63: 0 | B63: 0 | C63: 1 | D63: 0 | E63: 0 | F63: 0 | G63: 0 | H63: 1 | I63: 0 | J63: 0 | K63: 1 | L63: 0 | M63: 0 | N63: 1 | O63: 0 | P63: 0 | Q63: 0 | R63: 0 | S63: 0 | U63: 1 | V63: 0.1632803588
A64: 1 | B64: 0 | C64: 0 | D64: 1 | E64: 0 | F64: 0 | G64: 0 | H64: 0 | I64: 0 | J64: 0 | K64: 0 | L64: 0 | M64: 0 | N64: 1 | O64: 1 | P64: 0 | Q64: 0 | R64: 0 | S64: 0 | U64: 1 | V64: 0.8358227879
A65: 0 | B65: 0 | C65: 0 | D65: 0 | E65: 1 | F65: 0 | G65: 0 | H65: 0 | I65: 0 | J65: 0 | K65: 1 | L65: 1 | M65: 0 | N65: 0 | O65: 0 | P65: 0 | Q65: 0 | R65: 0 | S65: 0 | U65: 0 | V65: 0.4494411051
A66: 0 | B66: 0 | C66: 0 | D66: 0 | E66: 0 | F66: 0 | G66: 0 | H66: 1 | I66: 0 | J66: 0 | K66: 0 | L66: 0 | M66: 0 | N66: 0 | O66: 0 | P66: 0 | Q66: 0 | R66: 0 | S66: 0 | U66: 0 | V66: 0.3844533697
A67: 0 | B67: 0 | C67: 0 | D67: 1 | E67: 1 | F67: 0 | G67: 0 | H67: 0 | I67: 0 | J67: 0 | K67: 0 | L67: 1 | M67: 0 | N67: 0 | O67: 0 | P67: 0 | Q67: 0 | R67: 0 | S67: 0 | U67: 0 | V67: =RAND() -> 0.9658590584
A68: 0 | B68: 1 | C68: 0 | D68: 0 | E68: 0 | F68: 0 | G68: 1 | H68: 1 | I68: 0 | J68: 0 | K68: 1 | L68: 0 | M68: 0 | N68: 0 | O68: 0 | P68: 0 | Q68: 0 | R68: 0 | S68: 0 | U68: 0 | V68: 0.3684525999
A69: 0 | B69: 0 | C69: 0 | D69: 0 | E69: 0 | F69: 0 | G69: 1 | H69: 1 | I69: 0 | J69: 0 | K69: 1 | L69: 1 | M69: 0 | N69: 0 | O69: 0 | P69: 0 | Q69: 0 | R69: 0 | S69: 0 | U69: 0 | V69: 0.4928818376
A70: 0 | B70: 0 | C70: 0 | D70: 0 | E70: 0 | F70: 0 | G70: 0 | H70: 1 | I70: 0 | J70: 0 | K70: 1 | L70: 0 | M70: 0 | N70: 1 | O70: 0 | P70: 0 | Q70: 0 | R70: 0 | S70: 0 | U70: 1 | V70: 0.1530937228
A71: 0 | B71: 0 | C71: 0 | D71: 0 | E71: 0 | F71: 0 | G71: 0 | H71: 1 | I71: 0 | J71: 0 | K71: 0 | L71: 0 | M71: 0 | N71: 0 | O71: 0 | P71: 0 | Q71: 0 | R71: 0 | S71: 1 | U71: 1 | V71: 0.3898048142
A72: 0 | B72: 0 | C72: 0 | D72: 0 | E72: 1 | F72: 0 | G72: 0 | H72: 0 | I72: 0 | J72: 0 | K72: 1 | L72: 0 | M72: 0 | N72: 0 | O72: 0 | P72: 0 | Q72: 0 | R72: 0 | S72: 0 | U72: 0 | V72: 0.5198169664
A73: 0 | B73: 0 | C73: 0 | D73: 0 | E73: 0 | F73: 0 | G73: 0 | H73: 0 | I73: 0 | J73: 0 | K73: 1 | L73: 0 | M73: 0 | N73: 0 | O73: 0 | P73: 0 | Q73: 0 | R73: 0 | S73: 0 | U73: 0 | V73: 0.4113463207
A74: 0 | B74: 0 | C74: 0 | D74: 0 | E74: 0 | F74: 0 | G74: 0 | H74: 0 | I74: 0 | J74: 1 | K74: 1 | L74: 0 | M74: 0 | N74: 1 | O74: 0 | P74: 0 | Q74: 0 | R74: 0 | S74: 0 | U74: 1 | V74: 0.5352804363
A75: 0 | B75: 0 | C75: 1 | D75: 0 | E75: 0 | F75: 0 | G75: 0 | H75: 1 | I75: 0 | J75: 0 | K75: 0 | L75: 0 | M75: 0 | N75: 0 | O75: 1 | P75: 0 | Q75: 0 | R75: 0 | S75: 0 | U75: 1 | V75: 0.5711182207
A76: 0 | B76: 0 | C76: 0 | D76: 1 | E76: 0 | F76: 0 | G76: 0 | H76: 1 | I76: 0 | J76: 0 | K76: 0 | L76: 0 | M76: 0 | N76: 0 | O76: 0 | P76: 0 | Q76: 0 | R76: 0 | S76: 0 | U76: 1 | V76: 0.8431038106
A77: 0 | B77: 0 | C77: 0 | D77: 1 | E77: 0 | F77: 0 | G77: 0 | H77: 1 | I77: 0 | J77: 0 | K77: 0 | L77: 0 | M77: 0 | N77: 0 | O77: 0 | P77: 0 | Q77: 0 | R77: 0 | S77: 0 | U77: 0 | V77: 0.0881910799
A78: 0 | B78: 0 | C78: 0 | D78: 1 | E78: 1 | F78: 0 | G78: 0 | H78: 0 | I78: 0 | J78: 1 | K78: 0 | L78: 0 | M78: 0 | N78: 0 | O78: 0 | P78: 0 | Q78: 0 | R78: 0 | S78: 1 | U78: 1 | V78: 0.5454050731
A79: 1 | B79: 0 | C79: 0 | D79: 0 | E79: 1 | F79: 0 | G79: 0 | H79: 0 | I79: 0 | J79: 0 | K79: 0 | L79: 0 | M79: 0 | N79: 0 | O79: 0 | P79: 0 | Q79: 0 | R79: 0 | S79: 0 | U79: 1 | V79: 0.8097508847
A80: 0 | B80: 0 | C80: 0 | D80: 0 | E80: 1 | F80: 0 | G80: 0 | H80: 0 | I80: 0 | J80: 0 | K80: 1 | L80: 0 | M80: 1 | N80: 0 | O80: 0 | P80: 0 | Q80: 0 | R80: 0 | S80: 1 | U80: 1 | V80: 0.3765352452
A81: 0 | B81: 0 | C81: 0 | D81: 1 | E81: 0 | F81: 0 | G81: 0 | H81: 0 | I81: 0 | J81: 0 | K81: 0 | L81: 0 | M81: 0 | N81: 0 | O81: 0 | P81: 0 | Q81: 0 | R81: 0 | S81: 0 | U81: 0 | V81: 0.05249305962
A82: 1 | B82: 0 | C82: 0 | D82: 1 | E82: 0 | F82: 0 | G82: 0 | H82: 1 | I82: 0 | J82: 0 | K82: 0 | L82: 0 | M82: 0 | N82: 0 | O82: 0 | P82: 0 | Q82: 0 | R82: 0 | S82: 0 | U82: 1 | V82: 0.8707147993
A83: 0 | B83: 0 | C83: 0 | D83: 1 | E83: 1 | F83: 0 | G83: 0 | H83: 0 | I83: 0 | J83: 0 | K83: 0 | L83: 0 | M83: 0 | N83: 1 | O83: 0 | P83: 0 | Q83: 0 | R83: 0 | S83: 0 | U83: 1 | V83: 0.990663232
A84: 0 | B84: 0 | C84: 0 | D84: 1 | E84: 1 | F84: 0 | G84: 0 | H84: 0 | I84: 0 | J84: 0 | K84: 0 | L84: 0 | M84: 0 | N84: 0 | O84: 0 | P84: 0 | Q84: 0 | R84: 0 | S84: 0 | U84: 0 | V84: 0.3826778895
A85: 1 | B85: 0 | C85: 0 | D85: 0 | E85: 1 | F85: 0 | G85: 0 | H85: 0 | I85: 0 | J85: 0 | K85: 1 | L85: 0 | M85: 0 | N85: 0 | O85: 0 | P85: 0 | Q85: 0 | R85: 0 | S85: 0 | U85: 1 | V85: 0.999287207
A86: 0 | B86: 0 | C86: 0 | D86: 0 | E86: 0 | F86: 0 | G86: 0 | H86: 1 | I86: 0 | J86: 0 | K86: 1 | L86: 0 | M86: 0 | N86: 0 | O86: 0 | P86: 0 | Q86: 0 | R86: 0 | S86: 0 | U86: 1 | V86: 0.1413121133
A87: 0 | B87: 0 | C87: 0 | D87: 1 | E87: 1 | F87: 0 | G87: 1 | H87: 0 | I87: 0 | J87: 0 | K87: 0 | L87: 0 | M87: 0 | N87: 0 | O87: 0 | P87: 0 | Q87: 0 | R87: 0 | S87: 0 | U87: 0 | V87: 0.3432919888
A88: 0 | B88: 0 | C88: 0 | D88: 1 | E88: 1 | F88: 0 | G88: 0 | H88: 0 | I88: 0 | J88: 0 | K88: 0 | L88: 0 | M88: 0 | N88: 0 | O88: 0 | P88: 0 | Q88: 0 | R88: 0 | S88: 0 | U88: 1 | V88: 0.8487566947
A89: 0 | B89: 0 | C89: 0 | D89: 1 | E89: 1 | F89: 0 | G89: 0 | H89: 0 | I89: 0 | J89: 0 | K89: 0 | L89: 0 | M89: 1 | N89: 0 | O89: 0 | P89: 0 | Q89: 0 | R89: 0 | S89: 0 | U89: 0 | V89: 0.05988241685
A90: 0 | B90: 1 | C90: 0 | D90: 1 | E90: 0 | F90: 0 | G90: 0 | H90: 0 | I90: 0 | J90: 1 | K90: 0 | L90: 0 | M90: 0 | N90: 0 | O90: 1 | P90: 1 | Q90: 1 | R90: 0 | S90: 0 | U90: 1 | V90: 0.1889308878
A91: 1 | B91: 0 | C91: 0 | D91: 0 | E91: 1 | F91: 0 | G91: 0 | H91: 0 | I91: 0 | J91: 0 | K91: 1 | L91: 0 | M91: 0 | N91: 0 | O91: 0 | P91: 0 | Q91: 0 | R91: 0 | S91: 0 | U91: 1 | V91: 0.5808148347
A92: 0 | B92: 0 | C92: 0 | D92: 1 | E92: 0 | F92: 0 | G92: 1 | H92: 1 | I92: 0 | J92: 0 | K92: 0 | L92: 0 | M92: 0 | N92: 0 | O92: 0 | P92: 0 | Q92: 0 | R92: 0 | S92: 0 | U92: 0 | V92: 0.4357494326
A93: 0 | B93: 0 | C93: 0 | D93: 1 | E93: 1 | F93: 0 | G93: 0 | H93: 0 | I93: 0 | J93: 1 | K93: 0 | L93: 0 | M93: 0 | N93: 1 | O93: 0 | P93: 0 | Q93: 0 | R93: 0 | S93: 1 | U93: 1 | V93: 0.969863908
A94: 0 | B94: 0 | C94: 0 | D94: 0 | E94: 0 | F94: 0 | G94: 0 | H94: 1 | I94: 0 | J94: 0 | K94: 1 | L94: 0 | M94: 0 | N94: 0 | O94: 0 | P94: 0 | Q94: 0 | R94: 0 | S94: 0 | U94: 1 | V94: 0.4849056719
A95: 0 | B95: 1 | C95: 0 | D95: 0 | E95: 0 | F95: 0 | G95: 0 | H95: 1 | I95: 0 | J95: 0 | K95: 1 | L95: 0 | M95: 0 | N95: 0 | O95: 0 | P95: 0 | Q95: 0 | R95: 0 | S95: 0 | U95: 0 | V95: 0.1895556493
A96: 0 | B96: 0 | C96: 0 | D96: 0 | E96: 1 | F96: 0 | G96: 0 | H96: 0 | I96: 0 | J96: 0 | K96: 1 | L96: 0 | M96: 0 | N96: 1 | O96: 0 | P96: 0 | Q96: 0 | R96: 0 | S96: 0 | U96: 0 | V96: 0.4585946565
A97: 0 | B97: 0 | C97: 0 | D97: 0 | E97: 0 | F97: 0 | G97: 1 | H97: 1 | I97: 0 | J97: 0 | K97: 0 | L97: 0 | M97: 0 | N97: 0 | O97: 0 | P97: 0 | Q97: 0 | R97: 0 | S97: 0 | U97: 0 | V97: 0.6710126837
A98: 0 | B98: 0 | C98: 0 | D98: 0 | E98: 0 | F98: 0 | G98: 0 | H98: 1 | I98: 0 | J98: 0 | K98: 0 | L98: 0 | M98: 0 | N98: 0 | O98: 0 | P98: 0 | Q98: 0 | R98: 0 | S98: 0 | U98: 0 | V98: 0.3706675098
A99: 0 | B99: 0 | C99: 0 | D99: 0 | E99: 1 | F99: 0 | G99: 0 | H99: 0 | I99: 0 | J99: 1 | K99: 0 | L99: 0 | M99: 1 | N99: 0 | O99: 0 | P99: 1 | Q99: 1 | R99: 0 | S99: 1 | U99: 1 | V99: 0.5724799159
A100: 0 | B100: 0 | C100: 0 | D100: 1 | E100: 0 | F100: 0 | G100: 0 | H100: 1 | I100: 0 | J100: 0 | K100: 0 | L100: 0 | M100: 0 | N100: 0 | O100: 1 | P100: 0 | Q100: 0 | R100: 0 | S100: 0 | U100: 0 | V100: 0.2979551172
A101: 0 | B101: 0 | C101: 0 | D101: 0 | E101: 0 | F101: 0 | G101: 0 | H101: 1 | I101: 0 | J101: 0 | K101: 1 | L101: 0 | M101: 0 | N101: 0 | O101: 0 | P101: 0 | Q101: 0 | R101: 0 | S101: 1 | U101: 1 | V101: 0.8803570558
A102: 0 | B102: 0 | C102: 0 | D102: 1 | E102: 0 | F102: 0 | G102: 0 | H102: 1 | I102: 0 | J102: 0 | K102: 0 | L102: 0 | M102: 0 | N102: 0 | O102: 0 | P102: 0 | Q102: 1 | R102: 0 | S102: 1 | U102: 1 | V102: 0.5007522171
A103: 0 | B103: 1 | C103: 0 | D103: 0 | E103: 1 | F103: 0 | G103: 0 | H103: 0 | I103: 0 | J103: 0 | K103: 1 | L103: 0 | M103: 0 | N103: 0 | O103: 0 | P103: 0 | Q103: 0 | R103: 0 | S103: 1 | U103: 0 | V103: 0.9170557195
A104: 0 | B104: 0 | C104: 0 | D104: 1 | E104: 0 | F104: 0 | G104: 0 | H104: 1 | I104: 0 | J104: 0 | K104: 0 | L104: 0 | M104: 0 | N104: 0 | O104: 0 | P104: 0 | Q104: 0 | R104: 0 | S104: 0 | U104: 0 | V104: 0.4427203612
A105: 0 | B105: 0 | C105: 0 | D105: 0 | E105: 0 | F105: 0 | G105: 0 | H105: 1 | I105: 0 | J105: 0 | K105: 1 | L105: 0 | M105: 0 | N105: 0 | O105: 0 | P105: 0 | Q105: 0 | R105: 0 | S105: 0 | U105: 0 | V105: 0.05919399487
A106: 0 | B106: 0 | C106: 0 | D106: 0 | E106: 1 | F106: 0 | G106: 0 | H106: 0 | I106: 0 | J106: 0 | K106: 1 | L106: 0 | M106: 0 | N106: 1 | O106: 1 | P106: 0 | Q106: 0 | R106: 0 | S106: 0 | U106: 0 | V106: 0.03633801405
A107: 0 | B107: 0 | C107: 0 | D107: 1 | E107: 1 | F107: 0 | G107: 0 | H107: 0 | I107: 0 | J107: 1 | K107: 0 | L107: 0 | M107: 1 | N107: 1 | O107: 0 | P107: 1 | Q107: 0 | R107: 0 | S107: 1 | U107: 1 | V107: 0.1261205344
A108: 0 | B108: 1 | C108: 0 | D108: 1 | E108: 0 | F108: 0 | G108: 0 | H108: 1 | I108: 0 | J108: 0 | K108: 0 | L108: 0 | M108: 0 | N108: 0 | O108: 0 | P108: 1 | Q108: 0 | R108: 1 | S108: 0 | U108: 1 | V108: 0.8552306709
A109: 0 | B109: 1 | C109: 0 | D109: 0 | E109: 0 | F109: 0 | G109: 0 | H109: 1 | I109: 0 | J109: 0 | K109: 1 | L109: 1 | M109: 0 | N109: 0 | O109: 0 | P109: 0 | Q109: 1 | R109: 0 | S109: 1 | U109: 1 | V109: 0.9495597377
A110: 0 | B110: 0 | C110: 0 | D110: 0 | E110: 0 | F110: 0 | G110: 0 | H110: 1 | I110: 0 | J110: 0 | K110: 1 | L110: 1 | M110: 0 | N110: 0 | O110: 0 | P110: 0 | Q110: 0 | R110: 0 | S110: 0 | U110: 0 | V110: 0.01240869797
A111: 0 | B111: 0 | C111: 0 | D111: 0 | E111: 1 | F111: 0 | G111: 0 | H111: 0 | I111: 0 | J111: 0 | K111: 1 | L111: 1 | M111: 0 | N111: 0 | O111: 0 | P111: 0 | Q111: 0 | R111: 0 | S111: 1 | U111: 1 | V111: 0.002670081107
A112: 0 | B112: 0 | C112: 0 | D112: 0 | E112: 1 | F112: 0 | G112: 1 | H112: 0 | I112: 0 | J112: 0 | K112: 0 | L112: 0 | M112: 0 | N112: 0 | O112: 0 | P112: 0 | Q112: 0 | R112: 0 | S112: 0 | U112: 0 | V112: 0.2891660309
A113: 0 | B113: 0 | C113: 0 | D113: 1 | E113: 0 | F113: 0 | G113: 0 | H113: 1 | I113: 0 | J113: 0 | K113: 0 | L113: 0 | M113: 0 | N113: 0 | O113: 0 | P113: 0 | Q113: 0 | R113: 1 | S113: 0 | U113: 1 | V113: 0.2771445395
A114: 0 | B114: 0 | C114: 0 | D114: 0 | E114: 1 | F114: 0 | G114: 0 | H114: 0 | I114: 0 | J114: 0 | K114: 1 | L114: 0 | M114: 0 | N114: 0 | O114: 0 | P114: 0 | Q114: 0 | R114: 0 | S114: 0 | U114: 1 | V114: 0.7159929197
A115: 0 | B115: 0 | C115: 0 | D115: 0 | E115: 0 | F115: 0 | G115: 0 | H115: 1 | I115: 0 | J115: 1 | K115: 1 | L115: 1 | M115: 0 | N115: 0 | O115: 0 | P115: 0 | Q115: 1 | R115: 0 | S115: 0 | U115: 1 | V115: 0.3439141092
A116: 0 | B116: 0 | C116: 0 | D116: 0 | E116: 0 | F116: 1 | G116: 0 | H116: 1 | I116: 0 | J116: 1 | K116: 0 | L116: 0 | M116: 0 | N116: 0 | O116: 0 | P116: 0 | Q116: 0 | R116: 0 | S116: 0 | U116: 1 | V116: 0.4342676619
A117: 0 | B117: 0 | C117: 0 | D117: 0 | E117: 0 | F117: 0 | G117: 0 | H117: 1 | I117: 0 | J117: 0 | K117: 1 | L117: 0 | M117: 0 | N117: 0 | O117: 0 | P117: 1 | Q117: 0 | R117: 0 | S117: 0 | U117: 1 | V117: 0.776139348
A118: 0 | B118: 0 | C118: 0 | D118: 1 | E118: 1 | F118: 0 | G118: 0 | H118: 0 | I118: 0 | J118: 0 | K118: 0 | L118: 1 | M118: 0 | N118: 0 | O118: 0 | P118: 0 | Q118: 0 | R118: 0 | S118: 0 | U118: 0 | V118: 0.4762807019
A119: 0 | B119: 0 | C119: 0 | D119: 1 | E119: 0 | F119: 0 | G119: 0 | H119: 1 | I119: 0 | J119: 0 | K119: 0 | L119: 0 | M119: 0 | N119: 0 | O119: 0 | P119: 0 | Q119: 0 | R119: 0 | S119: 0 | U119: 0 | V119: 0.7681557316
A120: 0 | B120: 0 | C120: 1 | D120: 0 | E120: 0 | F120: 0 | G120: 0 | H120: 1 | I120: 0 | J120: 0 | K120: 1 | L120: 0 | M120: 1 | N120: 1 | O120: 0 | P120: 0 | Q120: 0 | R120: 0 | S120: 0 | U120: 1 | V120: 0.3968698048
A121: 0 | B121: 0 | C121: 0 | D121: 0 | E121: 0 | F121: 0 | G121: 0 | H121: 1 | I121: 0 | J121: 0 | K121: 0 | L121: 0 | M121: 0 | N121: 0 | O121: 0 | P121: 0 | Q121: 0 | R121: 0 | S121: 0 | U121: 0 | V121: 0.3095475071
A122: 0 | B122: 1 | C122: 0 | D122: 0 | E122: 0 | F122: 0 | G122: 0 | H122: 1 | I122: 0 | J122: 0 | K122: 1 | L122: 0 | M122: 0 | N122: 1 | O122: 0 | P122: 0 | Q122: 0 | R122: 0 | S122: 1 | U122: 1 | V122: 0.4521863463
A123: 0 | B123: 0 | C123: 0 | D123: 0 | E123: 0 | F123: 0 | G123: 0 | H123: 1 | I123: 0 | J123: 0 | K123: 1 | L123: 0 | M123: 0 | N123: 0 | O123: 0 | P123: 0 | Q123: 1 | R123: 0 | S123: 0 | U123: 1 | V123: 0.3566067048
A124: 0 | B124: 0 | C124: 0 | D124: 1 | E124: 1 | F124: 0 | G124: 0 | H124: 0 | I124: 1 | J124: 1 | K124: 0 | L124: 0 | M124: 1 | N124: 1 | O124: 0 | P124: 0 | Q124: 0 | R124: 0 | S124: 1 | U124: 1 | V124: 0.3433529465
A125: 0 | B125: 0 | C125: 1 | D125: 1 | E125: 1 | F125: 0 | G125: 0 | H125: 0 | I125: 0 | J125: 0 | K125: 0 | L125: 0 | M125: 0 | N125: 0 | O125: 0 | P125: 0 | Q125: 0 | R125: 0 | S125: 0 | U125: 0 | V125: 0.2385200769
A126: 0 | B126: 0 | C126: 0 | D126: 0 | E126: 0 | F126: 0 | G126: 1 | H126: 1 | I126: 0 | J126: 0 | K126: 1 | L126: 0 | M126: 0 | N126: 0 | O126: 0 | P126: 0 | Q126: 0 | R126: 0 | S126: 0 | U126: 0 | V126: 0.6773307864
A127: 0 | B127: 0 | C127: 0 | D127: 1 | E127: 0 | F127: 0 | G127: 0 | H127: 0 | I127: 0 | J127: 0 | K127: 0 | L127: 0 | M127: 0 | N127: 0 | O127: 1 | P127: 0 | Q127: 0 | R127: 0 | S127: 0 | U127: 0 | V127: 0.6774730977
A128: 0 | B128: 0 | C128: 1 | D128: 1 | E128: 0 | F128: 0 | G128: 0 | H128: 0 | I128: 0 | J128: 0 | K128: 0 | L128: 0 | M128: 0 | N128: 0 | O128: 0 | P128: 0 | Q128: 0 | R128: 0 | S128: 1 | U128: 1 | V128: 0.9218071292
A129: 0 | B129: 1 | C129: 0 | D129: 0 | E129: 0 | F129: 0 | G129: 0 | H129: 1 | I129: 0 | J129: 0 | K129: 1 | L129: 0 | M129: 0 | N129: 0 | O129: 1 | P129: 0 | Q129: 0 | R129: 0 | S129: 0 | U129: 0 | V129: 0.1425711689
A130: 0 | B130: 0 | C130: 0 | D130: 0 | E130: 0 | F130: 0 | G130: 0 | H130: 0 | I130: 0 | J130: 0 | K130: 1 | L130: 0 | M130: 0 | N130: 0 | O130: 0 | P130: 0 | Q130: 0 | R130: 0 | S130: 0 | U130: 0 | V130: 0.9001209996
A131: 0 | B131: 0 | C131: 0 | D131: 0 | E131: 1 | F131: 0 | G131: 0 | H131: 0 | I131: 0 | J131: 0 | K131: 1 | L131: 0 | M131: 0 | N131: 0 | O131: 0 | P131: 0 | Q131: 0 | R131: 0 | S131: 0 | U131: 0 | V131: =RAND() -> 0.4473991366
A132: 0 | B132: 0 | C132: 0 | D132: 0 | E132: 0 | F132: 0 | G132: 0 | H132: 1 | I132: 0 | J132: 0 | K132: 1 | L132: 0 | M132: 0 | N132: 0 | O132: 0 | P132: 0 | Q132: 0 | R132: 0 | S132: 1 | U132: 1 | V132: 0.1380532218
A133: 0 | B133: 1 | C133: 0 | D133: 1 | E133: 1 | F133: 0 | G133: 0 | H133: 0 | I133: 0 | J133: 0 | K133: 0 | L133: 1 | M133: 0 | N133: 0 | O133: 0 | P133: 0 | Q133: 0 | R133: 0 | S133: 0 | U133: 0 | V133: 0.04629182073
A134: 1 | B134: 1 | C134: 0 | D134: 0 | E134: 1 | F134: 0 | G134: 0 | H134: 0 | I134: 0 | J134: 0 | K134: 1 | L134: 0 | M134: 0 | N134: 0 | O134: 0 | P134: 1 | Q134: 0 | R134: 1 | S134: 0 | U134: 1 | V134: 0.05303132134
A135: 1 | B135: 0 | C135: 0 | D135: 1 | E135: 0 | F135: 0 | G135: 0 | H135: 1 | I135: 0 | J135: 1 | K135: 0 | L135: 0 | M135: 0 | N135: 0 | O135: 0 | P135: 1 | Q135: 1 | R135: 0 | S135: 0 | U135: 1 | V135: 0.7304782078
A136: 1 | B136: 0 | C136: 0 | D136: 1 | E136: 1 | F136: 0 | G136: 0 | H136: 0 | I136: 0 | J136: 1 | K136: 0 | L136: 0 | M136: 0 | N136: 1 | O136: 0 | P136: 0 | Q136: 0 | R136: 0 | S136: 1 | U136: 1 | V136: 0.7821313844
A137: 0 | B137: 0 | C137: 0 | D137: 0 | E137: 0 | F137: 0 | G137: 0 | H137: 1 | I137: 0 | J137: 0 | K137: 1 | L137: 1 | M137: 0 | N137: 0 | O137: 0 | P137: 1 | Q137: 0 | R137: 0 | S137: 0 | U137: 1 | V137: 0.03345203136
A138: 0 | B138: 0 | C138: 0 | D138: 1 | E138: 0 | F138: 0 | G138: 1 | H138: 1 | I138: 0 | J138: 0 | K138: 0 | L138: 0 | M138: 0 | N138: 0 | O138: 1 | P138: 0 | Q138: 0 | R138: 0 | S138: 0 | U138: 0 | V138: 0.5120649607
A139: 0 | B139: 0 | C139: 0 | D139: 0 | E139: 0 | F139: 0 | G139: 0 | H139: 1 | I139: 0 | J139: 0 | K139: 1 | L139: 0 | M139: 0 | N139: 0 | O139: 0 | P139: 1 | Q139: 0 | R139: 0 | S139: 0 | U139: 1 | V139: 0.6200712737
A140: 0 | B140: 0 | C140: 0 | D140: 0 | E140: 0 | F140: 0 | G140: 1 | H140: 1 | I140: 0 | J140: 0 | K140: 1 | L140: 0 | M140: 0 | N140: 0 | O140: 1 | P140: 0 | Q140: 0 | R140: 0 | S140: 0 | U140: 0 | V140: 0.3241283787
A141: 0 | B141: 0 | C141: 0 | D141: 0 | E141: 0 | F141: 0 | G141: 0 | H141: 1 | I141: 0 | J141: 0 | K141: 1 | L141: 0 | M141: 0 | N141: 0 | O141: 1 | P141: 0 | Q141: 0 | R141: 0 | S141: 0 | U141: 0 | V141: 0.9614766804
A142: 1 | B142: 0 | C142: 0 | D142: 1 | E142: 1 | F142: 0 | G142: 0 | H142: 0 | I142: 0 | J142: 0 | K142: 0 | L142: 0 | M142: 1 | N142: 0 | O142: 0 | P142: 0 | Q142: 0 | R142: 0 | S142: 0 | U142: 1 | V142: 0.227966474
A143: 0 | B143: 0 | C143: 0 | D143: 0 | E143: 1 | F143: 0 | G143: 0 | H143: 0 | I143: 0 | J143: 0 | K143: 0 | L143: 0 | M143: 0 | N143: 0 | O143: 1 | P143: 0 | Q143: 0 | R143: 0 | S143: 0 | U143: 0 | V143: 0.5599014225
A144: 0 | B144: 0 | C144: 0 | D144: 0 | E144: 1 | F144: 0 | G144: 0 | H144: 0 | I144: 0 | J144: 0 | K144: 1 | L144: 0 | M144: 0 | N144: 0 | O144: 0 | P144: 0 | Q144: 0 | R144: 0 | S144: 0 | U144: 0 | V144: 0.6655715355
A145: 0 | B145: 0 | C145: 0 | D145: 0 | E145: 0 | F145: 1 | G145: 0 | H145: 1 | I145: 0 | J145: 0 | K145: 1 | L145: 0 | M145: 0 | N145: 0 | O145: 0 | P145: 0 | Q145: 0 | R145: 1 | S145: 0 | U145: 1 | V145: 0.1761871356
A146: 0 | B146: 0 | C146: 0 | D146: 1 | E146: 0 | F146: 0 | G146: 0 | H146: 1 | I146: 0 | J146: 0 | K146: 0 | L146: 0 | M146: 0 | N146: 0 | O146: 0 | P146: 0 | Q146: 0 | R146: 0 | S146: 0 | U146: 1 | V146: 0.08963063698
A147: 0 | B147: 1 | C147: 0 | D147: 0 | E147: 1 | F147: 0 | G147: 0 | H147: 0 | I147: 0 | J147: 0 | K147: 1 | L147: 0 | M147: 0 | N147: 0 | O147: 0 | P147: 0 | Q147: 0 | R147: 0 | S147: 0 | U147: 0 | V147: 0.9994485163
A148: 0 | B148: 1 | C148: 0 | D148: 1 | E148: 1 | F148: 0 | G148: 0 | H148: 0 | I148: 0 | J148: 0 | K148: 0 | L148: 0 | M148: 0 | N148: 0 | O148: 0 | P148: 0 | Q148: 0 | R148: 0 | S148: 0 | U148: 0 | V148: 0.2884537576
A149: 0 | B149: 0 | C149: 0 | D149: 1 | E149: 1 | F149: 0 | G149: 0 | H149: 0 | I149: 0 | J149: 0 | K149: 0 | L149: 0 | M149: 0 | N149: 0 | O149: 0 | P149: 0 | Q149: 0 | R149: 0 | S149: 0 | U149: 1 | V149: 0.9290690539
A150: 0 | B150: 0 | C150: 0 | D150: 1 | E150: 0 | F150: 0 | G150: 0 | H150: 1 | I150: 0 | J150: 0 | K150: 0 | L150: 0 | M150: 0 | N150: 0 | O150: 0 | P150: 0 | Q150: 0 | R150: 0 | S150: 0 | U150: 0 | V150: 0.7448793145
A151: 1 | B151: 0 | C151: 0 | D151: 0 | E151: 0 | F151: 0 | G151: 0 | H151: 1 | I151: 1 | J151: 1 | K151: 1 | L151: 0 | M151: 0 | N151: 0 | O151: 0 | P151: 1 | Q151: 0 | R151: 0 | S151: 0 | U151: 1 | V151: 0.4249290633
A152: 0 | B152: 0 | C152: 0 | D152: 0 | E152: 0 | F152: 0 | G152: 0 | H152: 1 | I152: 0 | J152: 0 | K152: 1 | L152: 0 | M152: 0 | N152: 0 | O152: 0 | P152: 0 | Q152: 0 | R152: 0 | S152: 0 | U152: 0 | V152: 0.6046548863
A153: 0 | B153: 0 | C153: 0 | D153: 1 | E153: 0 | F153: 0 | G153: 0 | H153: 1 | I153: 0 | J153: 0 | K153: 0 | L153: 0 | M153: 0 | N153: 0 | O153: 0 | P153: 0 | Q153: 0 | R153: 0 | S153: 0 | U153: 0 | V153: 0.4508926458
A154: 0 | B154: 1 | C154: 0 | D154: 0 | E154: 0 | F154: 0 | G154: 0 | H154: 1 | I154: 0 | J154: 0 | K154: 1 | L154: 1 | M154: 0 | N154: 0 | O154: 1 | P154: 0 | Q154: 0 | R154: 0 | S154: 0 | U154: 0 | V154: 0.4243023425
A155: 0 | B155: 0 | C155: 0 | D155: 1 | E155: 0 | F155: 0 | G155: 1 | H155: 1 | I155: 0 | J155: 0 | K155: 0 | L155: 0 | M155: 0 | N155: 0 | O155: 0 | P155: 0 | Q155: 0 | R155: 0 | S155: 0 | U155: 0 | V155: 0.2327126031
A156: 0 | B156: 0 | C156: 0 | D156: 1 | E156: 0 | F156: 0 | G156: 1 | H156: 1 | I156: 0 | J156: 0 | K156: 0 | L156: 0 | M156: 0 | N156: 0 | O156: 0 | P156: 0 | Q156: 0 | R156: 0 | S156: 0 | U156: 0 | V156: 0.5571357133
A157: 0 | B157: 0 | C157: 0 | D157: 0 | E157: 0 | F157: 1 | G157: 0 | H157: 1 | I157: 0 | J157: 0 | K157: 1 | L157: 0 | M157: 0 | N157: 0 | O157: 0 | P157: 0 | Q157: 0 | R157: 0 | S157: 1 | U157: 1 | V157: 0.7400053874
A158: 0 | B158: 1 | C158: 0 | D158: 0 | E158: 1 | F158: 0 | G158: 0 | H158: 0 | I158: 0 | J158: 0 | K158: 1 | L158: 0 | M158: 0 | N158: 0 | O158: 1 | P158: 0 | Q158: 0 | R158: 0 | S158: 0 | U158: 0 | V158: 0.9575791458
A159: 1 | B159: 0 | C159: 0 | D159: 0 | E159: 0 | F159: 0 | G159: 0 | H159: 1 | I159: 0 | J159: 0 | K159: 0 | L159: 0 | M159: 0 | N159: 1 | O159: 0 | P159: 1 | Q159: 0 | R159: 0 | S159: 0 | U159: 1 | V159: 0.8062171623
A160: 0 | B160: 0 | C160: 0 | D160: 0 | E160: 0 | F160: 0 | G160: 0 | H160: 1 | I160: 0 | J160: 0 | K160: 1 | L160: 0 | M160: 0 | N160: 0 | O160: 0 | P160: 0 | Q160: 0 | R160: 0 | S160: 0 | U160: 0 | V160: 0.9181678215
A161: 0 | B161: 0 | C161: 0 | D161: 0 | E161: 1 | F161: 1 | G161: 0 | H161: 0 | I161: 0 | J161: 0 | K161: 1 | L161: 0 | M161: 0 | N161: 0 | O161: 0 | P161: 1 | Q161: 0 | R161: 0 | S161: 0 | U161: 0 | V161: 0.8583359142
A162: 1 | B162: 0 | C162: 1 | D162: 0 | E162: 1 | F162: 0 | G162: 0 | H162: 0 | I162: 0 | J162: 0 | K162: 1 | L162: 0 | M162: 1 | N162: 1 | O162: 0 | P162: 1 | Q162: 0 | R162: 0 | S162: 0 | U162: 1 | V162: 0.1602839338
A163: 0 | B163: 0 | C163: 0 | D163: 0 | E163: 1 | F163: 0 | G163: 0 | H163: 0 | I163: 0 | J163: 0 | K163: 1 | L163: 0 | M163: 0 | N163: 0 | O163: 1 | P163: 0 | Q163: 0 | R163: 0 | S163: 0 | U163: 0 | V163: 0.5873637151
A164: 0 | B164: 0 | C164: 0 | D164: 0 | E164: 0 | F164: 0 | G164: 1 | H164: 1 | I164: 0 | J164: 0 | K164: 0 | L164: 0 | M164: 0 | N164: 0 | O164: 1 | P164: 0 | Q164: 0 | R164: 0 | S164: 0 | U164: 0 | V164: 0.3693075435
A165: 0 | B165: 0 | C165: 0 | D165: 0 | E165: 1 | F165: 0 | G165: 0 | H165: 0 | I165: 0 | J165: 0 | K165: 1 | L165: 0 | M165: 0 | N165: 1 | O165: 0 | P165: 0 | Q165: 0 | R165: 0 | S165: 0 | U165: 1 | V165: 0.9819400556
A166: 0 | B166: 0 | C166: 0 | D166: 1 | E166: 1 | F166: 0 | G166: 0 | H166: 0 | I166: 0 | J166: 1 | K166: 0 | L166: 0 | M166: 1 | N166: 0 | O166: 0 | P166: 0 | Q166: 0 | R166: 0 | S166: 0 | U166: 1 | V166: 0.7330023081
A167: 0 | B167: 0 | C167: 0 | D167: 0 | E167: 0 | F167: 0 | G167: 0 | H167: 1 | I167: 0 | J167: 1 | K167: 1 | L167: 0 | M167: 0 | N167: 0 | O167: 0 | P167: 0 | Q167: 0 | R167: 0 | S167: 0 | U167: 1 | V167: 0.5517620982
A168: 0 | B168: 1 | C168: 0 | D168: 0 | E168: 1 | F168: 0 | G168: 0 | H168: 0 | I168: 0 | J168: 0 | K168: 1 | L168: 0 | M168: 0 | N168: 0 | O168: 0 | P168: 0 | Q168: 0 | R168: 0 | S168: 0 | U168: 0 | V168: 0.674819536
A169: 0 | B169: 0 | C169: 0 | D169: 1 | E169: 0 | F169: 0 | G169: 0 | H169: 1 | I169: 0 | J169: 0 | K169: 0 | L169: 1 | M169: 0 | N169: 0 | O169: 0 | P169: 0 | Q169: 0 | R169: 0 | S169: 0 | U169: 0 | V169: 0.4421221551
A170: 0 | B170: 0 | C170: 0 | D170: 0 | E170: 1 | F170: 0 | G170: 0 | H170: 0 | I170: 0 | J170: 0 | K170: 0 | L170: 1 | M170: 0 | N170: 0 | O170: 0 | P170: 0 | Q170: 0 | R170: 0 | S170: 1 | U170: 0 | V170: 0.2854526358
A171: 0 | B171: 0 | C171: 0 | D171: 1 | E171: 1 | F171: 0 | G171: 1 | H171: 0 | I171: 0 | J171: 0 | K171: 0 | L171: 0 | M171: 0 | N171: 0 | O171: 0 | P171: 0 | Q171: 0 | R171: 0 | S171: 0 | U171: 1 | V171: 0.196961897
A172: 0 | B172: 0 | C172: 0 | D172: 1 | E172: 1 | F172: 0 | G172: 0 | H172: 0 | I172: 0 | J172: 0 | K172: 0 | L172: 0 | M172: 0 | N172: 0 | O172: 0 | P172: 0 | Q172: 0 | R172: 0 | S172: 0 | U172: 0 | V172: 0.238780924
A173: 0 | B173: 0 | C173: 1 | D173: 1 | E173: 0 | F173: 0 | G173: 0 | H173: 1 | I173: 0 | J173: 0 | K173: 0 | L173: 0 | M173: 0 | N173: 0 | O173: 0 | P173: 0 | Q173: 0 | R173: 0 | S173: 0 | U173: 1 | V173: 0.2967195922
A174: 0 | B174: 0 | C174: 0 | D174: 0 | E174: 1 | F174: 0 | G174: 0 | H174: 0 | I174: 0 | J174: 0 | K174: 1 | L174: 0 | M174: 0 | N174: 1 | O174: 0 | P174: 0 | Q174: 0 | R174: 0 | S174: 0 | U174: 1 | V174: 0.0969921192
A175: 0 | B175: 0 | C175: 0 | D175: 0 | E175: 0 | F175: 0 | G175: 0 | H175: 1 | I175: 0 | J175: 0 | K175: 1 | L175: 0 | M175: 0 | N175: 0 | O175: 1 | P175: 0 | Q175: 0 | R175: 0 | S175: 0 | U175: 0 | V175: 0.8960823834
A176: 0 | B176: 0 | C176: 0 | D176: 0 | E176: 1 | F176: 0 | G176: 0 | H176: 0 | I176: 0 | J176: 0 | K176: 1 | L176: 0 | M176: 0 | N176: 0 | O176: 0 | P176: 0 | Q176: 0 | R176: 0 | S176: 0 | U176: 1 | V176: 0.7303422922
A177: 0 | B177: 0 | C177: 0 | D177: 1 | E177: 1 | F177: 0 | G177: 0 | H177: 0 | I177: 0 | J177: 0 | K177: 0 | L177: 0 | M177: 0 | N177: 0 | O177: 1 | P177: 0 | Q177: 0 | R177: 0 | S177: 0 | U177: 0 | V177: 0.08230373442
A178: 0 | B178: 1 | C178: 0 | D178: 1 | E178: 0 | F178: 0 | G178: 0 | H178: 1 | I178: 0 | J178: 0 | K178: 0 | L178: 0 | M178: 0 | N178: 0 | O178: 0 | P178: 0 | Q178: 0 | R178: 0 | S178: 0 | U178: 0 | V178: 0.2952495305
A179: 0 | B179: 0 | C179: 1 | D179: 1 | E179: 1 | F179: 0 | G179: 0 | H179: 0 | I179: 0 | J179: 0 | K179: 0 | L179: 0 | M179: 0 | N179: 0 | O179: 0 | P179: 0 | Q179: 0 | R179: 0 | S179: 0 | U179: 0 | V179: 0.2074127722
A180: 0 | B180: 0 | C180: 0 | D180: 0 | E180: 0 | F180: 0 | G180: 0 | H180: 1 | I180: 0 | J180: 0 | K180: 1 | L180: 1 | M180: 0 | N180: 0 | O180: 0 | P180: 0 | Q180: 0 | R180: 0 | S180: 0 | U180: 0 | V180: 0.9660352245
A181: 1 | B181: 0 | C181: 0 | D181: 1 | E181: 0 | F181: 0 | G181: 0 | H181: 1 | I181: 0 | J181: 1 | K181: 0 | L181: 0 | M181: 0 | N181: 0 | O181: 0 | P181: 1 | Q181: 0 | R181: 0 | S181: 0 | U181: 1 | V181: 0.1750711158
A182: 0 | B182: 0 | C182: 0 | D182: 0 | E182: 0 | F182: 0 | G182: 0 | H182: 1 | I182: 0 | J182: 1 | K182: 1 | L182: 0 | M182: 1 | N182: 0 | O182: 0 | P182: 0 | Q182: 0 | R182: 0 | S182: 0 | U182: 1 | V182: 0.2402140364
A183: 0 | B183: 0 | C183: 0 | D183: 0 | E183: 1 | F183: 0 | G183: 0 | H183: 0 | I183: 0 | J183: 1 | K183: 1 | L183: 0 | M183: 0 | N183: 0 | O183: 0 | P183: 0 | Q183: 0 | R183: 0 | S183: 0 | U183: 1 | V183: 0.9706907347
A184: 0 | B184: 1 | C184: 0 | D184: 0 | E184: 1 | F184: 0 | G184: 0 | H184: 0 | I184: 0 | J184: 0 | K184: 0 | L184: 0 | M184: 0 | N184: 0 | O184: 0 | P184: 0 | Q184: 0 | R184: 0 | S184: 0 | U184: 1 | V184: 0.7677428915
A185: 0 | B185: 0 | C185: 0 | D185: 0 | E185: 0 | F185: 0 | G185: 0 | H185: 1 | I185: 0 | J185: 0 | K185: 1 | L185: 1 | M185: 0 | N185: 0 | O185: 0 | P185: 0 | Q185: 0 | R185: 0 | S185: 0 | U185: 0 | V185: 0.7676922868
A186: 0 | B186: 0 | C186: 0 | D186: 0 | E186: 1 | F186: 0 | G186: 0 | H186: 0 | I186: 0 | J186: 0 | K186: 1 | L186: 0 | M186: 0 | N186: 0 | O186: 1 | P186: 0 | Q186: 0 | R186: 0 | S186: 0 | U186: 1 | V186: 0.739471491
A187: 0 | B187: 0 | C187: 0 | D187: 0 | E187: 0 | F187: 0 | G187: 1 | H187: 1 | I187: 0 | J187: 0 | K187: 1 | L187: 0 | M187: 1 | N187: 0 | O187: 0 | P187: 0 | Q187: 0 | R187: 0 | S187: 0 | U187: 1 | V187: 0.740272817
A188: 0 | B188: 0 | C188: 0 | D188: 1 | E188: 0 | F188: 0 | G188: 0 | H188: 0 | I188: 0 | J188: 0 | K188: 0 | L188: 1 | M188: 0 | N188: 0 | O188: 1 | P188: 0 | Q188: 0 | R188: 0 | S188: 1 | U188: 0 | V188: 0.6778281453
A189: 0 | B189: 0 | C189: 0 | D189: 1 | E189: 1 | F189: 0 | G189: 0 | H189: 0 | I189: 0 | J189: 0 | K189: 0 | L189: 0 | M189: 0 | N189: 0 | O189: 0 | P189: 0 | Q189: 0 | R189: 0 | S189: 0 | U189: 0 | V189: 0.9692028683
A190: 0 | B190: 0 | C190: 0 | D190: 0 | E190: 1 | F190: 0 | G190: 0 | H190: 0 | I190: 0 | J190: 0 | K190: 1 | L190: 1 | M190: 0 | N190: 0 | O190: 0 | P190: 0 | Q190: 0 | R190: 0 | S190: 0 | U190: 0 | V190: 0.3194178669
A191: 0 | B191: 1 | C191: 0 | D191: 1 | E191: 0 | F191: 0 | G191: 1 | H191: 1 | I191: 0 | J191: 0 | K191: 0 | L191: 0 | M191: 0 | N191: 0 | O191: 0 | P191: 0 | Q191: 0 | R191: 0 | S191: 0 | U191: 0 | V191: 0.4820638897
A192: 0 | B192: 0 | C192: 0 | D192: 0 | E192: 0 | F192: 0 | G192: 0 | H192: 1 | I192: 0 | J192: 1 | K192: 1 | L192: 0 | M192: 0 | N192: 0 | O192: 0 | P192: 0 | Q192: 0 | R192: 0 | S192: 0 | U192: 1 | V192: 0.03525270028
A193: 0 | B193: 0 | C193: 0 | D193: 1 | E193: 1 | F193: 0 | G193: 1 | H193: 0 | I193: 0 | J193: 0 | K193: 0 | L193: 0 | M193: 0 | N193: 0 | O193: 0 | P193: 0 | Q193: 1 | R193: 0 | S193: 0 | U193: 0 | V193: 0.4629113661
A194: 1 | B194: 0 | C194: 0 | D194: 1 | E194: 1 | F194: 0 | G194: 0 | H194: 0 | I194: 0 | J194: 0 | K194: 0 | L194: 0 | M194: 1 | N194: 1 | O194: 0 | P194: 0 | Q194: 0 | R194: 0 | S194: 0 | U194: 1 | V194: 0.3603326939
A195: 1 | B195: 0 | C195: 0 | D195: 0 | E195: 0 | F195: 0 | G195: 0 | H195: 0 | I195: 0 | J195: 0 | K195: 1 | L195: 0 | M195: 0 | N195: 0 | O195: 0 | P195: 0 | Q195: 0 | R195: 0 | S195: 0 | U195: 1 | V195: =RAND() -> 0.4718484131
A196: 0 | B196: 0 | C196: 1 | D196: 0 | E196: 0 | F196: 0 | G196: 0 | H196: 1 | I196: 0 | J196: 0 | K196: 1 | L196: 0 | M196: 1 | N196: 0 | O196: 0 | P196: 0 | Q196: 0 | R196: 0 | S196: 0 | U196: 1 | V196: 0.06942758751
A197: 0 | B197: 0 | C197: 0 | D197: 0 | E197: 0 | F197: 0 | G197: 1 | H197: 1 | I197: 0 | J197: 0 | K197: 1 | L197: 0 | M197: 0 | N197: 0 | O197: 0 | P197: 0 | Q197: 0 | R197: 0 | S197: 0 | U197: 0 | V197: 0.6496024392
A198: 0 | B198: 1 | C198: 0 | D198: 0 | E198: 0 | F198: 0 | G198: 0 | H198: 1 | I198: 0 | J198: 1 | K198: 1 | L198: 0 | M198: 0 | N198: 1 | O198: 0 | P198: 0 | Q198: 0 | R198: 0 | S198: 0 | U198: 1 | V198: 0.0616085949
A199: 0 | B199: 0 | C199: 0 | D199: 0 | E199: 1 | F199: 0 | G199: 0 | H199: 0 | I199: 0 | J199: 0 | K199: 1 | L199: 0 | M199: 0 | N199: 0 | O199: 1 | P199: 0 | Q199: 1 | R199: 0 | S199: 0 | U199: 0 | V199: 0.3406163064
A200: 0 | B200: 0 | C200: 0 | D200: 1 | E200: 0 | F200: 0 | G200: 0 | H200: 1 | I200: 0 | J200: 0 | K200: 0 | L200: 0 | M200: 0 | N200: 0 | O200: 1 | P200: 0 | Q200: 0 | R200: 0 | S200: 0 | U200: 0 | V200: 0.188764902
... 802 more rows

Sheet Рис. 6-8
A1: ='Рис. 4 и 5'!A2 -> 7 | B1: ='Рис. 4 и 5'!B2 -> 6 | C1: ='Рис. 4 и 5'!C2 -> 11 | D1: ='Рис. 4 и 5'!D2 -> 0 | E1: ='Рис. 4 и 5'!U2 -> PREGNANT | G1: PREDICTOR | H1: PREGNANT | I1: =A1 -> 7 | J1: =B1 -> 6 | K1: =C1 -> 11 | L1: =D1 -> 0 | N1: Winner: | O1: =INDEX(I1:L1,0,MATCH(MIN(I10:L10),I10:L10,0)) -> 7 | P1: 6 | Q1: 8 | R1: 7 | S1: 16 | T1: 8 | U1: 8 | V1: 6 | W1: 5 | X1: 5 | Y1: 5 | Z1: 5 | AA1: 5 | AB1: 16 | AC1: 7 | AD1: 18 | AE1: 7 | AF1: 7 | AG1: 18 | AH1: 15 | AI1: 7 | AJ1: 5 | AK1: 7 | AL1: 5 | AM1: 18 | AN1: 8 | AO1: 7 | AP1: 4 | AQ1: 18 | AR1: 17 | AS1: 7 | AT1: 18 | AU1: 7 | AV1: 5 | AW1: 6 | AX1: 18 | AY1: 7 | AZ1: 6 | BA1: 8 | BB1: 18 | BC1: 8 | BD1: 7 | BE1: 5 | BF1: 17 | BG1: 7 | BH1: 8 | BI1: 18 | BJ1: 7 | BK1: 17 | BL1: 8 | BM1: 7 | BN1: 7 | BO1: 18 | BP1: 8 | BQ1: 13 | BR1: 7 | BS1: 7 | BT1: 16 | BU1: 18 | BV1: 0 | BW1: 7 | BX1: 13 | BY1: 5 | BZ1: 5 | CA1: 18 | CB1: 18 | CC1: 13 | CD1: 18 | CE1: 16 | CF1: 18 | CG1: 7 | CH1: 14 | CI1: 17 | CJ1: 7 | CK1: 7 | CL1: 15 | CM1: 18 | CN1: 7 | CO1: 7 | CP1: 5 | CQ1: 8 | CR1: 16 | CS1: 7 | CT1: 17 | CU1: 8 | CV1: 7 | CW1: 15 | CX1: 7 | CY1: 8 | CZ1: 5 | DA1: 14 | DB1: 16 | DC1: 16 | DD1: 12 | DE1: 4 | DF1: 7 | DG1: 17 | DH1: 7 | DI1: 16 | DJ1: 5 | DK1: 7 | DL1: 18 | DM1: 18 | DN1: 6 | DO1: 17 | DP1: 5 | DQ1: 5 | DR1: 18 | DS1: 7 | DT1: 5 | DU1: 7 | DV1: 4 | DW1: 8 | DX1: 15 | DY1: 17 | DZ1: 4 | EA1: 8 | EB1: 5 | EC1: 5 | ED1: 18 | EE1: 18 | EF1: 5 | EG1: 18 | EH1: 8 | EI1: 16 | EJ1: 6 | EK1: 6 | EL1: 7 | EM1: 7 | EN1: 7 | EO1: 6 | EP1: 8 | EQ1: 7 | ER1: 6 | ES1: 7 | ET1: 5 | EU1: 17 | EV1: 18 | EW1: 7 | EX1: 5 | EY1: 5 | EZ1: 6 | FA1: 16 | FB1: 18 | FC1: 16 | FD1: 18 | FE1: 7 | FF1: 18 | FG1: 17 | FH1: 5 | FI1: 16 | FJ1: 8 | FK1: 4 | FL1: 7 | FM1: 8 | FN1: 18 | FO1: 18 | FP1: 5 | FQ1: 7 | FR1: 4 | FS1: 5 | FT1: 5 | FU1: 5 | FV1: 11 | FW1: 8 | FX1: 5 | FY1: 7 | FZ1: 8 | GA1: 7 | GB1: 7 | GC1: 8 | GD1: 6 | GE1: 5 | GF1: 4 | GG1: 8 | GH1: 5 | GI1: 5 | GJ1: 8 | GK1: 4 | GL1: 4 | GM1: 16 | GN1: 8 | GO1: 8 | GP1: 13 | GQ1: 8 | GR1: 18 | GS1: 6 | GT1: 7 | GU1: 13 | GV1: 8 | GW1: 7 | GX1: 14 | GY1: 17 | GZ1: 7 | HA1: 17 | HB1: 5 | HC1: 16 | HD1: 8 | HE1: 8 | HF1: 6 | HG1: 7
A2: ='Рис. 4 и 5'!A3 -> 0 | B2: ='Рис. 4 и 5'!B3 -> 0 | C2: ='Рис. 4 и 5'!C3 -> 0 | D2: ='Рис. 4 и 5'!D3 -> 1 | E2: ='Рис. 4 и 5'!U3 -> 0 | G2: 0 | H2: 1 | I2: =COUNTIFS(A$2:A$667,$G2,$E$2:$E$667,$H2) -> 269 | J2: =COUNTIFS(B$2:B$667,$G2,$E$2:$E$667,$H2) -> 316 | K2: 302 | L2: 216 | N2: Pregnant is: | O2: =INDEX(I6:L6,0,MATCH(MIN(I10:L10),I10:L10,0)) -> 1 | P2: 0 | Q2: 1 | R2: 1 | S2: 1 | T2: 1 | U2: 1 | V2: 0 | W2: 0 | X2: 0 | Y2: 0 | Z2: 0 | AA2: 0 | AB2: 1 | AC2: 1 | AD2: 1 | AE2: 1 | AF2: 1 | AG2: 1 | AH2: 1 | AI2: 1 | AJ2: 0 | AK2: 1 | AL2: 0 | AM2: 1 | AN2: 1 | AO2: 1 | AP2: 1 | AQ2: 1 | AR2: 0 | AS2: 1 | AT2: 1 | AU2: 1 | AV2: 0 | AW2: 0 | AX2: 1 | AY2: 1 | AZ2: 0 | BA2: 1 | BB2: 1 | BC2: 1 | BD2: 1 | BE2: 0 | BF2: 0 | BG2: 1 | BH2: 1 | BI2: 1 | BJ2: 1 | BK2: 0 | BL2: 1 | BM2: 1 | BN2: 1 | BO2: 1 | BP2: 1 | BQ2: 1 | BR2: 1 | BS2: 1 | BT2: 1 | BU2: 1 | BV2: 0 | BW2: 1 | BX2: 1 | BY2: 0 | BZ2: 0 | CA2: 1 | CB2: 1 | CC2: 1 | CD2: 1 | CE2: 1 | CF2: 1 | CG2: 1 | CH2: 0 | CI2: 0 | CJ2: 1 | CK2: 1 | CL2: 1 | CM2: 1 | CN2: 1 | CO2: 1 | CP2: 0 | CQ2: 1 | CR2: 1 | CS2: 1 | CT2: 0 | CU2: 1 | CV2: 1 | CW2: 1 | CX2: 1 | CY2: 1 | CZ2: 0 | DA2: 0 | DB2: 1 | DC2: 1 | DD2: 1 | DE2: 1 | DF2: 1 | DG2: 0 | DH2: 1 | DI2: 1 | DJ2: 0 | DK2: 1 | DL2: 1 | DM2: 1 | DN2: 0 | DO2: 0 | DP2: 0 | DQ2: 0 | DR2: 1 | DS2: 1 | DT2: 0 | DU2: 1 | DV2: 1 | DW2: 1 | DX2: 1 | DY2: 0 | DZ2: 1 | EA2: 1 | EB2: 0 | EC2: 0 | ED2: 1 | EE2: 1 | EF2: 0 | EG2: 1 | EH2: 1 | EI2: 1 | EJ2: 0 | EK2: 0 | EL2: 1 | EM2: 1 | EN2: 1 | EO2: 0 | EP2: 1 | EQ2: 1 | ER2: 0 | ES2: 1 | ET2: 0 | EU2: 0 | EV2: 1 | EW2: 1 | EX2: 0 | EY2: 0 | EZ2: 0 | FA2: 1 | FB2: 1 | FC2: 1 | FD2: 1 | FE2: 1 | FF2: 1 | FG2: 0 | FH2: 0 | FI2: 1 | FJ2: 1 | FK2: 1 | FL2: 1 | FM2: 1 | FN2: 1 | FO2: 1 | FP2: 0 | FQ2: 1 | FR2: 1 | FS2: 0 | FT2: 0 | FU2: 0 | FV2: 1 | FW2: 1 | FX2: 0 | FY2: 1 | FZ2: 1 | GA2: 1 | GB2: 1 | GC2: 1 | GD2: 0 | GE2: 0 | GF2: 1 | GG2: 1 | GH2: 0 | GI2: 0 | GJ2: 1 | GK2: 1 | GL2: 1 | GM2: 1 | GN2: 1 | GO2: 1 | GP2: 1 | GQ2: 1 | GR2: 1 | GS2: 0 | GT2: 1 | GU2: 1 | GV2: 1 | GW2: 1 | GX2: 0 | GY2: 0 | GZ2: 1 | HA2: 0 | HB2: 0 | HC2: 1 | HD2: 1 | HE2: 1 | HF2: 0 | HG2: 1
A3: ='Рис. 4 и 5'!A4 -> 0 | B3: ='Рис. 4 и 5'!B4 -> 0 | C3: ='Рис. 4 и 5'!C4 -> 0 | D3: ='Рис. 4 и 5'!D4 -> 1 | E3: ='Рис. 4 и 5'!U4 -> 1 | G3: 0 | H3: 0 | I3: 330 | J3: 258 | K3: 322 | L3: 179
A4: ='Рис. 4 и 5'!A5 -> 1 | B4: ='Рис. 4 и 5'!B5 -> 0 | C4: ='Рис. 4 и 5'!C5 -> 0 | D4: ='Рис. 4 и 5'!D5 -> 1 | E4: ='Рис. 4 и 5'!U5 -> 1 | G4: 1 | H4: 1 | I4: 66 | J4: 19 | K4: 33 | L4: 119
A5: ='Рис. 4 и 5'!A6 -> 0 | B5: ='Рис. 4 и 5'!B6 -> 0 | C5: ='Рис. 4 и 5'!C6 -> 0 | D5: ='Рис. 4 и 5'!D6 -> 0 | E5: ='Рис. 4 и 5'!U6 -> 0 | G5: 1 | H5: 0 | I5: 1 | J5: 73 | K5: 9 | L5: 152
A6: ='Рис. 4 и 5'!A7 -> 1 | B6: ='Рис. 4 и 5'!B7 -> 0 | C6: ='Рис. 4 и 5'!C7 -> 1 | D6: ='Рис. 4 и 5'!D7 -> 0 | E6: ='Рис. 4 и 5'!U7 -> 1 | G6: Which value indicates pregnancy? | I6: =IF(I2/(I2+I3)>I4/(I4+I5),0,1) -> 1 | J6: =IF(J2/(J2+J3)>J4/(J4+J5),0,1) -> 0 | K6: 1 | L6: 0
A7: ='Рис. 4 и 5'!A8 -> 0 | B7: ='Рис. 4 и 5'!B8 -> 0 | C7: ='Рис. 4 и 5'!C8 -> 0 | D7: ='Рис. 4 и 5'!D8 -> 0 | E7: ='Рис. 4 и 5'!U8 -> 1
A8: ='Рис. 4 и 5'!A9 -> 0 | B8: ='Рис. 4 и 5'!B9 -> 0 | C8: ='Рис. 4 и 5'!C9 -> 0 | D8: ='Рис. 4 и 5'!D9 -> 1 | E8: ='Рис. 4 и 5'!U9 -> 0 | G8: Impurity | H8: 0 | I8: =1-(I2/(I2+I3))^2-(I3/(I2+I3))^2 -> 0.4948146744 | J8: =1-(J2/(J2+J3))^2-(J3/(J2+J3))^2 -> 0.4948949241 | K8: 0.4994863577 | L8: 0.4956128826
A9: ='Рис. 4 и 5'!A10 -> 0 | B9: ='Рис. 4 и 5'!B10 -> 0 | C9: ='Рис. 4 и 5'!C10 -> 0 | D9: ='Рис. 4 и 5'!D10 -> 0 | E9: ='Рис. 4 и 5'!U10 -> 1 | H9: 1 | I9: =1-(I4/(I4+I5))^2-(I5/(I4+I5))^2 -> 0.02940521274 | J9: =1-(J4/(J4+J5))^2-(J5/(J4+J5))^2 -> 0.3277410208 | K9: 0.3367346939 | L9: 0.4925858853
A10: ='Рис. 4 и 5'!A11 -> 1 | B10: ='Рис. 4 и 5'!B11 -> 0 | C10: ='Рис. 4 и 5'!C11 -> 1 | D10: ='Рис. 4 и 5'!D11 -> 0 | E10: ='Рис. 4 и 5'!U11 -> 1 | H10: Combined | I10: =(I8*(I2+I3)+I9*(I4+I5))/666 -> 0.4479942031 | J10: =(J8*(J2+J3)+J9*(J4+J5))/666 -> 0.4718045951 | K10: 0.4892227392 | L10: 0.4943811764
A11: ='Рис. 4 и 5'!A12 -> 0 | B11: ='Рис. 4 и 5'!B12 -> 0 | C11: ='Рис. 4 и 5'!C12 -> 0 | D11: ='Рис. 4 и 5'!D12 -> 1 | E11: ='Рис. 4 и 5'!U12 -> 0
A12: ='Рис. 4 и 5'!A13 -> 1 | B12: ='Рис. 4 и 5'!B13 -> 0 | C12: ='Рис. 4 и 5'!C13 -> 0 | D12: ='Рис. 4 и 5'!D13 -> 1 | E12: ='Рис. 4 и 5'!U13 -> 1
A13: ='Рис. 4 и 5'!A14 -> 0 | B13: ='Рис. 4 и 5'!B14 -> 0 | C13: ='Рис. 4 и 5'!C14 -> 0 | D13: ='Рис. 4 и 5'!D14 -> 0 | E13: ='Рис. 4 и 5'!U14 -> 0
A14: ='Рис. 4 и 5'!A15 -> 0 | B14: ='Рис. 4 и 5'!B15 -> 0 | C14: ='Рис. 4 и 5'!C15 -> 0 | D14: ='Рис. 4 и 5'!D15 -> 1 | E14: ='Рис. 4 и 5'!U15 -> 0
A15: ='Рис. 4 и 5'!A16 -> 0 | B15: ='Рис. 4 и 5'!B16 -> 0 | C15: ='Рис. 4 и 5'!C16 -> 1 | D15: ='Рис. 4 и 5'!D16 -> 0 | E15: ='Рис. 4 и 5'!U16 -> 0
A16: ='Рис. 4 и 5'!A17 -> 0 | B16: ='Рис. 4 и 5'!B17 -> 0 | C16: ='Рис. 4 и 5'!C17 -> 0 | D16: ='Рис. 4 и 5'!D17 -> 0 | E16: ='Рис. 4 и 5'!U17 -> 1
A17: ='Рис. 4 и 5'!A18 -> 0 | B17: ='Рис. 4 и 5'!B18 -> 0 | C17: ='Рис. 4 и 5'!C18 -> 1 | D17: ='Рис. 4 и 5'!D18 -> 0 | E17: ='Рис. 4 и 5'!U18 -> 1
A18: ='Рис. 4 и 5'!A19 -> 0 | B18: ='Рис. 4 и 5'!B19 -> 0 | C18: ='Рис. 4 и 5'!C19 -> 0 | D18: ='Рис. 4 и 5'!D19 -> 0 | E18: ='Рис. 4 и 5'!U19 -> 1
A19: ='Рис. 4 и 5'!A20 -> 0 | B19: ='Рис. 4 и 5'!B20 -> 0 | C19: ='Рис. 4 и 5'!C20 -> 0 | D19: ='Рис. 4 и 5'!D20 -> 0 | E19: ='Рис. 4 и 5'!U20 -> 1
A20: ='Рис. 4 и 5'!A21 -> 0 | B20: ='Рис. 4 и 5'!B21 -> 0 | C20: ='Рис. 4 и 5'!C21 -> 0 | D20: ='Рис. 4 и 5'!D21 -> 1 | E20: ='Рис. 4 и 5'!U21 -> 1
A21: ='Рис. 4 и 5'!A22 -> 0 | B21: ='Рис. 4 и 5'!B22 -> 0 | C21: ='Рис. 4 и 5'!C22 -> 0 | D21: ='Рис. 4 и 5'!D22 -> 0 | E21: ='Рис. 4 и 5'!U22 -> 1
A22: ='Рис. 4 и 5'!A23 -> 0 | B22: ='Рис. 4 и 5'!B23 -> 0 | C22: ='Рис. 4 и 5'!C23 -> 0 | D22: ='Рис. 4 и 5'!D23 -> 1 | E22: ='Рис. 4 и 5'!U23 -> 0
A23: ='Рис. 4 и 5'!A24 -> 0 | B23: ='Рис. 4 и 5'!B24 -> 0 | C23: ='Рис. 4 и 5'!C24 -> 0 | D23: ='Рис. 4 и 5'!D24 -> 0 | E23: ='Рис. 4 и 5'!U24 -> 0
A24: ='Рис. 4 и 5'!A25 -> 0 | B24: ='Рис. 4 и 5'!B25 -> 0 | C24: ='Рис. 4 и 5'!C25 -> 0 | D24: ='Рис. 4 и 5'!D25 -> 0 | E24: ='Рис. 4 и 5'!U25 -> 0
A25: ='Рис. 4 и 5'!A26 -> 0 | B25: ='Рис. 4 и 5'!B26 -> 1 | C25: ='Рис. 4 и 5'!C26 -> 0 | D25: ='Рис. 4 и 5'!D26 -> 1 | E25: ='Рис. 4 и 5'!U26 -> 0
A26: ='Рис. 4 и 5'!A27 -> 0 | B26: ='Рис. 4 и 5'!B27 -> 0 | C26: ='Рис. 4 и 5'!C27 -> 0 | D26: ='Рис. 4 и 5'!D27 -> 0 | E26: ='Рис. 4 и 5'!U27 -> 1
A27: ='Рис. 4 и 5'!A28 -> 0 | B27: ='Рис. 4 и 5'!B28 -> 0 | C27: ='Рис. 4 и 5'!C28 -> 0 | D27: ='Рис. 4 и 5'!D28 -> 1 | E27: ='Рис. 4 и 5'!U28 -> 1
A28: ='Рис. 4 и 5'!A29 -> 0 | B28: ='Рис. 4 и 5'!B29 -> 0 | C28: ='Рис. 4 и 5'!C29 -> 0 | D28: ='Рис. 4 и 5'!D29 -> 1 | E28: ='Рис. 4 и 5'!U29 -> 0
A29: ='Рис. 4 и 5'!A30 -> 1 | B29: ='Рис. 4 и 5'!B30 -> 0 | C29: ='Рис. 4 и 5'!C30 -> 0 | D29: ='Рис. 4 и 5'!D30 -> 0 | E29: ='Рис. 4 и 5'!U30 -> 1
A30: ='Рис. 4 и 5'!A31 -> 0 | B30: ='Рис. 4 и 5'!B31 -> 0 | C30: ='Рис. 4 и 5'!C31 -> 0 | D30: ='Рис. 4 и 5'!D31 -> 0 | E30: ='Рис. 4 и 5'!U31 -> 0
A31: ='Рис. 4 и 5'!A32 -> 0 | B31: ='Рис. 4 и 5'!B32 -> 0 | C31: ='Рис. 4 и 5'!C32 -> 1 | D31: ='Рис. 4 и 5'!D32 -> 1 | E31: ='Рис. 4 и 5'!U32 -> 1
A32: ='Рис. 4 и 5'!A33 -> 0 | B32: ='Рис. 4 и 5'!B33 -> 0 | C32: ='Рис. 4 и 5'!C33 -> 0 | D32: ='Рис. 4 и 5'!D33 -> 0 | E32: ='Рис. 4 и 5'!U33 -> 0
A33: ='Рис. 4 и 5'!A34 -> 0 | B33: ='Рис. 4 и 5'!B34 -> 0 | C33: ='Рис. 4 и 5'!C34 -> 0 | D33: ='Рис. 4 и 5'!D34 -> 0 | E33: ='Рис. 4 и 5'!U34 -> 0
A34: ='Рис. 4 и 5'!A35 -> 0 | B34: ='Рис. 4 и 5'!B35 -> 0 | C34: ='Рис. 4 и 5'!C35 -> 0 | D34: ='Рис. 4 и 5'!D35 -> 0 | E34: ='Рис. 4 и 5'!U35 -> 1
A35: ='Рис. 4 и 5'!A36 -> 0 | B35: ='Рис. 4 и 5'!B36 -> 0 | C35: ='Рис. 4 и 5'!C36 -> 0 | D35: ='Рис. 4 и 5'!D36 -> 0 | E35: ='Рис. 4 и 5'!U36 -> 1
A36: ='Рис. 4 и 5'!A37 -> 0 | B36: ='Рис. 4 и 5'!B37 -> 0 | C36: ='Рис. 4 и 5'!C37 -> 0 | D36: ='Рис. 4 и 5'!D37 -> 1 | E36: ='Рис. 4 и 5'!U37 -> 0
A37: ='Рис. 4 и 5'!A38 -> 0 | B37: ='Рис. 4 и 5'!B38 -> 0 | C37: ='Рис. 4 и 5'!C38 -> 0 | D37: ='Рис. 4 и 5'!D38 -> 0 | E37: ='Рис. 4 и 5'!U38 -> 0
A38: ='Рис. 4 и 5'!A39 -> 0 | B38: ='Рис. 4 и 5'!B39 -> 0 | C38: ='Рис. 4 и 5'!C39 -> 0 | D38: ='Рис. 4 и 5'!D39 -> 1 | E38: ='Рис. 4 и 5'!U39 -> 1
A39: ='Рис. 4 и 5'!A40 -> 0 | B39: ='Рис. 4 и 5'!B40 -> 0 | C39: ='Рис. 4 и 5'!C40 -> 0 | D39: ='Рис. 4 и 5'!D40 -> 1 | E39: ='Рис. 4 и 5'!U40 -> 0
A40: ='Рис. 4 и 5'!A41 -> 0 | B40: ='Рис. 4 и 5'!B41 -> 0 | C40: ='Рис. 4 и 5'!C41 -> 0 | D40: ='Рис. 4 и 5'!D41 -> 0 | E40: ='Рис. 4 и 5'!U41 -> 1
A41: ='Рис. 4 и 5'!A42 -> 0 | B41: ='Рис. 4 и 5'!B42 -> 0 | C41: ='Рис. 4 и 5'!C42 -> 0 | D41: ='Рис. 4 и 5'!D42 -> 0 | E41: ='Рис. 4 и 5'!U42 -> 0
A42: ='Рис. 4 и 5'!A43 -> 0 | B42: ='Рис. 4 и 5'!B43 -> 0 | C42: ='Рис. 4 и 5'!C43 -> 0 | D42: ='Рис. 4 и 5'!D43 -> 0 | E42: ='Рис. 4 и 5'!U43 -> 1
A43: ='Рис. 4 и 5'!A44 -> 0 | B43: ='Рис. 4 и 5'!B44 -> 0 | C43: ='Рис. 4 и 5'!C44 -> 0 | D43: ='Рис. 4 и 5'!D44 -> 0 | E43: ='Рис. 4 и 5'!U44 -> 1
A44: ='Рис. 4 и 5'!A45 -> 0 | B44: ='Рис. 4 и 5'!B45 -> 0 | C44: ='Рис. 4 и 5'!C45 -> 0 | D44: ='Рис. 4 и 5'!D45 -> 0 | E44: ='Рис. 4 и 5'!U45 -> 1
A45: ='Рис. 4 и 5'!A46 -> 1 | B45: ='Рис. 4 и 5'!B46 -> 0 | C45: ='Рис. 4 и 5'!C46 -> 1 | D45: ='Рис. 4 и 5'!D46 -> 0 | E45: ='Рис. 4 и 5'!U46 -> 1
A46: ='Рис. 4 и 5'!A47 -> 0 | B46: ='Рис. 4 и 5'!B47 -> 0 | C46: ='Рис. 4 и 5'!C47 -> 0 | D46: ='Рис. 4 и 5'!D47 -> 1 | E46: ='Рис. 4 и 5'!U47 -> 0
A47: ='Рис. 4 и 5'!A48 -> 0 | B47: ='Рис. 4 и 5'!B48 -> 0 | C47: ='Рис. 4 и 5'!C48 -> 0 | D47: ='Рис. 4 и 5'!D48 -> 1 | E47: ='Рис. 4 и 5'!U48 -> 1
A48: ='Рис. 4 и 5'!A49 -> 0 | B48: ='Рис. 4 и 5'!B49 -> 0 | C48: ='Рис. 4 и 5'!C49 -> 0 | D48: ='Рис. 4 и 5'!D49 -> 0 | E48: ='Рис. 4 и 5'!U49 -> 0
A49: ='Рис. 4 и 5'!A50 -> 0 | B49: ='Рис. 4 и 5'!B50 -> 0 | C49: ='Рис. 4 и 5'!C50 -> 0 | D49: ='Рис. 4 и 5'!D50 -> 1 | E49: ='Рис. 4 и 5'!U50 -> 1
A50: ='Рис. 4 и 5'!A51 -> 0 | B50: ='Рис. 4 и 5'!B51 -> 1 | C50: ='Рис. 4 и 5'!C51 -> 0 | D50: ='Рис. 4 и 5'!D51 -> 0 | E50: ='Рис. 4 и 5'!U51 -> 0
A51: ='Рис. 4 и 5'!A52 -> 0 | B51: ='Рис. 4 и 5'!B52 -> 1 | C51: ='Рис. 4 и 5'!C52 -> 0 | D51: ='Рис. 4 и 5'!D52 -> 1 | E51: ='Рис. 4 и 5'!U52 -> 0
A52: ='Рис. 4 и 5'!A53 -> 0 | B52: ='Рис. 4 и 5'!B53 -> 0 | C52: ='Рис. 4 и 5'!C53 -> 0 | D52: ='Рис. 4 и 5'!D53 -> 0 | E52: ='Рис. 4 и 5'!U53 -> 1
A53: ='Рис. 4 и 5'!A54 -> 0 | B53: ='Рис. 4 и 5'!B54 -> 0 | C53: ='Рис. 4 и 5'!C54 -> 0 | D53: ='Рис. 4 и 5'!D54 -> 1 | E53: ='Рис. 4 и 5'!U54 -> 0
A54: ='Рис. 4 и 5'!A55 -> 0 | B54: ='Рис. 4 и 5'!B55 -> 0 | C54: ='Рис. 4 и 5'!C55 -> 0 | D54: ='Рис. 4 и 5'!D55 -> 0 | E54: ='Рис. 4 и 5'!U55 -> 0
A55: ='Рис. 4 и 5'!A56 -> 0 | B55: ='Рис. 4 и 5'!B56 -> 0 | C55: ='Рис. 4 и 5'!C56 -> 1 | D55: ='Рис. 4 и 5'!D56 -> 0 | E55: ='Рис. 4 и 5'!U56 -> 1
A56: ='Рис. 4 и 5'!A57 -> 0 | B56: ='Рис. 4 и 5'!B57 -> 1 | C56: ='Рис. 4 и 5'!C57 -> 0 | D56: ='Рис. 4 и 5'!D57 -> 1 | E56: ='Рис. 4 и 5'!U57 -> 0
A57: ='Рис. 4 и 5'!A58 -> 1 | B57: ='Рис. 4 и 5'!B58 -> 0 | C57: ='Рис. 4 и 5'!C58 -> 0 | D57: ='Рис. 4 и 5'!D58 -> 0 | E57: ='Рис. 4 и 5'!U58 -> 1
A58: ='Рис. 4 и 5'!A59 -> 0 | B58: ='Рис. 4 и 5'!B59 -> 0 | C58: ='Рис. 4 и 5'!C59 -> 0 | D58: ='Рис. 4 и 5'!D59 -> 1 | E58: ='Рис. 4 и 5'!U59 -> 0
A59: ='Рис. 4 и 5'!A60 -> 1 | B59: ='Рис. 4 и 5'!B60 -> 0 | C59: ='Рис. 4 и 5'!C60 -> 0 | D59: ='Рис. 4 и 5'!D60 -> 0 | E59: ='Рис. 4 и 5'!U60 -> 1
A60: ='Рис. 4 и 5'!A61 -> 0 | B60: ='Рис. 4 и 5'!B61 -> 0 | C60: ='Рис. 4 и 5'!C61 -> 0 | D60: ='Рис. 4 и 5'!D61 -> 0 | E60: ='Рис. 4 и 5'!U61 -> 0
A61: ='Рис. 4 и 5'!A62 -> 0 | B61: ='Рис. 4 и 5'!B62 -> 0 | C61: ='Рис. 4 и 5'!C62 -> 0 | D61: ='Рис. 4 и 5'!D62 -> 0 | E61: ='Рис. 4 и 5'!U62 -> 0
A62: ='Рис. 4 и 5'!A63 -> 0 | B62: ='Рис. 4 и 5'!B63 -> 0 | C62: ='Рис. 4 и 5'!C63 -> 1 | D62: ='Рис. 4 и 5'!D63 -> 0 | E62: ='Рис. 4 и 5'!U63 -> 1
A63: ='Рис. 4 и 5'!A64 -> 1 | B63: ='Рис. 4 и 5'!B64 -> 0 | C63: ='Рис. 4 и 5'!C64 -> 0 | D63: ='Рис. 4 и 5'!D64 -> 1 | E63: ='Рис. 4 и 5'!U64 -> 1
A64: ='Рис. 4 и 5'!A65 -> 0 | B64: ='Рис. 4 и 5'!B65 -> 0 | C64: ='Рис. 4 и 5'!C65 -> 0 | D64: ='Рис. 4 и 5'!D65 -> 0 | E64: ='Рис. 4 и 5'!U65 -> 0
A65: ='Рис. 4 и 5'!A66 -> 0 | B65: ='Рис. 4 и 5'!B66 -> 0 | C65: ='Рис. 4 и 5'!C66 -> 0 | D65: ='Рис. 4 и 5'!D66 -> 0 | E65: ='Рис. 4 и 5'!U66 -> 0
A66: ='Рис. 4 и 5'!A67 -> 0 | B66: ='Рис. 4 и 5'!B67 -> 0 | C66: ='Рис. 4 и 5'!C67 -> 0 | D66: ='Рис. 4 и 5'!D67 -> 1 | E66: ='Рис. 4 и 5'!U67 -> 0
A67: ='Рис. 4 и 5'!A68 -> 0 | B67: ='Рис. 4 и 5'!B68 -> 1 | C67: ='Рис. 4 и 5'!C68 -> 0 | D67: ='Рис. 4 и 5'!D68 -> 0 | E67: ='Рис. 4 и 5'!U68 -> 0
A68: ='Рис. 4 и 5'!A69 -> 0 | B68: ='Рис. 4 и 5'!B69 -> 0 | C68: ='Рис. 4 и 5'!C69 -> 0 | D68: ='Рис. 4 и 5'!D69 -> 0 | E68: ='Рис. 4 и 5'!U69 -> 0
A69: ='Рис. 4 и 5'!A70 -> 0 | B69: ='Рис. 4 и 5'!B70 -> 0 | C69: ='Рис. 4 и 5'!C70 -> 0 | D69: ='Рис. 4 и 5'!D70 -> 0 | E69: ='Рис. 4 и 5'!U70 -> 1
A70: ='Рис. 4 и 5'!A71 -> 0 | B70: ='Рис. 4 и 5'!B71 -> 0 | C70: ='Рис. 4 и 5'!C71 -> 0 | D70: ='Рис. 4 и 5'!D71 -> 0 | E70: ='Рис. 4 и 5'!U71 -> 1
A71: ='Рис. 4 и 5'!A72 -> 0 | B71: ='Рис. 4 и 5'!B72 -> 0 | C71: ='Рис. 4 и 5'!C72 -> 0 | D71: ='Рис. 4 и 5'!D72 -> 0 | E71: ='Рис. 4 и 5'!U72 -> 0
A72: ='Рис. 4 и 5'!A73 -> 0 | B72: ='Рис. 4 и 5'!B73 -> 0 | C72: ='Рис. 4 и 5'!C73 -> 0 | D72: ='Рис. 4 и 5'!D73 -> 0 | E72: ='Рис. 4 и 5'!U73 -> 0
A73: ='Рис. 4 и 5'!A74 -> 0 | B73: ='Рис. 4 и 5'!B74 -> 0 | C73: ='Рис. 4 и 5'!C74 -> 0 | D73: ='Рис. 4 и 5'!D74 -> 0 | E73: ='Рис. 4 и 5'!U74 -> 1
A74: ='Рис. 4 и 5'!A75 -> 0 | B74: ='Рис. 4 и 5'!B75 -> 0 | C74: ='Рис. 4 и 5'!C75 -> 1 | D74: ='Рис. 4 и 5'!D75 -> 0 | E74: ='Рис. 4 и 5'!U75 -> 1
A75: ='Рис. 4 и 5'!A76 -> 0 | B75: ='Рис. 4 и 5'!B76 -> 0 | C75: ='Рис. 4 и 5'!C76 -> 0 | D75: ='Рис. 4 и 5'!D76 -> 1 | E75: ='Рис. 4 и 5'!U76 -> 1
A76: ='Рис. 4 и 5'!A77 -> 0 | B76: ='Рис. 4 и 5'!B77 -> 0 | C76: ='Рис. 4 и 5'!C77 -> 0 | D76: ='Рис. 4 и 5'!D77 -> 1 | E76: ='Рис. 4 и 5'!U77 -> 0
A77: ='Рис. 4 и 5'!A78 -> 0 | B77: ='Рис. 4 и 5'!B78 -> 0 | C77: ='Рис. 4 и 5'!C78 -> 0 | D77: ='Рис. 4 и 5'!D78 -> 1 | E77: ='Рис. 4 и 5'!U78 -> 1
A78: ='Рис. 4 и 5'!A79 -> 1 | B78: ='Рис. 4 и 5'!B79 -> 0 | C78: ='Рис. 4 и 5'!C79 -> 0 | D78: ='Рис. 4 и 5'!D79 -> 0 | E78: ='Рис. 4 и 5'!U79 -> 1
A79: ='Рис. 4 и 5'!A80 -> 0 | B79: ='Рис. 4 и 5'!B80 -> 0 | C79: ='Рис. 4 и 5'!C80 -> 0 | D79: ='Рис. 4 и 5'!D80 -> 0 | E79: ='Рис. 4 и 5'!U80 -> 1
A80: ='Рис. 4 и 5'!A81 -> 0 | B80: ='Рис. 4 и 5'!B81 -> 0 | C80: ='Рис. 4 и 5'!C81 -> 0 | D80: ='Рис. 4 и 5'!D81 -> 1 | E80: ='Рис. 4 и 5'!U81 -> 0
A81: ='Рис. 4 и 5'!A82 -> 1 | B81: ='Рис. 4 и 5'!B82 -> 0 | C81: ='Рис. 4 и 5'!C82 -> 0 | D81: ='Рис. 4 и 5'!D82 -> 1 | E81: ='Рис. 4 и 5'!U82 -> 1
A82: ='Рис. 4 и 5'!A83 -> 0 | B82: ='Рис. 4 и 5'!B83 -> 0 | C82: ='Рис. 4 и 5'!C83 -> 0 | D82: ='Рис. 4 и 5'!D83 -> 1 | E82: ='Рис. 4 и 5'!U83 -> 1
A83: ='Рис. 4 и 5'!A84 -> 0 | B83: ='Рис. 4 и 5'!B84 -> 0 | C83: ='Рис. 4 и 5'!C84 -> 0 | D83: ='Рис. 4 и 5'!D84 -> 1 | E83: ='Рис. 4 и 5'!U84 -> 0
A84: ='Рис. 4 и 5'!A85 -> 1 | B84: ='Рис. 4 и 5'!B85 -> 0 | C84: ='Рис. 4 и 5'!C85 -> 0 | D84: ='Рис. 4 и 5'!D85 -> 0 | E84: ='Рис. 4 и 5'!U85 -> 1
A85: ='Рис. 4 и 5'!A86 -> 0 | B85: ='Рис. 4 и 5'!B86 -> 0 | C85: ='Рис. 4 и 5'!C86 -> 0 | D85: ='Рис. 4 и 5'!D86 -> 0 | E85: ='Рис. 4 и 5'!U86 -> 1
A86: ='Рис. 4 и 5'!A87 -> 0 | B86: ='Рис. 4 и 5'!B87 -> 0 | C86: ='Рис. 4 и 5'!C87 -> 0 | D86: ='Рис. 4 и 5'!D87 -> 1 | E86: ='Рис. 4 и 5'!U87 -> 0
A87: ='Рис. 4 и 5'!A88 -> 0 | B87: ='Рис. 4 и 5'!B88 -> 0 | C87: ='Рис. 4 и 5'!C88 -> 0 | D87: ='Рис. 4 и 5'!D88 -> 1 | E87: ='Рис. 4 и 5'!U88 -> 1
A88: ='Рис. 4 и 5'!A89 -> 0 | B88: ='Рис. 4 и 5'!B89 -> 0 | C88: ='Рис. 4 и 5'!C89 -> 0 | D88: ='Рис. 4 и 5'!D89 -> 1 | E88: ='Рис. 4 и 5'!U89 -> 0
A89: ='Рис. 4 и 5'!A90 -> 0 | B89: ='Рис. 4 и 5'!B90 -> 1 | C89: ='Рис. 4 и 5'!C90 -> 0 | D89: ='Рис. 4 и 5'!D90 -> 1 | E89: ='Рис. 4 и 5'!U90 -> 1
A90: ='Рис. 4 и 5'!A91 -> 1 | B90: ='Рис. 4 и 5'!B91 -> 0 | C90: ='Рис. 4 и 5'!C91 -> 0 | D90: ='Рис. 4 и 5'!D91 -> 0 | E90: ='Рис. 4 и 5'!U91 -> 1
A91: ='Рис. 4 и 5'!A92 -> 0 | B91: ='Рис. 4 и 5'!B92 -> 0 | C91: ='Рис. 4 и 5'!C92 -> 0 | D91: ='Рис. 4 и 5'!D92 -> 1 | E91: ='Рис. 4 и 5'!U92 -> 0
A92: ='Рис. 4 и 5'!A93 -> 0 | B92: ='Рис. 4 и 5'!B93 -> 0 | C92: ='Рис. 4 и 5'!C93 -> 0 | D92: ='Рис. 4 и 5'!D93 -> 1 | E92: ='Рис. 4 и 5'!U93 -> 1
A93: ='Рис. 4 и 5'!A94 -> 0 | B93: ='Рис. 4 и 5'!B94 -> 0 | C93: ='Рис. 4 и 5'!C94 -> 0 | D93: ='Рис. 4 и 5'!D94 -> 0 | E93: ='Рис. 4 и 5'!U94 -> 1
A94: ='Рис. 4 и 5'!A95 -> 0 | B94: ='Рис. 4 и 5'!B95 -> 1 | C94: ='Рис. 4 и 5'!C95 -> 0 | D94: ='Рис. 4 и 5'!D95 -> 0 | E94: ='Рис. 4 и 5'!U95 -> 0
A95: ='Рис. 4 и 5'!A96 -> 0 | B95: ='Рис. 4 и 5'!B96 -> 0 | C95: ='Рис. 4 и 5'!C96 -> 0 | D95: ='Рис. 4 и 5'!D96 -> 0 | E95: ='Рис. 4 и 5'!U96 -> 0
A96: ='Рис. 4 и 5'!A97 -> 0 | B96: ='Рис. 4 и 5'!B97 -> 0 | C96: ='Рис. 4 и 5'!C97 -> 0 | D96: ='Рис. 4 и 5'!D97 -> 0 | E96: ='Рис. 4 и 5'!U97 -> 0
A97: ='Рис. 4 и 5'!A98 -> 0 | B97: ='Рис. 4 и 5'!B98 -> 0 | C97: ='Рис. 4 и 5'!C98 -> 0 | D97: ='Рис. 4 и 5'!D98 -> 0 | E97: ='Рис. 4 и 5'!U98 -> 0
A98: ='Рис. 4 и 5'!A99 -> 0 | B98: ='Рис. 4 и 5'!B99 -> 0 | C98: ='Рис. 4 и 5'!C99 -> 0 | D98: ='Рис. 4 и 5'!D99 -> 0 | E98: ='Рис. 4 и 5'!U99 -> 1
A99: ='Рис. 4 и 5'!A100 -> 0 | B99: ='Рис. 4 и 5'!B100 -> 0 | C99: ='Рис. 4 и 5'!C100 -> 0 | D99: ='Рис. 4 и 5'!D100 -> 1 | E99: ='Рис. 4 и 5'!U100 -> 0
A100: ='Рис. 4 и 5'!A101 -> 0 | B100: ='Рис. 4 и 5'!B101 -> 0 | C100: ='Рис. 4 и 5'!C101 -> 0 | D100: ='Рис. 4 и 5'!D101 -> 0 | E100: ='Рис. 4 и 5'!U101 -> 1
A101: ='Рис. 4 и 5'!A102 -> 0 | B101: ='Рис. 4 и 5'!B102 -> 0 | C101: ='Рис. 4 и 5'!C102 -> 0 | D101: ='Рис. 4 и 5'!D102 -> 1 | E101: ='Рис. 4 и 5'!U102 -> 1
A102: ='Рис. 4 и 5'!A103 -> 0 | B102: ='Рис. 4 и 5'!B103 -> 1 | C102: ='Рис. 4 и 5'!C103 -> 0 | D102: ='Рис. 4 и 5'!D103 -> 0 | E102: ='Рис. 4 и 5'!U103 -> 0
A103: ='Рис. 4 и 5'!A104 -> 0 | B103: ='Рис. 4 и 5'!B104 -> 0 | C103: ='Рис. 4 и 5'!C104 -> 0 | D103: ='Рис. 4 и 5'!D104 -> 1 | E103: ='Рис. 4 и 5'!U104 -> 0
A104: ='Рис. 4 и 5'!A105 -> 0 | B104: ='Рис. 4 и 5'!B105 -> 0 | C104: ='Рис. 4 и 5'!C105 -> 0 | D104: ='Рис. 4 и 5'!D105 -> 0 | E104: ='Рис. 4 и 5'!U105 -> 0
A105: ='Рис. 4 и 5'!A106 -> 0 | B105: ='Рис. 4 и 5'!B106 -> 0 | C105: ='Рис. 4 и 5'!C106 -> 0 | D105: ='Рис. 4 и 5'!D106 -> 0 | E105: ='Рис. 4 и 5'!U106 -> 0
A106: ='Рис. 4 и 5'!A107 -> 0 | B106: ='Рис. 4 и 5'!B107 -> 0 | C106: ='Рис. 4 и 5'!C107 -> 0 | D106: ='Рис. 4 и 5'!D107 -> 1 | E106: ='Рис. 4 и 5'!U107 -> 1
A107: ='Рис. 4 и 5'!A108 -> 0 | B107: ='Рис. 4 и 5'!B108 -> 1 | C107: ='Рис. 4 и 5'!C108 -> 0 | D107: ='Рис. 4 и 5'!D108 -> 1 | E107: ='Рис. 4 и 5'!U108 -> 1
A108: ='Рис. 4 и 5'!A109 -> 0 | B108: ='Рис. 4 и 5'!B109 -> 1 | C108: ='Рис. 4 и 5'!C109 -> 0 | D108: ='Рис. 4 и 5'!D109 -> 0 | E108: ='Рис. 4 и 5'!U109 -> 1
A109: ='Рис. 4 и 5'!A110 -> 0 | B109: ='Рис. 4 и 5'!B110 -> 0 | C109: ='Рис. 4 и 5'!C110 -> 0 | D109: ='Рис. 4 и 5'!D110 -> 0 | E109: ='Рис. 4 и 5'!U110 -> 0
A110: ='Рис. 4 и 5'!A111 -> 0 | B110: ='Рис. 4 и 5'!B111 -> 0 | C110: ='Рис. 4 и 5'!C111 -> 0 | D110: ='Рис. 4 и 5'!D111 -> 0 | E110: ='Рис. 4 и 5'!U111 -> 1
A111: ='Рис. 4 и 5'!A112 -> 0 | B111: ='Рис. 4 и 5'!B112 -> 0 | C111: ='Рис. 4 и 5'!C112 -> 0 | D111: ='Рис. 4 и 5'!D112 -> 0 | E111: ='Рис. 4 и 5'!U112 -> 0
A112: ='Рис. 4 и 5'!A113 -> 0 | B112: ='Рис. 4 и 5'!B113 -> 0 | C112: ='Рис. 4 и 5'!C113 -> 0 | D112: ='Рис. 4 и 5'!D113 -> 1 | E112: ='Рис. 4 и 5'!U113 -> 1
A113: ='Рис. 4 и 5'!A114 -> 0 | B113: ='Рис. 4 и 5'!B114 -> 0 | C113: ='Рис. 4 и 5'!C114 -> 0 | D113: ='Рис. 4 и 5'!D114 -> 0 | E113: ='Рис. 4 и 5'!U114 -> 1
A114: ='Рис. 4 и 5'!A115 -> 0 | B114: ='Рис. 4 и 5'!B115 -> 0 | C114: ='Рис. 4 и 5'!C115 -> 0 | D114: ='Рис. 4 и 5'!D115 -> 0 | E114: ='Рис. 4 и 5'!U115 -> 1
A115: ='Рис. 4 и 5'!A116 -> 0 | B115: ='Рис. 4 и 5'!B116 -> 0 | C115: ='Рис. 4 и 5'!C116 -> 0 | D115: ='Рис. 4 и 5'!D116 -> 0 | E115: ='Рис. 4 и 5'!U116 -> 1
A116: ='Рис. 4 и 5'!A117 -> 0 | B116: ='Рис. 4 и 5'!B117 -> 0 | C116: ='Рис. 4 и 5'!C117 -> 0 | D116: ='Рис. 4 и 5'!D117 -> 0 | E116: ='Рис. 4 и 5'!U117 -> 1
A117: ='Рис. 4 и 5'!A118 -> 0 | B117: ='Рис. 4 и 5'!B118 -> 0 | C117: ='Рис. 4 и 5'!C118 -> 0 | D117: ='Рис. 4 и 5'!D118 -> 1 | E117: ='Рис. 4 и 5'!U118 -> 0
A118: ='Рис. 4 и 5'!A119 -> 0 | B118: ='Рис. 4 и 5'!B119 -> 0 | C118: ='Рис. 4 и 5'!C119 -> 0 | D118: ='Рис. 4 и 5'!D119 -> 1 | E118: ='Рис. 4 и 5'!U119 -> 0
A119: ='Рис. 4 и 5'!A120 -> 0 | B119: ='Рис. 4 и 5'!B120 -> 0 | C119: ='Рис. 4 и 5'!C120 -> 1 | D119: ='Рис. 4 и 5'!D120 -> 0 | E119: ='Рис. 4 и 5'!U120 -> 1
A120: ='Рис. 4 и 5'!A121 -> 0 | B120: ='Рис. 4 и 5'!B121 -> 0 | C120: ='Рис. 4 и 5'!C121 -> 0 | D120: ='Рис. 4 и 5'!D121 -> 0 | E120: ='Рис. 4 и 5'!U121 -> 0
A121: ='Рис. 4 и 5'!A122 -> 0 | B121: ='Рис. 4 и 5'!B122 -> 1 | C121: ='Рис. 4 и 5'!C122 -> 0 | D121: ='Рис. 4 и 5'!D122 -> 0 | E121: ='Рис. 4 и 5'!U122 -> 1
A122: ='Рис. 4 и 5'!A123 -> 0 | B122: ='Рис. 4 и 5'!B123 -> 0 | C122: ='Рис. 4 и 5'!C123 -> 0 | D122: ='Рис. 4 и 5'!D123 -> 0 | E122: ='Рис. 4 и 5'!U123 -> 1
A123: ='Рис. 4 и 5'!A124 -> 0 | B123: ='Рис. 4 и 5'!B124 -> 0 | C123: ='Рис. 4 и 5'!C124 -> 0 | D123: ='Рис. 4 и 5'!D124 -> 1 | E123: ='Рис. 4 и 5'!U124 -> 1
A124: ='Рис. 4 и 5'!A125 -> 0 | B124: ='Рис. 4 и 5'!B125 -> 0 | C124: ='Рис. 4 и 5'!C125 -> 1 | D124: ='Рис. 4 и 5'!D125 -> 1 | E124: ='Рис. 4 и 5'!U125 -> 0
A125: ='Рис. 4 и 5'!A126 -> 0 | B125: ='Рис. 4 и 5'!B126 -> 0 | C125: ='Рис. 4 и 5'!C126 -> 0 | D125: ='Рис. 4 и 5'!D126 -> 0 | E125: ='Рис. 4 и 5'!U126 -> 0
A126: ='Рис. 4 и 5'!A127 -> 0 | B126: ='Рис. 4 и 5'!B127 -> 0 | C126: ='Рис. 4 и 5'!C127 -> 0 | D126: ='Рис. 4 и 5'!D127 -> 1 | E126: ='Рис. 4 и 5'!U127 -> 0
A127: ='Рис. 4 и 5'!A128 -> 0 | B127: ='Рис. 4 и 5'!B128 -> 0 | C127: ='Рис. 4 и 5'!C128 -> 1 | D127: ='Рис. 4 и 5'!D128 -> 1 | E127: ='Рис. 4 и 5'!U128 -> 1
A128: ='Рис. 4 и 5'!A129 -> 0 | B128: ='Рис. 4 и 5'!B129 -> 1 | C128: ='Рис. 4 и 5'!C129 -> 0 | D128: ='Рис. 4 и 5'!D129 -> 0 | E128: ='Рис. 4 и 5'!U129 -> 0
A129: ='Рис. 4 и 5'!A130 -> 0 | B129: ='Рис. 4 и 5'!B130 -> 0 | C129: ='Рис. 4 и 5'!C130 -> 0 | D129: ='Рис. 4 и 5'!D130 -> 0 | E129: ='Рис. 4 и 5'!U130 -> 0
A130: ='Рис. 4 и 5'!A131 -> 0 | B130: ='Рис. 4 и 5'!B131 -> 0 | C130: ='Рис. 4 и 5'!C131 -> 0 | D130: ='Рис. 4 и 5'!D131 -> 0 | E130: ='Рис. 4 и 5'!U131 -> 0
A131: ='Рис. 4 и 5'!A132 -> 0 | B131: ='Рис. 4 и 5'!B132 -> 0 | C131: ='Рис. 4 и 5'!C132 -> 0 | D131: ='Рис. 4 и 5'!D132 -> 0 | E131: ='Рис. 4 и 5'!U132 -> 1
A132: ='Рис. 4 и 5'!A133 -> 0 | B132: ='Рис. 4 и 5'!B133 -> 1 | C132: ='Рис. 4 и 5'!C133 -> 0 | D132: ='Рис. 4 и 5'!D133 -> 1 | E132: ='Рис. 4 и 5'!U133 -> 0
A133: ='Рис. 4 и 5'!A134 -> 1 | B133: ='Рис. 4 и 5'!B134 -> 1 | C133: ='Рис. 4 и 5'!C134 -> 0 | D133: ='Рис. 4 и 5'!D134 -> 0 | E133: ='Рис. 4 и 5'!U134 -> 1
A134: ='Рис. 4 и 5'!A135 -> 1 | B134: ='Рис. 4 и 5'!B135 -> 0 | C134: ='Рис. 4 и 5'!C135 -> 0 | D134: ='Рис. 4 и 5'!D135 -> 1 | E134: ='Рис. 4 и 5'!U135 -> 1
A135: ='Рис. 4 и 5'!A136 -> 1 | B135: ='Рис. 4 и 5'!B136 -> 0 | C135: ='Рис. 4 и 5'!C136 -> 0 | D135: ='Рис. 4 и 5'!D136 -> 1 | E135: ='Рис. 4 и 5'!U136 -> 1
A136: ='Рис. 4 и 5'!A137 -> 0 | B136: ='Рис. 4 и 5'!B137 -> 0 | C136: ='Рис. 4 и 5'!C137 -> 0 | D136: ='Рис. 4 и 5'!D137 -> 0 | E136: ='Рис. 4 и 5'!U137 -> 1
A137: ='Рис. 4 и 5'!A138 -> 0 | B137: ='Рис. 4 и 5'!B138 -> 0 | C137: ='Рис. 4 и 5'!C138 -> 0 | D137: ='Рис. 4 и 5'!D138 -> 1 | E137: ='Рис. 4 и 5'!U138 -> 0
A138: ='Рис. 4 и 5'!A139 -> 0 | B138: ='Рис. 4 и 5'!B139 -> 0 | C138: ='Рис. 4 и 5'!C139 -> 0 | D138: ='Рис. 4 и 5'!D139 -> 0 | E138: ='Рис. 4 и 5'!U139 -> 1
A139: ='Рис. 4 и 5'!A140 -> 0 | B139: ='Рис. 4 и 5'!B140 -> 0 | C139: ='Рис. 4 и 5'!C140 -> 0 | D139: ='Рис. 4 и 5'!D140 -> 0 | E139: ='Рис. 4 и 5'!U140 -> 0
A140: ='Рис. 4 и 5'!A141 -> 0 | B140: ='Рис. 4 и 5'!B141 -> 0 | C140: ='Рис. 4 и 5'!C141 -> 0 | D140: ='Рис. 4 и 5'!D141 -> 0 | E140: ='Рис. 4 и 5'!U141 -> 0
A141: ='Рис. 4 и 5'!A142 -> 1 | B141: ='Рис. 4 и 5'!B142 -> 0 | C141: ='Рис. 4 и 5'!C142 -> 0 | D141: ='Рис. 4 и 5'!D142 -> 1 | E141: ='Рис. 4 и 5'!U142 -> 1
A142: ='Рис. 4 и 5'!A143 -> 0 | B142: ='Рис. 4 и 5'!B143 -> 0 | C142: ='Рис. 4 и 5'!C143 -> 0 | D142: ='Рис. 4 и 5'!D143 -> 0 | E142: ='Рис. 4 и 5'!U143 -> 0
A143: ='Рис. 4 и 5'!A144 -> 0 | B143: ='Рис. 4 и 5'!B144 -> 0 | C143: ='Рис. 4 и 5'!C144 -> 0 | D143: ='Рис. 4 и 5'!D144 -> 0 | E143: ='Рис. 4 и 5'!U144 -> 0
A144: ='Рис. 4 и 5'!A145 -> 0 | B144: ='Рис. 4 и 5'!B145 -> 0 | C144: ='Рис. 4 и 5'!C145 -> 0 | D144: ='Рис. 4 и 5'!D145 -> 0 | E144: ='Рис. 4 и 5'!U145 -> 1
A145: ='Рис. 4 и 5'!A146 -> 0 | B145: ='Рис. 4 и 5'!B146 -> 0 | C145: ='Рис. 4 и 5'!C146 -> 0 | D145: ='Рис. 4 и 5'!D146 -> 1 | E145: ='Рис. 4 и 5'!U146 -> 1
A146: ='Рис. 4 и 5'!A147 -> 0 | B146: ='Рис. 4 и 5'!B147 -> 1 | C146: ='Рис. 4 и 5'!C147 -> 0 | D146: ='Рис. 4 и 5'!D147 -> 0 | E146: ='Рис. 4 и 5'!U147 -> 0
A147: ='Рис. 4 и 5'!A148 -> 0 | B147: ='Рис. 4 и 5'!B148 -> 1 | C147: ='Рис. 4 и 5'!C148 -> 0 | D147: ='Рис. 4 и 5'!D148 -> 1 | E147: ='Рис. 4 и 5'!U148 -> 0
A148: ='Рис. 4 и 5'!A149 -> 0 | B148: ='Рис. 4 и 5'!B149 -> 0 | C148: ='Рис. 4 и 5'!C149 -> 0 | D148: ='Рис. 4 и 5'!D149 -> 1 | E148: ='Рис. 4 и 5'!U149 -> 1
A149: ='Рис. 4 и 5'!A150 -> 0 | B149: ='Рис. 4 и 5'!B150 -> 0 | C149: ='Рис. 4 и 5'!C150 -> 0 | D149: ='Рис. 4 и 5'!D150 -> 1 | E149: ='Рис. 4 и 5'!U150 -> 0
A150: ='Рис. 4 и 5'!A151 -> 1 | B150: ='Рис. 4 и 5'!B151 -> 0 | C150: ='Рис. 4 и 5'!C151 -> 0 | D150: ='Рис. 4 и 5'!D151 -> 0 | E150: ='Рис. 4 и 5'!U151 -> 1
A151: ='Рис. 4 и 5'!A152 -> 0 | B151: ='Рис. 4 и 5'!B152 -> 0 | C151: ='Рис. 4 и 5'!C152 -> 0 | D151: ='Рис. 4 и 5'!D152 -> 0 | E151: ='Рис. 4 и 5'!U152 -> 0
A152: ='Рис. 4 и 5'!A153 -> 0 | B152: ='Рис. 4 и 5'!B153 -> 0 | C152: ='Рис. 4 и 5'!C153 -> 0 | D152: ='Рис. 4 и 5'!D153 -> 1 | E152: ='Рис. 4 и 5'!U153 -> 0
A153: ='Рис. 4 и 5'!A154 -> 0 | B153: ='Рис. 4 и 5'!B154 -> 1 | C153: ='Рис. 4 и 5'!C154 -> 0 | D153: ='Рис. 4 и 5'!D154 -> 0 | E153: ='Рис. 4 и 5'!U154 -> 0
A154: ='Рис. 4 и 5'!A155 -> 0 | B154: ='Рис. 4 и 5'!B155 -> 0 | C154: ='Рис. 4 и 5'!C155 -> 0 | D154: ='Рис. 4 и 5'!D155 -> 1 | E154: ='Рис. 4 и 5'!U155 -> 0
A155: ='Рис. 4 и 5'!A156 -> 0 | B155: ='Рис. 4 и 5'!B156 -> 0 | C155: ='Рис. 4 и 5'!C156 -> 0 | D155: ='Рис. 4 и 5'!D156 -> 1 | E155: ='Рис. 4 и 5'!U156 -> 0
A156: ='Рис. 4 и 5'!A157 -> 0 | B156: ='Рис. 4 и 5'!B157 -> 0 | C156: ='Рис. 4 и 5'!C157 -> 0 | D156: ='Рис. 4 и 5'!D157 -> 0 | E156: ='Рис. 4 и 5'!U157 -> 1
A157: ='Рис. 4 и 5'!A158 -> 0 | B157: ='Рис. 4 и 5'!B158 -> 1 | C157: ='Рис. 4 и 5'!C158 -> 0 | D157: ='Рис. 4 и 5'!D158 -> 0 | E157: ='Рис. 4 и 5'!U158 -> 0
A158: ='Рис. 4 и 5'!A159 -> 1 | B158: ='Рис. 4 и 5'!B159 -> 0 | C158: ='Рис. 4 и 5'!C159 -> 0 | D158: ='Рис. 4 и 5'!D159 -> 0 | E158: ='Рис. 4 и 5'!U159 -> 1
A159: ='Рис. 4 и 5'!A160 -> 0 | B159: ='Рис. 4 и 5'!B160 -> 0 | C159: ='Рис. 4 и 5'!C160 -> 0 | D159: ='Рис. 4 и 5'!D160 -> 0 | E159: ='Рис. 4 и 5'!U160 -> 0
A160: ='Рис. 4 и 5'!A161 -> 0 | B160: ='Рис. 4 и 5'!B161 -> 0 | C160: ='Рис. 4 и 5'!C161 -> 0 | D160: ='Рис. 4 и 5'!D161 -> 0 | E160: ='Рис. 4 и 5'!U161 -> 0
A161: ='Рис. 4 и 5'!A162 -> 1 | B161: ='Рис. 4 и 5'!B162 -> 0 | C161: ='Рис. 4 и 5'!C162 -> 1 | D161: ='Рис. 4 и 5'!D162 -> 0 | E161: ='Рис. 4 и 5'!U162 -> 1
A162: ='Рис. 4 и 5'!A163 -> 0 | B162: ='Рис. 4 и 5'!B163 -> 0 | C162: ='Рис. 4 и 5'!C163 -> 0 | D162: ='Рис. 4 и 5'!D163 -> 0 | E162: ='Рис. 4 и 5'!U163 -> 0
A163: ='Рис. 4 и 5'!A164 -> 0 | B163: ='Рис. 4 и 5'!B164 -> 0 | C163: ='Рис. 4 и 5'!C164 -> 0 | D163: ='Рис. 4 и 5'!D164 -> 0 | E163: ='Рис. 4 и 5'!U164 -> 0
A164: ='Рис. 4 и 5'!A165 -> 0 | B164: ='Рис. 4 и 5'!B165 -> 0 | C164: ='Рис. 4 и 5'!C165 -> 0 | D164: ='Рис. 4 и 5'!D165 -> 0 | E164: ='Рис. 4 и 5'!U165 -> 1
A165: ='Рис. 4 и 5'!A166 -> 0 | B165: ='Рис. 4 и 5'!B166 -> 0 | C165: ='Рис. 4 и 5'!C166 -> 0 | D165: ='Рис. 4 и 5'!D166 -> 1 | E165: ='Рис. 4 и 5'!U166 -> 1
A166: ='Рис. 4 и 5'!A167 -> 0 | B166: ='Рис. 4 и 5'!B167 -> 0 | C166: ='Рис. 4 и 5'!C167 -> 0 | D166: ='Рис. 4 и 5'!D167 -> 0 | E166: ='Рис. 4 и 5'!U167 -> 1
A167: ='Рис. 4 и 5'!A168 -> 0 | B167: ='Рис. 4 и 5'!B168 -> 1 | C167: ='Рис. 4 и 5'!C168 -> 0 | D167: ='Рис. 4 и 5'!D168 -> 0 | E167: ='Рис. 4 и 5'!U168 -> 0
A168: ='Рис. 4 и 5'!A169 -> 0 | B168: ='Рис. 4 и 5'!B169 -> 0 | C168: ='Рис. 4 и 5'!C169 -> 0 | D168: ='Рис. 4 и 5'!D169 -> 1 | E168: ='Рис. 4 и 5'!U169 -> 0
A169: ='Рис. 4 и 5'!A170 -> 0 | B169: ='Рис. 4 и 5'!B170 -> 0 | C169: ='Рис. 4 и 5'!C170 -> 0 | D169: ='Рис. 4 и 5'!D170 -> 0 | E169: ='Рис. 4 и 5'!U170 -> 0
A170: ='Рис. 4 и 5'!A171 -> 0 | B170: ='Рис. 4 и 5'!B171 -> 0 | C170: ='Рис. 4 и 5'!C171 -> 0 | D170: ='Рис. 4 и 5'!D171 -> 1 | E170: ='Рис. 4 и 5'!U171 -> 1
A171: ='Рис. 4 и 5'!A172 -> 0 | B171: ='Рис. 4 и 5'!B172 -> 0 | C171: ='Рис. 4 и 5'!C172 -> 0 | D171: ='Рис. 4 и 5'!D172 -> 1 | E171: ='Рис. 4 и 5'!U172 -> 0
A172: ='Рис. 4 и 5'!A173 -> 0 | B172: ='Рис. 4 и 5'!B173 -> 0 | C172: ='Рис. 4 и 5'!C173 -> 1 | D172: ='Рис. 4 и 5'!D173 -> 1 | E172: ='Рис. 4 и 5'!U173 -> 1
A173: ='Рис. 4 и 5'!A174 -> 0 | B173: ='Рис. 4 и 5'!B174 -> 0 | C173: ='Рис. 4 и 5'!C174 -> 0 | D173: ='Рис. 4 и 5'!D174 -> 0 | E173: ='Рис. 4 и 5'!U174 -> 1
A174: ='Рис. 4 и 5'!A175 -> 0 | B174: ='Рис. 4 и 5'!B175 -> 0 | C174: ='Рис. 4 и 5'!C175 -> 0 | D174: ='Рис. 4 и 5'!D175 -> 0 | E174: ='Рис. 4 и 5'!U175 -> 0
A175: ='Рис. 4 и 5'!A176 -> 0 | B175: ='Рис. 4 и 5'!B176 -> 0 | C175: ='Рис. 4 и 5'!C176 -> 0 | D175: ='Рис. 4 и 5'!D176 -> 0 | E175: ='Рис. 4 и 5'!U176 -> 1
A176: ='Рис. 4 и 5'!A177 -> 0 | B176: ='Рис. 4 и 5'!B177 -> 0 | C176: ='Рис. 4 и 5'!C177 -> 0 | D176: ='Рис. 4 и 5'!D177 -> 1 | E176: ='Рис. 4 и 5'!U177 -> 0
A177: ='Рис. 4 и 5'!A178 -> 0 | B177: ='Рис. 4 и 5'!B178 -> 1 | C177: ='Рис. 4 и 5'!C178 -> 0 | D177: ='Рис. 4 и 5'!D178 -> 1 | E177: ='Рис. 4 и 5'!U178 -> 0
A178: ='Рис. 4 и 5'!A179 -> 0 | B178: ='Рис. 4 и 5'!B179 -> 0 | C178: ='Рис. 4 и 5'!C179 -> 1 | D178: ='Рис. 4 и 5'!D179 -> 1 | E178: ='Рис. 4 и 5'!U179 -> 0
A179: ='Рис. 4 и 5'!A180 -> 0 | B179: ='Рис. 4 и 5'!B180 -> 0 | C179: ='Рис. 4 и 5'!C180 -> 0 | D179: ='Рис. 4 и 5'!D180 -> 0 | E179: ='Рис. 4 и 5'!U180 -> 0
A180: ='Рис. 4 и 5'!A181 -> 1 | B180: ='Рис. 4 и 5'!B181 -> 0 | C180: ='Рис. 4 и 5'!C181 -> 0 | D180: ='Рис. 4 и 5'!D181 -> 1 | E180: ='Рис. 4 и 5'!U181 -> 1
A181: ='Рис. 4 и 5'!A182 -> 0 | B181: ='Рис. 4 и 5'!B182 -> 0 | C181: ='Рис. 4 и 5'!C182 -> 0 | D181: ='Рис. 4 и 5'!D182 -> 0 | E181: ='Рис. 4 и 5'!U182 -> 1
A182: ='Рис. 4 и 5'!A183 -> 0 | B182: ='Рис. 4 и 5'!B183 -> 0 | C182: ='Рис. 4 и 5'!C183 -> 0 | D182: ='Рис. 4 и 5'!D183 -> 0 | E182: ='Рис. 4 и 5'!U183 -> 1
A183: ='Рис. 4 и 5'!A184 -> 0 | B183: ='Рис. 4 и 5'!B184 -> 1 | C183: ='Рис. 4 и 5'!C184 -> 0 | D183: ='Рис. 4 и 5'!D184 -> 0 | E183: ='Рис. 4 и 5'!U184 -> 1
A184: ='Рис. 4 и 5'!A185 -> 0 | B184: ='Рис. 4 и 5'!B185 -> 0 | C184: ='Рис. 4 и 5'!C185 -> 0 | D184: ='Рис. 4 и 5'!D185 -> 0 | E184: ='Рис. 4 и 5'!U185 -> 0
A185: ='Рис. 4 и 5'!A186 -> 0 | B185: ='Рис. 4 и 5'!B186 -> 0 | C185: ='Рис. 4 и 5'!C186 -> 0 | D185: ='Рис. 4 и 5'!D186 -> 0 | E185: ='Рис. 4 и 5'!U186 -> 1
A186: ='Рис. 4 и 5'!A187 -> 0 | B186: ='Рис. 4 и 5'!B187 -> 0 | C186: ='Рис. 4 и 5'!C187 -> 0 | D186: ='Рис. 4 и 5'!D187 -> 0 | E186: ='Рис. 4 и 5'!U187 -> 1
A187: ='Рис. 4 и 5'!A188 -> 0 | B187: ='Рис. 4 и 5'!B188 -> 0 | C187: ='Рис. 4 и 5'!C188 -> 0 | D187: ='Рис. 4 и 5'!D188 -> 1 | E187: ='Рис. 4 и 5'!U188 -> 0
A188: ='Рис. 4 и 5'!A189 -> 0 | B188: ='Рис. 4 и 5'!B189 -> 0 | C188: ='Рис. 4 и 5'!C189 -> 0 | D188: ='Рис. 4 и 5'!D189 -> 1 | E188: ='Рис. 4 и 5'!U189 -> 0
A189: ='Рис. 4 и 5'!A190 -> 0 | B189: ='Рис. 4 и 5'!B190 -> 0 | C189: ='Рис. 4 и 5'!C190 -> 0 | D189: ='Рис. 4 и 5'!D190 -> 0 | E189: ='Рис. 4 и 5'!U190 -> 0
A190: ='Рис. 4 и 5'!A191 -> 0 | B190: ='Рис. 4 и 5'!B191 -> 1 | C190: ='Рис. 4 и 5'!C191 -> 0 | D190: ='Рис. 4 и 5'!D191 -> 1 | E190: ='Рис. 4 и 5'!U191 -> 0
A191: ='Рис. 4 и 5'!A192 -> 0 | B191: ='Рис. 4 и 5'!B192 -> 0 | C191: ='Рис. 4 и 5'!C192 -> 0 | D191: ='Рис. 4 и 5'!D192 -> 0 | E191: ='Рис. 4 и 5'!U192 -> 1
A192: ='Рис. 4 и 5'!A193 -> 0 | B192: ='Рис. 4 и 5'!B193 -> 0 | C192: ='Рис. 4 и 5'!C193 -> 0 | D192: ='Рис. 4 и 5'!D193 -> 1 | E192: ='Рис. 4 и 5'!U193 -> 0
A193: ='Рис. 4 и 5'!A194 -> 1 | B193: ='Рис. 4 и 5'!B194 -> 0 | C193: ='Рис. 4 и 5'!C194 -> 0 | D193: ='Рис. 4 и 5'!D194 -> 1 | E193: ='Рис. 4 и 5'!U194 -> 1
A194: ='Рис. 4 и 5'!A195 -> 1 | B194: ='Рис. 4 и 5'!B195 -> 0 | C194: ='Рис. 4 и 5'!C195 -> 0 | D194: ='Рис. 4 и 5'!D195 -> 0 | E194: ='Рис. 4 и 5'!U195 -> 1
A195: ='Рис. 4 и 5'!A196 -> 0 | B195: ='Рис. 4 и 5'!B196 -> 0 | C195: ='Рис. 4 и 5'!C196 -> 1 | D195: ='Рис. 4 и 5'!D196 -> 0 | E195: ='Рис. 4 и 5'!U196 -> 1
A196: ='Рис. 4 и 5'!A197 -> 0 | B196: ='Рис. 4 и 5'!B197 -> 0 | C196: ='Рис. 4 и 5'!C197 -> 0 | D196: ='Рис. 4 и 5'!D197 -> 0 | E196: ='Рис. 4 и 5'!U197 -> 0
A197: ='Рис. 4 и 5'!A198 -> 0 | B197: ='Рис. 4 и 5'!B198 -> 1 | C197: ='Рис. 4 и 5'!C198 -> 0 | D197: ='Рис. 4 и 5'!D198 -> 0 | E197: ='Рис. 4 и 5'!U198 -> 1
A198: ='Рис. 4 и 5'!A199 -> 0 | B198: ='Рис. 4 и 5'!B199 -> 0 | C198: ='Рис. 4 и 5'!C199 -> 0 | D198: ='Рис. 4 и 5'!D199 -> 0 | E198: ='Рис. 4 и 5'!U199 -> 0
A199: ='Рис. 4 и 5'!A200 -> 0 | B199: ='Рис. 4 и 5'!B200 -> 0 | C199: ='Рис. 4 и 5'!C200 -> 0 | D199: ='Рис. 4 и 5'!D200 -> 1 | E199: ='Рис. 4 и 5'!U200 -> 0
A200: ='Рис. 4 и 5'!A201 -> 0 | B200: ='Рис. 4 и 5'!B201 -> 0 | C200: ='Рис. 4 и 5'!C201 -> 0 | D200: ='Рис. 4 и 5'!D201 -> 1 | E200: ='Рис. 4 и 5'!U201 -> 0
... 467 more rows

Sheet Рис. 13 и 14
V1: Winner: | W1: 6 | X1: 8 | Y1: 7 | Z1: 16 | AA1: 8 | AB1: 8 | AC1: 6 | AD1: 5 | AE1: 5 | AF1: 5 | AG1: 5 | AH1: 5 | AI1: 16 | AJ1: 7 | AK1: 18 | AL1: 7 | AM1: 7 | AN1: 18 | AO1: 15 | AP1: 7 | AQ1: 5 | AR1: 7 | AS1: 5 | AT1: 18 | AU1: 8 | AV1: 7 | AW1: 4 | AX1: 18 | AY1: 17 | AZ1: 7 | BA1: 18 | BB1: 7 | BC1: 5 | BD1: 6 | BE1: 18 | BF1: 7 | BG1: 6 | BH1: 8 | BI1: 18 | BJ1: 8 | BK1: 7 | BL1: 5 | BM1: 17 | BN1: 7 | BO1: 8 | BP1: 18 | BQ1: 7 | BR1: 17 | BS1: 8 | BT1: 7 | BU1: 7 | BV1: 18 | BW1: 8 | BX1: 13 | BY1: 7 | BZ1: 7 | CA1: 16 | CB1: 18 | CC1: 0 | CD1: 7 | CE1: 13 | CF1: 5 | CG1: 5 | CH1: 18 | CI1: 18 | CJ1: 13 | CK1: 18 | CL1: 16 | CM1: 18 | CN1: 7 | CO1: 14 | CP1: 17 | CQ1: 7 | CR1: 7 | CS1: 15 | CT1: 18 | CU1: 7 | CV1: 7 | CW1: 5 | CX1: 8 | CY1: 16 | CZ1: 7 | DA1: 17 | DB1: 8 | DC1: 7 | DD1: 15 | DE1: 7 | DF1: 8 | DG1: 5 | DH1: 14 | DI1: 16 | DJ1: 16 | DK1: 12 | DL1: 4 | DM1: 7 | DN1: 17 | DO1: 7 | DP1: 16 | DQ1: 5 | DR1: 7 | DS1: 18 | DT1: 18 | DU1: 6 | DV1: 17 | DW1: 5 | DX1: 5 | DY1: 18 | DZ1: 7 | EA1: 5 | EB1: 7 | EC1: 4 | ED1: 8 | EE1: 15 | EF1: 17 | EG1: 4 | EH1: 8 | EI1: 5 | EJ1: 5 | EK1: 18 | EL1: 18 | EM1: 5 | EN1: 18 | EO1: 8 | EP1: 16 | EQ1: 6 | ER1: 6 | ES1: 7 | ET1: 7 | EU1: 7 | EV1: 6 | EW1: 8 | EX1: 7 | EY1: 6 | EZ1: 7 | FA1: 5 | FB1: 17 | FC1: 18 | FD1: 7 | FE1: 5 | FF1: 5 | FG1: 6 | FH1: 16 | FI1: 18 | FJ1: 16 | FK1: 18 | FL1: 7 | FM1: 18 | FN1: 17 | FO1: 5 | FP1: 16 | FQ1: 8 | FR1: 4 | FS1: 7 | FT1: 8 | FU1: 18 | FV1: 18 | FW1: 5 | FX1: 7 | FY1: 4 | FZ1: 5 | GA1: 5 | GB1: 5 | GC1: 11 | GD1: 8 | GE1: 5 | GF1: 7 | GG1: 8 | GH1: 7 | GI1: 7 | GJ1: 8 | GK1: 6 | GL1: 5 | GM1: 4 | GN1: 8 | GO1: 5 | GP1: 5 | GQ1: 8 | GR1: 4 | GS1: 4 | GT1: 16 | GU1: 8 | GV1: 8 | GW1: 13 | GX1: 8 | GY1: 18 | GZ1: 6 | HA1: 7 | HB1: 13 | HC1: 8 | HD1: 7 | HE1: 14 | HF1: 17 | HG1: 7 | HH1: 17 | HI1: 5 | HJ1: 16 | HK1: 8 | HL1: 8 | HM1: 6 | HN1: 7
V2: Pregnant is: | W2: 0 | X2: 1 | Y2: 1 | Z2: 1 | AA2: 1 | AB2: 1 | AC2: 0 | AD2: 0 | AE2: 0 | AF2: 0 | AG2: 0 | AH2: 0 | AI2: 1 | AJ2: 1 | AK2: 1 | AL2: 1 | AM2: 1 | AN2: 1 | AO2: 1 | AP2: 1 | AQ2: 0 | AR2: 1 | AS2: 0 | AT2: 1 | AU2: 1 | AV2: 1 | AW2: 1 | AX2: 1 | AY2: 0 | AZ2: 1 | BA2: 1 | BB2: 1 | BC2: 0 | BD2: 0 | BE2: 1 | BF2: 1 | BG2: 0 | BH2: 1 | BI2: 1 | BJ2: 1 | BK2: 1 | BL2: 0 | BM2: 0 | BN2: 1 | BO2: 1 | BP2: 1 | BQ2: 1 | BR2: 0 | BS2: 1 | BT2: 1 | BU2: 1 | BV2: 1 | BW2: 1 | BX2: 1 | BY2: 1 | BZ2: 1 | CA2: 1 | CB2: 1 | CC2: 0 | CD2: 1 | CE2: 1 | CF2: 0 | CG2: 0 | CH2: 1 | CI2: 1 | CJ2: 1 | CK2: 1 | CL2: 1 | CM2: 1 | CN2: 1 | CO2: 0 | CP2: 0 | CQ2: 1 | CR2: 1 | CS2: 1 | CT2: 1 | CU2: 1 | CV2: 1 | CW2: 0 | CX2: 1 | CY2: 1 | CZ2: 1 | DA2: 0 | DB2: 1 | DC2: 1 | DD2: 1 | DE2: 1 | DF2: 1 | DG2: 0 | DH2: 0 | DI2: 1 | DJ2: 1 | DK2: 1 | DL2: 1 | DM2: 1 | DN2: 0 | DO2: 1 | DP2: 1 | DQ2: 0 | DR2: 1 | DS2: 1 | DT2: 1 | DU2: 0 | DV2: 0 | DW2: 0 | DX2: 0 | DY2: 1 | DZ2: 1 | EA2: 0 | EB2: 1 | EC2: 1 | ED2: 1 | EE2: 1 | EF2: 0 | EG2: 1 | EH2: 1 | EI2: 0 | EJ2: 0 | EK2: 1 | EL2: 1 | EM2: 0 | EN2: 1 | EO2: 1 | EP2: 1 | EQ2: 0 | ER2: 0 | ES2: 1 | ET2: 1 | EU2: 1 | EV2: 0 | EW2: 1 | EX2: 1 | EY2: 0 | EZ2: 1 | FA2: 0 | FB2: 0 | FC2: 1 | FD2: 1 | FE2: 0 | FF2: 0 | FG2: 0 | FH2: 1 | FI2: 1 | FJ2: 1 | FK2: 1 | FL2: 1 | FM2: 1 | FN2: 0 | FO2: 0 | FP2: 1 | FQ2: 1 | FR2: 1 | FS2: 1 | FT2: 1 | FU2: 1 | FV2: 1 | FW2: 0 | FX2: 1 | FY2: 1 | FZ2: 0 | GA2: 0 | GB2: 0 | GC2: 1 | GD2: 1 | GE2: 0 | GF2: 1 | GG2: 1 | GH2: 1 | GI2: 1 | GJ2: 1 | GK2: 0 | GL2: 0 | GM2: 1 | GN2: 1 | GO2: 0 | GP2: 0 | GQ2: 1 | GR2: 1 | GS2: 1 | GT2: 1 | GU2: 1 | GV2: 1 | GW2: 1 | GX2: 1 | GY2: 1 | GZ2: 0 | HA2: 1 | HB2: 1 | HC2: 1 | HD2: 1 | HE2: 0 | HF2: 0 | HG2: 1 | HH2: 0 | HI2: 0 | HJ2: 1 | HK2: 1 | HL2: 1 | HM2: 0 | HN2: 1
A3: Male | B3: Female | C3: Home | D3: Apt | E3: Pregnancy Test | F3: Birth Control | G3: Feminine Hygiene | H3: Folic Acid | I3: Prenatal Vitamins | J3: Prenatal Yoga | K3: Body Pillow | L3: Ginger Ale | M3: Sea Bands | N3: Stopped buying ciggies | O3: Cigarettes | P3: Smoking Cessation | Q3: Stopped buying wine | R3: Wine | S3: Maternity Clothes | U3: PREGNANT | V3: Probability
A4: 0 | B4: 0 | C4: 0 | D4: 1 | E4: 0 | F4: 0 | G4: 0 | H4: 0 | I4: 0 | J4: 0 | K4: 0 | L4: 0 | M4: 1 | N4: 0 | O4: 0 | P4: 0 | Q4: 1 | R4: 1 | S4: 0 | U4: 1 | V4: =AVERAGE(W4:HN4) -> 0.325 | W4: =IF(OFFSET($A4,0,W$1)=W$2,1,0) -> 1 | X4: =IF(OFFSET($A4,0,X$1)=X$2,1,0) -> 0 | Y4: 0 | Z4: 1 | AA4: 0 | AB4: 0 | AC4: 1 | AD4: 1 | AE4: 1 | AF4: 1 | AG4: 1 | AH4: 1 | AI4: 1 | AJ4: 0 | AK4: 0 | AL4: 0 | AM4: 0 | AN4: 0 | AO4: 0 | AP4: 0 | AQ4: 1 | AR4: 0 | AS4: 1 | AT4: 0 | AU4: 0 | AV4: 0 | AW4: 0 | AX4: 0 | AY4: 0 | AZ4: 0 | BA4: 0 | BB4: 0 | BC4: 1 | BD4: 1 | BE4: 0 | BF4: 0 | BG4: 1 | BH4: 0 | BI4: 0 | BJ4: 0 | BK4: 0 | BL4: 1 | BM4: 0 | BN4: 0 | BO4: 0 | BP4: 0 | BQ4: 0 | BR4: 0 | BS4: 0 | BT4: 0 | BU4: 0 | BV4: 0 | BW4: 0 | BX4: 0 | BY4: 0 | BZ4: 0 | CA4: 1 | CB4: 0 | CC4: 1 | CD4: 0 | CE4: 0 | CF4: 1 | CG4: 1 | CH4: 0 | CI4: 0 | CJ4: =IF(OFFSET($A4,0,CJ$1)=CJ$2,1,0) -> 0 | CK4: 0 | CL4: 1 | CM4: 0 | CN4: 0 | CO4: 1 | CP4: 0 | CQ4: 0 | CR4: 0 | CS4: 0 | CT4: 0 | CU4: 0 | CV4: 0 | CW4: 1 | CX4: 0 | CY4: 1 | CZ4: 0 | DA4: 0 | DB4: 0 | DC4: 0 | DD4: 0 | DE4: 0 | DF4: 0 | DG4: 1 | DH4: 1 | DI4: 1 | DJ4: 1 | DK4: 1 | DL4: 0 | DM4: 0 | DN4: 0 | DO4: 0 | DP4: 1 | DQ4: 1 | DR4: 0 | DS4: 0 | DT4: 0 | DU4: 1 | DV4: 0 | DW4: 1 | DX4: 1 | DY4: 0 | DZ4: 0 | EA4: 1 | EB4: 0 | EC4: 0 | ED4: 0 | EE4: 0 | EF4: 0 | EG4: 0 | EH4: 0 | EI4: 1 | EJ4: 1 | EK4: 0 | EL4: 0 | EM4: 1 | EN4: 0 | EO4: 0 | EP4: 1 | EQ4: 1 | ER4: 1 | ES4: 0 | ET4: 0 | EU4: 0 | EV4: =IF(OFFSET($A4,0,EV$1)=EV$2,1,0) -> 1 | EW4: 0 | EX4: 0 | EY4: 1 | EZ4: 0 | FA4: 1 | FB4: 0 | FC4: 0 | FD4: 0 | FE4: 1 | FF4: 1 | FG4: 1 | FH4: 1 | FI4: 0 | FJ4: 1 | FK4: 0 | FL4: 0 | FM4: 0 | FN4: 0 | FO4: 1 | FP4: 1 | FQ4: 0 | FR4: 0 | FS4: 0 | FT4: 0 | FU4: 0 | FV4: 0 | FW4: 1 | FX4: 0 | FY4: 0 | FZ4: 1 | GA4: 1 | GB4: 1 | GC4: 0 | GD4: 0 | GE4: 1 | GF4: 0 | GG4: 0 | GH4: 0 | GI4: 0 | GJ4: 0 | GK4: 1 | GL4: 1 | GM4: 0 | GN4: 0 | GO4: 1 | GP4: 1 | GQ4: 0 | GR4: 0 | GS4: 0 | GT4: 1 | GU4: 0 | GV4: 0 | GW4: 0 | GX4: 0 | GY4: 0 | GZ4: 1 | HA4: 0 | HB4: 0 | HC4: 0 | HD4: 0 | HE4: 1 | HF4: 0 | HG4: 0 | HH4: =IF(OFFSET($A4,0,HH$1)=HH$2,1,0) -> 0 | HI4: 1 | HJ4: 1 | HK4: 0 | HL4: 0 | HM4: 1 | HN4: 0
A5: 0 | B5: 0 | C5: 1 | D5: 0 | E5: 0 | F5: 0 | G5: 0 | H5: 0 | I5: 0 | J5: 0 | K5: 0 | L5: 0 | M5: 0 | N5: 0 | O5: 0 | P5: 0 | Q5: 0 | R5: 0 | S5: 0 | U5: 1 | V5: =AVERAGE(W5:HN5) -> 0.31 | W5: =IF(OFFSET($A5,0,W$1)=W$2,1,0) -> 1 | X5: 0 | Y5: 0 | Z5: 0 | AA5: 0 | AB5: 0 | AC5: 1 | AD5: 1 | AE5: 1 | AF5: 1 | AG5: 1 | AH5: 1 | AI5: 0 | AJ5: 0 | AK5: 0 | AL5: 0 | AM5: 0 | AN5: 0 | AO5: 0 | AP5: 0 | AQ5: 1 | AR5: 0 | AS5: 1 | AT5: 0 | AU5: 0 | AV5: 0 | AW5: 0 | AX5: 0 | AY5: 1 | AZ5: 0 | BA5: 0 | BB5: 0 | BC5: 1 | BD5: 1 | BE5: 0 | BF5: 0 | BG5: 1 | BH5: 0 | BI5: 0 | BJ5: 0 | BK5: 0 | BL5: 1 | BM5: 1 | BN5: 0 | BO5: 0 | BP5: 0 | BQ5: 0 | BR5: 1 | BS5: 0 | BT5: 0 | BU5: 0 | BV5: 0 | BW5: 0 | BX5: 0 | BY5: 0 | BZ5: 0 | CA5: 0 | CB5: 0 | CC5: 1 | CD5: 0 | CE5: 0 | CF5: 1 | CG5: 1 | CH5: 0 | CI5: 0 | CJ5: 0 | CK5: 0 | CL5: 0 | CM5: 0 | CN5: 0 | CO5: 1 | CP5: 1 | CQ5: 0 | CR5: 0 | CS5: 0 | CT5: 0 | CU5: 0 | CV5: 0 | CW5: 1 | CX5: 0 | CY5: 0 | CZ5: 0 | DA5: 1 | DB5: 0 | DC5: 0 | DD5: 0 | DE5: 0 | DF5: 0 | DG5: 1 | DH5: 1 | DI5: 0 | DJ5: 0 | DK5: 0 | DL5: 0 | DM5: 0 | DN5: 1 | DO5: 0 | DP5: 0 | DQ5: 1 | DR5: 0 | DS5: 0 | DT5: 0 | DU5: 1 | DV5: 1 | DW5: 1 | DX5: 1 | DY5: 0 | DZ5: 0 | EA5: 1 | EB5: 0 | EC5: 0 | ED5: 0 | EE5: 0 | EF5: 1 | EG5: 0 | EH5: 0 | EI5: 1 | EJ5: 1 | EK5: 0 | EL5: 0 | EM5: 1 | EN5: 0 | EO5: 0 | EP5: 0 | EQ5: 1 | ER5: 1 | ES5: 0 | ET5: 0 | EU5: 0 | EV5: 1 | EW5: 0 | EX5: 0 | EY5: 1 | EZ5: 0 | FA5: 1 | FB5: 1 | FC5: 0 | FD5: 0 | FE5: 1 | FF5: 1 | FG5: 1 | FH5: 0 | FI5: 0 | FJ5: 0 | FK5: 0 | FL5: 0 | FM5: 0 | FN5: 1 | FO5: 1 | FP5: 0 | FQ5: 0 | FR5: 0 | FS5: 0 | FT5: 0 | FU5: 0 | FV5: 0 | FW5: 1 | FX5: 0 | FY5: 0 | FZ5: 1 | GA5: 1 | GB5: 1 | GC5: 0 | GD5: 0 | GE5: 1 | GF5: 0 | GG5: 0 | GH5: 0 | GI5: 0 | GJ5: 0 | GK5: 1 | GL5: 1 | GM5: 0 | GN5: 0 | GO5: 1 | GP5: 1 | GQ5: 0 | GR5: 0 | GS5: 0 | GT5: 0 | GU5: 0 | GV5: 0 | GW5: 0 | GX5: 0 | GY5: 0 | GZ5: 1 | HA5: 0 | HB5: 0 | HC5: 0 | HD5: 0 | HE5: 1 | HF5: 1 | HG5: 0 | HH5: 1 | HI5: 1 | HJ5: 0 | HK5: 0 | HL5: 0 | HM5: 1 | HN5: 0
A6: 1 | B6: 0 | C6: 1 | D6: 0 | E6: 0 | F6: 0 | G6: 0 | H6: 0 | I6: 0 | J6: 0 | K6: 0 | L6: 0 | M6: 0 | N6: 1 | O6: 0 | P6: 0 | Q6: 0 | R6: 0 | S6: 0 | U6: 1 | V6: 0.33 | W6: 1 | X6: 0 | Y6: 0 | Z6: 0 | AA6: 0 | AB6: 0 | AC6: 1 | AD6: 1 | AE6: 1 | AF6: 1 | AG6: 1 | AH6: 1 | AI6: 0 | AJ6: 0 | AK6: 0 | AL6: 0 | AM6: 0 | AN6: 0 | AO6: 0 | AP6: 0 | AQ6: 1 | AR6: 0 | AS6: 1 | AT6: 0 | AU6: 0 | AV6: 0 | AW6: 0 | AX6: 0 | AY6: 1 | AZ6: 0 | BA6: 0 | BB6: 0 | BC6: 1 | BD6: 1 | BE6: 0 | BF6: 0 | BG6: 1 | BH6: 0 | BI6: 0 | BJ6: 0 | BK6: 0 | BL6: 1 | BM6: 1 | BN6: 0 | BO6: 0 | BP6: 0 | BQ6: 0 | BR6: 1 | BS6: 0 | BT6: 0 | BU6: 0 | BV6: 0 | BW6: 0 | BX6: 1 | BY6: 0 | BZ6: 0 | CA6: 0 | CB6: 0 | CC6: 0 | CD6: 0 | CE6: 1 | CF6: 1 | CG6: 1 | CH6: 0 | CI6: 0 | CJ6: 1 | CK6: 0 | CL6: 0 | CM6: 0 | CN6: 0 | CO6: 1 | CP6: 1 | CQ6: 0 | CR6: 0 | CS6: 0 | CT6: 0 | CU6: 0 | CV6: 0 | CW6: 1 | CX6: 0 | CY6: 0 | CZ6: 0 | DA6: 1 | DB6: 0 | DC6: 0 | DD6: 0 | DE6: 0 | DF6: 0 | DG6: 1 | DH6: 1 | DI6: 0 | DJ6: 0 | DK6: 0 | DL6: 0 | DM6: 0 | DN6: 1 | DO6: 0 | DP6: 0 | DQ6: 1 | DR6: 0 | DS6: 0 | DT6: 0 | DU6: 1 | DV6: 1 | DW6: 1 | DX6: 1 | DY6: 0 | DZ6: 0 | EA6: 1 | EB6: 0 | EC6: 0 | ED6: 0 | EE6: 0 | EF6: 1 | EG6: 0 | EH6: 0 | EI6: 1 | EJ6: 1 | EK6: 0 | EL6: 0 | EM6: 1 | EN6: 0 | EO6: 0 | EP6: 0 | EQ6: 1 | ER6: 1 | ES6: 0 | ET6: 0 | EU6: 0 | EV6: 1 | EW6: 0 | EX6: 0 | EY6: 1 | EZ6: 0 | FA6: 1 | FB6: 1 | FC6: 0 | FD6: 0 | FE6: 1 | FF6: 1 | FG6: 1 | FH6: 0 | FI6: 0 | FJ6: 0 | FK6: 0 | FL6: 0 | FM6: 0 | FN6: 1 | FO6: 1 | FP6: 0 | FQ6: 0 | FR6: 0 | FS6: 0 | FT6: 0 | FU6: 0 | FV6: 0 | FW6: 1 | FX6: 0 | FY6: 0 | FZ6: 1 | GA6: 1 | GB6: 1 | GC6: 0 | GD6: 0 | GE6: 1 | GF6: 0 | GG6: 0 | GH6: 0 | GI6: 0 | GJ6: 0 | GK6: 1 | GL6: 1 | GM6: 0 | GN6: 0 | GO6: 1 | GP6: 1 | GQ6: 0 | GR6: 0 | GS6: 0 | GT6: 0 | GU6: 0 | GV6: 0 | GW6: 1 | GX6: 0 | GY6: 0 | GZ6: 1 | HA6: 0 | HB6: 1 | HC6: 0 | HD6: 0 | HE6: 1 | HF6: 1 | HG6: 0 | HH6: 1 | HI6: 1 | HJ6: 0 | HK6: 0 | HL6: 0 | HM6: 1 | HN6: 0
A7: 1 | B7: 0 | C7: 1 | D7: 0 | E7: 0 | F7: 0 | G7: 0 | H7: 0 | I7: 0 | J7: 0 | K7: 0 | L7: 0 | M7: 0 | N7: 0 | O7: 0 | P7: 0 | Q7: 1 | R7: 0 | S7: 0 | U7: 1 | V7: 0.375 | W7: 1 | X7: 0 | Y7: 0 | Z7: 1 | AA7: 0 | AB7: 0 | AC7: 1 | AD7: 1 | AE7: 1 | AF7: 1 | AG7: 1 | AH7: 1 | AI7: 1 | AJ7: 0 | AK7: 0 | AL7: 0 | AM7: 0 | AN7: 0 | AO7: 0 | AP7: 0 | AQ7: 1 | AR7: 0 | AS7: 1 | AT7: 0 | AU7: 0 | AV7: 0 | AW7: 0 | AX7: 0 | AY7: 1 | AZ7: 0 | BA7: 0 | BB7: 0 | BC7: 1 | BD7: 1 | BE7: 0 | BF7: 0 | BG7: 1 | BH7: 0 | BI7: 0 | BJ7: 0 | BK7: 0 | BL7: 1 | BM7: 1 | BN7: 0 | BO7: 0 | BP7: 0 | BQ7: 0 | BR7: 1 | BS7: 0 | BT7: 0 | BU7: 0 | BV7: 0 | BW7: 0 | BX7: 0 | BY7: 0 | BZ7: 0 | CA7: 1 | CB7: 0 | CC7: 0 | CD7: 0 | CE7: 0 | CF7: 1 | CG7: 1 | CH7: 0 | CI7: =IF(OFFSET($A7,0,CI$1)=CI$2,1,0) -> 0 | CJ7: 0 | CK7: 0 | CL7: 1 | CM7: 0 | CN7: 0 | CO7: 1 | CP7: 1 | CQ7: 0 | CR7: 0 | CS7: 0 | CT7: 0 | CU7: 0 | CV7: 0 | CW7: 1 | CX7: 0 | CY7: 1 | CZ7: 0 | DA7: 1 | DB7: 0 | DC7: 0 | DD7: 0 | DE7: 0 | DF7: 0 | DG7: 1 | DH7: 1 | DI7: 1 | DJ7: 1 | DK7: 0 | DL7: 0 | DM7: 0 | DN7: 1 | DO7: 0 | DP7: 1 | DQ7: 1 | DR7: 0 | DS7: 0 | DT7: 0 | DU7: 1 | DV7: 1 | DW7: 1 | DX7: 1 | DY7: 0 | DZ7: 0 | EA7: 1 | EB7: 0 | EC7: 0 | ED7: 0 | EE7: 0 | EF7: 1 | EG7: 0 | EH7: 0 | EI7: 1 | EJ7: 1 | EK7: 0 | EL7: 0 | EM7: 1 | EN7: 0 | EO7: 0 | EP7: 1 | EQ7: 1 | ER7: 1 | ES7: 0 | ET7: 0 | EU7: =IF(OFFSET($A7,0,EU$1)=EU$2,1,0) -> 0 | EV7: 1 | EW7: 0 | EX7: 0 | EY7: 1 | EZ7: 0 | FA7: 1 | FB7: 1 | FC7: 0 | FD7: 0 | FE7: 1 | FF7: 1 | FG7: 1 | FH7: 1 | FI7: 0 | FJ7: 1 | FK7: 0 | FL7: 0 | FM7: 0 | FN7: 1 | FO7: 1 | FP7: 1 | FQ7: 0 | FR7: 0 | FS7: 0 | FT7: 0 | FU7: 0 | FV7: 0 | FW7: 1 | FX7: 0 | FY7: 0 | FZ7: 1 | GA7: 1 | GB7: 1 | GC7: 0 | GD7: 0 | GE7: 1 | GF7: 0 | GG7: 0 | GH7: 0 | GI7: 0 | GJ7: 0 | GK7: 1 | GL7: 1 | GM7: 0 | GN7: 0 | GO7: 1 | GP7: 1 | GQ7: 0 | GR7: 0 | GS7: 0 | GT7: 1 | GU7: 0 | GV7: 0 | GW7: 0 | GX7: 0 | GY7: 0 | GZ7: 1 | HA7: 0 | HB7: 0 | HC7: 0 | HD7: 0 | HE7: 1 | HF7: 1 | HG7: =IF(OFFSET($A7,0,HG$1)=HG$2,1,0) -> 0 | HH7: 1 | HI7: 1 | HJ7: 1 | HK7: 0 | HL7: 0 | HM7: 1 | HN7: 0
A8: 1 | B8: 0 | C8: 0 | D8: 1 | E8: 0 | F8: 0 | G8: 0 | H8: 0 | I8: 0 | J8: 0 | K8: 0 | L8: 0 | M8: 0 | N8: 0 | O8: 0 | P8: 0 | Q8: 0 | R8: 0 | S8: 0 | U8: 1 | V8: 0.305 | W8: 1 | X8: 0 | Y8: 0 | Z8: 0 | AA8: 0 | AB8: 0 | AC8: 1 | AD8: 1 | AE8: 1 | AF8: 1 | AG8: 1 | AH8: 1 | AI8: 0 | AJ8: 0 | AK8: 0 | AL8: 0 | AM8: 0 | AN8: 0 | AO8: 0 | AP8: 0 | AQ8: 1 | AR8: 0 | AS8: 1 | AT8: 0 | AU8: 0 | AV8: 0 | AW8: 0 | AX8: 0 | AY8: 1 | AZ8: 0 | BA8: 0 | BB8: 0 | BC8: 1 | BD8: 1 | BE8: 0 | BF8: 0 | BG8: 1 | BH8: 0 | BI8: 0 | BJ8: 0 | BK8: 0 | BL8: 1 | BM8: 1 | BN8: 0 | BO8: 0 | BP8: 0 | BQ8: 0 | BR8: 1 | BS8: 0 | BT8: 0 | BU8: 0 | BV8: 0 | BW8: 0 | BX8: 0 | BY8: 0 | BZ8: 0 | CA8: 0 | CB8: 0 | CC8: 0 | CD8: 0 | CE8: 0 | CF8: 1 | CG8: 1 | CH8: 0 | CI8: 0 | CJ8: 0 | CK8: 0 | CL8: 0 | CM8: 0 | CN8: 0 | CO8: 1 | CP8: 1 | CQ8: 0 | CR8: 0 | CS8: 0 | CT8: 0 | CU8: 0 | CV8: 0 | CW8: 1 | CX8: 0 | CY8: 0 | CZ8: 0 | DA8: 1 | DB8: 0 | DC8: 0 | DD8: 0 | DE8: 0 | DF8: 0 | DG8: 1 | DH8: 1 | DI8: 0 | DJ8: 0 | DK8: 0 | DL8: 0 | DM8: 0 | DN8: 1 | DO8: 0 | DP8: 0 | DQ8: 1 | DR8: 0 | DS8: 0 | DT8: 0 | DU8: 1 | DV8: 1 | DW8: 1 | DX8: 1 | DY8: 0 | DZ8: 0 | EA8: 1 | EB8: 0 | EC8: 0 | ED8: 0 | EE8: 0 | EF8: 1 | EG8: 0 | EH8: 0 | EI8: 1 | EJ8: 1 | EK8: 0 | EL8: 0 | EM8: 1 | EN8: 0 | EO8: 0 | EP8: 0 | EQ8: 1 | ER8: 1 | ES8: 0 | ET8: 0 | EU8: 0 | EV8: 1 | EW8: 0 | EX8: 0 | EY8: 1 | EZ8: 0 | FA8: 1 | FB8: 1 | FC8: 0 | FD8: 0 | FE8: 1 | FF8: 1 | FG8: 1 | FH8: 0 | FI8: 0 | FJ8: 0 | FK8: 0 | FL8: 0 | FM8: 0 | FN8: 1 | FO8: 1 | FP8: 0 | FQ8: 0 | FR8: 0 | FS8: 0 | FT8: 0 | FU8: 0 | FV8: 0 | FW8: 1 | FX8: 0 | FY8: 0 | FZ8: 1 | GA8: 1 | GB8: 1 | GC8: 0 | GD8: 0 | GE8: 1 | GF8: 0 | GG8: 0 | GH8: 0 | GI8: 0 | GJ8: 0 | GK8: 1 | GL8: 1 | GM8: 0 | GN8: 0 | GO8: 1 | GP8: 1 | GQ8: 0 | GR8: 0 | GS8: 0 | GT8: 0 | GU8: 0 | GV8: 0 | GW8: 0 | GX8: 0 | GY8: 0 | GZ8: 1 | HA8: 0 | HB8: 0 | HC8: 0 | HD8: 0 | HE8: 1 | HF8: 1 | HG8: 0 | HH8: 1 | HI8: 1 | HJ8: 0 | HK8: 0 | HL8: 0 | HM8: 1 | HN8: 0
A9: 1 | B9: 0 | C9: 1 | D9: 0 | E9: 0 | F9: 0 | G9: 0 | H9: 1 | I9: 0 | J9: 0 | K9: 0 | L9: 1 | M9: 0 | N9: 0 | O9: 0 | P9: 0 | Q9: 1 | R9: 0 | S9: 0 | U9: 1 | V9: 0.615 | W9: 1 | X9: 0 | Y9: 1 | Z9: 1 | AA9: 0 | AB9: 0 | AC9: 1 | AD9: 1 | AE9: 1 | AF9: 1 | AG9: 1 | AH9: 1 | AI9: 1 | AJ9: 1 | AK9: 0 | AL9: 1 | AM9: 1 | AN9: 0 | AO9: 0 | AP9: 1 | AQ9: 1 | AR9: 1 | AS9: 1 | AT9: 0 | AU9: 0 | AV9: 1 | AW9: 0 | AX9: 0 | AY9: 1 | AZ9: 1 | BA9: 0 | BB9: 1 | BC9: 1 | BD9: 1 | BE9: 0 | BF9: 1 | BG9: 1 | BH9: 0 | BI9: 0 | BJ9: 0 | BK9: 1 | BL9: 1 | BM9: 1 | BN9: 1 | BO9: 0 | BP9: 0 | BQ9: 1 | BR9: 1 | BS9: 0 | BT9: 1 | BU9: 1 | BV9: 0 | BW9: 0 | BX9: 0 | BY9: 1 | BZ9: 1 | CA9: 1 | CB9: 0 | CC9: 0 | CD9: 1 | CE9: 0 | CF9: 1 | CG9: 1 | CH9: 0 | CI9: 0 | CJ9: 0 | CK9: 0 | CL9: 1 | CM9: 0 | CN9: 1 | CO9: 1 | CP9: 1 | CQ9: 1 | CR9: 1 | CS9: 0 | CT9: 0 | CU9: 1 | CV9: 1 | CW9: 1 | CX9: 0 | CY9: 1 | CZ9: 1 | DA9: 1 | DB9: 0 | DC9: 1 | DD9: 0 | DE9: 1 | DF9: 0 | DG9: 1 | DH9: 1 | DI9: 1 | DJ9: 1 | DK9: 0 | DL9: 0 | DM9: 1 | DN9: 1 | DO9: 1 | DP9: 1 | DQ9: 1 | DR9: 1 | DS9: 0 | DT9: 0 | DU9: 1 | DV9: 1 | DW9: 1 | DX9: 1 | DY9: 0 | DZ9: 1 | EA9: 1 | EB9: 1 | EC9: 0 | ED9: 0 | EE9: 0 | EF9: 1 | EG9: 0 | EH9: 0 | EI9: 1 | EJ9: 1 | EK9: 0 | EL9: 0 | EM9: 1 | EN9: 0 | EO9: 0 | EP9: 1 | EQ9: 1 | ER9: 1 | ES9: 1 | ET9: 1 | EU9: 1 | EV9: 1 | EW9: 0 | EX9: 1 | EY9: 1 | EZ9: 1 | FA9: 1 | FB9: 1 | FC9: 0 | FD9: 1 | FE9: 1 | FF9: 1 | FG9: 1 | FH9: 1 | FI9: 0 | FJ9: 1 | FK9: 0 | FL9: 1 | FM9: 0 | FN9: 1 | FO9: 1 | FP9: 1 | FQ9: 0 | FR9: 0 | FS9: 1 | FT9: 0 | FU9: 0 | FV9: 0 | FW9: 1 | FX9: 1 | FY9: 0 | FZ9: 1 | GA9: 1 | GB9: 1 | GC9: 1 | GD9: 0 | GE9: 1 | GF9: 1 | GG9: 0 | GH9: 1 | GI9: 1 | GJ9: 0 | GK9: 1 | GL9: 1 | GM9: 0 | GN9: 0 | GO9: 1 | GP9: 1 | GQ9: 0 | GR9: 0 | GS9: 0 | GT9: 1 | GU9: 0 | GV9: 0 | GW9: 0 | GX9: 0 | GY9: 0 | GZ9: 1 | HA9: 1 | HB9: 0 | HC9: 0 | HD9: 1 | HE9: 1 | HF9: 1 | HG9: 1 | HH9: 1 | HI9: 1 | HJ9: 1 | HK9: 0 | HL9: 0 | HM9: 1 | HN9: 1
A10: 0 | B10: 1 | C10: 1 | D10: 0 | E10: 0 | F10: 0 | G10: 0 | H10: 0 | I10: 0 | J10: 0 | K10: 0 | L10: 0 | M10: 0 | N10: 0 | O10: 0 | P10: 0 | Q10: 1 | R10: 0 | S10: 1 | U10: 1 | V10: 0.52 | W10: 1 | X10: 0 | Y10: 0 | Z10: 1 | AA10: 0 | AB10: 0 | AC10: 1 | AD10: 1 | AE10: 1 | AF10: 1 | AG10: 1 | AH10: 1 | AI10: 1 | AJ10: 0 | AK10: 1 | AL10: 0 | AM10: 0 | AN10: 1 | AO10: 0 | AP10: 0 | AQ10: 1 | AR10: 0 | AS10: 1 | AT10: 1 | AU10: 0 | AV10: 0 | AW10: 0 | AX10: 1 | AY10: 1 | AZ10: 0 | BA10: 1 | BB10: 0 | BC10: 1 | BD10: 1 | BE10: 1 | BF10: 0 | BG10: 1 | BH10: 0 | BI10: 1 | BJ10: 0 | BK10: 0 | BL10: 1 | BM10: 1 | BN10: 0 | BO10: 0 | BP10: 1 | BQ10: 0 | BR10: 1 | BS10: 0 | BT10: 0 | BU10: 0 | BV10: 1 | BW10: 0 | BX10: 0 | BY10: 0 | BZ10: 0 | CA10: 1 | CB10: 1 | CC10: 1 | CD10: 0 | CE10: 0 | CF10: 1 | CG10: 1 | CH10: 1 | CI10: 1 | CJ10: 0 | CK10: 1 | CL10: 1 | CM10: 1 | CN10: 0 | CO10: 1 | CP10: 1 | CQ10: 0 | CR10: 0 | CS10: 0 | CT10: 1 | CU10: 0 | CV10: 0 | CW10: 1 | CX10: 0 | CY10: 1 | CZ10: 0 | DA10: 1 | DB10: 0 | DC10: 0 | DD10: 0 | DE10: 0 | DF10: 0 | DG10: 1 | DH10: 1 | DI10: 1 | DJ10: 1 | DK10: 0 | DL10: 0 | DM10: 0 | DN10: 1 | DO10: 0 | DP10: 1 | DQ10: 1 | DR10: 0 | DS10: 1 | DT10: 1 | DU10: 1 | DV10: 1 | DW10: 1 | DX10: 1 | DY10: 1 | DZ10: 0 | EA10: 1 | EB10: 0 | EC10: 0 | ED10: 0 | EE10: 0 | EF10: 1 | EG10: 0 | EH10: 0 | EI10: 1 | EJ10: 1 | EK10: 1 | EL10: 1 | EM10: 1 | EN10: 1 | EO10: 0 | EP10: 1 | EQ10: 1 | ER10: 1 | ES10: 0 | ET10: 0 | EU10: 0 | EV10: 1 | EW10: 0 | EX10: 0 | EY10: 1 | EZ10: 0 | FA10: 1 | FB10: 1 | FC10: 1 | FD10: 0 | FE10: 1 | FF10: 1 | FG10: 1 | FH10: 1 | FI10: 1 | FJ10: 1 | FK10: 1 | FL10: 0 | FM10: 1 | FN10: 1 | FO10: 1 | FP10: 1 | FQ10: 0 | FR10: 0 | FS10: 0 | FT10: 0 | FU10: 1 | FV10: 1 | FW10: 1 | FX10: 0 | FY10: 0 | FZ10: 1 | GA10: 1 | GB10: 1 | GC10: 0 | GD10: 0 | GE10: 1 | GF10: 0 | GG10: 0 | GH10: 0 | GI10: 0 | GJ10: 0 | GK10: 1 | GL10: 1 | GM10: 0 | GN10: 0 | GO10: 1 | GP10: 1 | GQ10: 0 | GR10: 0 | GS10: 0 | GT10: 1 | GU10: 0 | GV10: 0 | GW10: 0 | GX10: 0 | GY10: 1 | GZ10: 1 | HA10: 0 | HB10: 0 | HC10: 0 | HD10: 0 | HE10: 1 | HF10: 1 | HG10: 0 | HH10: 1 | HI10: 1 | HJ10: 1 | HK10: 0 | HL10: 0 | HM10: 1 | HN10: 0
A11: 0 | B11: 1 | C11: 0 | D11: 0 | E11: 0 | F11: 0 | G11: 0 | H11: 0 | I11: 0 | J11: 0 | K11: 0 | L11: 0 | M11: 0 | N11: 0 | O11: 0 | P11: 0 | Q11: 0 | R11: 0 | S11: 0 | U11: 1 | V11: 0.31 | W11: 1 | X11: 0 | Y11: 0 | Z11: 0 | AA11: 0 | AB11: 0 | AC11: 1 | AD11: 1 | AE11: 1 | AF11: 1 | AG11: 1 | AH11: 1 | AI11: 0 | AJ11: 0 | AK11: 0 | AL11: 0 | AM11: 0 | AN11: 0 | AO11: 0 | AP11: 0 | AQ11: 1 | AR11: 0 | AS11: 1 | AT11: 0 | AU11: 0 | AV11: 0 | AW11: 0 | AX11: 0 | AY11: 1 | AZ11: 0 | BA11: 0 | BB11: 0 | BC11: 1 | BD11: 1 | BE11: 0 | BF11: 0 | BG11: 1 | BH11: 0 | BI11: 0 | BJ11: 0 | BK11: 0 | BL11: 1 | BM11: 1 | BN11: 0 | BO11: 0 | BP11: 0 | BQ11: 0 | BR11: 1 | BS11: 0 | BT11: 0 | BU11: 0 | BV11: 0 | BW11: 0 | BX11: 0 | BY11: 0 | BZ11: 0 | CA11: 0 | CB11: 0 | CC11: 1 | CD11: 0 | CE11: 0 | CF11: 1 | CG11: 1 | CH11: =IF(OFFSET($A11,0,CH$1)=CH$2,1,0) -> 0 | CI11: 0 | CJ11: 0 | CK11: 0 | CL11: 0 | CM11: 0 | CN11: 0 | CO11: 1 | CP11: 1 | CQ11: 0 | CR11: 0 | CS11: 0 | CT11: 0 | CU11: 0 | CV11: 0 | CW11: 1 | CX11: 0 | CY11: 0 | CZ11: 0 | DA11: 1 | DB11: 0 | DC11: 0 | DD11: 0 | DE11: 0 | DF11: 0 | DG11: 1 | DH11: 1 | DI11: 0 | DJ11: 0 | DK11: 0 | DL11: 0 | DM11: 0 | DN11: 1 | DO11: 0 | DP11: 0 | DQ11: 1 | DR11: 0 | DS11: 0 | DT11: 0 | DU11: 1 | DV11: 1 | DW11: 1 | DX11: 1 | DY11: 0 | DZ11: 0 | EA11: 1 | EB11: 0 | EC11: 0 | ED11: 0 | EE11: 0 | EF11: 1 | EG11: 0 | EH11: 0 | EI11: 1 | EJ11: 1 | EK11: 0 | EL11: 0 | EM11: 1 | EN11: 0 | EO11: 0 | EP11: 0 | EQ11: 1 | ER11: 1 | ES11: 0 | ET11: =IF(OFFSET($A11,0,ET$1)=ET$2,1,0) -> 0 | EU11: 0 | EV11: 1 | EW11: 0 | EX11: 0 | EY11: 1 | EZ11: 0 | FA11: 1 | FB11: 1 | FC11: 0 | FD11: 0 | FE11: 1 | FF11: 1 | FG11: 1 | FH11: 0 | FI11: 0 | FJ11: 0 | FK11: 0 | FL11: 0 | FM11: 0 | FN11: 1 | FO11: 1 | FP11: 0 | FQ11: 0 | FR11: 0 | FS11: 0 | FT11: 0 | FU11: 0 | FV11: 0 | FW11: 1 | FX11: 0 | FY11: 0 | FZ11: 1 | GA11: 1 | GB11: 1 | GC11: 0 | GD11: 0 | GE11: 1 | GF11: 0 | GG11: 0 | GH11: 0 | GI11: 0 | GJ11: 0 | GK11: 1 | GL11: 1 | GM11: 0 | GN11: 0 | GO11: 1 | GP11: 1 | GQ11: 0 | GR11: 0 | GS11: 0 | GT11: 0 | GU11: 0 | GV11: 0 | GW11: 0 | GX11: 0 | GY11: 0 | GZ11: 1 | HA11: 0 | HB11: 0 | HC11: 0 | HD11: 0 | HE11: 1 | HF11: =IF(OFFSET($A11,0,HF$1)=HF$2,1,0) -> 1 | HG11: 0 | HH11: 1 | HI11: 1 | HJ11: 0 | HK11: 0 | HL11: 0 | HM11: 1 | HN11: 0
A12: 0 | B12: 1 | C12: 0 | D12: 0 | E12: 0 | F12: 0 | G12: 0 | H12: 0 | I12: 0 | J12: 0 | K12: 0 | L12: 0 | M12: 0 | N12: 0 | O12: 0 | P12: 0 | Q12: 0 | R12: 0 | S12: 0 | U12: 1 | V12: 0.31 | W12: 1 | X12: 0 | Y12: 0 | Z12: 0 | AA12: 0 | AB12: 0 | AC12: 1 | AD12: 1 | AE12: 1 | AF12: 1 | AG12: 1 | AH12: 1 | AI12: 0 | AJ12: 0 | AK12: 0 | AL12: 0 | AM12: =IF(OFFSET($A12,0,AM$1)=AM$2,1,0) -> 0 | AN12: 0 | AO12: 0 | AP12: 0 | AQ12: 1 | AR12: 0 | AS12: 1 | AT12: 0 | AU12: 0 | AV12: 0 | AW12: 0 | AX12: 0 | AY12: 1 | AZ12: 0 | BA12: 0 | BB12: 0 | BC12: =IF(OFFSET($A12,0,BC$1)=BC$2,1,0) -> 1 | BD12: 1 | BE12: 0 | BF12: 0 | BG12: 1 | BH12: 0 | BI12: 0 | BJ12: 0 | BK12: 0 | BL12: 1 | BM12: 1 | BN12: 0 | BO12: 0 | BP12: 0 | BQ12: 0 | BR12: 1 | BS12: =IF(OFFSET($A12,0,BS$1)=BS$2,1,0) -> 0 | BT12: 0 | BU12: 0 | BV12: 0 | BW12: 0 | BX12: 0 | BY12: 0 | BZ12: 0 | CA12: 0 | CB12: 0 | CC12: 1 | CD12: 0 | CE12: 0 | CF12: 1 | CG12: 1 | CH12: 0 | CI12: 0 | CJ12: 0 | CK12: 0 | CL12: 0 | CM12: 0 | CN12: 0 | CO12: 1 | CP12: 1 | CQ12: 0 | CR12: 0 | CS12: 0 | CT12: 0 | CU12: 0 | CV12: 0 | CW12: 1 | CX12: =IF(OFFSET($A12,0,CX$1)=CX$2,1,0) -> 0 | CY12: 0 | CZ12: 0 | DA12: 1 | DB12: 0 | DC12: 0 | DD12: 0 | DE12: 0 | DF12: 0 | DG12: 1 | DH12: 1 | DI12: 0 | DJ12: 0 | DK12: 0 | DL12: 0 | DM12: 0 | DN12: =IF(OFFSET($A12,0,DN$1)=DN$2,1,0) -> 1 | DO12: 0 | DP12: 0 | DQ12: 1 | DR12: 0 | DS12: 0 | DT12: 0 | DU12: 1 | DV12: 1 | DW12: 1 | DX12: 1 | DY12: 0 | DZ12: 0 | EA12: 1 | EB12: 0 | EC12: 0 | ED12: =IF(OFFSET($A12,0,ED$1)=ED$2,1,0) -> 0 | EE12: 0 | EF12: 1 | EG12: 0 | EH12: 0 | EI12: 1 | EJ12: 1 | EK12: 0 | EL12: 0 | EM12: 1 | EN12: 0 | EO12: 0 | EP12: 0 | EQ12: 1 | ER12: 1 | ES12: 0 | ET12: 0 | EU12: 0 | EV12: 1 | EW12: 0 | EX12: 0 | EY12: 1 | EZ12: 0 | FA12: 1 | FB12: 1 | FC12: 0 | FD12: 0 | FE12: 1 | FF12: 1 | FG12: 1 | FH12: 0 | FI12: 0 | FJ12: =IF(OFFSET($A12,0,FJ$1)=FJ$2,1,0) -> 0 | FK12: 0 | FL12: 0 | FM12: 0 | FN12: 1 | FO12: 1 | FP12: 0 | FQ12: 0 | FR12: 0 | FS12: 0 | FT12: 0 | FU12: 0 | FV12: 0 | FW12: 1 | FX12: 0 | FY12: 0 | FZ12: =IF(OFFSET($A12,0,FZ$1)=FZ$2,1,0) -> 1 | GA12: 1 | GB12: 1 | GC12: 0 | GD12: 0 | GE12: 1 | GF12: 0 | GG12: 0 | GH12: 0 | GI12: 0 | GJ12: 0 | GK12: 1 | GL12: 1 | GM12: 0 | GN12: 0 | GO12: 1 | GP12: =IF(OFFSET($A12,0,GP$1)=GP$2,1,0) -> 1 | GQ12: 0 | GR12: 0 | GS12: 0 | GT12: 0 | GU12: 0 | GV12: 0 | GW12: 0 | GX12: 0 | GY12: 0 | GZ12: 1 | HA12: 0 | HB12: 0 | HC12: 0 | HD12: 0 | HE12: 1 | HF12: 1 | HG12: 0 | HH12: 1 | HI12: 1 | HJ12: 0 | HK12: 0 | HL12: 0 | HM12: 1 | HN12: 0
A13: 0 | B13: 1 | C13: 1 | D13: 0 | E13: 0 | F13: 0 | G13: 0 | H13: 0 | I13: 0 | J13: 0 | K13: 0 | L13: 0 | M13: 0 | N13: 1 | O13: 1 | P13: 0 | Q13: 0 | R13: 0 | S13: 1 | U13: 1 | V13: 0.46 | W13: 1 | X13: 0 | Y13: 0 | Z13: 0 | AA13: 0 | AB13: 0 | AC13: 1 | AD13: 1 | AE13: 1 | AF13: 1 | AG13: 1 | AH13: 1 | AI13: 0 | AJ13: 0 | AK13: 1 | AL13: 0 | AM13: 0 | AN13: 1 | AO13: 0 | AP13: 0 | AQ13: 1 | AR13: 0 | AS13: 1 | AT13: 1 | AU13: 0 | AV13: 0 | AW13: 0 | AX13: 1 | AY13: 1 | AZ13: 0 | BA13: 1 | BB13: 0 | BC13: 1 | BD13: 1 | BE13: 1 | BF13: 0 | BG13: 1 | BH13: 0 | BI13: 1 | BJ13: 0 | BK13: 0 | BL13: 1 | BM13: 1 | BN13: 0 | BO13: 0 | BP13: 1 | BQ13: 0 | BR13: 1 | BS13: 0 | BT13: 0 | BU13: 0 | BV13: 1 | BW13: 0 | BX13: 1 | BY13: 0 | BZ13: 0 | CA13: 0 | CB13: 1 | CC13: 1 | CD13: 0 | CE13: 1 | CF13: 1 | CG13: 1 | CH13: 1 | CI13: 1 | CJ13: 1 | CK13: 1 | CL13: 0 | CM13: 1 | CN13: 0 | CO13: 0 | CP13: 1 | CQ13: 0 | CR13: 0 | CS13: 0 | CT13: 1 | CU13: 0 | CV13: 0 | CW13: 1 | CX13: 0 | CY13: 0 | CZ13: 0 | DA13: 1 | DB13: 0 | DC13: 0 | DD13: 0 | DE13: 0 | DF13: 0 | DG13: 1 | DH13: 0 | DI13: 0 | DJ13: 0 | DK13: 0 | DL13: 0 | DM13: 0 | DN13: 1 | DO13: 0 | DP13: 0 | DQ13: 1 | DR13: 0 | DS13: 1 | DT13: 1 | DU13: 1 | DV13: 1 | DW13: 1 | DX13: 1 | DY13: 1 | DZ13: 0 | EA13: 1 | EB13: 0 | EC13: 0 | ED13: 0 | EE13: 0 | EF13: 1 | EG13: 0 | EH13: 0 | EI13: 1 | EJ13: 1 | EK13: 1 | EL13: 1 | EM13: 1 | EN13: 1 | EO13: 0 | EP13: 0 | EQ13: 1 | ER13: 1 | ES13: 0 | ET13: 0 | EU13: 0 | EV13: 1 | EW13: 0 | EX13: 0 | EY13: 1 | EZ13: 0 | FA13: 1 | FB13: 1 | FC13: 1 | FD13: 0 | FE13: 1 | FF13: 1 | FG13: 1 | FH13: 0 | FI13: 1 | FJ13: 0 | FK13: 1 | FL13: 0 | FM13: 1 | FN13: 1 | FO13: 1 | FP13: 0 | FQ13: 0 | FR13: 0 | FS13: 0 | FT13: 0 | FU13: 1 | FV13: 1 | FW13: 1 | FX13: 0 | FY13: 0 | FZ13: 1 | GA13: 1 | GB13: 1 | GC13: 0 | GD13: 0 | GE13: 1 | GF13: 0 | GG13: 0 | GH13: 0 | GI13: 0 | GJ13: 0 | GK13: 1 | GL13: 1 | GM13: 0 | GN13: 0 | GO13: 1 | GP13: 1 | GQ13: 0 | GR13: 0 | GS13: 0 | GT13: 0 | GU13: 0 | GV13: 0 | GW13: 1 | GX13: 0 | GY13: 1 | GZ13: 1 | HA13: 0 | HB13: 1 | HC13: 0 | HD13: 0 | HE13: 0 | HF13: 1 | HG13: 0 | HH13: 1 | HI13: 1 | HJ13: 0 | HK13: 0 | HL13: 0 | HM13: 1 | HN13: 0
A14: 0 | B14: 0 | C14: 0 | D14: 1 | E14: 0 | F14: 0 | G14: 0 | H14: 0 | I14: 0 | J14: 0 | K14: 0 | L14: 1 | M14: 0 | N14: 0 | O14: 0 | P14: 0 | Q14: 0 | R14: 0 | S14: 0 | U14: 1 | V14: 0.315 | W14: 1 | X14: 0 | Y14: 0 | Z14: 0 | AA14: 0 | AB14: 0 | AC14: 1 | AD14: 1 | AE14: 1 | AF14: 1 | AG14: 1 | AH14: 1 | AI14: 0 | AJ14: 0 | AK14: 0 | AL14: 0 | AM14: 0 | AN14: 0 | AO14: 0 | AP14: 0 | AQ14: 1 | AR14: 0 | AS14: 1 | AT14: 0 | AU14: 0 | AV14: 0 | AW14: 0 | AX14: 0 | AY14: 1 | AZ14: 0 | BA14: 0 | BB14: 0 | BC14: 1 | BD14: 1 | BE14: 0 | BF14: 0 | BG14: 1 | BH14: 0 | BI14: 0 | BJ14: 0 | BK14: 0 | BL14: 1 | BM14: 1 | BN14: 0 | BO14: 0 | BP14: 0 | BQ14: 0 | BR14: 1 | BS14: 0 | BT14: 0 | BU14: 0 | BV14: 0 | BW14: 0 | BX14: 0 | BY14: 0 | BZ14: 0 | CA14: 0 | CB14: 0 | CC14: 1 | CD14: 0 | CE14: 0 | CF14: 1 | CG14: 1 | CH14: 0 | CI14: 0 | CJ14: 0 | CK14: 0 | CL14: 0 | CM14: 0 | CN14: 0 | CO14: 1 | CP14: 1 | CQ14: 0 | CR14: 0 | CS14: 0 | CT14: 0 | CU14: 0 | CV14: 0 | CW14: 1 | CX14: 0 | CY14: 0 | CZ14: 0 | DA14: 1 | DB14: 0 | DC14: 0 | DD14: 0 | DE14: 0 | DF14: 0 | DG14: 1 | DH14: 1 | DI14: 0 | DJ14: 0 | DK14: 0 | DL14: 0 | DM14: 0 | DN14: 1 | DO14: 0 | DP14: 0 | DQ14: 1 | DR14: 0 | DS14: 0 | DT14: 0 | DU14: 1 | DV14: 1 | DW14: 1 | DX14: 1 | DY14: 0 | DZ14: 0 | EA14: 1 | EB14: 0 | EC14: 0 | ED14: 0 | EE14: 0 | EF14: 1 | EG14: 0 | EH14: 0 | EI14: 1 | EJ14: 1 | EK14: 0 | EL14: 0 | EM14: 1 | EN14: 0 | EO14: 0 | EP14: 0 | EQ14: 1 | ER14: 1 | ES14: 0 | ET14: 0 | EU14: 0 | EV14: 1 | EW14: 0 | EX14: 0 | EY14: 1 | EZ14: 0 | FA14: 1 | FB14: 1 | FC14: 0 | FD14: 0 | FE14: 1 | FF14: 1 | FG14: 1 | FH14: 0 | FI14: 0 | FJ14: 0 | FK14: 0 | FL14: 0 | FM14: 0 | FN14: 1 | FO14: 1 | FP14: 0 | FQ14: 0 | FR14: 0 | FS14: 0 | FT14: 0 | FU14: 0 | FV14: 0 | FW14: 1 | FX14: 0 | FY14: 0 | FZ14: 1 | GA14: 1 | GB14: 1 | GC14: 1 | GD14: 0 | GE14: 1 | GF14: 0 | GG14: 0 | GH14: 0 | GI14: 0 | GJ14: 0 | GK14: 1 | GL14: 1 | GM14: 0 | GN14: 0 | GO14: 1 | GP14: 1 | GQ14: 0 | GR14: 0 | GS14: 0 | GT14: 0 | GU14: 0 | GV14: 0 | GW14: 0 | GX14: 0 | GY14: 0 | GZ14: 1 | HA14: 0 | HB14: 0 | HC14: 0 | HD14: 0 | HE14: 1 | HF14: 1 | HG14: 0 | HH14: 1 | HI14: 1 | HJ14: 0 | HK14: 0 | HL14: 0 | HM14: 1 | HN14: 0
A15: 0 | B15: 1 | C15: 1 | D15: 0 | E15: 0 | F15: 0 | G15: 0 | H15: 0 | I15: 0 | J15: 0 | K15: 0 | L15: 0 | M15: 0 | N15: 1 | O15: 0 | P15: 0 | Q15: 0 | R15: 0 | S15: 0 | U15: 1 | V15: 0.335 | W15: 1 | X15: 0 | Y15: 0 | Z15: 0 | AA15: 0 | AB15: 0 | AC15: 1 | AD15: 1 | AE15: 1 | AF15: 1 | AG15: 1 | AH15: 1 | AI15: 0 | AJ15: 0 | AK15: 0 | AL15: 0 | AM15: 0 | AN15: 0 | AO15: 0 | AP15: 0 | AQ15: 1 | AR15: 0 | AS15: 1 | AT15: 0 | AU15: 0 | AV15: 0 | AW15: 0 | AX15: 0 | AY15: 1 | AZ15: 0 | BA15: 0 | BB15: 0 | BC15: 1 | BD15: 1 | BE15: 0 | BF15: 0 | BG15: 1 | BH15: 0 | BI15: 0 | BJ15: 0 | BK15: 0 | BL15: 1 | BM15: 1 | BN15: 0 | BO15: 0 | BP15: 0 | BQ15: 0 | BR15: 1 | BS15: 0 | BT15: 0 | BU15: 0 | BV15: 0 | BW15: 0 | BX15: 1 | BY15: 0 | BZ15: 0 | CA15: 0 | CB15: 0 | CC15: 1 | CD15: 0 | CE15: 1 | CF15: 1 | CG15: 1 | CH15: 0 | CI15: 0 | CJ15: 1 | CK15: 0 | CL15: 0 | CM15: 0 | CN15: 0 | CO15: 1 | CP15: 1 | CQ15: 0 | CR15: 0 | CS15: 0 | CT15: 0 | CU15: 0 | CV15: 0 | CW15: 1 | CX15: 0 | CY15: 0 | CZ15: 0 | DA15: 1 | DB15: 0 | DC15: 0 | DD15: 0 | DE15: 0 | DF15: 0 | DG15: 1 | DH15: 1 | DI15: 0 | DJ15: 0 | DK15: 0 | DL15: 0 | DM15: 0 | DN15: 1 | DO15: 0 | DP15: 0 | DQ15: 1 | DR15: 0 | DS15: 0 | DT15: 0 | DU15: 1 | DV15: 1 | DW15: 1 | DX15: 1 | DY15: 0 | DZ15: 0 | EA15: 1 | EB15: 0 | EC15: 0 | ED15: 0 | EE15: 0 | EF15: 1 | EG15: 0 | EH15: 0 | EI15: 1 | EJ15: 1 | EK15: 0 | EL15: 0 | EM15: 1 | EN15: 0 | EO15: 0 | EP15: 0 | EQ15: 1 | ER15: 1 | ES15: 0 | ET15: 0 | EU15: 0 | EV15: 1 | EW15: 0 | EX15: 0 | EY15: 1 | EZ15: 0 | FA15: 1 | FB15: 1 | FC15: 0 | FD15: 0 | FE15: 1 | FF15: 1 | FG15: 1 | FH15: 0 | FI15: 0 | FJ15: 0 | FK15: 0 | FL15: 0 | FM15: 0 | FN15: 1 | FO15: 1 | FP15: 0 | FQ15: 0 | FR15: 0 | FS15: 0 | FT15: 0 | FU15: 0 | FV15: 0 | FW15: 1 | FX15: 0 | FY15: 0 | FZ15: 1 | GA15: 1 | GB15: 1 | GC15: 0 | GD15: 0 | GE15: 1 | GF15: 0 | GG15: 0 | GH15: 0 | GI15: 0 | GJ15: 0 | GK15: 1 | GL15: 1 | GM15: 0 | GN15: 0 | GO15: 1 | GP15: 1 | GQ15: 0 | GR15: 0 | GS15: 0 | GT15: 0 | GU15: 0 | GV15: 0 | GW15: 1 | GX15: 0 | GY15: 0 | GZ15: 1 | HA15: 0 | HB15: 1 | HC15: 0 | HD15: 0 | HE15: 1 | HF15: 1 | HG15: 0 | HH15: 1 | HI15: 1 | HJ15: 0 | HK15: 0 | HL15: 0 | HM15: 1 | HN15: 0
A16: 0 | B16: 0 | C16: 1 | D16: 0 | E16: 0 | F16: 0 | G16: 0 | H16: 0 | I16: 0 | J16: 0 | K16: 0 | L16: 0 | M16: 0 | N16: 0 | O16: 0 | P16: 0 | Q16: 0 | R16: 0 | S16: 0 | U16: 1 | V16: 0.31 | W16: 1 | X16: 0 | Y16: 0 | Z16: 0 | AA16: 0 | AB16: 0 | AC16: 1 | AD16: 1 | AE16: 1 | AF16: 1 | AG16: 1 | AH16: 1 | AI16: 0 | AJ16: 0 | AK16: 0 | AL16: 0 | AM16: 0 | AN16: 0 | AO16: 0 | AP16: 0 | AQ16: 1 | AR16: 0 | AS16: 1 | AT16: 0 | AU16: 0 | AV16: 0 | AW16: 0 | AX16: 0 | AY16: 1 | AZ16: 0 | BA16: 0 | BB16: 0 | BC16: 1 | BD16: 1 | BE16: 0 | BF16: 0 | BG16: 1 | BH16: 0 | BI16: 0 | BJ16: 0 | BK16: 0 | BL16: 1 | BM16: 1 | BN16: 0 | BO16: 0 | BP16: 0 | BQ16: 0 | BR16: 1 | BS16: 0 | BT16: 0 | BU16: 0 | BV16: 0 | BW16: 0 | BX16: 0 | BY16: 0 | BZ16: 0 | CA16: 0 | CB16: 0 | CC16: 1 | CD16: 0 | CE16: 0 | CF16: 1 | CG16: 1 | CH16: 0 | CI16: 0 | CJ16: 0 | CK16: 0 | CL16: 0 | CM16: 0 | CN16: 0 | CO16: 1 | CP16: 1 | CQ16: 0 | CR16: 0 | CS16: 0 | CT16: 0 | CU16: 0 | CV16: 0 | CW16: 1 | CX16: 0 | CY16: 0 | CZ16: 0 | DA16: 1 | DB16: 0 | DC16: 0 | DD16: 0 | DE16: 0 | DF16: 0 | DG16: 1 | DH16: 1 | DI16: 0 | DJ16: 0 | DK16: 0 | DL16: 0 | DM16: 0 | DN16: 1 | DO16: 0 | DP16: 0 | DQ16: 1 | DR16: 0 | DS16: 0 | DT16: 0 | DU16: 1 | DV16: 1 | DW16: 1 | DX16: 1 | DY16: 0 | DZ16: 0 | EA16: 1 | EB16: 0 | EC16: 0 | ED16: 0 | EE16: 0 | EF16: 1 | EG16: 0 | EH16: 0 | EI16: 1 | EJ16: 1 | EK16: 0 | EL16: 0 | EM16: 1 | EN16: 0 | EO16: 0 | EP16: 0 | EQ16: 1 | ER16: 1 | ES16: 0 | ET16: 0 | EU16: 0 | EV16: 1 | EW16: 0 | EX16: 0 | EY16: 1 | EZ16: 0 | FA16: 1 | FB16: 1 | FC16: 0 | FD16: 0 | FE16: 1 | FF16: 1 | FG16: 1 | FH16: 0 | FI16: 0 | FJ16: 0 | FK16: 0 | FL16: 0 | FM16: 0 | FN16: 1 | FO16: 1 | FP16: 0 | FQ16: 0 | FR16: 0 | FS16: 0 | FT16: 0 | FU16: 0 | FV16: 0 | FW16: 1 | FX16: 0 | FY16: 0 | FZ16: 1 | GA16: 1 | GB16: 1 | GC16: 0 | GD16: 0 | GE16: 1 | GF16: 0 | GG16: 0 | GH16: 0 | GI16: 0 | GJ16: 0 | GK16: 1 | GL16: 1 | GM16: 0 | GN16: 0 | GO16: 1 | GP16: 1 | GQ16: 0 | GR16: 0 | GS16: 0 | GT16: 0 | GU16: 0 | GV16: 0 | GW16: 0 | GX16: 0 | GY16: 0 | GZ16: 1 | HA16: 0 | HB16: 0 | HC16: 0 | HD16: 0 | HE16: 1 | HF16: 1 | HG16: 0 | HH16: 1 | HI16: 1 | HJ16: 0 | HK16: 0 | HL16: 0 | HM16: 1 | HN16: 0
A17: 0 | B17: 0 | C17: 1 | D17: 0 | E17: 1 | F17: 0 | G17: 0 | H17: 0 | I17: 0 | J17: 0 | K17: 0 | L17: 0 | M17: 0 | N17: 0 | O17: 0 | P17: 0 | Q17: 0 | R17: 0 | S17: 0 | U17: 1 | V17: 0.355 | W17: 1 | X17: 0 | Y17: 0 | Z17: 0 | AA17: 0 | AB17: 0 | AC17: 1 | AD17: 1 | AE17: 1 | AF17: 1 | AG17: 1 | AH17: 1 | AI17: 0 | AJ17: 0 | AK17: 0 | AL17: 0 | AM17: 0 | AN17: 0 | AO17: 0 | AP17: 0 | AQ17: 1 | AR17: 0 | AS17: 1 | AT17: 0 | AU17: 0 | AV17: 0 | AW17: 1 | AX17: 0 | AY17: 1 | AZ17: 0 | BA17: 0 | BB17: 0 | BC17: 1 | BD17: 1 | BE17: 0 | BF17: 0 | BG17: 1 | BH17: 0 | BI17: 0 | BJ17: 0 | BK17: 0 | BL17: 1 | BM17: 1 | BN17: 0 | BO17: 0 | BP17: 0 | BQ17: 0 | BR17: 1 | BS17: 0 | BT17: 0 | BU17: 0 | BV17: 0 | BW17: 0 | BX17: 0 | BY17: 0 | BZ17: 0 | CA17: 0 | CB17: 0 | CC17: 1 | CD17: 0 | CE17: 0 | CF17: 1 | CG17: 1 | CH17: 0 | CI17: 0 | CJ17: 0 | CK17: 0 | CL17: 0 | CM17: 0 | CN17: 0 | CO17: 1 | CP17: 1 | CQ17: 0 | CR17: 0 | CS17: 0 | CT17: 0 | CU17: 0 | CV17: 0 | CW17: 1 | CX17: 0 | CY17: 0 | CZ17: 0 | DA17: 1 | DB17: 0 | DC17: 0 | DD17: 0 | DE17: 0 | DF17: 0 | DG17: 1 | DH17: 1 | DI17: 0 | DJ17: 0 | DK17: 0 | DL17: 1 | DM17: 0 | DN17: 1 | DO17: 0 | DP17: 0 | DQ17: 1 | DR17: 0 | DS17: 0 | DT17: 0 | DU17: 1 | DV17: 1 | DW17: 1 | DX17: 1 | DY17: 0 | DZ17: 0 | EA17: 1 | EB17: 0 | EC17: 1 | ED17: 0 | EE17: 0 | EF17: 1 | EG17: 1 | EH17: 0 | EI17: 1 | EJ17: 1 | EK17: 0 | EL17: 0 | EM17: 1 | EN17: 0 | EO17: 0 | EP17: 0 | EQ17: 1 | ER17: 1 | ES17: 0 | ET17: 0 | EU17: 0 | EV17: 1 | EW17: 0 | EX17: 0 | EY17: 1 | EZ17: 0 | FA17: 1 | FB17: 1 | FC17: 0 | FD17: 0 | FE17: 1 | FF17: 1 | FG17: 1 | FH17: 0 | FI17: 0 | FJ17: 0 | FK17: 0 | FL17: 0 | FM17: 0 | FN17: 1 | FO17: 1 | FP17: 0 | FQ17: 0 | FR17: 1 | FS17: 0 | FT17: 0 | FU17: 0 | FV17: 0 | FW17: 1 | FX17: 0 | FY17: 1 | FZ17: 1 | GA17: 1 | GB17: 1 | GC17: 0 | GD17: 0 | GE17: 1 | GF17: 0 | GG17: 0 | GH17: 0 | GI17: 0 | GJ17: 0 | GK17: 1 | GL17: 1 | GM17: 1 | GN17: 0 | GO17: 1 | GP17: 1 | GQ17: 0 | GR17: 1 | GS17: 1 | GT17: 0 | GU17: 0 | GV17: 0 | GW17: 0 | GX17: 0 | GY17: 0 | GZ17: 1 | HA17: 0 | HB17: 0 | HC17: 0 | HD17: 0 | HE17: 1 | HF17: 1 | HG17: 0 | HH17: 1 | HI17: 1 | HJ17: 0 | HK17: 0 | HL17: 0 | HM17: 1 | HN17: 0
A18: 0 | B18: 1 | C18: 0 | D18: 1 | E18: 1 | F18: 0 | G18: 0 | H18: 0 | I18: 0 | J18: 0 | K18: 0 | L18: 0 | M18: 0 | N18: 0 | O18: 0 | P18: 0 | Q18: 0 | R18: 0 | S18: 0 | U18: 1 | V18: 0.355 | W18: 1 | X18: 0 | Y18: 0 | Z18: 0 | AA18: 0 | AB18: 0 | AC18: 1 | AD18: 1 | AE18: 1 | AF18: 1 | AG18: 1 | AH18: 1 | AI18: 0 | AJ18: 0 | AK18: 0 | AL18: 0 | AM18: 0 | AN18: 0 | AO18: 0 | AP18: 0 | AQ18: 1 | AR18: 0 | AS18: 1 | AT18: 0 | AU18: 0 | AV18: 0 | AW18: 1 | AX18: 0 | AY18: 1 | AZ18: 0 | BA18: 0 | BB18: 0 | BC18: 1 | BD18: 1 | BE18: 0 | BF18: 0 | BG18: 1 | BH18: 0 | BI18: 0 | BJ18: 0 | BK18: 0 | BL18: 1 | BM18: 1 | BN18: 0 | BO18: 0 | BP18: 0 | BQ18: 0 | BR18: 1 | BS18: 0 | BT18: 0 | BU18: 0 | BV18: 0 | BW18: 0 | BX18: 0 | BY18: 0 | BZ18: 0 | CA18: 0 | CB18: 0 | CC18: 1 | CD18: 0 | CE18: 0 | CF18: 1 | CG18: 1 | CH18: 0 | CI18: 0 | CJ18: 0 | CK18: 0 | CL18: 0 | CM18: 0 | CN18: 0 | CO18: 1 | CP18: 1 | CQ18: 0 | CR18: 0 | CS18: 0 | CT18: 0 | CU18: 0 | CV18: 0 | CW18: 1 | CX18: 0 | CY18: 0 | CZ18: 0 | DA18: 1 | DB18: 0 | DC18: 0 | DD18: 0 | DE18: 0 | DF18: 0 | DG18: 1 | DH18: 1 | DI18: 0 | DJ18: 0 | DK18: 0 | DL18: 1 | DM18: 0 | DN18: 1 | DO18: 0 | DP18: 0 | DQ18: 1 | DR18: 0 | DS18: 0 | DT18: 0 | DU18: 1 | DV18: 1 | DW18: 1 | DX18: 1 | DY18: 0 | DZ18: 0 | EA18: 1 | EB18: 0 | EC18: 1 | ED18: 0 | EE18: 0 | EF18: 1 | EG18: 1 | EH18: 0 | EI18: 1 | EJ18: 1 | EK18: 0 | EL18: 0 | EM18: 1 | EN18: 0 | EO18: 0 | EP18: 0 | EQ18: 1 | ER18: 1 | ES18: 0 | ET18: 0 | EU18: 0 | EV18: 1 | EW18: 0 | EX18: 0 | EY18: 1 | EZ18: 0 | FA18: 1 | FB18: 1 | FC18: 0 | FD18: 0 | FE18: 1 | FF18: 1 | FG18: 1 | FH18: 0 | FI18: 0 | FJ18: 0 | FK18: 0 | FL18: 0 | FM18: 0 | FN18: 1 | FO18: 1 | FP18: 0 | FQ18: 0 | FR18: 1 | FS18: 0 | FT18: 0 | FU18: 0 | FV18: 0 | FW18: 1 | FX18: 0 | FY18: 1 | FZ18: 1 | GA18: 1 | GB18: 1 | GC18: 0 | GD18: 0 | GE18: 1 | GF18: 0 | GG18: 0 | GH18: 0 | GI18: 0 | GJ18: 0 | GK18: 1 | GL18: 1 | GM18: 1 | GN18: 0 | GO18: 1 | GP18: 1 | GQ18: 0 | GR18: 1 | GS18: 1 | GT18: 0 | GU18: 0 | GV18: 0 | GW18: 0 | GX18: 0 | GY18: 0 | GZ18: 1 | HA18: 0 | HB18: 0 | HC18: 0 | HD18: 0 | HE18: 1 | HF18: 1 | HG18: 0 | HH18: 1 | HI18: 1 | HJ18: 0 | HK18: 0 | HL18: 0 | HM18: 1 | HN18: 0
A19: 0 | B19: 0 | C19: 0 | D19: 0 | E19: 0 | F19: 0 | G19: 0 | H19: 1 | I19: 1 | J19: 0 | K19: 0 | L19: 0 | M19: 0 | N19: 0 | O19: 0 | P19: 0 | Q19: 0 | R19: 0 | S19: 0 | U19: 1 | V19: 0.69 | W19: 1 | X19: 1 | Y19: 1 | Z19: 0 | AA19: 1 | AB19: 1 | AC19: 1 | AD19: 1 | AE19: 1 | AF19: 1 | AG19: 1 | AH19: 1 | AI19: 0 | AJ19: 1 | AK19: 0 | AL19: 1 | AM19: 1 | AN19: 0 | AO19: 0 | AP19: 1 | AQ19: 1 | AR19: 1 | AS19: 1 | AT19: 0 | AU19: 1 | AV19: 1 | AW19: 0 | AX19: 0 | AY19: 1 | AZ19: 1 | BA19: 0 | BB19: 1 | BC19: 1 | BD19: 1 | BE19: 0 | BF19: 1 | BG19: 1 | BH19: 1 | BI19: 0 | BJ19: 1 | BK19: 1 | BL19: 1 | BM19: 1 | BN19: 1 | BO19: 1 | BP19: 0 | BQ19: 1 | BR19: 1 | BS19: 1 | BT19: 1 | BU19: 1 | BV19: 0 | BW19: 1 | BX19: 0 | BY19: 1 | BZ19: 1 | CA19: 0 | CB19: 0 | CC19: 1 | CD19: 1 | CE19: 0 | CF19: 1 | CG19: 1 | CH19: 0 | CI19: 0 | CJ19: 0 | CK19: 0 | CL19: 0 | CM19: 0 | CN19: 1 | CO19: 1 | CP19: 1 | CQ19: 1 | CR19: 1 | CS19: 0 | CT19: 0 | CU19: 1 | CV19: 1 | CW19: 1 | CX19: 1 | CY19: 0 | CZ19: 1 | DA19: 1 | DB19: 1 | DC19: 1 | DD19: 0 | DE19: 1 | DF19: 1 | DG19: 1 | DH19: 1 | DI19: 0 | DJ19: 0 | DK19: 0 | DL19: 0 | DM19: 1 | DN19: 1 | DO19: 1 | DP19: 0 | DQ19: 1 | DR19: 1 | DS19: 0 | DT19: 0 | DU19: 1 | DV19: 1 | DW19: 1 | DX19: 1 | DY19: 0 | DZ19: 1 | EA19: 1 | EB19: 1 | EC19: 0 | ED19: 1 | EE19: 0 | EF19: 1 | EG19: 0 | EH19: 1 | EI19: 1 | EJ19: 1 | EK19: 0 | EL19: 0 | EM19: 1 | EN19: 0 | EO19: 1 | EP19: 0 | EQ19: 1 | ER19: 1 | ES19: 1 | ET19: 1 | EU19: 1 | EV19: 1 | EW19: 1 | EX19: 1 | EY19: 1 | EZ19: 1 | FA19: 1 | FB19: 1 | FC19: 0 | FD19: 1 | FE19: 1 | FF19: 1 | FG19: 1 | FH19: 0 | FI19: 0 | FJ19: 0 | FK19: 0 | FL19: 1 | FM19: 0 | FN19: 1 | FO19: 1 | FP19: 0 | FQ19: 1 | FR19: 0 | FS19: 1 | FT19: 1 | FU19: 0 | FV19: 0 | FW19: 1 | FX19: 1 | FY19: 0 | FZ19: 1 | GA19: 1 | GB19: 1 | GC19: 0 | GD19: 1 | GE19: 1 | GF19: 1 | GG19: 1 | GH19: 1 | GI19: 1 | GJ19: 1 | GK19: 1 | GL19: 1 | GM19: 0 | GN19: 1 | GO19: 1 | GP19: 1 | GQ19: 1 | GR19: 0 | GS19: 0 | GT19: 0 | GU19: 1 | GV19: 1 | GW19: 0 | GX19: 1 | GY19: 0 | GZ19: 1 | HA19: 1 | HB19: 0 | HC19: 1 | HD19: 1 | HE19: 1 | HF19: 1 | HG19: 1 | HH19: 1 | HI19: 1 | HJ19: 0 | HK19: 1 | HL19: 1 | HM19: 1 | HN19: 1
A20: 0 | B20: 0 | C20: 1 | D20: 0 | E20: 0 | F20: 0 | G20: 0 | H20: 1 | I20: 0 | J20: 0 | K20: 0 | L20: 0 | M20: 0 | N20: 0 | O20: 0 | P20: 0 | Q20: 0 | R20: 0 | S20: 1 | U20: 1 | V20: 0.685 | W20: 1 | X20: 0 | Y20: 1 | Z20: 0 | AA20: 0 | AB20: 0 | AC20: 1 | AD20: 1 | AE20: 1 | AF20: 1 | AG20: 1 | AH20: 1 | AI20: 0 | AJ20: 1 | AK20: 1 | AL20: 1 | AM20: 1 | AN20: 1 | AO20: 0 | AP20: 1 | AQ20: 1 | AR20: 1 | AS20: 1 | AT20: 1 | AU20: 0 | AV20: 1 | AW20: 0 | AX20: 1 | AY20: 1 | AZ20: 1 | BA20: 1 | BB20: 1 | BC20: 1 | BD20: 1 | BE20: 1 | BF20: 1 | BG20: 1 | BH20: 0 | BI20: 1 | BJ20: 0 | BK20: 1 | BL20: 1 | BM20: 1 | BN20: 1 | BO20: 0 | BP20: 1 | BQ20: 1 | BR20: 1 | BS20: 0 | BT20: 1 | BU20: 1 | BV20: 1 | BW20: 0 | BX20: 0 | BY20: 1 | BZ20: 1 | CA20: 0 | CB20: 1 | CC20: 1 | CD20: 1 | CE20: 0 | CF20: 1 | CG20: 1 | CH20: 1 | CI20: 1 | CJ20: 0 | CK20: 1 | CL20: 0 | CM20: 1 | CN20: 1 | CO20: 1 | CP20: 1 | CQ20: 1 | CR20: 1 | CS20: 0 | CT20: 1 | CU20: 1 | CV20: 1 | CW20: 1 | CX20: 0 | CY20: 0 | CZ20: 1 | DA20: 1 | DB20: 0 | DC20: 1 | DD20: 0 | DE20: 1 | DF20: 0 | DG20: 1 | DH20: 1 | DI20: 0 | DJ20: 0 | DK20: 0 | DL20: 0 | DM20: 1 | DN20: 1 | DO20: 1 | DP20: 0 | DQ20: 1 | DR20: 1 | DS20: 1 | DT20: 1 | DU20: 1 | DV20: 1 | DW20: 1 | DX20: 1 | DY20: 1 | DZ20: 1 | EA20: 1 | EB20: 1 | EC20: 0 | ED20: 0 | EE20: 0 | EF20: 1 | EG20: 0 | EH20: 0 | EI20: 1 | EJ20: 1 | EK20: 1 | EL20: 1 | EM20: 1 | EN20: 1 | EO20: 0 | EP20: 0 | EQ20: 1 | ER20: 1 | ES20: 1 | ET20: 1 | EU20: 1 | EV20: 1 | EW20: 0 | EX20: 1 | EY20: 1 | EZ20: 1 | FA20: 1 | FB20: 1 | FC20: 1 | FD20: 1 | FE20: 1 | FF20: 1 | FG20: 1 | FH20: 0 | FI20: 1 | FJ20: 0 | FK20: 1 | FL20: 1 | FM20: 1 | FN20: 1 | FO20: 1 | FP20: 0 | FQ20: 0 | FR20: 0 | FS20: 1 | FT20: 0 | FU20: 1 | FV20: 1 | FW20: 1 | FX20: 1 | FY20: 0 | FZ20: 1 | GA20: 1 | GB20: 1 | GC20: 0 | GD20: 0 | GE20: 1 | GF20: 1 | GG20: 0 | GH20: 1 | GI20: 1 | GJ20: 0 | GK20: 1 | GL20: 1 | GM20: 0 | GN20: 0 | GO20: 1 | GP20: 1 | GQ20: 0 | GR20: 0 | GS20: 0 | GT20: 0 | GU20: 0 | GV20: 0 | GW20: 0 | GX20: 0 | GY20: 1 | GZ20: 1 | HA20: 1 | HB20: 0 | HC20: 0 | HD20: 1 | HE20: 1 | HF20: 1 | HG20: 1 | HH20: 1 | HI20: 1 | HJ20: 0 | HK20: 0 | HL20: 0 | HM20: 1 | HN20: 1
A21: 0 | B21: 1 | C21: 1 | D21: 0 | E21: 0 | F21: 0 | G21: 0 | H21: 1 | I21: 0 | J21: 0 | K21: 0 | L21: 0 | M21: 0 | N21: 0 | O21: 0 | P21: 0 | Q21: 1 | R21: 0 | S21: 0 | U21: 1 | V21: 0.615 | W21: 1 | X21: 0 | Y21: 1 | Z21: 1 | AA21: 0 | AB21: 0 | AC21: 1 | AD21: 1 | AE21: 1 | AF21: 1 | AG21: 1 | AH21: 1 | AI21: 1 | AJ21: 1 | AK21: 0 | AL21: 1 | AM21: 1 | AN21: 0 | AO21: 0 | AP21: 1 | AQ21: 1 | AR21: 1 | AS21: 1 | AT21: 0 | AU21: 0 | AV21: 1 | AW21: 0 | AX21: 0 | AY21: 1 | AZ21: 1 | BA21: 0 | BB21: 1 | BC21: 1 | BD21: 1 | BE21: 0 | BF21: 1 | BG21: 1 | BH21: 0 | BI21: 0 | BJ21: 0 | BK21: 1 | BL21: 1 | BM21: 1 | BN21: 1 | BO21: 0 | BP21: 0 | BQ21: 1 | BR21: 1 | BS21: 0 | BT21: 1 | BU21: 1 | BV21: 0 | BW21: 0 | BX21: 0 | BY21: 1 | BZ21: 1 | CA21: 1 | CB21: 0 | CC21: 1 | CD21: 1 | CE21: 0 | CF21: 1 | CG21: 1 | CH21: 0 | CI21: 0 | CJ21: 0 | CK21: 0 | CL21: 1 | CM21: 0 | CN21: 1 | CO21: 1 | CP21: 1 | CQ21: 1 | CR21: 1 | CS21: 0 | CT21: 0 | CU21: 1 | CV21: 1 | CW21: 1 | CX21: 0 | CY21: 1 | CZ21: 1 | DA21: 1 | DB21: 0 | DC21: 1 | DD21: 0 | DE21: 1 | DF21: 0 | DG21: 1 | DH21: 1 | DI21: 1 | DJ21: 1 | DK21: 0 | DL21: 0 | DM21: 1 | DN21: 1 | DO21: 1 | DP21: 1 | DQ21: 1 | DR21: 1 | DS21: 0 | DT21: 0 | DU21: 1 | DV21: 1 | DW21: 1 | DX21: 1 | DY21: 0 | DZ21: 1 | EA21: 1 | EB21: 1 | EC21: 0 | ED21: 0 | EE21: 0 | EF21: 1 | EG21: 0 | EH21: 0 | EI21: 1 | EJ21: 1 | EK21: 0 | EL21: 0 | EM21: 1 | EN21: 0 | EO21: 0 | EP21: 1 | EQ21: 1 | ER21: 1 | ES21: 1 | ET21: 1 | EU21: 1 | EV21: 1 | EW21: 0 | EX21: 1 | EY21: 1 | EZ21: 1 | FA21: 1 | FB21: 1 | FC21: 0 | FD21: 1 | FE21: 1 | FF21: 1 | FG21: 1 | FH21: 1 | FI21: 0 | FJ21: 1 | FK21: 0 | FL21: 1 | FM21: 0 | FN21: 1 | FO21: 1 | FP21: 1 | FQ21: 0 | FR21: 0 | FS21: 1 | FT21: 0 | FU21: 0 | FV21: 0 | FW21: 1 | FX21: 1 | FY21: 0 | FZ21: 1 | GA21: 1 | GB21: 1 | GC21: 0 | GD21: 0 | GE21: 1 | GF21: 1 | GG21: 0 | GH21: 1 | GI21: 1 | GJ21: 0 | GK21: 1 | GL21: 1 | GM21: 0 | GN21: 0 | GO21: 1 | GP21: 1 | GQ21: 0 | GR21: 0 | GS21: 0 | GT21: 1 | GU21: 0 | GV21: 0 | GW21: 0 | GX21: 0 | GY21: 0 | GZ21: 1 | HA21: 1 | HB21: 0 | HC21: 0 | HD21: 1 | HE21: 1 | HF21: 1 | HG21: 1 | HH21: 1 | HI21: 1 | HJ21: 1 | HK21: 0 | HL21: 0 | HM21: 1 | HN21: 1
A22: 0 | B22: 0 | C22: 1 | D22: 0 | E22: 0 | F22: 1 | G22: 0 | H22: 0 | I22: 0 | J22: 0 | K22: 0 | L22: 0 | M22: 0 | N22: 0 | O22: 0 | P22: 0 | Q22: 0 | R22: 0 | S22: 0 | U22: 1 | V22: 0.145 | W22: 1 | X22: 0 | Y22: 0 | Z22: 0 | AA22: 0 | AB22: 0 | AC22: 1 | AD22: 0 | AE22: 0 | AF22: 0 | AG22: 0 | AH22: 0 | AI22: 0 | AJ22: 0 | AK22: 0 | AL22: 0 | AM22: 0 | AN22: 0 | AO22: 0 | AP22: 0 | AQ22: 0 | AR22: 0 | AS22: 0 | AT22: 0 | AU22: 0 | AV22: 0 | AW22: 0 | AX22: 0 | AY22: 1 | AZ22: 0 | BA22: 0 | BB22: 0 | BC22: 0 | BD22: 1 | BE22: 0 | BF22: 0 | BG22: 1 | BH22: 0 | BI22: 0 | BJ22: 0 | BK22: 0 | BL22: 0 | BM22: 1 | BN22: 0 | BO22: 0 | BP22: 0 | BQ22: 0 | BR22: 1 | BS22: 0 | BT22: 0 | BU22: 0 | BV22: 0 | BW22: 0 | BX22: 0 | BY22: 0 | BZ22: 0 | CA22: 0 | CB22: 0 | CC22: 1 | CD22: 0 | CE22: 0 | CF22: 0 | CG22: 0 | CH22: 0 | CI22: 0 | CJ22: 0 | CK22: 0 | CL22: 0 | CM22: 0 | CN22: 0 | CO22: 1 | CP22: 1 | CQ22: 0 | CR22: 0 | CS22: 0 | CT22: 0 | CU22: 0 | CV22: 0 | CW22: 0 | CX22: 0 | CY22: 0 | CZ22: 0 | DA22: 1 | DB22: 0 | DC22: 0 | DD22: 0 | DE22: 0 | DF22: 0 | DG22: 0 | DH22: 1 | DI22: 0 | DJ22: 0 | DK22: 0 | DL22: 0 | DM22: 0 | DN22: 1 | DO22: 0 | DP22: 0 | DQ22: 0 | DR22: 0 | DS22: 0 | DT22: 0 | DU22: 1 | DV22: 1 | DW22: 0 | DX22: 0 | DY22: 0 | DZ22: 0 | EA22: 0 | EB22: 0 | EC22: 0 | ED22: 0 | EE22: 0 | EF22: 1 | EG22: 0 | EH22: 0 | EI22: 0 | EJ22: 0 | EK22: 0 | EL22: 0 | EM22: 0 | EN22: 0 | EO22: 0 | EP22: 0 | EQ22: 1 | ER22: 1 | ES22: 0 | ET22: 0 | EU22: 0 | EV22: 1 | EW22: 0 | EX22: 0 | EY22: 1 | EZ22: 0 | FA22: 0 | FB22: 1 | FC22: 0 | FD22: 0 | FE22: 0 | FF22: 0 | FG22: 1 | FH22: 0 | FI22: 0 | FJ22: 0 | FK22: 0 | FL22: 0 | FM22: 0 | FN22: 1 | FO22: 0 | FP22: 0 | FQ22: 0 | FR22: 0 | FS22: 0 | FT22: 0 | FU22: 0 | FV22: 0 | FW22: 0 | FX22: 0 | FY22: 0 | FZ22: 0 | GA22: 0 | GB22: 0 | GC22: 0 | GD22: 0 | GE22: 0 | GF22: 0 | GG22: 0 | GH22: 0 | GI22: 0 | GJ22: 0 | GK22: 1 | GL22: 0 | GM22: 0 | GN22: 0 | GO22: 0 | GP22: 0 | GQ22: 0 | GR22: 0 | GS22: 0 | GT22: 0 | GU22: 0 | GV22: 0 | GW22: 0 | GX22: 0 | GY22: 0 | GZ22: 1 | HA22: 0 | HB22: 0 | HC22: 0 | HD22: 0 | HE22: 1 | HF22: 1 | HG22: 0 | HH22: 1 | HI22: 0 | HJ22: 0 | HK22: 0 | HL22: 0 | HM22: 1 | HN22: 0
A23: 0 | B23: 1 | C23: 0 | D23: 0 | E23: 0 | F23: 0 | G23: 0 | H23: 0 | I23: 0 | J23: 0 | K23: 0 | L23: 0 | M23: 0 | N23: 1 | O23: 0 | P23: 0 | Q23: 0 | R23: 0 | S23: 1 | U23: 1 | V23: 0.475 | W23: 1 | X23: 0 | Y23: 0 | Z23: 0 | AA23: 0 | AB23: 0 | AC23: 1 | AD23: 1 | AE23: 1 | AF23: 1 | AG23: 1 | AH23: 1 | AI23: 0 | AJ23: 0 | AK23: 1 | AL23: 0 | AM23: 0 | AN23: 1 | AO23: 0 | AP23: 0 | AQ23: 1 | AR23: 0 | AS23: 1 | AT23: 1 | AU23: 0 | AV23: 0 | AW23: 0 | AX23: 1 | AY23: 1 | AZ23: 0 | BA23: 1 | BB23: 0 | BC23: 1 | BD23: 1 | BE23: 1 | BF23: 0 | BG23: 1 | BH23: 0 | BI23: 1 | BJ23: 0 | BK23: 0 | BL23: 1 | BM23: 1 | BN23: 0 | BO23: 0 | BP23: 1 | BQ23: 0 | BR23: 1 | BS23: 0 | BT23: 0 | BU23: 0 | BV23: 1 | BW23: 0 | BX23: 1 | BY23: 0 | BZ23: 0 | CA23: 0 | CB23: 1 | CC23: 1 | CD23: 0 | CE23: 1 | CF23: 1 | CG23: 1 | CH23: 1 | CI23: 1 | CJ23: 1 | CK23: 1 | CL23: 0 | CM23: 1 | CN23: 0 | CO23: 1 | CP23: 1 | CQ23: 0 | CR23: 0 | CS23: 0 | CT23: 1 | CU23: 0 | CV23: 0 | CW23: 1 | CX23: 0 | CY23: 0 | CZ23: 0 | DA23: 1 | DB23: 0 | DC23: 0 | DD23: 0 | DE23: 0 | DF23: 0 | DG23: 1 | DH23: 1 | DI23: 0 | DJ23: 0 | DK23: 0 | DL23: 0 | DM23: 0 | DN23: 1 | DO23: 0 | DP23: 0 | DQ23: 1 | DR23: 0 | DS23: 1 | DT23: 1 | DU23: 1 | DV23: 1 | DW23: 1 | DX23: 1 | DY23: 1 | DZ23: 0 | EA23: 1 | EB23: 0 | EC23: 0 | ED23: 0 | EE23: 0 | EF23: 1 | EG23: 0 | EH23: 0 | EI23: 1 | EJ23: 1 | EK23: 1 | EL23: 1 | EM23: 1 | EN23: 1 | EO23: 0 | EP23: 0 | EQ23: 1 | ER23: 1 | ES23: 0 | ET23: 0 | EU23: 0 | EV23: 1 | EW23: 0 | EX23: 0 | EY23: 1 | EZ23: 0 | FA23: 1 | FB23: 1 | FC23: 1 | FD23: 0 | FE23: 1 | FF23: 1 | FG23: 1 | FH23: 0 | FI23: 1 | FJ23: 0 | FK23: 1 | FL23: 0 | FM23: 1 | FN23: 1 | FO23: 1 | FP23: 0 | FQ23: 0 | FR23: 0 | FS23: 0 | FT23: 0 | FU23: 1 | FV23: 1 | FW23: 1 | FX23: 0 | FY23: 0 | FZ23: 1 | GA23: 1 | GB23: 1 | GC23: 0 | GD23: 0 | GE23: 1 | GF23: 0 | GG23: 0 | GH23: 0 | GI23: 0 | GJ23: 0 | GK23: 1 | GL23: 1 | GM23: 0 | GN23: 0 | GO23: 1 | GP23: 1 | GQ23: 0 | GR23: 0 | GS23: 0 | GT23: 0 | GU23: 0 | GV23: 0 | GW23: 1 | GX23: 0 | GY23: 1 | GZ23: 1 | HA23: 0 | HB23: 1 | HC23: 0 | HD23: 0 | HE23: 1 | HF23: 1 | HG23: 0 | HH23: 1 | HI23: 1 | HJ23: 0 | HK23: 0 | HL23: 0 | HM23: 1 | HN23: 0
A24: 0 | B24: 1 | C24: 0 | D24: 0 | E24: 0 | F24: 0 | G24: 0 | H24: 1 | I24: 0 | J24: 0 | K24: 0 | L24: 1 | M24: 0 | N24: 0 | O24: 0 | P24: 0 | Q24: 0 | R24: 1 | S24: 0 | U24: 1 | V24: 0.49 | W24: 1 | X24: 0 | Y24: 1 | Z24: 0 | AA24: 0 | AB24: 0 | AC24: 1 | AD24: 1 | AE24: 1 | AF24: 1 | AG24: 1 | AH24: 1 | AI24: 0 | AJ24: 1 | AK24: 0 | AL24: 1 | AM24: 1 | AN24: 0 | AO24: 0 | AP24: 1 | AQ24: 1 | AR24: 1 | AS24: 1 | AT24: 0 | AU24: 0 | AV24: 1 | AW24: 0 | AX24: 0 | AY24: 0 | AZ24: 1 | BA24: 0 | BB24: 1 | BC24: 1 | BD24: 1 | BE24: 0 | BF24: 1 | BG24: 1 | BH24: 0 | BI24: 0 | BJ24: 0 | BK24: 1 | BL24: 1 | BM24: 0 | BN24: 1 | BO24: 0 | BP24: 0 | BQ24: 1 | BR24: 0 | BS24: 0 | BT24: 1 | BU24: 1 | BV24: 0 | BW24: 0 | BX24: 0 | BY24: 1 | BZ24: 1 | CA24: 0 | CB24: 0 | CC24: 1 | CD24: 1 | CE24: 0 | CF24: 1 | CG24: 1 | CH24: 0 | CI24: 0 | CJ24: 0 | CK24: 0 | CL24: 0 | CM24: 0 | CN24: 1 | CO24: 1 | CP24: 0 | CQ24: 1 | CR24: 1 | CS24: 0 | CT24: 0 | CU24: 1 | CV24: 1 | CW24: 1 | CX24: 0 | CY24: 0 | CZ24: 1 | DA24: 0 | DB24: 0 | DC24: 1 | DD24: 0 | DE24: 1 | DF24: 0 | DG24: 1 | DH24: 1 | DI24: 0 | DJ24: 0 | DK24: 0 | DL24: 0 | DM24: 1 | DN24: 0 | DO24: 1 | DP24: 0 | DQ24: 1 | DR24: 1 | DS24: 0 | DT24: 0 | DU24: 1 | DV24: 0 | DW24: 1 | DX24: 1 | DY24: 0 | DZ24: 1 | EA24: 1 | EB24: 1 | EC24: 0 | ED24: 0 | EE24: 0 | EF24: 0 | EG24: 0 | EH24: 0 | EI24: 1 | EJ24: 1 | EK24: 0 | EL24: 0 | EM24: 1 | EN24: 0 | EO24: 0 | EP24: 0 | EQ24: 1 | ER24: 1 | ES24: 1 | ET24: 1 | EU24: 1 | EV24: 1 | EW24: 0 | EX24: 1 | EY24: 1 | EZ24: 1 | FA24: 1 | FB24: 0 | FC24: 0 | FD24: 1 | FE24: 1 | FF24: 1 | FG24: 1 | FH24: 0 | FI24: 0 | FJ24: 0 | FK24: 0 | FL24: 1 | FM24: 0 | FN24: 0 | FO24: 1 | FP24: 0 | FQ24: 0 | FR24: 0 | FS24: 1 | FT24: 0 | FU24: 0 | FV24: 0 | FW24: 1 | FX24: 1 | FY24: 0 | FZ24: 1 | GA24: 1 | GB24: 1 | GC24: 1 | GD24: 0 | GE24: 1 | GF24: 1 | GG24: 0 | GH24: 1 | GI24: 1 | GJ24: 0 | GK24: 1 | GL24: 1 | GM24: 0 | GN24: 0 | GO24: 1 | GP24: 1 | GQ24: 0 | GR24: 0 | GS24: 0 | GT24: 0 | GU24: 0 | GV24: 0 | GW24: 0 | GX24: 0 | GY24: 0 | GZ24: 1 | HA24: 1 | HB24: 0 | HC24: 0 | HD24: 1 | HE24: 1 | HF24: 0 | HG24: 1 | HH24: 0 | HI24: 1 | HJ24: 0 | HK24: 0 | HL24: 0 | HM24: 1 | HN24: 1
A25: 0 | B25: 1 | C25: 0 | D25: 1 | E25: 1 | F25: 0 | G25: 0 | H25: 0 | I25: 1 | J25: 0 | K25: 0 | L25: 0 | M25: 0 | N25: 0 | O25: 0 | P25: 0 | Q25: 1 | R25: 0 | S25: 0 | U25: 1 | V25: 0.57 | W25: 1 | X25: 1 | Y25: 0 | Z25: 1 | AA25: 1 | AB25: 1 | AC25: 1 | AD25: 1 | AE25: 1 | AF25: 1 | AG25: 1 | AH25: 1 | AI25: 1 | AJ25: 0 | AK25: 0 | AL25: 0 | AM25: 0 | AN25: 0 | AO25: 0 | AP25: 0 | AQ25: 1 | AR25: 0 | AS25: 1 | AT25: 0 | AU25: 1 | AV25: 0 | AW25: 1 | AX25: 0 | AY25: 1 | AZ25: 0 | BA25: 0 | BB25: 0 | BC25: 1 | BD25: 1 | BE25: 0 | BF25: 0 | BG25: 1 | BH25: 1 | BI25: 0 | BJ25: 1 | BK25: 0 | BL25: 1 | BM25: 1 | BN25: 0 | BO25: 1 | BP25: 0 | BQ25: 0 | BR25: 1 | BS25: 1 | BT25: 0 | BU25: 0 | BV25: 0 | BW25: 1 | BX25: 0 | BY25: 0 | BZ25: 0 | CA25: 1 | CB25: 0 | CC25: 1 | CD25: 0 | CE25: 0 | CF25: 1 | CG25: 1 | CH25: 0 | CI25: 0 | CJ25: 0 | CK25: 0 | CL25: 1 | CM25: 0 | CN25: 0 | CO25: 1 | CP25: 1 | CQ25: 0 | CR25: 0 | CS25: 0 | CT25: 0 | CU25: 0 | CV25: 0 | CW25: 1 | CX25: 1 | CY25: 1 | CZ25: 0 | DA25: 1 | DB25: 1 | DC25: 0 | DD25: 0 | DE25: 0 | DF25: 1 | DG25: 1 | DH25: 1 | DI25: 1 | DJ25: 1 | DK25: 0 | DL25: 1 | DM25: 0 | DN25: 1 | DO25: 0 | DP25: 1 | DQ25: 1 | DR25: 0 | DS25: 0 | DT25: 0 | DU25: 1 | DV25: 1 | DW25: 1 | DX25: 1 | DY25: 0 | DZ25: 0 | EA25: 1 | EB25: 0 | EC25: 1 | ED25: 1 | EE25: 0 | EF25: 1 | EG25: 1 | EH25: 1 | EI25: 1 | EJ25: 1 | EK25: 0 | EL25: 0 | EM25: 1 | EN25: 0 | EO25: 1 | EP25: 1 | EQ25: 1 | ER25: 1 | ES25: 0 | ET25: 0 | EU25: 0 | EV25: 1 | EW25: 1 | EX25: 0 | EY25: 1 | EZ25: 0 | FA25: 1 | FB25: 1 | FC25: 0 | FD25: 0 | FE25: 1 | FF25: 1 | FG25: 1 | FH25: 1 | FI25: 0 | FJ25: 1 | FK25: 0 | FL25: 0 | FM25: 0 | FN25: 1 | FO25: 1 | FP25: 1 | FQ25: 1 | FR25: 1 | FS25: 0 | FT25: 1 | FU25: 0 | FV25: 0 | FW25: 1 | FX25: 0 | FY25: 1 | FZ25: 1 | GA25: 1 | GB25: 1 | GC25: 0 | GD25: 1 | GE25: 1 | GF25: 0 | GG25: 1 | GH25: 0 | GI25: 0 | GJ25: 1 | GK25: 1 | GL25: 1 | GM25: 1 | GN25: 1 | GO25: 1 | GP25: 1 | GQ25: 1 | GR25: 1 | GS25: 1 | GT25: 1 | GU25: 1 | GV25: 1 | GW25: 0 | GX25: 1 | GY25: 0 | GZ25: 1 | HA25: 0 | HB25: 0 | HC25: 1 | HD25: 0 | HE25: 1 | HF25: 1 | HG25: 0 | HH25: 1 | HI25: 1 | HJ25: 1 | HK25: 1 | HL25: 1 | HM25: 1 | HN25: 0
A26: 0 | B26: 1 | C26: 1 | D26: 0 | E26: 0 | F26: 0 | G26: 0 | H26: 0 | I26: 1 | J26: 0 | K26: 0 | L26: 0 | M26: 0 | N26: 0 | O26: 0 | P26: 0 | Q26: 0 | R26: 1 | S26: 1 | U26: 1 | V26: 0.535 | W26: 1 | X26: 1 | Y26: 0 | Z26: 0 | AA26: 1 | AB26: 1 | AC26: 1 | AD26: 1 | AE26: 1 | AF26: 1 | AG26: 1 | AH26: 1 | AI26: 0 | AJ26: 0 | AK26: 1 | AL26: 0 | AM26: 0 | AN26: 1 | AO26: 0 | AP26: 0 | AQ26: 1 | AR26: 0 | AS26: 1 | AT26: 1 | AU26: 1 | AV26: 0 | AW26: 0 | AX26: 1 | AY26: 0 | AZ26: 0 | BA26: 1 | BB26: 0 | BC26: 1 | BD26: 1 | BE26: 1 | BF26: 0 | BG26: 1 | BH26: 1 | BI26: 1 | BJ26: 1 | BK26: 0 | BL26: 1 | BM26: 0 | BN26: 0 | BO26: 1 | BP26: 1 | BQ26: 0 | BR26: 0 | BS26: 1 | BT26: 0 | BU26: 0 | BV26: 1 | BW26: 1 | BX26: 0 | BY26: 0 | BZ26: 0 | CA26: 0 | CB26: 1 | CC26: 1 | CD26: 0 | CE26: 0 | CF26: 1 | CG26: 1 | CH26: 1 | CI26: 1 | CJ26: 0 | CK26: 1 | CL26: 0 | CM26: 1 | CN26: 0 | CO26: 1 | CP26: 0 | CQ26: 0 | CR26: 0 | CS26: 0 | CT26: 1 | CU26: 0 | CV26: 0 | CW26: 1 | CX26: 1 | CY26: 0 | CZ26: 0 | DA26: 0 | DB26: 1 | DC26: 0 | DD26: 0 | DE26: 0 | DF26: 1 | DG26: 1 | DH26: 1 | DI26: 0 | DJ26: 0 | DK26: 0 | DL26: 0 | DM26: 0 | DN26: 0 | DO26: 0 | DP26: 0 | DQ26: 1 | DR26: 0 | DS26: 1 | DT26: 1 | DU26: 1 | DV26: 0 | DW26: 1 | DX26: 1 | DY26: 1 | DZ26: 0 | EA26: 1 | EB26: 0 | EC26: 0 | ED26: 1 | EE26: 0 | EF26: 0 | EG26: 0 | EH26: 1 | EI26: 1 | EJ26: 1 | EK26: 1 | EL26: 1 | EM26: 1 | EN26: 1 | EO26: 1 | EP26: 0 | EQ26: 1 | ER26: 1 | ES26: 0 | ET26: 0 | EU26: 0 | EV26: 1 | EW26: 1 | EX26: 0 | EY26: 1 | EZ26: 0 | FA26: 1 | FB26: 0 | FC26: 1 | FD26: 0 | FE26: 1 | FF26: 1 | FG26: 1 | FH26: 0 | FI26: 1 | FJ26: 0 | FK26: 1 | FL26: 0 | FM26: 1 | FN26: 0 | FO26: 1 | FP26: 0 | FQ26: 1 | FR26: 0 | FS26: 0 | FT26: 1 | FU26: 1 | FV26: 1 | FW26: 1 | FX26: 0 | FY26: 0 | FZ26: 1 | GA26: 1 | GB26: 1 | GC26: 0 | GD26: 1 | GE26: 1 | GF26: 0 | GG26: 1 | GH26: 0 | GI26: 0 | GJ26: 1 | GK26: 1 | GL26: 1 | GM26: 0 | GN26: 1 | GO26: 1 | GP26: 1 | GQ26: 1 | GR26: 0 | GS26: 0 | GT26: 0 | GU26: 1 | GV26: 1 | GW26: 0 | GX26: 1 | GY26: 1 | GZ26: 1 | HA26: 0 | HB26: 0 | HC26: 1 | HD26: 0 | HE26: 1 | HF26: 0 | HG26: 0 | HH26: 0 | HI26: 1 | HJ26: 0 | HK26: 1 | HL26: 1 | HM26: 1 | HN26: 0
A27: 0 | B27: 0 | C27: 0 | D27: 0 | E27: 0 | F27: 1 | G27: 0 | H27: 0 | I27: 0 | J27: 0 | K27: 0 | L27: 0 | M27: 0 | N27: 0 | O27: 0 | P27: 0 | Q27: 1 | R27: 0 | S27: 0 | U27: 1 | V27: 0.215 | W27: 1 | X27: 0 | Y27: 0 | Z27: 1 | AA27: 0 | AB27: 0 | AC27: 1 | AD27: 0 | AE27: =IF(OFFSET($A27,0,AE$1)=AE$2,1,0) -> 0 | AF27: 0 | AG27: 0 | AH27: 0 | AI27: 1 | AJ27: 0 | AK27: 0 | AL27: 0 | AM27: 0 | AN27: 0 | AO27: 0 | AP27: 0 | AQ27: 0 | AR27: 0 | AS27: 0 | AT27: 0 | AU27: 0 | AV27: 0 | AW27: 0 | AX27: 0 | AY27: 1 | AZ27: 0 | BA27: 0 | BB27: 0 | BC27: 0 | BD27: 1 | BE27: 0 | BF27: 0 | BG27: 1 | BH27: 0 | BI27: 0 | BJ27: 0 | BK27: 0 | BL27: 0 | BM27: 1 | BN27: 0 | BO27: 0 | BP27: 0 | BQ27: 0 | BR27: =IF(OFFSET($A27,0,BR$1)=BR$2,1,0) -> 1 | BS27: 0 | BT27: 0 | BU27: 0 | BV27: 0 | BW27: 0 | BX27: 0 | BY27: 0 | BZ27: 0 | CA27: 1 | CB27: 0 | CC27: 1 | CD27: 0 | CE27: 0 | CF27: 0 | CG27: 0 | CH27: 0 | CI27: 0 | CJ27: 0 | CK27: 0 | CL27: 1 | CM27: 0 | CN27: 0 | CO27: 1 | CP27: 1 | CQ27: 0 | CR27: 0 | CS27: 0 | CT27: 0 | CU27: 0 | CV27: 0 | CW27: 0 | CX27: 0 | CY27: 1 | CZ27: 0 | DA27: 1 | DB27: 0 | DC27: 0 | DD27: 0 | DE27: 0 | DF27: 0 | DG27: 0 | DH27: 1 | DI27: 1 | DJ27: 1 | DK27: 0 | DL27: 0 | DM27: =IF(OFFSET($A27,0,DM$1)=DM$2,1,0) -> 0 | DN27: 1 | DO27: 0 | DP27: 1 | DQ27: 0 | DR27: 0 | DS27: 0 | DT27: 0 | DU27: 1 | DV27: 1 | DW27: 0 | DX27: 0 | DY27: 0 | DZ27: 0 | EA27: 0 | EB27: 0 | EC27: 0 | ED27: 0 | EE27: 0 | EF27: 1 | EG27: 0 | EH27: 0 | EI27: 0 | EJ27: 0 | EK27: 0 | EL27: 0 | EM27: 0 | EN27: 0 | EO27: 0 | EP27: 1 | EQ27: 1 | ER27: 1 | ES27: =IF(OFFSET($A27,0,ES$1)=ES$2,1,0) -> 0 | ET27: 0 | EU27: 0 | EV27: 1 | EW27: 0 | EX27: 0 | EY27: 1 | EZ27: 0 | FA27: 0 | FB27: 1 | FC27: 0 | FD27: 0 | FE27: 0 | FF27: 0 | FG27: 1 | FH27: 1 | FI27: =IF(OFFSET($A27,0,FI$1)=FI$2,1,0) -> 0 | FJ27: 1 | FK27: 0 | FL27: 0 | FM27: 0 | FN27: 1 | FO27: 0 | FP27: 1 | FQ27: 0 | FR27: 0 | FS27: 0 | FT27: 0 | FU27: 0 | FV27: 0 | FW27: 0 | FX27: 0 | FY27: 0 | FZ27: 0 | GA27: 0 | GB27: 0 | GC27: 0 | GD27: 0 | GE27: 0 | GF27: 0 | GG27: 0 | GH27: 0 | GI27: 0 | GJ27: 0 | GK27: 1 | GL27: 0 | GM27: 0 | GN27: 0 | GO27: =IF(OFFSET($A27,0,GO$1)=GO$2,1,0) -> 0 | GP27: 0 | GQ27: 0 | GR27: 0 | GS27: 0 | GT27: 1 | GU27: 0 | GV27: 0 | GW27: 0 | GX27: 0 | GY27: 0 | GZ27: 1 | HA27: 0 | HB27: 0 | HC27: 0 | HD27: 0 | HE27: 1 | HF27: 1 | HG27: 0 | HH27: 1 | HI27: 0 | HJ27: 1 | HK27: 0 | HL27: 0 | HM27: 1 | HN27: 0
A28: 0 | B28: 1 | C28: 0 | D28: 1 | E28: 0 | F28: 0 | G28: 0 | H28: 0 | I28: 0 | J28: 1 | K28: 0 | L28: 0 | M28: 0 | N28: 1 | O28: 0 | P28: 0 | Q28: 0 | R28: 0 | S28: 0 | U28: 1 | V28: 0.335 | W28: =IF(OFFSET($A28,0,W$1)=W$2,1,0) -> 1 | X28: 0 | Y28: 0 | Z28: 0 | AA28: 0 | AB28: 0 | AC28: 1 | AD28: 1 | AE28: 1 | AF28: 1 | AG28: 1 | AH28: 1 | AI28: 0 | AJ28: 0 | AK28: 0 | AL28: 0 | AM28: 0 | AN28: 0 | AO28: 0 | AP28: 0 | AQ28: 1 | AR28: 0 | AS28: 1 | AT28: 0 | AU28: 0 | AV28: 0 | AW28: 0 | AX28: 0 | AY28: 1 | AZ28: 0 | BA28: 0 | BB28: =IF(OFFSET($A28,0,BB$1)=BB$2,1,0) -> 0 | BC28: 1 | BD28: 1 | BE28: 0 | BF28: 0 | BG28: 1 | BH28: 0 | BI28: 0 | BJ28: 0 | BK28: 0 | BL28: 1 | BM28: 1 | BN28: 0 | BO28: 0 | BP28: 0 | BQ28: 0 | BR28: 1 | BS28: 0 | BT28: 0 | BU28: 0 | BV28: 0 | BW28: 0 | BX28: 1 | BY28: 0 | BZ28: 0 | CA28: 0 | CB28: 0 | CC28: 1 | CD28: 0 | CE28: 1 | CF28: 1 | CG28: 1 | CH28: 0 | CI28: 0 | CJ28: 1 | CK28: 0 | CL28: 0 | CM28: 0 | CN28: 0 | CO28: 1 | CP28: 1 | CQ28: 0 | CR28: 0 | CS28: 0 | CT28: 0 | CU28: 0 | CV28: =IF(OFFSET($A28,0,CV$1)=CV$2,1,0) -> 0 | CW28: 1 | CX28: 0 | CY28: 0 | CZ28: 0 | DA28: 1 | DB28: 0 | DC28: 0 | DD28: 0 | DE28: 0 | DF28: 0 | DG28: 1 | DH28: 1 | DI28: 0 | DJ28: 0 | DK28: 0 | DL28: =IF(OFFSET($A28,0,DL$1)=DL$2,1,0) -> 0 | DM28: 0 | DN28: 1 | DO28: 0 | DP28: 0 | DQ28: 1 | DR28: 0 | DS28: 0 | DT28: 0 | DU28: 1 | DV28: 1 | DW28: 1 | DX28: 1 | DY28: 0 | DZ28: 0 | EA28: 1 | EB28: 0 | EC28: 0 | ED28: =IF(OFFSET($A28,0,ED$1)=ED$2,1,0) -> 0 | EE28: 0 | EF28: 1 | EG28: 0 | EH28: 0 | EI28: 1 | EJ28: 1 | EK28: 0 | EL28: 0 | EM28: 1 | EN28: 0 | EO28: 0 | EP28: 0 | EQ28: 1 | ER28: 1 | ES28: 0 | ET28: 0 | EU28: 0 | EV28: 1 | EW28: 0 | EX28: 0 | EY28: 1 | EZ28: 0 | FA28: 1 | FB28: 1 | FC28: 0 | FD28: 0 | FE28: 1 | FF28: 1 | FG28: 1 | FH28: 0 | FI28: 0 | FJ28: 0 | FK28: 0 | FL28: 0 | FM28: 0 | FN28: 1 | FO28: 1 | FP28: 0 | FQ28: 0 | FR28: 0 | FS28: 0 | FT28: 0 | FU28: 0 | FV28: 0 | FW28: 1 | FX28: 0 | FY28: 0 | FZ28: =IF(OFFSET($A28,0,FZ$1)=FZ$2,1,0) -> 1 | GA28: 1 | GB28: 1 | GC28: 0 | GD28: 0 | GE28: 1 | GF28: 0 | GG28: 0 | GH28: 0 | GI28: 0 | GJ28: 0 | GK28: 1 | GL28: 1 | GM28: 0 | GN28: 0 | GO28: 1 | GP28: 1 | GQ28: 0 | GR28: 0 | GS28: 0 | GT28: 0 | GU28: 0 | GV28: 0 | GW28: 1 | GX28: 0 | GY28: 0 | GZ28: 1 | HA28: 0 | HB28: 1 | HC28: 0 | HD28: 0 | HE28: 1 | HF28: 1 | HG28: 0 | HH28: 1 | HI28: 1 | HJ28: 0 | HK28: 0 | HL28: 0 | HM28: 1 | HN28: 0
A29: 0 | B29: 1 | C29: 1 | D29: 0 | E29: 0 | F29: 0 | G29: 0 | H29: 0 | I29: 0 | J29: 0 | K29: 0 | L29: 0 | M29: 0 | N29: 0 | O29: 0 | P29: 0 | Q29: 0 | R29: 0 | S29: 1 | U29: 1 | V29: 0.45 | W29: 1 | X29: 0 | Y29: 0 | Z29: 0 | AA29: 0 | AB29: 0 | AC29: 1 | AD29: 1 | AE29: 1 | AF29: 1 | AG29: 1 | AH29: 1 | AI29: 0 | AJ29: 0 | AK29: 1 | AL29: 0 | AM29: 0 | AN29: 1 | AO29: 0 | AP29: 0 | AQ29: 1 | AR29: 0 | AS29: 1 | AT29: 1 | AU29: =IF(OFFSET($A29,0,AU$1)=AU$2,1,0) -> 0 | AV29: 0 | AW29: 0 | AX29: 1 | AY29: 1 | AZ29: 0 | BA29: 1 | BB29: 0 | BC29: 1 | BD29: 1 | BE29: 1 | BF29: 0 | BG29: 1 | BH29: 0 | BI29: 1 | BJ29: 0 | BK29: 0 | BL29: 1 | BM29: 1 | BN29: 0 | BO29: 0 | BP29: 1 | BQ29: 0 | BR29: 1 | BS29: 0 | BT29: 0 | BU29: 0 | BV29: 1 | BW29: 0 | BX29: 0 | BY29: 0 | BZ29: 0 | CA29: 0 | CB29: 1 | CC29: 1 | CD29: 0 | CE29: 0 | CF29: 1 | CG29: 1 | CH29: 1 | CI29: =IF(OFFSET($A29,0,CI$1)=CI$2,1,0) -> 1 | CJ29: 0 | CK29: 1 | CL29: 0 | CM29: 1 | CN29: 0 | CO29: 1 | CP29: 1 | CQ29: 0 | CR29: 0 | CS29: 0 | CT29: 1 | CU29: 0 | CV29: 0 | CW29: 1 | CX29: 0 | CY29: 0 | CZ29: 0 | DA29: 1 | DB29: 0 | DC29: 0 | DD29: 0 | DE29: 0 | DF29: 0 | DG29: 1 | DH29: 1 | DI29: 0 | DJ29: 0 | DK29: 0 | DL29: 0 | DM29: 0 | DN29: 1 | DO29: 0 | DP29: 0 | DQ29: 1 | DR29: 0 | DS29: 1 | DT29: 1 | DU29: 1 | DV29: 1 | DW29: 1 | DX29: 1 | DY29: 1 | DZ29: 0 | EA29: 1 | EB29: 0 | EC29: 0 | ED29: 0 | EE29: 0 | EF29: 1 | EG29: 0 | EH29: 0 | EI29: 1 | EJ29: 1 | EK29: 1 | EL29: 1 | EM29: 1 | EN29: 1 | EO29: 0 | EP29: 0 | EQ29: 1 | ER29: 1 | ES29: 0 | ET29: 0 | EU29: 0 | EV29: 1 | EW29: 0 | EX29: 0 | EY29: 1 | EZ29: 0 | FA29: 1 | FB29: 1 | FC29: 1 | FD29: 0 | FE29: 1 | FF29: 1 | FG29: 1 | FH29: 0 | FI29: 1 | FJ29: 0 | FK29: 1 | FL29: 0 | FM29: 1 | FN29: 1 | FO29: 1 | FP29: 0 | FQ29: 0 | FR29: 0 | FS29: 0 | FT29: 0 | FU29: 1 | FV29: 1 | FW29: 1 | FX29: 0 | FY29: 0 | FZ29: 1 | GA29: 1 | GB29: 1 | GC29: 0 | GD29: 0 | GE29: 1 | GF29: 0 | GG29: 0 | GH29: 0 | GI29: 0 | GJ29: 0 | GK29: 1 | GL29: 1 | GM29: 0 | GN29: 0 | GO29: 1 | GP29: 1 | GQ29: 0 | GR29: 0 | GS29: 0 | GT29: 0 | GU29: 0 | GV29: 0 | GW29: 0 | GX29: 0 | GY29: 1 | GZ29: 1 | HA29: 0 | HB29: 0 | HC29: 0 | HD29: 0 | HE29: 1 | HF29: 1 | HG29: 0 | HH29: 1 | HI29: 1 | HJ29: 0 | HK29: 0 | HL29: 0 | HM29: 1 | HN29: 0
A30: 1 | B30: 0 | C30: 1 | D30: 0 | E30: 0 | F30: 0 | G30: 0 | H30: 0 | I30: 1 | J30: 0 | K30: 0 | L30: 1 | M30: 0 | N30: 0 | O30: 0 | P30: 0 | Q30: 0 | R30: 0 | S30: 0 | U30: 1 | V30: 0.455 | W30: 1 | X30: 1 | Y30: 0 | Z30: 0 | AA30: 1 | AB30: 1 | AC30: 1 | AD30: 1 | AE30: 1 | AF30: 1 | AG30: 1 | AH30: 1 | AI30: 0 | AJ30: 0 | AK30: 0 | AL30: 0 | AM30: 0 | AN30: 0 | AO30: 0 | AP30: 0 | AQ30: 1 | AR30: 0 | AS30: 1 | AT30: 0 | AU30: 1 | AV30: 0 | AW30: 0 | AX30: 0 | AY30: 1 | AZ30: 0 | BA30: 0 | BB30: 0 | BC30: 1 | BD30: 1 | BE30: 0 | BF30: 0 | BG30: 1 | BH30: 1 | BI30: 0 | BJ30: 1 | BK30: 0 | BL30: 1 | BM30: 1 | BN30: 0 | BO30: 1 | BP30: 0 | BQ30: 0 | BR30: 1 | BS30: 1 | BT30: 0 | BU30: 0 | BV30: 0 | BW30: 1 | BX30: 0 | BY30: 0 | BZ30: 0 | CA30: 0 | CB30: 0 | CC30: 0 | CD30: 0 | CE30: 0 | CF30: 1 | CG30: 1 | CH30: 0 | CI30: 0 | CJ30: 0 | CK30: 0 | CL30: 0 | CM30: 0 | CN30: 0 | CO30: 1 | CP30: 1 | CQ30: 0 | CR30: 0 | CS30: 0 | CT30: 0 | CU30: 0 | CV30: 0 | CW30: 1 | CX30: 1 | CY30: 0 | CZ30: 0 | DA30: 1 | DB30: 1 | DC30: 0 | DD30: 0 | DE30: 0 | DF30: 1 | DG30: 1 | DH30: 1 | DI30: 0 | DJ30: 0 | DK30: 0 | DL30: 0 | DM30: 0 | DN30: 1 | DO30: 0 | DP30: 0 | DQ30: 1 | DR30: 0 | DS30: 0 | DT30: 0 | DU30: 1 | DV30: 1 | DW30: 1 | DX30: 1 | DY30: 0 | DZ30: 0 | EA30: 1 | EB30: 0 | EC30: 0 | ED30: 1 | EE30: 0 | EF30: 1 | EG30: 0 | EH30: 1 | EI30: 1 | EJ30: 1 | EK30: 0 | EL30: 0 | EM30: 1 | EN30: 0 | EO30: 1 | EP30: 0 | EQ30: 1 | ER30: 1 | ES30: 0 | ET30: 0 | EU30: 0 | EV30: 1 | EW30: 1 | EX30: 0 | EY30: 1 | EZ30: 0 | FA30: 1 | FB30: 1 | FC30: 0 | FD30: 0 | FE30: 1 | FF30: 1 | FG30: 1 | FH30: 0 | FI30: 0 | FJ30: 0 | FK30: 0 | FL30: 0 | FM30: 0 | FN30: 1 | FO30: 1 | FP30: 0 | FQ30: 1 | FR30: 0 | FS30: 0 | FT30: 1 | FU30: 0 | FV30: 0 | FW30: 1 | FX30: 0 | FY30: 0 | FZ30: 1 | GA30: 1 | GB30: 1 | GC30: 1 | GD30: 1 | GE30: 1 | GF30: 0 | GG30: 1 | GH30: 0 | GI30: 0 | GJ30: 1 | GK30: 1 | GL30: 1 | GM30: 0 | GN30: 1 | GO30: 1 | GP30: 1 | GQ30: 1 | GR30: 0 | GS30: 0 | GT30: 0 | GU30: 1 | GV30: 1 | GW30: 0 | GX30: 1 | GY30: 0 | GZ30: 1 | HA30: 0 | HB30: 0 | HC30: 1 | HD30: 0 | HE30: 1 | HF30: 1 | HG30: 0 | HH30: 1 | HI30: 1 | HJ30: 0 | HK30: 1 | HL30: 1 | HM30: 1 | HN30: 0
A31: 0 | B31: 0 | C31: 0 | D31: 0 | E31: 0 | F31: 0 | G31: 0 | H31: 0 | I31: 0 | J31: 0 | K31: 0 | L31: 0 | M31: 0 | N31: 1 | O31: 0 | P31: 0 | Q31: 1 | R31: 1 | S31: 0 | U31: 1 | V31: 0.345 | W31: 1 | X31: 0 | Y31: 0 | Z31: 1 | AA31: 0 | AB31: 0 | AC31: 1 | AD31: 1 | AE31: 1 | AF31: 1 | AG31: 1 | AH31: 1 | AI31: 1 | AJ31: 0 | AK31: 0 | AL31: 0 | AM31: 0 | AN31: 0 | AO31: 0 | AP31: 0 | AQ31: 1 | AR31: 0 | AS31: 1 | AT31: 0 | AU31: 0 | AV31: 0 | AW31: 0 | AX31: 0 | AY31: 0 | AZ31: 0 | BA31: 0 | BB31: 0 | BC31: 1 | BD31: 1 | BE31: 0 | BF31: 0 | BG31: 1 | BH31: 0 | BI31: 0 | BJ31: 0 | BK31: 0 | BL31: 1 | BM31: 0 | BN31: 0 | BO31: 0 | BP31: 0 | BQ31: 0 | BR31: 0 | BS31: 0 | BT31: 0 | BU31: 0 | BV31: 0 | BW31: 0 | BX31: 1 | BY31: 0 | BZ31: 0 | CA31: 1 | CB31: 0 | CC31: 1 | CD31: 0 | CE31: 1 | CF31: 1 | CG31: 1 | CH31: 0 | CI31: 0 | CJ31: 1 | CK31: 0 | CL31: 1 | CM31: 0 | CN31: 0 | CO31: 1 | CP31: 0 | CQ31: 0 | CR31: 0 | CS31: 0 | CT31: 0 | CU31: 0 | CV31: 0 | CW31: 1 | CX31: 0 | CY31: 1 | CZ31: 0 | DA31: 0 | DB31: 0 | DC31: 0 | DD31: 0 | DE31: 0 | DF31: 0 | DG31: 1 | DH31: 1 | DI31: 1 | DJ31: 1 | DK31: 0 | DL31: 0 | DM31: 0 | DN31: 0 | DO31: 0 | DP31: 1 | DQ31: 1 | DR31: 0 | DS31: 0 | DT31: 0 | DU31: 1 | DV31: 0 | DW31: 1 | DX31: 1 | DY31: 0 | DZ31: 0 | EA31: 1 | EB31: 0 | EC31: 0 | ED31: 0 | EE31: 0 | EF31: 0 | EG31: 0 | EH31: 0 | EI31: 1 | EJ31: 1 | EK31: 0 | EL31: 0 | EM31: 1 | EN31: 0 | EO31: 0 | EP31: 1 | EQ31: 1 | ER31: 1 | ES31: 0 | ET31: 0 | EU31: 0 | EV31: 1 | EW31: 0 | EX31: 0 | EY31: 1 | EZ31: 0 | FA31: 1 | FB31: 0 | FC31: 0 | FD31: 0 | FE31: 1 | FF31: 1 | FG31: 1 | FH31: 1 | FI31: 0 | FJ31: 1 | FK31: 0 | FL31: 0 | FM31: 0 | FN31: 0 | FO31: 1 | FP31: 1 | FQ31: 0 | FR31: 0 | FS31: 0 | FT31: 0 | FU31: 0 | FV31: 0 | FW31: 1 | FX31: 0 | FY31: 0 | FZ31: 1 | GA31: 1 | GB31: 1 | GC31: 0 | GD31: 0 | GE31: 1 | GF31: 0 | GG31: 0 | GH31: 0 | GI31: 0 | GJ31: 0 | GK31: 1 | GL31: 1 | GM31: 0 | GN31: 0 | GO31: 1 | GP31: 1 | GQ31: 0 | GR31: 0 | GS31: 0 | GT31: 1 | GU31: 0 | GV31: 0 | GW31: 1 | GX31: 0 | GY31: 0 | GZ31: 1 | HA31: 0 | HB31: 1 | HC31: 0 | HD31: 0 | HE31: 1 | HF31: 0 | HG31: 0 | HH31: 0 | HI31: 1 | HJ31: 1 | HK31: 0 | HL31: 0 | HM31: 1 | HN31: 0
A32: 0 | B32: 1 | C32: 1 | D32: 0 | E32: 0 | F32: 0 | G32: 1 | H32: 0 | I32: 1 | J32: 0 | K32: 0 | L32: 0 | M32: 0 | N32: 1 | O32: 0 | P32: 0 | Q32: 1 | R32: 0 | S32: 0 | U32: 1 | V32: 0.485 | W32: 0 | X32: 1 | Y32: 0 | Z32: 1 | AA32: 1 | AB32: 1 | AC32: 0 | AD32: 1 | AE32: 1 | AF32: 1 | AG32: 1 | AH32: 1 | AI32: 1 | AJ32: 0 | AK32: 0 | AL32: 0 | AM32: 0 | AN32: 0 | AO32: 0 | AP32: 0 | AQ32: 1 | AR32: 0 | AS32: 1 | AT32: 0 | AU32: 1 | AV32: 0 | AW32: 0 | AX32: 0 | AY32: 1 | AZ32: 0 | BA32: 0 | BB32: 0 | BC32: 1 | BD32: 0 | BE32: 0 | BF32: 0 | BG32: 0 | BH32: 1 | BI32: 0 | BJ32: 1 | BK32: 0 | BL32: 1 | BM32: 1 | BN32: 0 | BO32: 1 | BP32: 0 | BQ32: 0 | BR32: 1 | BS32: 1 | BT32: 0 | BU32: 0 | BV32: 0 | BW32: 1 | BX32: 1 | BY32: 0 | BZ32: 0 | CA32: 1 | CB32: 0 | CC32: 1 | CD32: 0 | CE32: 1 | CF32: 1 | CG32: 1 | CH32: 0 | CI32: 0 | CJ32: 1 | CK32: 0 | CL32: 1 | CM32: 0 | CN32: 0 | CO32: 1 | CP32: 1 | CQ32: 0 | CR32: 0 | CS32: 0 | CT32: 0 | CU32: 0 | CV32: 0 | CW32: 1 | CX32: 1 | CY32: 1 | CZ32: 0 | DA32: 1 | DB32: 1 | DC32: 0 | DD32: 0 | DE32: 0 | DF32: 1 | DG32: 1 | DH32: 1 | DI32: 1 | DJ32: 1 | DK32: 0 | DL32: 0 | DM32: 0 | DN32: 1 | DO32: 0 | DP32: 1 | DQ32: 1 | DR32: 0 | DS32: 0 | DT32: 0 | DU32: 0 | DV32: 1 | DW32: 1 | DX32: 1 | DY32: 0 | DZ32: 0 | EA32: 1 | EB32: 0 | EC32: 0 | ED32: 1 | EE32: 0 | EF32: 1 | EG32: 0 | EH32: 1 | EI32: 1 | EJ32: 1 | EK32: 0 | EL32: 0 | EM32: 1 | EN32: 0 | EO32: 1 | EP32: 1 | EQ32: 0 | ER32: 0 | ES32: 0 | ET32: 0 | EU32: 0 | EV32: 0 | EW32: 1 | EX32: 0 | EY32: 0 | EZ32: 0 | FA32: 1 | FB32: 1 | FC32: 0 | FD32: 0 | FE32: 1 | FF32: 1 | FG32: 0 | FH32: 1 | FI32: 0 | FJ32: 1 | FK32: 0 | FL32: 0 | FM32: 0 | FN32: 1 | FO32: 1 | FP32: 1 | FQ32: 1 | FR32: 0 | FS32: 0 | FT32: 1 | FU32: 0 | FV32: 0 | FW32: 1 | FX32: 0 | FY32: 0 | FZ32: 1 | GA32: 1 | GB32: 1 | GC32: 0 | GD32: 1 | GE32: 1 | GF32: 0 | GG32: 1 | GH32: 0 | GI32: 0 | GJ32: 1 | GK32: 0 | GL32: 1 | GM32: 0 | GN32: 1 | GO32: 1 | GP32: 1 | GQ32: 1 | GR32: 0 | GS32: 0 | GT32: 1 | GU32: 1 | GV32: 1 | GW32: 1 | GX32: 1 | GY32: 0 | GZ32: 0 | HA32: 0 | HB32: 1 | HC32: 1 | HD32: 0 | HE32: 1 | HF32: 1 | HG32: 0 | HH32: 1 | HI32: 1 | HJ32: 1 | HK32: 1 | HL32: 1 | HM32: 0 | HN32: 0
A33: 0 | B33: 0 | C33: 0 | D33: 0 | E33: 0 | F33: 0 | G33: 0 | H33: 1 | I33: 0 | J33: 0 | K33: 0 | L33: 0 | M33: 0 | N33: 0 | O33: 0 | P33: 0 | Q33: 1 | R33: 0 | S33: 0 | U33: 1 | V33: 0.615 | W33: 1 | X33: 0 | Y33: 1 | Z33: 1 | AA33: 0 | AB33: 0 | AC33: 1 | AD33: 1 | AE33: 1 | AF33: 1 | AG33: 1 | AH33: 1 | AI33: 1 | AJ33: 1 | AK33: 0 | AL33: 1 | AM33: 1 | AN33: 0 | AO33: 0 | AP33: 1 | AQ33: 1 | AR33: 1 | AS33: 1 | AT33: 0 | AU33: 0 | AV33: 1 | AW33: 0 | AX33: 0 | AY33: 1 | AZ33: 1 | BA33: 0 | BB33: 1 | BC33: 1 | BD33: 1 | BE33: 0 | BF33: 1 | BG33: 1 | BH33: 0 | BI33: 0 | BJ33: 0 | BK33: 1 | BL33: 1 | BM33: 1 | BN33: 1 | BO33: 0 | BP33: 0 | BQ33: 1 | BR33: 1 | BS33: 0 | BT33: 1 | BU33: 1 | BV33: 0 | BW33: 0 | BX33: 0 | BY33: 1 | BZ33: 1 | CA33: 1 | CB33: 0 | CC33: 1 | CD33: 1 | CE33: 0 | CF33: 1 | CG33: 1 | CH33: 0 | CI33: 0 | CJ33: 0 | CK33: 0 | CL33: 1 | CM33: 0 | CN33: 1 | CO33: 1 | CP33: 1 | CQ33: 1 | CR33: 1 | CS33: 0 | CT33: 0 | CU33: 1 | CV33: 1 | CW33: 1 | CX33: 0 | CY33: 1 | CZ33: 1 | DA33: 1 | DB33: 0 | DC33: 1 | DD33: 0 | DE33: 1 | DF33: 0 | DG33: 1 | DH33: 1 | DI33: 1 | DJ33: 1 | DK33: 0 | DL33: 0 | DM33: 1 | DN33: 1 | DO33: 1 | DP33: 1 | DQ33: 1 | DR33: 1 | DS33: 0 | DT33: 0 | DU33: 1 | DV33: 1 | DW33: 1 | DX33: 1 | DY33: 0 | DZ33: 1 | EA33: 1 | EB33: 1 | EC33: 0 | ED33: 0 | EE33: 0 | EF33: 1 | EG33: 0 | EH33: 0 | EI33: 1 | EJ33: 1 | EK33: 0 | EL33: 0 | EM33: 1 | EN33: 0 | EO33: 0 | EP33: 1 | EQ33: 1 | ER33: 1 | ES33: 1 | ET33: 1 | EU33: 1 | EV33: 1 | EW33: 0 | EX33: 1 | EY33: 1 | EZ33: 1 | FA33: 1 | FB33: 1 | FC33: 0 | FD33: 1 | FE33: 1 | FF33: 1 | FG33: 1 | FH33: 1 | FI33: 0 | FJ33: 1 | FK33: 0 | FL33: 1 | FM33: 0 | FN33: 1 | FO33: 1 | FP33: 1 | FQ33: 0 | FR33: 0 | FS33: 1 | FT33: 0 | FU33: 0 | FV33: 0 | FW33: 1 | FX33: 1 | FY33: 0 | FZ33: 1 | GA33: 1 | GB33: 1 | GC33: 0 | GD33: 0 | GE33: 1 | GF33: 1 | GG33: 0 | GH33: 1 | GI33: 1 | GJ33: 0 | GK33: 1 | GL33: 1 | GM33: 0 | GN33: 0 | GO33: 1 | GP33: 1 | GQ33: 0 | GR33: 0 | GS33: 0 | GT33: 1 | GU33: 0 | GV33: 0 | GW33: 0 | GX33: 0 | GY33: 0 | GZ33: 1 | HA33: 1 | HB33: 0 | HC33: 0 | HD33: 1 | HE33: 1 | HF33: 1 | HG33: 1 | HH33: 1 | HI33: 1 | HJ33: 1 | HK33: 0 | HL33: 0 | HM33: 1 | HN33: 1
A34: 0 | B34: 1 | C34: 0 | D34: 1 | E34: 0 | F34: 0 | G34: 0 | H34: 0 | I34: 1 | J34: 0 | K34: 0 | L34: 0 | M34: 0 | N34: 1 | O34: 0 | P34: 0 | Q34: 0 | R34: 0 | S34: 0 | U34: 1 | V34: 0.48 | W34: 1 | X34: 1 | Y34: 0 | Z34: 0 | AA34: 1 | AB34: 1 | AC34: 1 | AD34: 1 | AE34: 1 | AF34: 1 | AG34: 1 | AH34: 1 | AI34: 0 | AJ34: 0 | AK34: 0 | AL34: 0 | AM34: 0 | AN34: 0 | AO34: 0 | AP34: 0 | AQ34: 1 | AR34: 0 | AS34: 1 | AT34: 0 | AU34: 1 | AV34: 0 | AW34: 0 | AX34: 0 | AY34: 1 | AZ34: 0 | BA34: 0 | BB34: 0 | BC34: 1 | BD34: 1 | BE34: 0 | BF34: 0 | BG34: 1 | BH34: 1 | BI34: 0 | BJ34: 1 | BK34: 0 | BL34: 1 | BM34: 1 | BN34: 0 | BO34: 1 | BP34: 0 | BQ34: 0 | BR34: 1 | BS34: 1 | BT34: 0 | BU34: 0 | BV34: 0 | BW34: 1 | BX34: 1 | BY34: 0 | BZ34: 0 | CA34: 0 | CB34: 0 | CC34: 1 | CD34: 0 | CE34: 1 | CF34: 1 | CG34: 1 | CH34: 0 | CI34: 0 | CJ34: 1 | CK34: 0 | CL34: 0 | CM34: 0 | CN34: 0 | CO34: 1 | CP34: 1 | CQ34: 0 | CR34: 0 | CS34: 0 | CT34: 0 | CU34: 0 | CV34: 0 | CW34: 1 | CX34: 1 | CY34: 0 | CZ34: 0 | DA34: 1 | DB34: 1 | DC34: 0 | DD34: 0 | DE34: 0 | DF34: 1 | DG34: 1 | DH34: 1 | DI34: 0 | DJ34: 0 | DK34: 0 | DL34: 0 | DM34: 0 | DN34: 1 | DO34: 0 | DP34: 0 | DQ34: 1 | DR34: 0 | DS34: 0 | DT34: 0 | DU34: 1 | DV34: 1 | DW34: 1 | DX34: 1 | DY34: 0 | DZ34: 0 | EA34: 1 | EB34: 0 | EC34: 0 | ED34: 1 | EE34: 0 | EF34: 1 | EG34: 0 | EH34: 1 | EI34: 1 | EJ34: 1 | EK34: 0 | EL34: 0 | EM34: 1 | EN34: 0 | EO34: 1 | EP34: 0 | EQ34: 1 | ER34: 1 | ES34: 0 | ET34: 0 | EU34: 0 | EV34: 1 | EW34: 1 | EX34: 0 | EY34: 1 | EZ34: 0 | FA34: 1 | FB34: 1 | FC34: 0 | FD34: 0 | FE34: 1 | FF34: 1 | FG34: 1 | FH34: 0 | FI34: 0 | FJ34: 0 | FK34: 0 | FL34: 0 | FM34: 0 | FN34: 1 | FO34: 1 | FP34: 0 | FQ34: 1 | FR34: 0 | FS34: 0 | FT34: 1 | FU34: 0 | FV34: 0 | FW34: 1 | FX34: 0 | FY34: 0 | FZ34: 1 | GA34: 1 | GB34: 1 | GC34: 0 | GD34: 1 | GE34: 1 | GF34: 0 | GG34: 1 | GH34: 0 | GI34: 0 | GJ34: 1 | GK34: 1 | GL34: 1 | GM34: 0 | GN34: 1 | GO34: 1 | GP34: 1 | GQ34: 1 | GR34: 0 | GS34: 0 | GT34: 0 | GU34: 1 | GV34: 1 | GW34: 1 | GX34: 1 | GY34: 0 | GZ34: 1 | HA34: 0 | HB34: 1 | HC34: 1 | HD34: 0 | HE34: 1 | HF34: 1 | HG34: 0 | HH34: 1 | HI34: 1 | HJ34: 0 | HK34: 1 | HL34: 1 | HM34: 1 | HN34: 0
A35: 0 | B35: 1 | C35: 0 | D35: 1 | E35: 0 | F35: 0 | G35: 0 | H35: 0 | I35: 1 | J35: 1 | K35: 0 | L35: 0 | M35: 0 | N35: 0 | O35: 0 | P35: 0 | Q35: 1 | R35: 0 | S35: 0 | U35: 1 | V35: 0.525 | W35: 1 | X35: 1 | Y35: 0 | Z35: 1 | AA35: 1 | AB35: 1 | AC35: 1 | AD35: 1 | AE35: 1 | AF35: 1 | AG35: 1 | AH35: 1 | AI35: 1 | AJ35: 0 | AK35: 0 | AL35: 0 | AM35: 0 | AN35: 0 | AO35: 0 | AP35: 0 | AQ35: 1 | AR35: 0 | AS35: 1 | AT35: 0 | AU35: 1 | AV35: 0 | AW35: 0 | AX35: 0 | AY35: 1 | AZ35: 0 | BA35: 0 | BB35: 0 | BC35: 1 | BD35: 1 | BE35: 0 | BF35: 0 | BG35: 1 | BH35: 1 | BI35: 0 | BJ35: 1 | BK35: 0 | BL35: 1 | BM35: 1 | BN35: 0 | BO35: 1 | BP35: 0 | BQ35: 0 | BR35: 1 | BS35: 1 | BT35: 0 | BU35: 0 | BV35: 0 | BW35: 1 | BX35: 0 | BY35: 0 | BZ35: 0 | CA35: 1 | CB35: 0 | CC35: 1 | CD35: 0 | CE35: 0 | CF35: 1 | CG35: 1 | CH35: 0 | CI35: 0 | CJ35: 0 | CK35: 0 | CL35: 1 | CM35: 0 | CN35: 0 | CO35: 1 | CP35: 1 | CQ35: 0 | CR35: 0 | CS35: 0 | CT35: 0 | CU35: 0 | CV35: 0 | CW35: 1 | CX35: 1 | CY35: 1 | CZ35: 0 | DA35: 1 | DB35: 1 | DC35: 0 | DD35: 0 | DE35: 0 | DF35: 1 | DG35: 1 | DH35: 1 | DI35: 1 | DJ35: 1 | DK35: 0 | DL35: 0 | DM35: 0 | DN35: 1 | DO35: 0 | DP35: 1 | DQ35: 1 | DR35: 0 | DS35: 0 | DT35: 0 | DU35: 1 | DV35: 1 | DW35: 1 | DX35: 1 | DY35: 0 | DZ35: 0 | EA35: 1 | EB35: 0 | EC35: 0 | ED35: 1 | EE35: 0 | EF35: 1 | EG35: 0 | EH35: 1 | EI35: 1 | EJ35: 1 | EK35: 0 | EL35: 0 | EM35: 1 | EN35: 0 | EO35: 1 | EP35: 1 | EQ35: 1 | ER35: 1 | ES35: 0 | ET35: 0 | EU35: 0 | EV35: 1 | EW35: 1 | EX35: 0 | EY35: 1 | EZ35: 0 | FA35: 1 | FB35: 1 | FC35: 0 | FD35: 0 | FE35: 1 | FF35: 1 | FG35: 1 | FH35: 1 | FI35: 0 | FJ35: 1 | FK35: 0 | FL35: 0 | FM35: 0 | FN35: 1 | FO35: 1 | FP35: 1 | FQ35: 1 | FR35: 0 | FS35: 0 | FT35: 1 | FU35: 0 | FV35: 0 | FW35: 1 | FX35: 0 | FY35: 0 | FZ35: 1 | GA35: 1 | GB35: 1 | GC35: 0 | GD35: 1 | GE35: 1 | GF35: 0 | GG35: 1 | GH35: 0 | GI35: 0 | GJ35: 1 | GK35: 1 | GL35: 1 | GM35: 0 | GN35: 1 | GO35: 1 | GP35: 1 | GQ35: 1 | GR35: 0 | GS35: 0 | GT35: 1 | GU35: 1 | GV35: 1 | GW35: 0 | GX35: 1 | GY35: 0 | GZ35: 1 | HA35: 0 | HB35: 0 | HC35: 1 | HD35: 0 | HE35: 1 | HF35: 1 | HG35: 0 | HH35: 1 | HI35: 1 | HJ35: 1 | HK35: 1 | HL35: 1 | HM35: 1 | HN35: 0
A36: 0 | B36: 0 | C36: 0 | D36: 1 | E36: 0 | F36: 0 | G36: 0 | H36: 0 | I36: 1 | J36: 0 | K36: 0 | L36: 0 | M36: 0 | N36: 0 | O36: 0 | P36: 0 | Q36: 0 | R36: 0 | S36: 0 | U36: 1 | V36: 0.455 | W36: 1 | X36: 1 | Y36: 0 | Z36: 0 | AA36: 1 | AB36: 1 | AC36: 1 | AD36: 1 | AE36: 1 | AF36: 1 | AG36: 1 | AH36: 1 | AI36: 0 | AJ36: 0 | AK36: 0 | AL36: 0 | AM36: 0 | AN36: 0 | AO36: 0 | AP36: 0 | AQ36: 1 | AR36: 0 | AS36: 1 | AT36: 0 | AU36: 1 | AV36: 0 | AW36: 0 | AX36: 0 | AY36: 1 | AZ36: 0 | BA36: 0 | BB36: 0 | BC36: 1 | BD36: 1 | BE36: 0 | BF36: 0 | BG36: 1 | BH36: 1 | BI36: 0 | BJ36: 1 | BK36: 0 | BL36: 1 | BM36: 1 | BN36: 0 | BO36: 1 | BP36: 0 | BQ36: 0 | BR36: 1 | BS36: 1 | BT36: 0 | BU36: 0 | BV36: 0 | BW36: 1 | BX36: 0 | BY36: 0 | BZ36: 0 | CA36: 0 | CB36: 0 | CC36: 1 | CD36: 0 | CE36: 0 | CF36: 1 | CG36: 1 | CH36: 0 | CI36: 0 | CJ36: 0 | CK36: 0 | CL36: 0 | CM36: 0 | CN36: 0 | CO36: 1 | CP36: 1 | CQ36: 0 | CR36: 0 | CS36: 0 | CT36: 0 | CU36: 0 | CV36: 0 | CW36: 1 | CX36: 1 | CY36: 0 | CZ36: 0 | DA36: 1 | DB36: 1 | DC36: 0 | DD36: 0 | DE36: 0 | DF36: 1 | DG36: 1 | DH36: 1 | DI36: 0 | DJ36: 0 | DK36: 0 | DL36: 0 | DM36: 0 | DN36: 1 | DO36: 0 | DP36: 0 | DQ36: 1 | DR36: 0 | DS36: 0 | DT36: 0 | DU36: 1 | DV36: 1 | DW36: 1 | DX36: 1 | DY36: 0 | DZ36: 0 | EA36: 1 | EB36: 0 | EC36: 0 | ED36: 1 | EE36: 0 | EF36: 1 | EG36: 0 | EH36: 1 | EI36: 1 | EJ36: 1 | EK36: 0 | EL36: 0 | EM36: 1 | EN36: 0 | EO36: 1 | EP36: 0 | EQ36: 1 | ER36: 1 | ES36: 0 | ET36: 0 | EU36: 0 | EV36: 1 | EW36: 1 | EX36: 0 | EY36: 1 | EZ36: 0 | FA36: 1 | FB36: 1 | FC36: 0 | FD36: 0 | FE36: 1 | FF36: 1 | FG36: 1 | FH36: 0 | FI36: 0 | FJ36: 0 | FK36: 0 | FL36: 0 | FM36: 0 | FN36: 1 | FO36: 1 | FP36: 0 | FQ36: 1 | FR36: 0 | FS36: 0 | FT36: 1 | FU36: 0 | FV36: 0 | FW36: 1 | FX36: 0 | FY36: 0 | FZ36: 1 | GA36: 1 | GB36: 1 | GC36: 0 | GD36: 1 | GE36: 1 | GF36: 0 | GG36: 1 | GH36: 0 | GI36: 0 | GJ36: 1 | GK36: 1 | GL36: 1 | GM36: 0 | GN36: 1 | GO36: 1 | GP36: 1 | GQ36: 1 | GR36: 0 | GS36: 0 | GT36: 0 | GU36: 1 | GV36: 1 | GW36: 0 | GX36: 1 | GY36: 0 | GZ36: 1 | HA36: 0 | HB36: 0 | HC36: 1 | HD36: 0 | HE36: 1 | HF36: 1 | HG36: 0 | HH36: 1 | HI36: 1 | HJ36: 0 | HK36: 1 | HL36: 1 | HM36: 1 | HN36: 0
A37: 0 | B37: 0 | C37: 1 | D37: 0 | E37: 0 | F37: 0 | G37: 1 | H37: 0 | I37: 0 | J37: 0 | K37: 0 | L37: 0 | M37: 0 | N37: 0 | O37: 0 | P37: 0 | Q37: 0 | R37: 1 | S37: 0 | U37: 1 | V37: 0.185 | W37: 0 | X37: 0 | Y37: 0 | Z37: 0 | AA37: 0 | AB37: 0 | AC37: 0 | AD37: 1 | AE37: 1 | AF37: 1 | AG37: 1 | AH37: 1 | AI37: 0 | AJ37: 0 | AK37: 0 | AL37: 0 | AM37: 0 | AN37: 0 | AO37: 0 | AP37: 0 | AQ37: 1 | AR37: 0 | AS37: 1 | AT37: 0 | AU37: 0 | AV37: 0 | AW37: 0 | AX37: 0 | AY37: 0 | AZ37: 0 | BA37: 0 | BB37: 0 | BC37: 1 | BD37: 0 | BE37: 0 | BF37: 0 | BG37: 0 | BH37: 0 | BI37: 0 | BJ37: 0 | BK37: 0 | BL37: 1 | BM37: 0 | BN37: 0 | BO37: 0 | BP37: 0 | BQ37: 0 | BR37: 0 | BS37: 0 | BT37: 0 | BU37: 0 | BV37: 0 | BW37: 0 | BX37: 0 | BY37: 0 | BZ37: 0 | CA37: 0 | CB37: 0 | CC37: 1 | CD37: 0 | CE37: 0 | CF37: 1 | CG37: 1 | CH37: 0 | CI37: 0 | CJ37: 0 | CK37: 0 | CL37: 0 | CM37: 0 | CN37: 0 | CO37: 1 | CP37: 0 | CQ37: 0 | CR37: 0 | CS37: 0 | CT37: 0 | CU37: 0 | CV37: 0 | CW37: 1 | CX37: 0 | CY37: 0 | CZ37: 0 | DA37: 0 | DB37: 0 | DC37: 0 | DD37: 0 | DE37: 0 | DF37: 0 | DG37: 1 | DH37: 1 | DI37: 0 | DJ37: 0 | DK37: 0 | DL37: 0 | DM37: 0 | DN37: 0 | DO37: 0 | DP37: 0 | DQ37: 1 | DR37: 0 | DS37: 0 | DT37: 0 | DU37: 0 | DV37: 0 | DW37: 1 | DX37: 1 | DY37: 0 | DZ37: 0 | EA37: 1 | EB37: 0 | EC37: 0 | ED37: 0 | EE37: 0 | EF37: 0 | EG37: 0 | EH37: 0 | EI37: 1 | EJ37: 1 | EK37: 0 | EL37: 0 | EM37: 1 | EN37: 0 | EO37: 0 | EP37: 0 | EQ37: 0 | ER37: 0 | ES37: 0 | ET37: 0 | EU37: 0 | EV37: 0 | EW37: 0 | EX37: 0 | EY37: 0 | EZ37: 0 | FA37: 1 | FB37: 0 | FC37: 0 | FD37: 0 | FE37: 1 | FF37: 1 | FG37: 0 | FH37: 0 | FI37: 0 | FJ37: 0 | FK37: 0 | FL37: 0 | FM37: 0 | FN37: 0 | FO37: 1 | FP37: 0 | FQ37: 0 | FR37: 0 | FS37: 0 | FT37: 0 | FU37: 0 | FV37: 0 | FW37: 1 | FX37: 0 | FY37: 0 | FZ37: 1 | GA37: 1 | GB37: 1 | GC37: 0 | GD37: 0 | GE37: 1 | GF37: 0 | GG37: 0 | GH37: 0 | GI37: 0 | GJ37: 0 | GK37: 0 | GL37: 1 | GM37: 0 | GN37: 0 | GO37: 1 | GP37: 1 | GQ37: 0 | GR37: 0 | GS37: 0 | GT37: 0 | GU37: 0 | GV37: 0 | GW37: 0 | GX37: 0 | GY37: 0 | GZ37: 0 | HA37: 0 | HB37: 0 | HC37: 0 | HD37: 0 | HE37: 1 | HF37: 0 | HG37: 0 | HH37: 0 | HI37: 1 | HJ37: 0 | HK37: 0 | HL37: 0 | HM37: 0 | HN37: 0
A38: 1 | B38: 0 | C38: 0 | D38: 1 | E38: 0 | F38: 0 | G38: 0 | H38: 0 | I38: 1 | J38: 0 | K38: 0 | L38: 1 | M38: 0 | N38: 0 | O38: 0 | P38: 0 | Q38: 1 | R38: 1 | S38: 1 | U38: 1 | V38: 0.605 | W38: 1 | X38: 1 | Y38: 0 | Z38: 1 | AA38: 1 | AB38: 1 | AC38: 1 | AD38: 1 | AE38: 1 | AF38: 1 | AG38: 1 | AH38: 1 | AI38: 1 | AJ38: 0 | AK38: 1 | AL38: 0 | AM38: 0 | AN38: 1 | AO38: 0 | AP38: 0 | AQ38: 1 | AR38: 0 | AS38: 1 | AT38: 1 | AU38: 1 | AV38: 0 | AW38: 0 | AX38: 1 | AY38: 0 | AZ38: 0 | BA38: 1 | BB38: 0 | BC38: 1 | BD38: 1 | BE38: 1 | BF38: 0 | BG38: 1 | BH38: 1 | BI38: 1 | BJ38: 1 | BK38: 0 | BL38: 1 | BM38: 0 | BN38: 0 | BO38: 1 | BP38: 1 | BQ38: 0 | BR38: 0 | BS38: 1 | BT38: 0 | BU38: 0 | BV38: 1 | BW38: 1 | BX38: 0 | BY38: 0 | BZ38: 0 | CA38: 1 | CB38: 1 | CC38: 0 | CD38: 0 | CE38: 0 | CF38: 1 | CG38: 1 | CH38: 1 | CI38: 1 | CJ38: 0 | CK38: 1 | CL38: 1 | CM38: 1 | CN38: 0 | CO38: 1 | CP38: 0 | CQ38: 0 | CR38: 0 | CS38: 0 | CT38: 1 | CU38: 0 | CV38: 0 | CW38: 1 | CX38: 1 | CY38: 1 | CZ38: 0 | DA38: 0 | DB38: 1 | DC38: 0 | DD38: 0 | DE38: 0 | DF38: 1 | DG38: 1 | DH38: 1 | DI38: 1 | DJ38: 1 | DK38: 0 | DL38: 0 | DM38: 0 | DN38: 0 | DO38: 0 | DP38: 1 | DQ38: 1 | DR38: 0 | DS38: 1 | DT38: 1 | DU38: 1 | DV38: 0 | DW38: 1 | DX38: 1 | DY38: 1 | DZ38: 0 | EA38: 1 | EB38: 0 | EC38: 0 | ED38: 1 | EE38: 0 | EF38: 0 | EG38: 0 | EH38: 1 | EI38: 1 | EJ38: 1 | EK38: 1 | EL38: 1 | EM38: 1 | EN38: 1 | EO38: 1 | EP38: 1 | EQ38: 1 | ER38: 1 | ES38: 0 | ET38: 0 | EU38: 0 | EV38: 1 | EW38: 1 | EX38: 0 | EY38: 1 | EZ38: 0 | FA38: 1 | FB38: 0 | FC38: 1 | FD38: 0 | FE38: 1 | FF38: 1 | FG38: 1 | FH38: 1 | FI38: 1 | FJ38: 1 | FK38: 1 | FL38: 0 | FM38: 1 | FN38: 0 | FO38: 1 | FP38: 1 | FQ38: 1 | FR38: 0 | FS38: 0 | FT38: 1 | FU38: 1 | FV38: 1 | FW38: 1 | FX38: 0 | FY38: 0 | FZ38: 1 | GA38: 1 | GB38: 1 | GC38: 1 | GD38: 1 | GE38: 1 | GF38: 0 | GG38: 1 | GH38: 0 | GI38: 0 | GJ38: 1 | GK38: 1 | GL38: 1 | GM38: 0 | GN38: 1 | GO38: 1 | GP38: 1 | GQ38: 1 | GR38: 0 | GS38: 0 | GT38: 1 | GU38: 1 | GV38: 1 | GW38: 0 | GX38: 1 | GY38: 1 | GZ38: 1 | HA38: 0 | HB38: 0 | HC38: 1 | HD38: 0 | HE38: 1 | HF38: 0 | HG38: 0 | HH38: 0 | HI38: 1 | HJ38: 1 | HK38: 1 | HL38: 1 | HM38: 1 | HN38: 0
A39: 1 | B39: 0 | C39: 1 | D39: 0 | E39: 0 | F39: 0 | G39: 0 | H39: 1 | I39: 0 | J39: 0 | K39: 0 | L39: 1 | M39: 0 | N39: 0 | O39: 0 | P39: 0 | Q39: 1 | R39: 0 | S39: 0 | U39: 1 | V39: 0.615 | W39: 1 | X39: 0 | Y39: 1 | Z39: 1 | AA39: 0 | AB39: 0 | AC39: 1 | AD39: 1 | AE39: 1 | AF39: 1 | AG39: 1 | AH39: 1 | AI39: 1 | AJ39: 1 | AK39: 0 | AL39: 1 | AM39: 1 | AN39: 0 | AO39: 0 | AP39: 1 | AQ39: 1 | AR39: 1 | AS39: 1 | AT39: 0 | AU39: 0 | AV39: 1 | AW39: 0 | AX39: 0 | AY39: 1 | AZ39: 1 | BA39: 0 | BB39: 1 | BC39: 1 | BD39: 1 | BE39: 0 | BF39: 1 | BG39: 1 | BH39: 0 | BI39: 0 | BJ39: 0 | BK39: 1 | BL39: 1 | BM39: 1 | BN39: 1 | BO39: 0 | BP39: 0 | BQ39: 1 | BR39: 1 | BS39: 0 | BT39: 1 | BU39: 1 | BV39: 0 | BW39: 0 | BX39: 0 | BY39: 1 | BZ39: 1 | CA39: 1 | CB39: 0 | CC39: 0 | CD39: 1 | CE39: 0 | CF39: 1 | CG39: 1 | CH39: 0 | CI39: 0 | CJ39: 0 | CK39: 0 | CL39: 1 | CM39: 0 | CN39: 1 | CO39: 1 | CP39: 1 | CQ39: 1 | CR39: 1 | CS39: 0 | CT39: 0 | CU39: 1 | CV39: 1 | CW39: 1 | CX39: 0 | CY39: 1 | CZ39: 1 | DA39: 1 | DB39: 0 | DC39: 1 | DD39: 0 | DE39: 1 | DF39: 0 | DG39: 1 | DH39: 1 | DI39: 1 | DJ39: 1 | DK39: 0 | DL39: 0 | DM39: 1 | DN39: 1 | DO39: 1 | DP39: 1 | DQ39: 1 | DR39: 1 | DS39: 0 | DT39: 0 | DU39: 1 | DV39: 1 | DW39: 1 | DX39: 1 | DY39: 0 | DZ39: 1 | EA39: 1 | EB39: 1 | EC39: 0 | ED39: 0 | EE39: 0 | EF39: 1 | EG39: 0 | EH39: 0 | EI39: 1 | EJ39: 1 | EK39: 0 | EL39: 0 | EM39: 1 | EN39: 0 | EO39: 0 | EP39: 1 | EQ39: 1 | ER39: 1 | ES39: 1 | ET39: 1 | EU39: 1 | EV39: 1 | EW39: 0 | EX39: 1 | EY39: 1 | EZ39: 1 | FA39: 1 | FB39: 1 | FC39: 0 | FD39: 1 | FE39: 1 | FF39: 1 | FG39: 1 | FH39: 1 | FI39: 0 | FJ39: 1 | FK39: 0 | FL39: 1 | FM39: 0 | FN39: 1 | FO39: 1 | FP39: 1 | FQ39: 0 | FR39: 0 | FS39: 1 | FT39: 0 | FU39: 0 | FV39: 0 | FW39: 1 | FX39: 1 | FY39: 0 | FZ39: 1 | GA39: 1 | GB39: 1 | GC39: 1 | GD39: 0 | GE39: 1 | GF39: 1 | GG39: 0 | GH39: 1 | GI39: 1 | GJ39: 0 | GK39: 1 | GL39: 1 | GM39: 0 | GN39: 0 | GO39: 1 | GP39: 1 | GQ39: 0 | GR39: 0 | GS39: 0 | GT39: 1 | GU39: 0 | GV39: 0 | GW39: 0 | GX39: 0 | GY39: 0 | GZ39: 1 | HA39: 1 | HB39: 0 | HC39: 0 | HD39: 1 | HE39: 1 | HF39: 1 | HG39: 1 | HH39: 1 | HI39: 1 | HJ39: 1 | HK39: 0 | HL39: 0 | HM39: 1 | HN39: 1
A40: 0 | B40: 1 | C40: 1 | D40: 0 | E40: 0 | F40: 0 | G40: 0 | H40: 0 | I40: 0 | J40: 0 | K40: 0 | L40: 0 | M40: 0 | N40: 0 | O40: 0 | P40: 0 | Q40: 0 | R40: 0 | S40: 0 | U40: 1 | V40: 0.31 | W40: 1 | X40: 0 | Y40: 0 | Z40: 0 | AA40: 0 | AB40: 0 | AC40: 1 | AD40: 1 | AE40: 1 | AF40: 1 | AG40: 1 | AH40: 1 | AI40: 0 | AJ40: 0 | AK40: 0 | AL40: 0 | AM40: 0 | AN40: 0 | AO40: 0 | AP40: 0 | AQ40: 1 | AR40: 0 | AS40: 1 | AT40: 0 | AU40: 0 | AV40: 0 | AW40: 0 | AX40: 0 | AY40: 1 | AZ40: 0 | BA40: 0 | BB40: 0 | BC40: 1 | BD40: 1 | BE40: 0 | BF40: 0 | BG40: 1 | BH40: 0 | BI40: 0 | BJ40: 0 | BK40: 0 | BL40: 1 | BM40: 1 | BN40: 0 | BO40: 0 | BP40: 0 | BQ40: 0 | BR40: 1 | BS40: 0 | BT40: 0 | BU40: 0 | BV40: 0 | BW40: 0 | BX40: 0 | BY40: 0 | BZ40: 0 | CA40: 0 | CB40: 0 | CC40: 1 | CD40: 0 | CE40: 0 | CF40: 1 | CG40: 1 | CH40: 0 | CI40: 0 | CJ40: 0 | CK40: 0 | CL40: 0 | CM40: 0 | CN40: 0 | CO40: 1 | CP40: 1 | CQ40: 0 | CR40: 0 | CS40: 0 | CT40: 0 | CU40: 0 | CV40: 0 | CW40: 1 | CX40: 0 | CY40: 0 | CZ40: 0 | DA40: 1 | DB40: 0 | DC40: 0 | DD40: 0 | DE40: 0 | DF40: 0 | DG40: 1 | DH40: 1 | DI40: 0 | DJ40: 0 | DK40: 0 | DL40: 0 | DM40: 0 | DN40: 1 | DO40: 0 | DP40: 0 | DQ40: 1 | DR40: 0 | DS40: 0 | DT40: 0 | DU40: 1 | DV40: 1 | DW40: 1 | DX40: 1 | DY40: 0 | DZ40: 0 | EA40: 1 | EB40: 0 | EC40: 0 | ED40: 0 | EE40: 0 | EF40: 1 | EG40: 0 | EH40: 0 | EI40: 1 | EJ40: 1 | EK40: 0 | EL40: 0 | EM40: 1 | EN40: 0 | EO40: 0 | EP40: 0 | EQ40: 1 | ER40: 1 | ES40: 0 | ET40: 0 | EU40: 0 | EV40: 1 | EW40: 0 | EX40: 0 | EY40: 1 | EZ40: 0 | FA40: 1 | FB40: 1 | FC40: 0 | FD40: 0 | FE40: 1 | FF40: 1 | FG40: 1 | FH40: 0 | FI40: 0 | FJ40: 0 | FK40: 0 | FL40: 0 | FM40: 0 | FN40: 1 | FO40: 1 | FP40: 0 | FQ40: 0 | FR40: 0 | FS40: 0 | FT40: 0 | FU40: 0 | FV40: 0 | FW40: 1 | FX40: 0 | FY40: 0 | FZ40: 1 | GA40: 1 | GB40: 1 | GC40: 0 | GD40: 0 | GE40: 1 | GF40: 0 | GG40: 0 | GH40: 0 | GI40: 0 | GJ40: 0 | GK40: 1 | GL40: 1 | GM40: 0 | GN40: 0 | GO40: 1 | GP40: 1 | GQ40: 0 | GR40: 0 | GS40: 0 | GT40: 0 | GU40: 0 | GV40: 0 | GW40: 0 | GX40: 0 | GY40: 0 | GZ40: 1 | HA40: 0 | HB40: 0 | HC40: 0 | HD40: 0 | HE40: 1 | HF40: 1 | HG40: 0 | HH40: 1 | HI40: 1 | HJ40: 0 | HK40: 0 | HL40: 0 | HM40: 1 | HN40: 0
A41: 0 | B41: 1 | C41: 1 | D41: 0 | E41: 0 | F41: 0 | G41: 0 | H41: 0 | I41: 1 | J41: 0 | K41: 0 | L41: 0 | M41: 0 | N41: 0 | O41: 0 | P41: 0 | Q41: 0 | R41: 0 | S41: 0 | U41: 1 | V41: 0.455 | W41: 1 | X41: 1 | Y41: 0 | Z41: 0 | AA41: 1 | AB41: 1 | AC41: 1 | AD41: 1 | AE41: 1 | AF41: 1 | AG41: 1 | AH41: 1 | AI41: 0 | AJ41: 0 | AK41: 0 | AL41: 0 | AM41: 0 | AN41: 0 | AO41: 0 | AP41: 0 | AQ41: 1 | AR41: 0 | AS41: 1 | AT41: 0 | AU41: 1 | AV41: 0 | AW41: 0 | AX41: 0 | AY41: 1 | AZ41: 0 | BA41: 0 | BB41: 0 | BC41: 1 | BD41: 1 | BE41: 0 | BF41: 0 | BG41: 1 | BH41: 1 | BI41: 0 | BJ41: 1 | BK41: 0 | BL41: 1 | BM41: 1 | BN41: 0 | BO41: 1 | BP41: 0 | BQ41: 0 | BR41: 1 | BS41: 1 | BT41: 0 | BU41: 0 | BV41: 0 | BW41: 1 | BX41: 0 | BY41: 0 | BZ41: 0 | CA41: 0 | CB41: 0 | CC41: 1 | CD41: 0 | CE41: 0 | CF41: 1 | CG41: 1 | CH41: 0 | CI41: 0 | CJ41: 0 | CK41: 0 | CL41: 0 | CM41: 0 | CN41: 0 | CO41: 1 | CP41: 1 | CQ41: 0 | CR41: 0 | CS41: 0 | CT41: 0 | CU41: 0 | CV41: 0 | CW41: 1 | CX41: 1 | CY41: 0 | CZ41: 0 | DA41: 1 | DB41: 1 | DC41: 0 | DD41: 0 | DE41: 0 | DF41: 1 | DG41: 1 | DH41: 1 | DI41: 0 | DJ41: 0 | DK41: 0 | DL41: 0 | DM41: 0 | DN41: 1 | DO41: 0 | DP41: 0 | DQ41: 1 | DR41: 0 | DS41: 0 | DT41: 0 | DU41: 1 | DV41: 1 | DW41: 1 | DX41: 1 | DY41: 0 | DZ41: 0 | EA41: 1 | EB41: 0 | EC41: 0 | ED41: 1 | EE41: 0 | EF41: 1 | EG41: 0 | EH41: 1 | EI41: 1 | EJ41: 1 | EK41: 0 | EL41: 0 | EM41: 1 | EN41: 0 | EO41: 1 | EP41: 0 | EQ41: 1 | ER41: 1 | ES41: 0 | ET41: 0 | EU41: 0 | EV41: 1 | EW41: 1 | EX41: 0 | EY41: 1 | EZ41: 0 | FA41: 1 | FB41: 1 | FC41: 0 | FD41: 0 | FE41: 1 | FF41: 1 | FG41: 1 | FH41: 0 | FI41: 0 | FJ41: 0 | FK41: 0 | FL41: 0 | FM41: 0 | FN41: 1 | FO41: 1 | FP41: 0 | FQ41: 1 | FR41: 0 | FS41: 0 | FT41: 1 | FU41: 0 | FV41: 0 | FW41: 1 | FX41: 0 | FY41: 0 | FZ41: 1 | GA41: 1 | GB41: 1 | GC41: 0 | GD41: 1 | GE41: 1 | GF41: 0 | GG41: 1 | GH41: 0 | GI41: 0 | GJ41: 1 | GK41: 1 | GL41: 1 | GM41: 0 | GN41: 1 | GO41: 1 | GP41: 1 | GQ41: 1 | GR41: 0 | GS41: 0 | GT41: 0 | GU41: 1 | GV41: 1 | GW41: 0 | GX41: 1 | GY41: 0 | GZ41: 1 | HA41: 0 | HB41: 0 | HC41: 1 | HD41: 0 | HE41: 1 | HF41: 1 | HG41: 0 | HH41: 1 | HI41: 1 | HJ41: 0 | HK41: 1 | HL41: 1 | HM41: 1 | HN41: 0
A42: 1 | B42: 0 | C42: 1 | D42: 0 | E42: 0 | F42: 0 | G42: 0 | H42: 0 | I42: 1 | J42: 0 | K42: 0 | L42: 0 | M42: 0 | N42: 0 | O42: 0 | P42: 0 | Q42: 1 | R42: 0 | S42: 1 | U42: 1 | V42: 0.66 | W42: 1 | X42: 1 | Y42: 0 | Z42: 1 | AA42: 1 | AB42: 1 | AC42: 1 | AD42: 1 | AE42: 1 | AF42: 1 | AG42: 1 | AH42: 1 | AI42: 1 | AJ42: 0 | AK42: 1 | AL42: 0 | AM42: 0 | AN42: 1 | AO42: 0 | AP42: 0 | AQ42: 1 | AR42: 0 | AS42: 1 | AT42: 1 | AU42: 1 | AV42: 0 | AW42: 0 | AX42: 1 | AY42: 1 | AZ42: 0 | BA42: 1 | BB42: 0 | BC42: 1 | BD42: 1 | BE42: 1 | BF42: 0 | BG42: 1 | BH42: 1 | BI42: 1 | BJ42: 1 | BK42: 0 | BL42: 1 | BM42: 1 | BN42: 0 | BO42: 1 | BP42: 1 | BQ42: 0 | BR42: 1 | BS42: 1 | BT42: 0 | BU42: 0 | BV42: 1 | BW42: 1 | BX42: 0 | BY42: 0 | BZ42: 0 | CA42: 1 | CB42: 1 | CC42: 0 | CD42: 0 | CE42: 0 | CF42: 1 | CG42: =IF(OFFSET($A42,0,CG$1)=CG$2,1,0) -> 1 | CH42: 1 | CI42: 1 | CJ42: 0 | CK42: 1 | CL42: 1 | CM42: 1 | CN42: 0 | CO42: 1 | CP42: 1 | CQ42: 0 | CR42: 0 | CS42: 0 | CT42: 1 | CU42: 0 | CV42: 0 | CW42: 1 | CX42: 1 | CY42: 1 | CZ42: 0 | DA42: 1 | DB42: 1 | DC42: 0 | DD42: 0 | DE42: 0 | DF42: 1 | DG42: 1 | DH42: 1 | DI42: 1 | DJ42: 1 | DK42: 0 | DL42: 0 | DM42: 0 | DN42: 1 | DO42: 0 | DP42: 1 | DQ42: 1 | DR42: 0 | DS42: 1 | DT42: 1 | DU42: 1 | DV42: 1 | DW42: 1 | DX42: 1 | DY42: 1 | DZ42: 0 | EA42: 1 | EB42: 0 | EC42: =IF(OFFSET($A42,0,EC$1)=EC$2,1,0) -> 0 | ED42: 1 | EE42: 0 | EF42: 1 | EG42: 0 | EH42: 1 | EI42: 1 | EJ42: 1 | EK42: 1 | EL42: 1 | EM42: 1 | EN42: 1 | EO42: 1 | EP42: 1 | EQ42: 1 | ER42: 1 | ES42: 0 | ET42: 0 | EU42: 0 | EV42: 1 | EW42: 1 | EX42: 0 | EY42: 1 | EZ42: 0 | FA42: 1 | FB42: 1 | FC42: 1 | FD42: 0 | FE42: 1 | FF42: 1 | FG42: 1 | FH42: 1 | FI42: 1 | FJ42: 1 | FK42: 1 | FL42: 0 | FM42: 1 | FN42: 1 | FO42: 1 | FP42: 1 | FQ42: 1 | FR42: 0 | FS42: 0 | FT42: 1 | FU42: 1 | FV42: 1 | FW42: 1 | FX42: =IF(OFFSET($A42,0,FX$1)=FX$2,1,0) -> 0 | FY42: 0 | FZ42: 1 | GA42: 1 | GB42: 1 | GC42: 0 | GD42: 1 | GE42: 1 | GF42: 0 | GG42: 1 | GH42: 0 | GI42: 0 | GJ42: 1 | GK42: 1 | GL42: 1 | GM42: 0 | GN42: 1 | GO42: 1 | GP42: 1 | GQ42: 1 | GR42: 0 | GS42: 0 | GT42: 1 | GU42: 1 | GV42: 1 | GW42: 0 | GX42: 1 | GY42: 1 | GZ42: 1 | HA42: 0 | HB42: 0 | HC42: 1 | HD42: 0 | HE42: =IF(OFFSET($A42,0,HE$1)=HE$2,1,0) -> 1 | HF42: 1 | HG42: 0 | HH42: 1 | HI42: 1 | HJ42: 1 | HK42: 1 | HL42: 1 | HM42: 1 | HN42: 0
A43: 0 | B43: 1 | C43: 0 | D43: 0 | E43: 0 | F43: 0 | G43: 0 | H43: 0 | I43: 0 | J43: 0 | K43: 0 | L43: 0 | M43: 0 | N43: 0 | O43: 0 | P43: 0 | Q43: 0 | R43: 0 | S43: 0 | U43: 1 | V43: 0.31 | W43: 1 | X43: 0 | Y43: 0 | Z43: 0 | AA43: 0 | AB43: 0 | AC43: 1 | AD43: 1 | AE43: 1 | AF43: 1 | AG43: 1 | AH43: 1 | AI43: 0 | AJ43: 0 | AK43: 0 | AL43: =IF(OFFSET($A43,0,AL$1)=AL$2,1,0) -> 0 | AM43: 0 | AN43: 0 | AO43: 0 | AP43: 0 | AQ43: 1 | AR43: 0 | AS43: 1 | AT43: 0 | AU43: 0 | AV43: 0 | AW43: 0 | AX43: 0 | AY43: 1 | AZ43: 0 | BA43: 0 | BB43: 0 | BC43: 1 | BD43: 1 | BE43: 0 | BF43: 0 | BG43: 1 | BH43: 0 | BI43: 0 | BJ43: 0 | BK43: 0 | BL43: 1 | BM43: 1 | BN43: 0 | BO43: 0 | BP43: 0 | BQ43: 0 | BR43: =IF(OFFSET($A43,0,BR$1)=BR$2,1,0) -> 1 | BS43: 0 | BT43: 0 | BU43: 0 | BV43: 0 | BW43: 0 | BX43: 0 | BY43: 0 | BZ43: 0 | CA43: 0 | CB43: 0 | CC43: 1 | CD43: 0 | CE43: 0 | CF43: 1 | CG43: 1 | CH43: 0 | CI43: 0 | CJ43: 0 | CK43: 0 | CL43: 0 | CM43: 0 | CN43: 0 | CO43: 1 | CP43: 1 | CQ43: 0 | CR43: 0 | CS43: 0 | CT43: 0 | CU43: 0 | CV43: 0 | CW43: 1 | CX43: 0 | CY43: 0 | CZ43: 0 | DA43: 1 | DB43: 0 | DC43: 0 | DD43: 0 | DE43: 0 | DF43: 0 | DG43: 1 | DH43: 1 | DI43: 0 | DJ43: 0 | DK43: 0 | DL43: 0 | DM43: 0 | DN43: 1 | DO43: 0 | DP43: 0 | DQ43: 1 | DR43: 0 | DS43: 0 | DT43: 0 | DU43: 1 | DV43: 1 | DW43: 1 | DX43: 1 | DY43: 0 | DZ43: 0 | EA43: =IF(OFFSET($A43,0,EA$1)=EA$2,1,0) -> 1 | EB43: 0 | EC43: 0 | ED43: 0 | EE43: 0 | EF43: 1 | EG43: 0 | EH43: 0 | EI43: 1 | EJ43: 1 | EK43: 0 | EL43: 0 | EM43: 1 | EN43: 0 | EO43: 0 | EP43: 0 | EQ43: 1 | ER43: 1 | ES43: 0 | ET43: 0 | EU43: 0 | EV43: 1 | EW43: 0 | EX43: 0 | EY43: 1 | EZ43: 0 | FA43: 1 | FB43: 1 | FC43: 0 | FD43: 0 | FE43: 1 | FF43: 1 | FG43: 1 | FH43: 0 | FI43: =IF(OFFSET($A43,0,FI$1)=FI$2,1,0) -> 0 | FJ43: 0 | FK43: 0 | FL43: 0 | FM43: 0 | FN43: 1 | FO43: 1 | FP43: 0 | FQ43: 0 | FR43: 0 | FS43: 0 | FT43: 0 | FU43: 0 | FV43: 0 | FW43: 1 | FX43: 0 | FY43: 0 | FZ43: 1 | GA43: 1 | GB43: 1 | GC43: 0 | GD43: 0 | GE43: 1 | GF43: 0 | GG43: 0 | GH43: 0 | GI43: 0 | GJ43: 0 | GK43: 1 | GL43: 1 | GM43: 0 | GN43: 0 | GO43: 1 | GP43: 1 | GQ43: 0 | GR43: 0 | GS43: 0 | GT43: 0 | GU43: 0 | GV43: 0 | GW43: 0 | GX43: 0 | GY43: 0 | GZ43: 1 | HA43: 0 | HB43: 0 | HC43: 0 | HD43: =IF(OFFSET($A43,0,HD$1)=HD$2,1,0) -> 0 | HE43: 1 | HF43: 1 | HG43: 0 | HH43: 1 | HI43: 1 | HJ43: 0 | HK43: 0 | HL43: 0 | HM43: 1 | HN43: 0
A44: 0 | B44: 0 | C44: 0 | D44: 0 | E44: 1 | F44: 0 | G44: 0 | H44: 1 | I44: 0 | J44: 0 | K44: 0 | L44: 0 | M44: 0 | N44: 0 | O44: 0 | P44: 0 | Q44: 0 | R44: 0 | S44: 0 | U44: 1 | V44: 0.59 | W44: =IF(OFFSET($A44,0,W$1)=W$2,1,0) -> 1 | X44: 0 | Y44: 1 | Z44: 0 | AA44: 0 | AB44: 0 | AC44: 1 | AD44: 1 | AE44: 1 | AF44: 1 | AG44: 1 | AH44: 1 | AI44: 0 | AJ44: 1 | AK44: 0 | AL44: 1 | AM44: 1 | AN44: 0 | AO44: 0 | AP44: 1 | AQ44: 1 | AR44: 1 | AS44: 1 | AT44: 0 | AU44: 0 | AV44: 1 | AW44: 1 | AX44: 0 | AY44: 1 | AZ44: 1 | BA44: 0 | BB44: 1 | BC44: 1 | BD44: 1 | BE44: 0 | BF44: 1 | BG44: 1 | BH44: 0 | BI44: 0 | BJ44: 0 | BK44: 1 | BL44: 1 | BM44: 1 | BN44: 1 | BO44: 0 | BP44: 0 | BQ44: 1 | BR44: 1 | BS44: 0 | BT44: 1 | BU44: 1 | BV44: 0 | BW44: 0 | BX44: 0 | BY44: 1 | BZ44: 1 | CA44: 0 | CB44: 0 | CC44: 1 | CD44: 1 | CE44: 0 | CF44: 1 | CG44: 1 | CH44: 0 | CI44: 0 | CJ44: 0 | CK44: 0 | CL44: 0 | CM44: 0 | CN44: 1 | CO44: 1 | CP44: 1 | CQ44: 1 | CR44: 1 | CS44: 0 | CT44: 0 | CU44: 1 | CV44: 1 | CW44: 1 | CX44: 0 | CY44: 0 | CZ44: 1 | DA44: 1 | DB44: 0 | DC44: 1 | DD44: 0 | DE44: 1 | DF44: 0 | DG44: 1 | DH44: 1 | DI44: 0 | DJ44: 0 | DK44: 0 | DL44: =IF(OFFSET($A44,0,DL$1)=DL$2,1,0) -> 1 | DM44: 1 | DN44: 1 | DO44: 1 | DP44: 0 | DQ44: 1 | DR44: 1 | DS44: 0 | DT44: 0 | DU44: 1 | DV44: 1 | DW44: 1 | DX44: 1 | DY44: 0 | DZ44: 1 | EA44: 1 | EB44: 1 | EC44: 1 | ED44: 0 | EE44: 0 | EF44: 1 | EG44: 1 | EH44: 0 | EI44: 1 | EJ44: 1 | EK44: 0 | EL44: 0 | EM44: 1 | EN44: 0 | EO44: 0 | EP44: 0 | EQ44: 1 | ER44: 1 | ES44: 1 | ET44: 1 | EU44: 1 | EV44: 1 | EW44: 0 | EX44: 1 | EY44: 1 | EZ44: 1 | FA44: 1 | FB44: 1 | FC44: 0 | FD44: 1 | FE44: 1 | FF44: =IF(OFFSET($A44,0,FF$1)=FF$2,1,0) -> 1 | FG44: 1 | FH44: 0 | FI44: 0 | FJ44: 0 | FK44: 0 | FL44: 1 | FM44: 0 | FN44: 1 | FO44: 1 | FP44: 0 | FQ44: 0 | FR44: 1 | FS44: 1 | FT44: 0 | FU44: 0 | FV44: 0 | FW44: 1 | FX44: 1 | FY44: 1 | FZ44: 1 | GA44: 1 | GB44: 1 | GC44: 0 | GD44: 0 | GE44: 1 | GF44: 1 | GG44: 0 | GH44: 1 | GI44: 1 | GJ44: 0 | GK44: 1 | GL44: 1 | GM44: 1 | GN44: 0 | GO44: 1 | GP44: =IF(OFFSET($A44,0,GP$1)=GP$2,1,0) -> 1 | GQ44: 0 | GR44: 1 | GS44: 1 | GT44: 0 | GU44: 0 | GV44: 0 | GW44: 0 | GX44: 0 | GY44: 0 | GZ44: 1 | HA44: 1 | HB44: 0 | HC44: 0 | HD44: 1 | HE44: 1 | HF44: 1 | HG44: 1 | HH44: 1 | HI44: 1 | HJ44: 0 | HK44: 0 | HL44: 0 | HM44: 1 | HN44: 1
A45: 0 | B45: 0 | C45: 0 | D45: 0 | E45: 0 | F45: 0 | G45: 0 | H45: 0 | I45: 0 | J45: 0 | K45: 0 | L45: 0 | M45: 1 | N45: 0 | O45: 0 | P45: 0 | Q45: 0 | R45: 0 | S45: 0 | U45: 1 | V45: 0.315 | W45: 1 | X45: 0 | Y45: 0 | Z45: 0 | AA45: 0 | AB45: 0 | AC45: 1 | AD45: 1 | AE45: 1 | AF45: 1 | AG45: 1 | AH45: 1 | AI45: 0 | AJ45: 0 | AK45: 0 | AL45: 0 | AM45: 0 | AN45: 0 | AO45: 0 | AP45: 0 | AQ45: 1 | AR45: 0 | AS45: 1 | AT45: 0 | AU45: 0 | AV45: 0 | AW45: 0 | AX45: 0 | AY45: 1 | AZ45: 0 | BA45: 0 | BB45: 0 | BC45: 1 | BD45: 1 | BE45: 0 | BF45: 0 | BG45: 1 | BH45: 0 | BI45: 0 | BJ45: 0 | BK45: 0 | BL45: 1 | BM45: 1 | BN45: 0 | BO45: 0 | BP45: 0 | BQ45: 0 | BR45: 1 | BS45: 0 | BT45: 0 | BU45: 0 | BV45: 0 | BW45: 0 | BX45: 0 | BY45: 0 | BZ45: 0 | CA45: 0 | CB45: 0 | CC45: 1 | CD45: 0 | CE45: 0 | CF45: 1 | CG45: 1 | CH45: 0 | CI45: 0 | CJ45: 0 | CK45: 0 | CL45: =IF(OFFSET($A45,0,CL$1)=CL$2,1,0) -> 0 | CM45: 0 | CN45: 0 | CO45: 1 | CP45: 1 | CQ45: 0 | CR45: 0 | CS45: 0 | CT45: 0 | CU45: 0 | CV45: 0 | CW45: 1 | CX45: 0 | CY45: 0 | CZ45: 0 | DA45: 1 | DB45: 0 | DC45: 0 | DD45: 0 | DE45: 0 | DF45: 0 | DG45: 1 | DH45: 1 | DI45: 0 | DJ45: 0 | DK45: 1 | DL45: 0 | DM45: 0 | DN45: 1 | DO45: 0 | DP45: 0 | DQ45: 1 | DR45: 0 | DS45: 0 | DT45: 0 | DU45: 1 | DV45: 1 | DW45: 1 | DX45: 1 | DY45: 0 | DZ45: 0 | EA45: 1 | EB45: 0 | EC45: 0 | ED45: 0 | EE45: 0 | EF45: 1 | EG45: 0 | EH45: 0 | EI45: 1 | EJ45: 1 | EK45: 0 | EL45: 0 | EM45: 1 | EN45: 0 | EO45: 0 | EP45: 0 | EQ45: 1 | ER45: 1 | ES45: 0 | ET45: =IF(OFFSET($A45,0,ET$1)=ET$2,1,0) -> 0 | EU45: 0 | EV45: 1 | EW45: 0 | EX45: 0 | EY45: 1 | EZ45: 0 | FA45: 1 | FB45: 1 | FC45: 0 | FD45: 0 | FE45: 1 | FF45: 1 | FG45: 1 | FH45: 0 | FI45: 0 | FJ45: 0 | FK45: 0 | FL45: 0 | FM45: 0 | FN45: 1 | FO45: 1 | FP45: 0 | FQ45: 0 | FR45: 0 | FS45: 0 | FT45: 0 | FU45: 0 | FV45: 0 | FW45: 1 | FX45: 0 | FY45: 0 | FZ45: 1 | GA45: 1 | GB45: 1 | GC45: 0 | GD45: 0 | GE45: 1 | GF45: 0 | GG45: 0 | GH45: 0 | GI45: 0 | GJ45: 0 | GK45: 1 | GL45: 1 | GM45: 0 | GN45: 0 | GO45: 1 | GP45: 1 | GQ45: 0 | GR45: 0 | GS45: 0 | GT45: 0 | GU45: 0 | GV45: 0 | GW45: 0 | GX45: 0 | GY45: 0 | GZ45: 1 | HA45: 0 | HB45: 0 | HC45: 0 | HD45: 0 | HE45: 1 | HF45: 1 | HG45: 0 | HH45: 1 | HI45: 1 | HJ45: 0 | HK45: 0 | HL45: 0 | HM45: 1 | HN45: 0
A46: 0 | B46: 1 | C46: 0 | D46: 0 | E46: 0 | F46: 0 | G46: 0 | H46: 1 | I46: 0 | J46: 0 | K46: 0 | L46: 0 | M46: 0 | N46: 0 | O46: 0 | P46: 0 | Q46: 1 | R46: 0 | S46: 0 | U46: 1 | V46: 0.615 | W46: 1 | X46: 0 | Y46: 1 | Z46: 1 | AA46: 0 | AB46: 0 | AC46: 1 | AD46: 1 | AE46: 1 | AF46: 1 | AG46: 1 | AH46: 1 | AI46: 1 | AJ46: 1 | AK46: 0 | AL46: 1 | AM46: 1 | AN46: 0 | AO46: 0 | AP46: 1 | AQ46: 1 | AR46: 1 | AS46: 1 | AT46: 0 | AU46: 0 | AV46: 1 | AW46: 0 | AX46: 0 | AY46: 1 | AZ46: 1 | BA46: 0 | BB46: 1 | BC46: 1 | BD46: 1 | BE46: 0 | BF46: =IF(OFFSET($A46,0,BF$1)=BF$2,1,0) -> 1 | BG46: 1 | BH46: 0 | BI46: 0 | BJ46: 0 | BK46: 1 | BL46: 1 | BM46: 1 | BN46: 1 | BO46: 0 | BP46: 0 | BQ46: 1 | BR46: 1 | BS46: 0 | BT46: 1 | BU46: 1 | BV46: 0 | BW46: 0 | BX46: 0 | BY46: 1 | BZ46: 1 | CA46: 1 | CB46: 0 | CC46: 1 | CD46: 1 | CE46: 0 | CF46: 1 | CG46: 1 | CH46: 0 | CI46: 0 | CJ46: 0 | CK46: 0 | CL46: 1 | CM46: 0 | CN46: 1 | CO46: 1 | CP46: 1 | CQ46: 1 | CR46: 1 | CS46: 0 | CT46: 0 | CU46: 1 | CV46: 1 | CW46: 1 | CX46: 0 | CY46: 1 | CZ46: 1 | DA46: 1 | DB46: 0 | DC46: 1 | DD46: 0 | DE46: 1 | DF46: 0 | DG46: 1 | DH46: 1 | DI46: 1 | DJ46: 1 | DK46: 0 | DL46: 0 | DM46: 1 | DN46: 1 | DO46: 1 | DP46: 1 | DQ46: 1 | DR46: 1 | DS46: 0 | DT46: 0 | DU46: 1 | DV46: 1 | DW46: 1 | DX46: 1 | DY46: 0 | DZ46: 1 | EA46: 1 | EB46: 1 | EC46: 0 | ED46: 0 | EE46: 0 | EF46: 1 | EG46: 0 | EH46: 0 | EI46: 1 | EJ46: 1 | EK46: 0 | EL46: 0 | EM46: 1 | EN46: 0 | EO46: 0 | EP46: 1 | EQ46: 1 | ER46: 1 | ES46: 1 | ET46: 1 | EU46: 1 | EV46: 1 | EW46: 0 | EX46: 1 | EY46: 1 | EZ46: 1 | FA46: 1 | FB46: 1 | FC46: 0 | FD46: 1 | FE46: 1 | FF46: 1 | FG46: 1 | FH46: 1 | FI46: 0 | FJ46: 1 | FK46: 0 | FL46: 1 | FM46: 0 | FN46: 1 | FO46: 1 | FP46: 1 | FQ46: 0 | FR46: 0 | FS46: 1 | FT46: 0 | FU46: 0 | FV46: 0 | FW46: 1 | FX46: 1 | FY46: 0 | FZ46: 1 | GA46: 1 | GB46: 1 | GC46: 0 | GD46: 0 | GE46: 1 | GF46: 1 | GG46: 0 | GH46: 1 | GI46: 1 | GJ46: 0 | GK46: 1 | GL46: 1 | GM46: 0 | GN46: 0 | GO46: 1 | GP46: 1 | GQ46: 0 | GR46: 0 | GS46: 0 | GT46: 1 | GU46: 0 | GV46: 0 | GW46: 0 | GX46: 0 | GY46: 0 | GZ46: 1 | HA46: 1 | HB46: 0 | HC46: 0 | HD46: 1 | HE46: 1 | HF46: 1 | HG46: 1 | HH46: 1 | HI46: 1 | HJ46: 1 | HK46: 0 | HL46: 0 | HM46: 1 | HN46: 1
A47: 1 | B47: 0 | C47: 1 | D47: 0 | E47: 0 | F47: 0 | G47: 0 | H47: 0 | I47: 0 | J47: 0 | K47: 0 | L47: 0 | M47: 0 | N47: 1 | O47: 0 | P47: 0 | Q47: 0 | R47: 0 | S47: 1 | U47: 1 | V47: 0.47 | W47: 1 | X47: 0 | Y47: 0 | Z47: 0 | AA47: 0 | AB47: 0 | AC47: 1 | AD47: 1 | AE47: 1 | AF47: 1 | AG47: 1 | AH47: 1 | AI47: 0 | AJ47: 0 | AK47: 1 | AL47: 0 | AM47: 0 | AN47: 1 | AO47: 0 | AP47: 0 | AQ47: 1 | AR47: 0 | AS47: 1 | AT47: 1 | AU47: 0 | AV47: 0 | AW47: 0 | AX47: 1 | AY47: 1 | AZ47: 0 | BA47: 1 | BB47: =IF(OFFSET($A47,0,BB$1)=BB$2,1,0) -> 0 | BC47: 1 | BD47: 1 | BE47: 1 | BF47: 0 | BG47: 1 | BH47: 0 | BI47: 1 | BJ47: 0 | BK47: 0 | BL47: 1 | BM47: 1 | BN47: 0 | BO47: 0 | BP47: 1 | BQ47: 0 | BR47: 1 | BS47: 0 | BT47: 0 | BU47: 0 | BV47: 1 | BW47: 0 | BX47: 1 | BY47: 0 | BZ47: 0 | CA47: 0 | CB47: 1 | CC47: 0 | CD47: 0 | CE47: 1 | CF47: 1 | CG47: 1 | CH47: 1 | CI47: 1 | CJ47: 1 | CK47: 1 | CL47: 0 | CM47: 1 | CN47: 0 | CO47: 1 | CP47: 1 | CQ47: 0 | CR47: 0 | CS47: 0 | CT47: 1 | CU47: 0 | CV47: 0 | CW47: 1 | CX47: 0 | CY47: 0 | CZ47: 0 | DA47: 1 | DB47: 0 | DC47: 0 | DD47: 0 | DE47: 0 | DF47: 0 | DG47: 1 | DH47: 1 | DI47: 0 | DJ47: 0 | DK47: 0 | DL47: 0 | DM47: 0 | DN47: 1 | DO47: 0 | DP47: 0 | DQ47: 1 | DR47: 0 | DS47: 1 | DT47: 1 | DU47: 1 | DV47: 1 | DW47: 1 | DX47: 1 | DY47: 1 | DZ47: 0 | EA47: 1 | EB47: 0 | EC47: 0 | ED47: 0 | EE47: 0 | EF47: 1 | EG47: 0 | EH47: 0 | EI47: 1 | EJ47: 1 | EK47: 1 | EL47: 1 | EM47: 1 | EN47: 1 | EO47: 0 | EP47: 0 | EQ47: 1 | ER47: 1 | ES47: 0 | ET47: 0 | EU47: 0 | EV47: 1 | EW47: 0 | EX47: 0 | EY47: 1 | EZ47: 0 | FA47: 1 | FB47: 1 | FC47: 1 | FD47: 0 | FE47: 1 | FF47: 1 | FG47: 1 | FH47: 0 | FI47: 1 | FJ47: 0 | FK47: 1 | FL47: 0 | FM47: 1 | FN47: 1 | FO47: 1 | FP47: 0 | FQ47: 0 | FR47: 0 | FS47: 0 | FT47: 0 | FU47: 1 | FV47: 1 | FW47: 1 | FX47: 0 | FY47: 0 | FZ47: 1 | GA47: 1 | GB47: 1 | GC47: 0 | GD47: 0 | GE47: 1 | GF47: 0 | GG47: 0 | GH47: 0 | GI47: 0 | GJ47: 0 | GK47: 1 | GL47: 1 | GM47: 0 | GN47: 0 | GO47: 1 | GP47: 1 | GQ47: 0 | GR47: 0 | GS47: 0 | GT47: 0 | GU47: 0 | GV47: 0 | GW47: 1 | GX47: 0 | GY47: 1 | GZ47: 1 | HA47: 0 | HB47: 1 | HC47: 0 | HD47: 0 | HE47: 1 | HF47: 1 | HG47: 0 | HH47: 1 | HI47: 1 | HJ47: 0 | HK47: 0 | HL47: =IF(OFFSET($A47,0,HL$1)=HL$2,1,0) -> 0 | HM47: 1 | HN47: 0
A48: 1 | B48: 0 | C48: 0 | D48: 0 | E48: 0 | F48: 0 | G48: 0 | H48: 0 | I48: 0 | J48: 0 | K48: 0 | L48: 0 | M48: 0 | N48: 0 | O48: 0 | P48: 0 | Q48: 0 | R48: 0 | S48: 0 | U48: 1 | V48: 0.305 | W48: 1 | X48: 0 | Y48: 0 | Z48: 0 | AA48: 0 | AB48: 0 | AC48: 1 | AD48: 1 | AE48: 1 | AF48: 1 | AG48: 1 | AH48: 1 | AI48: 0 | AJ48: 0 | AK48: 0 | AL48: 0 | AM48: 0 | AN48: 0 | AO48: 0 | AP48: 0 | AQ48: 1 | AR48: 0 | AS48: 1 | AT48: 0 | AU48: 0 | AV48: 0 | AW48: 0 | AX48: 0 | AY48: 1 | AZ48: 0 | BA48: 0 | BB48: 0 | BC48: 1 | BD48: 1 | BE48: 0 | BF48: 0 | BG48: 1 | BH48: 0 | BI48: 0 | BJ48: 0 | BK48: 0 | BL48: 1 | BM48: 1 | BN48: 0 | BO48: 0 | BP48: 0 | BQ48: 0 | BR48: 1 | BS48: 0 | BT48: 0 | BU48: 0 | BV48: 0 | BW48: 0 | BX48: 0 | BY48: 0 | BZ48: 0 | CA48: 0 | CB48: 0 | CC48: 0 | CD48: 0 | CE48: 0 | CF48: 1 | CG48: 1 | CH48: 0 | CI48: 0 | CJ48: 0 | CK48: 0 | CL48: 0 | CM48: 0 | CN48: 0 | CO48: 1 | CP48: 1 | CQ48: 0 | CR48: 0 | CS48: 0 | CT48: 0 | CU48: 0 | CV48: 0 | CW48: 1 | CX48: 0 | CY48: 0 | CZ48: 0 | DA48: 1 | DB48: 0 | DC48: =IF(OFFSET($A48,0,DC$1)=DC$2,1,0) -> 0 | DD48: 0 | DE48: 0 | DF48: 0 | DG48: 1 | DH48: 1 | DI48: 0 | DJ48: 0 | DK48: 0 | DL48: 0 | DM48: 0 | DN48: 1 | DO48: 0 | DP48: 0 | DQ48: 1 | DR48: 0 | DS48: 0 | DT48: 0 | DU48: 1 | DV48: 1 | DW48: 1 | DX48: 1 | DY48: 0 | DZ48: 0 | EA48: 1 | EB48: 0 | EC48: 0 | ED48: 0 | EE48: 0 | EF48: 1 | EG48: 0 | EH48: 0 | EI48: 1 | EJ48: 1 | EK48: 0 | EL48: 0 | EM48: 1 | EN48: 0 | EO48: 0 | EP48: 0 | EQ48: 1 | ER48: 1 | ES48: 0 | ET48: 0 | EU48: 0 | EV48: 1 | EW48: 0 | EX48: 0 | EY48: 1 | EZ48: 0 | FA48: 1 | FB48: 1 | FC48: 0 | FD48: 0 | FE48: 1 | FF48: 1 | FG48: 1 | FH48: 0 | FI48: 0 | FJ48: 0 | FK48: 0 | FL48: 0 | FM48: 0 | FN48: 1 | FO48: 1 | FP48: 0 | FQ48: 0 | FR48: 0 | FS48: 0 | FT48: 0 | FU48: 0 | FV48: 0 | FW48: 1 | FX48: 0 | FY48: 0 | FZ48: 1 | GA48: 1 | GB48: 1 | GC48: 0 | GD48: 0 | GE48: 1 | GF48: 0 | GG48: 0 | GH48: 0 | GI48: 0 | GJ48: 0 | GK48: 1 | GL48: 1 | GM48: 0 | GN48: 0 | GO48: 1 | GP48: 1 | GQ48: 0 | GR48: 0 | GS48: 0 | GT48: 0 | GU48: 0 | GV48: 0 | GW48: 0 | GX48: 0 | GY48: 0 | GZ48: 1 | HA48: 0 | HB48: 0 | HC48: 0 | HD48: 0 | HE48: 1 | HF48: 1 | HG48: 0 | HH48: 1 | HI48: 1 | HJ48: 0 | HK48: 0 | HL48: 0 | HM48: 1 | HN48: 0
A49: 0 | B49: 0 | C49: 1 | D49: 0 | E49: 0 | F49: 0 | G49: 0 | H49: 0 | I49: 0 | J49: 0 | K49: 0 | L49: 0 | M49: 0 | N49: 0 | O49: 0 | P49: 0 | Q49: 0 | R49: 1 | S49: 0 | U49: 1 | V49: 0.25 | W49: 1 | X49: 0 | Y49: 0 | Z49: 0 | AA49: 0 | AB49: 0 | AC49: 1 | AD49: 1 | AE49: 1 | AF49: 1 | AG49: 1 | AH49: 1 | AI49: 0 | AJ49: 0 | AK49: 0 | AL49: 0 | AM49: 0 | AN49: 0 | AO49: 0 | AP49: 0 | AQ49: 1 | AR49: 0 | AS49: 1 | AT49: 0 | AU49: 0 | AV49: 0 | AW49: 0 | AX49: 0 | AY49: 0 | AZ49: 0 | BA49: 0 | BB49: 0 | BC49: 1 | BD49: 1 | BE49: 0 | BF49: 0 | BG49: 1 | BH49: 0 | BI49: 0 | BJ49: 0 | BK49: 0 | BL49: 1 | BM49: 0 | BN49: 0 | BO49: 0 | BP49: 0 | BQ49: 0 | BR49: 0 | BS49: 0 | BT49: 0 | BU49: 0 | BV49: 0 | BW49: 0 | BX49: 0 | BY49: 0 | BZ49: 0 | CA49: 0 | CB49: 0 | CC49: 1 | CD49: 0 | CE49: 0 | CF49: 1 | CG49: 1 | CH49: 0 | CI49: 0 | CJ49: 0 | CK49: 0 | CL49: 0 | CM49: 0 | CN49: 0 | CO49: 1 | CP49: 0 | CQ49: 0 | CR49: 0 | CS49: 0 | CT49: 0 | CU49: 0 | CV49: 0 | CW49: 1 | CX49: 0 | CY49: 0 | CZ49: 0 | DA49: 0 | DB49: =IF(OFFSET($A49,0,DB$1)=DB$2,1,0) -> 0 | DC49: 0 | DD49: 0 | DE49: 0 | DF49: 0 | DG49: 1 | DH49: 1 | DI49: 0 | DJ49: 0 | DK49: 0 | DL49: 0 | DM49: 0 | DN49: 0 | DO49: 0 | DP49: 0 | DQ49: 1 | DR49: 0 | DS49: 0 | DT49: 0 | DU49: 1 | DV49: 0 | DW49: 1 | DX49: 1 | DY49: 0 | DZ49: 0 | EA49: 1 | EB49: 0 | EC49: 0 | ED49: 0 | EE49: 0 | EF49: 0 | EG49: 0 | EH49: 0 | EI49: 1 | EJ49: 1 | EK49: 0 | EL49: 0 | EM49: 1 | EN49: 0 | EO49: 0 | EP49: 0 | EQ49: 1 | ER49: 1 | ES49: 0 | ET49: 0 | EU49: 0 | EV49: 1 | EW49: 0 | EX49: 0 | EY49: 1 | EZ49: 0 | FA49: 1 | FB49: 0 | FC49: 0 | FD49: 0 | FE49: 1 | FF49: 1 | FG49: 1 | FH49: 0 | FI49: 0 | FJ49: 0 | FK49: 0 | FL49: 0 | FM49: 0 | FN49: 0 | FO49: 1 | FP49: 0 | FQ49: 0 | FR49: 0 | FS49: 0 | FT49: 0 | FU49: 0 | FV49: 0 | FW49: 1 | FX49: 0 | FY49: 0 | FZ49: 1 | GA49: 1 | GB49: 1 | GC49: 0 | GD49: 0 | GE49: 1 | GF49: 0 | GG49: 0 | GH49: 0 | GI49: 0 | GJ49: 0 | GK49: 1 | GL49: 1 | GM49: 0 | GN49: 0 | GO49: 1 | GP49: 1 | GQ49: 0 | GR49: 0 | GS49: 0 | GT49: 0 | GU49: 0 | GV49: 0 | GW49: 0 | GX49: 0 | GY49: 0 | GZ49: 1 | HA49: 0 | HB49: 0 | HC49: 0 | HD49: 0 | HE49: 1 | HF49: 0 | HG49: 0 | HH49: 0 | HI49: 1 | HJ49: 0 | HK49: 0 | HL49: 0 | HM49: 1 | HN49: 0
A50: 0 | B50: 1 | C50: 0 | D50: 0 | E50: 0 | F50: 0 | G50: 0 | H50: 0 | I50: 0 | J50: 0 | K50: 0 | L50: 0 | M50: 0 | N50: 0 | O50: 0 | P50: 1 | Q50: 1 | R50: 0 | S50: 0 | U50: 1 | V50: 0.4 | W50: 1 | X50: 0 | Y50: 0 | Z50: 1 | AA50: 0 | AB50: 0 | AC50: 1 | AD50: 1 | AE50: 1 | AF50: 1 | AG50: 1 | AH50: 1 | AI50: 1 | AJ50: 0 | AK50: 0 | AL50: 0 | AM50: 0 | AN50: 0 | AO50: 1 | AP50: 0 | AQ50: 1 | AR50: 0 | AS50: 1 | AT50: 0 | AU50: 0 | AV50: 0 | AW50: 0 | AX50: 0 | AY50: 1 | AZ50: 0 | BA50: 0 | BB50: 0 | BC50: 1 | BD50: 1 | BE50: 0 | BF50: 0 | BG50: 1 | BH50: 0 | BI50: 0 | BJ50: 0 | BK50: 0 | BL50: 1 | BM50: 1 | BN50: 0 | BO50: 0 | BP50: 0 | BQ50: 0 | BR50: 1 | BS50: 0 | BT50: 0 | BU50: 0 | BV50: 0 | BW50: 0 | BX50: 0 | BY50: 0 | BZ50: 0 | CA50: 1 | CB50: 0 | CC50: 1 | CD50: 0 | CE50: 0 | CF50: 1 | CG50: 1 | CH50: 0 | CI50: 0 | CJ50: 0 | CK50: 0 | CL50: 1 | CM50: 0 | CN50: 0 | CO50: 1 | CP50: 1 | CQ50: 0 | CR50: 0 | CS50: 1 | CT50: 0 | CU50: 0 | CV50: 0 | CW50: 1 | CX50: 0 | CY50: 1 | CZ50: 0 | DA50: 1 | DB50: 0 | DC50: 0 | DD50: 1 | DE50: 0 | DF50: 0 | DG50: 1 | DH50: 1 | DI50: 1 | DJ50: 1 | DK50: 0 | DL50: 0 | DM50: 0 | DN50: 1 | DO50: 0 | DP50: 1 | DQ50: 1 | DR50: 0 | DS50: 0 | DT50: 0 | DU50: 1 | DV50: 1 | DW50: 1 | DX50: 1 | DY50: 0 | DZ50: 0 | EA50: 1 | EB50: 0 | EC50: 0 | ED50: 0 | EE50: 1 | EF50: 1 | EG50: 0 | EH50: 0 | EI50: 1 | EJ50: 1 | EK50: 0 | EL50: 0 | EM50: 1 | EN50: 0 | EO50: 0 | EP50: 1 | EQ50: 1 | ER50: 1 | ES50: 0 | ET50: 0 | EU50: 0 | EV50: 1 | EW50: 0 | EX50: 0 | EY50: 1 | EZ50: 0 | FA50: 1 | FB50: 1 | FC50: 0 | FD50: 0 | FE50: 1 | FF50: 1 | FG50: 1 | FH50: 1 | FI50: 0 | FJ50: 1 | FK50: 0 | FL50: 0 | FM50: 0 | FN50: 1 | FO50: 1 | FP50: 1 | FQ50: 0 | FR50: 0 | FS50: 0 | FT50: 0 | FU50: 0 | FV50: 0 | FW50: 1 | FX50: 0 | FY50: 0 | FZ50: 1 | GA50: 1 | GB50: 1 | GC50: 0 | GD50: 0 | GE50: 1 | GF50: 0 | GG50: 0 | GH50: 0 | GI50: 0 | GJ50: 0 | GK50: 1 | GL50: 1 | GM50: 0 | GN50: 0 | GO50: 1 | GP50: 1 | GQ50: 0 | GR50: 0 | GS50: 0 | GT50: 1 | GU50: 0 | GV50: 0 | GW50: 0 | GX50: 0 | GY50: 0 | GZ50: 1 | HA50: 0 | HB50: 0 | HC50: 0 | HD50: 0 | HE50: 1 | HF50: 1 | HG50: 0 | HH50: 1 | HI50: 1 | HJ50: 1 | HK50: 0 | HL50: 0 | HM50: 1 | HN50: 0
A51: 0 | B51: 0 | C51: 1 | D51: 0 | E51: 0 | F51: 0 | G51: 0 | H51: 0 | I51: 0 | J51: 0 | K51: 0 | L51: 0 | M51: 0 | N51: 0 | O51: 0 | P51: 1 | Q51: 0 | R51: 1 | S51: 0 | U51: 1 | V51: 0.27 | W51: 1 | X51: 0 | Y51: 0 | Z51: 0 | AA51: 0 | AB51: 0 | AC51: 1 | AD51: 1 | AE51: 1 | AF51: 1 | AG51: 1 | AH51: 1 | AI51: 0 | AJ51: 0 | AK51: 0 | AL51: 0 | AM51: 0 | AN51: 0 | AO51: 1 | AP51: 0 | AQ51: 1 | AR51: 0 | AS51: 1 | AT51: 0 | AU51: 0 | AV51: 0 | AW51: 0 | AX51: 0 | AY51: 0 | AZ51: 0 | BA51: 0 | BB51: 0 | BC51: 1 | BD51: 1 | BE51: 0 | BF51: 0 | BG51: 1 | BH51: 0 | BI51: 0 | BJ51: 0 | BK51: 0 | BL51: 1 | BM51: 0 | BN51: 0 | BO51: 0 | BP51: 0 | BQ51: 0 | BR51: 0 | BS51: 0 | BT51: 0 | BU51: 0 | BV51: 0 | BW51: 0 | BX51: 0 | BY51: 0 | BZ51: 0 | CA51: 0 | CB51: 0 | CC51: 1 | CD51: 0 | CE51: 0 | CF51: 1 | CG51: 1 | CH51: 0 | CI51: 0 | CJ51: 0 | CK51: 0 | CL51: 0 | CM51: 0 | CN51: 0 | CO51: 1 | CP51: 0 | CQ51: 0 | CR51: 0 | CS51: 1 | CT51: 0 | CU51: 0 | CV51: 0 | CW51: 1 | CX51: 0 | CY51: 0 | CZ51: 0 | DA51: 0 | DB51: 0 | DC51: 0 | DD51: 1 | DE51: 0 | DF51: 0 | DG51: 1 | DH51: 1 | DI51: 0 | DJ51: 0 | DK51: 0 | DL51: 0 | DM51: 0 | DN51: 0 | DO51: 0 | DP51: 0 | DQ51: 1 | DR51: 0 | DS51: 0 | DT51: 0 | DU51: 1 | DV51: 0 | DW51: 1 | DX51: 1 | DY51: 0 | DZ51: 0 | EA51: 1 | EB51: 0 | EC51: 0 | ED51: 0 | EE51: 1 | EF51: 0 | EG51: 0 | EH51: 0 | EI51: 1 | EJ51: 1 | EK51: 0 | EL51: 0 | EM51: 1 | EN51: 0 | EO51: 0 | EP51: 0 | EQ51: 1 | ER51: 1 | ES51: 0 | ET51: 0 | EU51: 0 | EV51: 1 | EW51: 0 | EX51: 0 | EY51: 1 | EZ51: 0 | FA51: 1 | FB51: 0 | FC51: 0 | FD51: 0 | FE51: 1 | FF51: 1 | FG51: 1 | FH51: 0 | FI51: 0 | FJ51: 0 | FK51: 0 | FL51: 0 | FM51: 0 | FN51: 0 | FO51: 1 | FP51: 0 | FQ51: 0 | FR51: 0 | FS51: 0 | FT51: 0 | FU51: 0 | FV51: 0 | FW51: 1 | FX51: 0 | FY51: 0 | FZ51: 1 | GA51: 1 | GB51: 1 | GC51: 0 | GD51: 0 | GE51: 1 | GF51: 0 | GG51: 0 | GH51: 0 | GI51: 0 | GJ51: 0 | GK51: 1 | GL51: 1 | GM51: 0 | GN51: 0 | GO51: 1 | GP51: 1 | GQ51: 0 | GR51: 0 | GS51: 0 | GT51: 0 | GU51: 0 | GV51: 0 | GW51: 0 | GX51: 0 | GY51: 0 | GZ51: 1 | HA51: 0 | HB51: 0 | HC51: 0 | HD51: 0 | HE51: 1 | HF51: 0 | HG51: 0 | HH51: 0 | HI51: 1 | HJ51: 0 | HK51: 0 | HL51: 0 | HM51: 1 | HN51: 0
A52: 1 | B52: 0 | C52: 0 | D52: 0 | E52: 0 | F52: 0 | G52: 0 | H52: 1 | I52: 0 | J52: 0 | K52: 0 | L52: 0 | M52: 0 | N52: 1 | O52: 0 | P52: 0 | Q52: 0 | R52: 0 | S52: 1 | U52: 1 | V52: 0.705 | W52: 1 | X52: 0 | Y52: 1 | Z52: 0 | AA52: 0 | AB52: 0 | AC52: 1 | AD52: 1 | AE52: 1 | AF52: 1 | AG52: 1 | AH52: 1 | AI52: 0 | AJ52: 1 | AK52: 1 | AL52: 1 | AM52: 1 | AN52: 1 | AO52: 0 | AP52: 1 | AQ52: 1 | AR52: 1 | AS52: 1 | AT52: 1 | AU52: 0 | AV52: 1 | AW52: 0 | AX52: 1 | AY52: 1 | AZ52: 1 | BA52: 1 | BB52: 1 | BC52: 1 | BD52: 1 | BE52: 1 | BF52: 1 | BG52: 1 | BH52: 0 | BI52: 1 | BJ52: 0 | BK52: 1 | BL52: 1 | BM52: 1 | BN52: 1 | BO52: 0 | BP52: 1 | BQ52: 1 | BR52: 1 | BS52: 0 | BT52: 1 | BU52: 1 | BV52: 1 | BW52: 0 | BX52: 1 | BY52: 1 | BZ52: 1 | CA52: 0 | CB52: 1 | CC52: 0 | CD52: 1 | CE52: 1 | CF52: 1 | CG52: 1 | CH52: 1 | CI52: 1 | CJ52: 1 | CK52: 1 | CL52: 0 | CM52: 1 | CN52: 1 | CO52: 1 | CP52: 1 | CQ52: 1 | CR52: 1 | CS52: 0 | CT52: 1 | CU52: 1 | CV52: 1 | CW52: 1 | CX52: 0 | CY52: 0 | CZ52: 1 | DA52: 1 | DB52: 0 | DC52: 1 | DD52: 0 | DE52: 1 | DF52: 0 | DG52: 1 | DH52: 1 | DI52: 0 | DJ52: 0 | DK52: 0 | DL52: 0 | DM52: 1 | DN52: 1 | DO52: 1 | DP52: 0 | DQ52: 1 | DR52: 1 | DS52: 1 | DT52: 1 | DU52: 1 | DV52: 1 | DW52: 1 | DX52: 1 | DY52: 1 | DZ52: 1 | EA52: 1 | EB52: 1 | EC52: 0 | ED52: 0 | EE52: 0 | EF52: 1 | EG52: 0 | EH52: 0 | EI52: 1 | EJ52: 1 | EK52: 1 | EL52: 1 | EM52: 1 | EN52: 1 | EO52: 0 | EP52: 0 | EQ52: 1 | ER52: 1 | ES52: 1 | ET52: 1 | EU52: 1 | EV52: 1 | EW52: 0 | EX52: 1 | EY52: 1 | EZ52: 1 | FA52: 1 | FB52: 1 | FC52: 1 | FD52: 1 | FE52: 1 | FF52: 1 | FG52: 1 | FH52: 0 | FI52: 1 | FJ52: 0 | FK52: 1 | FL52: 1 | FM52: 1 | FN52: 1 | FO52: 1 | FP52: 0 | FQ52: 0 | FR52: 0 | FS52: 1 | FT52: 0 | FU52: 1 | FV52: 1 | FW52: 1 | FX52: 1 | FY52: 0 | FZ52: 1 | GA52: 1 | GB52: 1 | GC52: 0 | GD52: 0 | GE52: 1 | GF52: 1 | GG52: 0 | GH52: 1 | GI52: 1 | GJ52: 0 | GK52: 1 | GL52: 1 | GM52: 0 | GN52: 0 | GO52: 1 | GP52: 1 | GQ52: 0 | GR52: 0 | GS52: 0 | GT52: 0 | GU52: 0 | GV52: 0 | GW52: 1 | GX52: 0 | GY52: 1 | GZ52: 1 | HA52: 1 | HB52: 1 | HC52: 0 | HD52: 1 | HE52: 1 | HF52: 1 | HG52: 1 | HH52: 1 | HI52: 1 | HJ52: 0 | HK52: 0 | HL52: 0 | HM52: 1 | HN52: 1
A53: 1 | B53: 0 | C53: 1 | D53: 0 | E53: 0 | F53: 0 | G53: 0 | H53: 0 | I53: 0 | J53: 0 | K53: 0 | L53: 0 | M53: 0 | N53: 1 | O53: 0 | P53: 0 | Q53: 1 | R53: 0 | S53: 0 | U53: 1 | V53: 0.4 | W53: 1 | X53: 0 | Y53: 0 | Z53: 1 | AA53: 0 | AB53: 0 | AC53: 1 | AD53: 1 | AE53: 1 | AF53: 1 | AG53: 1 | AH53: 1 | AI53: 1 | AJ53: 0 | AK53: 0 | AL53: 0 | AM53: 0 | AN53: 0 | AO53: 0 | AP53: 0 | AQ53: 1 | AR53: 0 | AS53: 1 | AT53: 0 | AU53: 0 | AV53: 0 | AW53: 0 | AX53: 0 | AY53: 1 | AZ53: 0 | BA53: 0 | BB53: 0 | BC53: 1 | BD53: 1 | BE53: 0 | BF53: 0 | BG53: 1 | BH53: 0 | BI53: 0 | BJ53: 0 | BK53: 0 | BL53: 1 | BM53: 1 | BN53: 0 | BO53: 0 | BP53: 0 | BQ53: 0 | BR53: 1 | BS53: 0 | BT53: 0 | BU53: 0 | BV53: 0 | BW53: 0 | BX53: 1 | BY53: 0 | BZ53: 0 | CA53: 1 | CB53: 0 | CC53: 0 | CD53: 0 | CE53: 1 | CF53: 1 | CG53: 1 | CH53: 0 | CI53: 0 | CJ53: 1 | CK53: 0 | CL53: 1 | CM53: 0 | CN53: 0 | CO53: 1 | CP53: 1 | CQ53: 0 | CR53: 0 | CS53: 0 | CT53: 0 | CU53: 0 | CV53: 0 | CW53: 1 | CX53: 0 | CY53: 1 | CZ53: 0 | DA53: 1 | DB53: 0 | DC53: 0 | DD53: 0 | DE53: 0 | DF53: 0 | DG53: 1 | DH53: 1 | DI53: 1 | DJ53: 1 | DK53: 0 | DL53: 0 | DM53: 0 | DN53: 1 | DO53: 0 | DP53: 1 | DQ53: 1 | DR53: 0 | DS53: 0 | DT53: 0 | DU53: 1 | DV53: 1 | DW53: 1 | DX53: 1 | DY53: 0 | DZ53: 0 | EA53: 1 | EB53: 0 | EC53: 0 | ED53: 0 | EE53: 0 | EF53: 1 | EG53: 0 | EH53: 0 | EI53: 1 | EJ53: 1 | EK53: 0 | EL53: 0 | EM53: 1 | EN53: 0 | EO53: 0 | EP53: 1 | EQ53: 1 | ER53: 1 | ES53: 0 | ET53: 0 | EU53: 0 | EV53: 1 | EW53: 0 | EX53: 0 | EY53: 1 | EZ53: 0 | FA53: 1 | FB53: 1 | FC53: 0 | FD53: 0 | FE53: 1 | FF53: 1 | FG53: 1 | FH53: 1 | FI53: 0 | FJ53: 1 | FK53: 0 | FL53: 0 | FM53: 0 | FN53: 1 | FO53: 1 | FP53: 1 | FQ53: 0 | FR53: 0 | FS53: 0 | FT53: 0 | FU53: 0 | FV53: 0 | FW53: 1 | FX53: 0 | FY53: 0 | FZ53: 1 | GA53: 1 | GB53: 1 | GC53: 0 | GD53: 0 | GE53: 1 | GF53: 0 | GG53: 0 | GH53: 0 | GI53: 0 | GJ53: 0 | GK53: 1 | GL53: 1 | GM53: 0 | GN53: 0 | GO53: 1 | GP53: 1 | GQ53: 0 | GR53: 0 | GS53: 0 | GT53: 1 | GU53: 0 | GV53: 0 | GW53: 1 | GX53: 0 | GY53: 0 | GZ53: 1 | HA53: 0 | HB53: 1 | HC53: 0 | HD53: 0 | HE53: 1 | HF53: 1 | HG53: 0 | HH53: 1 | HI53: 1 | HJ53: 1 | HK53: 0 | HL53: 0 | HM53: 1 | HN53: 0
A54: 0 | B54: 0 | C54: 1 | D54: 0 | E54: 0 | F54: 0 | G54: 0 | H54: 0 | I54: 0 | J54: 0 | K54: 0 | L54: 0 | M54: 1 | N54: 0 | O54: 0 | P54: 0 | Q54: 0 | R54: 0 | S54: 1 | U54: 1 | V54: 0.455 | W54: 1 | X54: 0 | Y54: 0 | Z54: 0 | AA54: 0 | AB54: 0 | AC54: 1 | AD54: 1 | AE54: 1 | AF54: 1 | AG54: 1 | AH54: 1 | AI54: 0 | AJ54: 0 | AK54: 1 | AL54: 0 | AM54: 0 | AN54: 1 | AO54: 0 | AP54: 0 | AQ54: 1 | AR54: 0 | AS54: 1 | AT54: 1 | AU54: 0 | AV54: 0 | AW54: 0 | AX54: 1 | AY54: 1 | AZ54: 0 | BA54: 1 | BB54: 0 | BC54: 1 | BD54: 1 | BE54: 1 | BF54: 0 | BG54: 1 | BH54: 0 | BI54: 1 | BJ54: 0 | BK54: 0 | BL54: 1 | BM54: 1 | BN54: 0 | BO54: 0 | BP54: 1 | BQ54: 0 | BR54: 1 | BS54: 0 | BT54: 0 | BU54: 0 | BV54: 1 | BW54: 0 | BX54: 0 | BY54: 0 | BZ54: 0 | CA54: 0 | CB54: 1 | CC54: 1 | CD54: 0 | CE54: 0 | CF54: 1 | CG54: 1 | CH54: 1 | CI54: 1 | CJ54: 0 | CK54: 1 | CL54: 0 | CM54: 1 | CN54: 0 | CO54: 1 | CP54: 1 | CQ54: 0 | CR54: 0 | CS54: 0 | CT54: 1 | CU54: 0 | CV54: 0 | CW54: 1 | CX54: 0 | CY54: 0 | CZ54: 0 | DA54: 1 | DB54: 0 | DC54: 0 | DD54: 0 | DE54: 0 | DF54: 0 | DG54: 1 | DH54: 1 | DI54: 0 | DJ54: 0 | DK54: 1 | DL54: 0 | DM54: 0 | DN54: 1 | DO54: 0 | DP54: 0 | DQ54: 1 | DR54: 0 | DS54: 1 | DT54: 1 | DU54: 1 | DV54: 1 | DW54: 1 | DX54: 1 | DY54: 1 | DZ54: 0 | EA54: 1 | EB54: 0 | EC54: 0 | ED54: 0 | EE54: 0 | EF54: 1 | EG54: 0 | EH54: 0 | EI54: 1 | EJ54: 1 | EK54: 1 | EL54: 1 | EM54: 1 | EN54: 1 | EO54: 0 | EP54: 0 | EQ54: 1 | ER54: 1 | ES54: 0 | ET54: 0 | EU54: 0 | EV54: 1 | EW54: 0 | EX54: 0 | EY54: 1 | EZ54: 0 | FA54: 1 | FB54: 1 | FC54: 1 | FD54: 0 | FE54: 1 | FF54: 1 | FG54: 1 | FH54: 0 | FI54: 1 | FJ54: 0 | FK54: 1 | FL54: 0 | FM54: 1 | FN54: 1 | FO54: 1 | FP54: 0 | FQ54: 0 | FR54: 0 | FS54: 0 | FT54: 0 | FU54: 1 | FV54: 1 | FW54: 1 | FX54: 0 | FY54: 0 | FZ54: 1 | GA54: 1 | GB54: 1 | GC54: 0 | GD54: 0 | GE54: 1 | GF54: 0 | GG54: 0 | GH54: 0 | GI54: 0 | GJ54: 0 | GK54: 1 | GL54: 1 | GM54: 0 | GN54: 0 | GO54: 1 | GP54: 1 | GQ54: 0 | GR54: 0 | GS54: 0 | GT54: 0 | GU54: 0 | GV54: 0 | GW54: 0 | GX54: 0 | GY54: 1 | GZ54: 1 | HA54: 0 | HB54: 0 | HC54: 0 | HD54: 0 | HE54: 1 | HF54: 1 | HG54: 0 | HH54: 1 | HI54: 1 | HJ54: 0 | HK54: 0 | HL54: 0 | HM54: 1 | HN54: 0
A55: 0 | B55: 1 | C55: 0 | D55: 1 | E55: 0 | F55: 0 | G55: 0 | H55: 1 | I55: 0 | J55: 0 | K55: 0 | L55: 0 | M55: 0 | N55: 0 | O55: 1 | P55: 0 | Q55: 0 | R55: 0 | S55: 0 | U55: 1 | V55: 0.53 | W55: 1 | X55: 0 | Y55: 1 | Z55: 0 | AA55: 0 | AB55: 0 | AC55: 1 | AD55: 1 | AE55: 1 | AF55: 1 | AG55: 1 | AH55: 1 | AI55: 0 | AJ55: 1 | AK55: 0 | AL55: 1 | AM55: 1 | AN55: 0 | AO55: 0 | AP55: 1 | AQ55: 1 | AR55: 1 | AS55: 1 | AT55: 0 | AU55: 0 | AV55: 1 | AW55: 0 | AX55: 0 | AY55: 1 | AZ55: 1 | BA55: 0 | BB55: 1 | BC55: 1 | BD55: 1 | BE55: 0 | BF55: 1 | BG55: 1 | BH55: 0 | BI55: 0 | BJ55: 0 | BK55: 1 | BL55: 1 | BM55: 1 | BN55: 1 | BO55: 0 | BP55: 0 | BQ55: 1 | BR55: 1 | BS55: 0 | BT55: 1 | BU55: 1 | BV55: 0 | BW55: 0 | BX55: 0 | BY55: 1 | BZ55: 1 | CA55: 0 | CB55: 0 | CC55: 1 | CD55: 1 | CE55: 0 | CF55: 1 | CG55: 1 | CH55: 0 | CI55: 0 | CJ55: 0 | CK55: 0 | CL55: 0 | CM55: 0 | CN55: 1 | CO55: 0 | CP55: 1 | CQ55: 1 | CR55: 1 | CS55: 0 | CT55: 0 | CU55: 1 | CV55: 1 | CW55: 1 | CX55: 0 | CY55: 0 | CZ55: 1 | DA55: 1 | DB55: 0 | DC55: 1 | DD55: 0 | DE55: 1 | DF55: 0 | DG55: 1 | DH55: 0 | DI55: 0 | DJ55: 0 | DK55: 0 | DL55: 0 | DM55: 1 | DN55: 1 | DO55: 1 | DP55: 0 | DQ55: 1 | DR55: 1 | DS55: 0 | DT55: 0 | DU55: 1 | DV55: 1 | DW55: 1 | DX55: 1 | DY55: 0 | DZ55: 1 | EA55: 1 | EB55: 1 | EC55: 0 | ED55: 0 | EE55: 0 | EF55: 1 | EG55: 0 | EH55: 0 | EI55: 1 | EJ55: 1 | EK55: 0 | EL55: 0 | EM55: 1 | EN55: 0 | EO55: 0 | EP55: 0 | EQ55: 1 | ER55: 1 | ES55: 1 | ET55: 1 | EU55: 1 | EV55: 1 | EW55: 0 | EX55: 1 | EY55: 1 | EZ55: 1 | FA55: 1 | FB55: 1 | FC55: 0 | FD55: 1 | FE55: 1 | FF55: 1 | FG55: 1 | FH55: 0 | FI55: 0 | FJ55: 0 | FK55: 0 | FL55: 1 | FM55: 0 | FN55: 1 | FO55: 1 | FP55: 0 | FQ55: 0 | FR55: 0 | FS55: 1 | FT55: 0 | FU55: 0 | FV55: 0 | FW55: 1 | FX55: 1 | FY55: 0 | FZ55: 1 | GA55: 1 | GB55: 1 | GC55: 0 | GD55: 0 | GE55: 1 | GF55: 1 | GG55: 0 | GH55: 1 | GI55: 1 | GJ55: 0 | GK55: 1 | GL55: 1 | GM55: 0 | GN55: 0 | GO55: 1 | GP55: 1 | GQ55: 0 | GR55: 0 | GS55: 0 | GT55: 0 | GU55: 0 | GV55: 0 | GW55: 0 | GX55: 0 | GY55: 0 | GZ55: 1 | HA55: 1 | HB55: 0 | HC55: 0 | HD55: 1 | HE55: 0 | HF55: 1 | HG55: 1 | HH55: 1 | HI55: 1 | HJ55: 0 | HK55: 0 | HL55: 0 | HM55: 1 | HN55: 1
A56: 1 | B56: 0 | C56: 1 | D56: 0 | E56: 0 | F56: 0 | G56: 0 | H56: 1 | I56: 0 | J56: 0 | K56: 0 | L56: 0 | M56: 0 | N56: 0 | O56: 0 | P56: 0 | Q56: 1 | R56: 0 | S56: 1 | U56: 1 | V56: 0.75 | W56: 1 | X56: 0 | Y56: 1 | Z56: 1 | AA56: 0 | AB56: 0 | AC56: 1 | AD56: 1 | AE56: 1 | AF56: 1 | AG56: 1 | AH56: 1 | AI56: 1 | AJ56: 1 | AK56: 1 | AL56: 1 | AM56: 1 | AN56: 1 | AO56: 0 | AP56: 1 | AQ56: 1 | AR56: 1 | AS56: 1 | AT56: 1 | AU56: 0 | AV56: 1 | AW56: 0 | AX56: 1 | AY56: 1 | AZ56: 1 | BA56: 1 | BB56: 1 | BC56: 1 | BD56: 1 | BE56: 1 | BF56: 1 | BG56: 1 | BH56: 0 | BI56: 1 | BJ56: 0 | BK56: 1 | BL56: 1 | BM56: 1 | BN56: 1 | BO56: 0 | BP56: 1 | BQ56: 1 | BR56: 1 | BS56: 0 | BT56: 1 | BU56: 1 | BV56: 1 | BW56: 0 | BX56: 0 | BY56: 1 | BZ56: 1 | CA56: 1 | CB56: 1 | CC56: 0 | CD56: 1 | CE56: 0 | CF56: 1 | CG56: 1 | CH56: 1 | CI56: 1 | CJ56: 0 | CK56: 1 | CL56: 1 | CM56: 1 | CN56: 1 | CO56: 1 | CP56: 1 | CQ56: 1 | CR56: 1 | CS56: 0 | CT56: 1 | CU56: 1 | CV56: 1 | CW56: 1 | CX56: 0 | CY56: 1 | CZ56: 1 | DA56: 1 | DB56: 0 | DC56: 1 | DD56: 0 | DE56: 1 | DF56: 0 | DG56: 1 | DH56: 1 | DI56: 1 | DJ56: 1 | DK56: 0 | DL56: 0 | DM56: 1 | DN56: 1 | DO56: 1 | DP56: 1 | DQ56: 1 | DR56: 1 | DS56: 1 | DT56: 1 | DU56: 1 | DV56: 1 | DW56: 1 | DX56: 1 | DY56: 1 | DZ56: 1 | EA56: 1 | EB56: 1 | EC56: 0 | ED56: 0 | EE56: 0 | EF56: 1 | EG56: 0 | EH56: 0 | EI56: 1 | EJ56: 1 | EK56: 1 | EL56: 1 | EM56: 1 | EN56: 1 | EO56: 0 | EP56: 1 | EQ56: 1 | ER56: 1 | ES56: 1 | ET56: 1 | EU56: 1 | EV56: 1 | EW56: 0 | EX56: 1 | EY56: 1 | EZ56: 1 | FA56: 1 | FB56: 1 | FC56: 1 | FD56: 1 | FE56: 1 | FF56: 1 | FG56: 1 | FH56: 1 | FI56: 1 | FJ56: 1 | FK56: 1 | FL56: 1 | FM56: 1 | FN56: 1 | FO56: 1 | FP56: 1 | FQ56: 0 | FR56: 0 | FS56: 1 | FT56: 0 | FU56: 1 | FV56: 1 | FW56: 1 | FX56: 1 | FY56: 0 | FZ56: 1 | GA56: 1 | GB56: 1 | GC56: 0 | GD56: 0 | GE56: 1 | GF56: 1 | GG56: 0 | GH56: 1 | GI56: 1 | GJ56: 0 | GK56: 1 | GL56: 1 | GM56: 0 | GN56: 0 | GO56: 1 | GP56: 1 | GQ56: 0 | GR56: 0 | GS56: 0 | GT56: 1 | GU56: 0 | GV56: 0 | GW56: 0 | GX56: 0 | GY56: 1 | GZ56: 1 | HA56: 1 | HB56: 0 | HC56: 0 | HD56: 1 | HE56: 1 | HF56: 1 | HG56: 1 | HH56: 1 | HI56: 1 | HJ56: 1 | HK56: 0 | HL56: 0 | HM56: 1 | HN56: 1
A57: 0 | B57: 0 | C57: 1 | D57: 0 | E57: 0 | F57: 0 | G57: 0 | H57: 0 | I57: 0 | J57: 0 | K57: 0 | L57: 0 | M57: 0 | N57: 0 | O57: 0 | P57: 0 | Q57: 1 | R57: 0 | S57: 0 | U57: 1 | V57: 0.38 | W57: 1 | X57: 0 | Y57: 0 | Z57: 1 | AA57: 0 | AB57: 0 | AC57: 1 | AD57: 1 | AE57: 1 | AF57: 1 | AG57: 1 | AH57: 1 | AI57: 1 | AJ57: 0 | AK57: 0 | AL57: 0 | AM57: 0 | AN57: 0 | AO57: 0 | AP57: 0 | AQ57: 1 | AR57: 0 | AS57: 1 | AT57: 0 | AU57: 0 | AV57: 0 | AW57: 0 | AX57: 0 | AY57: 1 | AZ57: 0 | BA57: 0 | BB57: 0 | BC57: 1 | BD57: 1 | BE57: 0 | BF57: 0 | BG57: 1 | BH57: 0 | BI57: 0 | BJ57: 0 | BK57: 0 | BL57: 1 | BM57: 1 | BN57: 0 | BO57: 0 | BP57: 0 | BQ57: 0 | BR57: 1 | BS57: 0 | BT57: 0 | BU57: 0 | BV57: 0 | BW57: 0 | BX57: 0 | BY57: 0 | BZ57: 0 | CA57: 1 | CB57: 0 | CC57: 1 | CD57: 0 | CE57: 0 | CF57: 1 | CG57: 1 | CH57: 0 | CI57: 0 | CJ57: 0 | CK57: 0 | CL57: 1 | CM57: 0 | CN57: 0 | CO57: 1 | CP57: 1 | CQ57: 0 | CR57: 0 | CS57: 0 | CT57: 0 | CU57: 0 | CV57: 0 | CW57: 1 | CX57: 0 | CY57: 1 | CZ57: 0 | DA57: 1 | DB57: 0 | DC57: 0 | DD57: 0 | DE57: 0 | DF57: 0 | DG57: 1 | DH57: 1 | DI57: 1 | DJ57: 1 | DK57: 0 | DL57: 0 | DM57: 0 | DN57: 1 | DO57: 0 | DP57: 1 | DQ57: 1 | DR57: 0 | DS57: 0 | DT57: 0 | DU57: 1 | DV57: 1 | DW57: 1 | DX57: 1 | DY57: 0 | DZ57: 0 | EA57: 1 | EB57: 0 | EC57: 0 | ED57: 0 | EE57: 0 | EF57: 1 | EG57: 0 | EH57: 0 | EI57: 1 | EJ57: 1 | EK57: 0 | EL57: 0 | EM57: 1 | EN57: 0 | EO57: 0 | EP57: 1 | EQ57: 1 | ER57: 1 | ES57: 0 | ET57: 0 | EU57: 0 | EV57: 1 | EW57: 0 | EX57: 0 | EY57: 1 | EZ57: 0 | FA57: 1 | FB57: 1 | FC57: 0 | FD57: 0 | FE57: 1 | FF57: 1 | FG57: 1 | FH57: 1 | FI57: 0 | FJ57: 1 | FK57: 0 | FL57: 0 | FM57: 0 | FN57: 1 | FO57: 1 | FP57: 1 | FQ57: 0 | FR57: 0 | FS57: 0 | FT57: 0 | FU57: 0 | FV57: 0 | FW57: 1 | FX57: 0 | FY57: 0 | FZ57: 1 | GA57: 1 | GB57: 1 | GC57: 0 | GD57: 0 | GE57: 1 | GF57: 0 | GG57: 0 | GH57: 0 | GI57: 0 | GJ57: 0 | GK57: 1 | GL57: 1 | GM57: 0 | GN57: 0 | GO57: =IF(OFFSET($A57,0,GO$1)=GO$2,1,0) -> 1 | GP57: 1 | GQ57: 0 | GR57: 0 | GS57: 0 | GT57: 1 | GU57: 0 | GV57: 0 | GW57: 0 | GX57: 0 | GY57: 0 | GZ57: 1 | HA57: 0 | HB57: 0 | HC57: 0 | HD57: 0 | HE57: 1 | HF57: 1 | HG57: 0 | HH57: 1 | HI57: 1 | HJ57: 1 | HK57: 0 | HL57: 0 | HM57: 1 | HN57: 0
A58: 0 | B58: 1 | C58: 1 | D58: 0 | E58: 0 | F58: 0 | G58: 0 | H58: 1 | I58: 0 | J58: 0 | K58: 0 | L58: 0 | M58: 1 | N58: 0 | O58: 0 | P58: 0 | Q58: 0 | R58: 0 | S58: 0 | U58: 1 | V58: 0.55 | W58: 1 | X58: 0 | Y58: 1 | Z58: 0 | AA58: 0 | AB58: 0 | AC58: 1 | AD58: 1 | AE58: 1 | AF58: 1 | AG58: 1 | AH58: 1 | AI58: 0 | AJ58: 1 | AK58: 0 | AL58: 1 | AM58: 1 | AN58: 0 | AO58: 0 | AP58: 1 | AQ58: 1 | AR58: 1 | AS58: 1 | AT58: 0 | AU58: 0 | AV58: 1 | AW58: 0 | AX58: 0 | AY58: 1 | AZ58: 1 | BA58: 0 | BB58: 1 | BC58: 1 | BD58: 1 | BE58: 0 | BF58: 1 | BG58: 1 | BH58: 0 | BI58: 0 | BJ58: 0 | BK58: 1 | BL58: 1 | BM58: 1 | BN58: 1 | BO58: 0 | BP58: 0 | BQ58: 1 | BR58: 1 | BS58: 0 | BT58: 1 | BU58: 1 | BV58: 0 | BW58: 0 | BX58: 0 | BY58: 1 | BZ58: 1 | CA58: 0 | CB58: 0 | CC58: 1 | CD58: 1 | CE58: 0 | CF58: 1 | CG58: 1 | CH58: 0 | CI58: 0 | CJ58: 0 | CK58: 0 | CL58: 0 | CM58: 0 | CN58: 1 | CO58: 1 | CP58: 1 | CQ58: 1 | CR58: 1 | CS58: 0 | CT58: 0 | CU58: 1 | CV58: 1 | CW58: 1 | CX58: 0 | CY58: 0 | CZ58: 1 | DA58: 1 | DB58: 0 | DC58: 1 | DD58: 0 | DE58: 1 | DF58: 0 | DG58: 1 | DH58: 1 | DI58: 0 | DJ58: 0 | DK58: 1 | DL58: 0 | DM58: 1 | DN58: 1 | DO58: 1 | DP58: 0 | DQ58: 1 | DR58: 1 | DS58: 0 | DT58: 0 | DU58: 1 | DV58: 1 | DW58: 1 | DX58: 1 | DY58: 0 | DZ58: 1 | EA58: 1 | EB58: 1 | EC58: 0 | ED58: 0 | EE58: 0 | EF58: 1 | EG58: 0 | EH58: 0 | EI58: 1 | EJ58: 1 | EK58: 0 | EL58: 0 | EM58: 1 | EN58: 0 | EO58: 0 | EP58: 0 | EQ58: 1 | ER58: 1 | ES58: 1 | ET58: 1 | EU58: 1 | EV58: 1 | EW58: 0 | EX58: 1 | EY58: 1 | EZ58: 1 | FA58: 1 | FB58: 1 | FC58: 0 | FD58: 1 | FE58: 1 | FF58: 1 | FG58: 1 | FH58: 0 | FI58: 0 | FJ58: 0 | FK58: 0 | FL58: 1 | FM58: 0 | FN58: 1 | FO58: 1 | FP58: 0 | FQ58: 0 | FR58: 0 | FS58: 1 | FT58: 0 | FU58: 0 | FV58: 0 | FW58: 1 | FX58: 1 | FY58: 0 | FZ58: 1 | GA58: 1 | GB58: 1 | GC58: 0 | GD58: 0 | GE58: 1 | GF58: 1 | GG58: 0 | GH58: 1 | GI58: 1 | GJ58: 0 | GK58: 1 | GL58: 1 | GM58: =IF(OFFSET($A58,0,GM$1)=GM$2,1,0) -> 0 | GN58: 0 | GO58: 1 | GP58: 1 | GQ58: 0 | GR58: 0 | GS58: 0 | GT58: 0 | GU58: 0 | GV58: 0 | GW58: 0 | GX58: 0 | GY58: 0 | GZ58: 1 | HA58: 1 | HB58: 0 | HC58: 0 | HD58: 1 | HE58: 1 | HF58: 1 | HG58: 1 | HH58: 1 | HI58: 1 | HJ58: 0 | HK58: 0 | HL58: 0 | HM58: 1 | HN58: 1
A59: 1 | B59: 0 | C59: 0 | D59: 0 | E59: 0 | F59: 0 | G59: 0 | H59: 1 | I59: 0 | J59: 0 | K59: 0 | L59: 0 | M59: 0 | N59: 0 | O59: 0 | P59: 0 | Q59: 0 | R59: 0 | S59: 1 | U59: 1 | V59: 0.68 | W59: 1 | X59: 0 | Y59: 1 | Z59: 0 | AA59: 0 | AB59: 0 | AC59: 1 | AD59: 1 | AE59: 1 | AF59: 1 | AG59: 1 | AH59: 1 | AI59: 0 | AJ59: 1 | AK59: 1 | AL59: =IF(OFFSET($A59,0,AL$1)=AL$2,1,0) -> 1 | AM59: 1 | AN59: 1 | AO59: 0 | AP59: 1 | AQ59: 1 | AR59: 1 | AS59: 1 | AT59: 1 | AU59: 0 | AV59: 1 | AW59: 0 | AX59: 1 | AY59: 1 | AZ59: 1 | BA59: 1 | BB59: 1 | BC59: 1 | BD59: 1 | BE59: 1 | BF59: 1 | BG59: 1 | BH59: 0 | BI59: 1 | BJ59: 0 | BK59: 1 | BL59: 1 | BM59: 1 | BN59: 1 | BO59: 0 | BP59: 1 | BQ59: 1 | BR59: 1 | BS59: 0 | BT59: 1 | BU59: 1 | BV59: 1 | BW59: 0 | BX59: 0 | BY59: 1 | BZ59: 1 | CA59: 0 | CB59: 1 | CC59: 0 | CD59: 1 | CE59: 0 | CF59: 1 | CG59: 1 | CH59: 1 | CI59: 1 | CJ59: 0 | CK59: 1 | CL59: 0 | CM59: 1 | CN59: 1 | CO59: 1 | CP59: 1 | CQ59: 1 | CR59: 1 | CS59: 0 | CT59: 1 | CU59: 1 | CV59: 1 | CW59: 1 | CX59: 0 | CY59: 0 | CZ59: 1 | DA59: 1 | DB59: 0 | DC59: 1 | DD59: 0 | DE59: 1 | DF59: 0 | DG59: 1 | DH59: 1 | DI59: 0 | DJ59: 0 | DK59: 0 | DL59: 0 | DM59: 1 | DN59: 1 | DO59: 1 | DP59: 0 | DQ59: 1 | DR59: 1 | DS59: 1 | DT59: 1 | DU59: 1 | DV59: 1 | DW59: 1 | DX59: 1 | DY59: 1 | DZ59: 1 | EA59: 1 | EB59: 1 | EC59: 0 | ED59: 0 | EE59: 0 | EF59: 1 | EG59: 0 | EH59: 0 | EI59: 1 | EJ59: 1 | EK59: 1 | EL59: 1 | EM59: 1 | EN59: 1 | EO59: 0 | EP59: =IF(OFFSET($A59,0,EP$1)=EP$2,1,0) -> 0 | EQ59: 1 | ER59: 1 | ES59: 1 | ET59: 1 | EU59: 1 | EV59: 1 | EW59: 0 | EX59: 1 | EY59: 1 | EZ59: 1 | FA59: 1 | FB59: 1 | FC59: 1 | FD59: 1 | FE59: 1 | FF59: 1 | FG59: 1 | FH59: 0 | FI59: 1 | FJ59: 0 | FK59: 1 | FL59: 1 | FM59: 1 | FN59: 1 | FO59: 1 | FP59: 0 | FQ59: 0 | FR59: 0 | FS59: 1 | FT59: 0 | FU59: 1 | FV59: 1 | FW59: 1 | FX59: 1 | FY59: =IF(OFFSET($A59,0,FY$1)=FY$2,1,0) -> 0 | FZ59: 1 | GA59: 1 | GB59: 1 | GC59: 0 | GD59: 0 | GE59: 1 | GF59: 1 | GG59: 0 | GH59: 1 | GI59: 1 | GJ59: 0 | GK59: 1 | GL59: 1 | GM59: 0 | GN59: 0 | GO59: 1 | GP59: 1 | GQ59: 0 | GR59: 0 | GS59: 0 | GT59: 0 | GU59: 0 | GV59: 0 | GW59: 0 | GX59: 0 | GY59: 1 | GZ59: 1 | HA59: 1 | HB59: 0 | HC59: 0 | HD59: 1 | HE59: 1 | HF59: 1 | HG59: 1 | HH59: 1 | HI59: 1 | HJ59: 0 | HK59: 0 | HL59: 0 | HM59: 1 | HN59: 1
A60: 1 | B60: 0 | C60: 0 | D60: 1 | E60: 0 | F60: 0 | G60: 0 | H60: 1 | I60: 1 | J60: 0 | K60: 0 | L60: 0 | M60: 0 | N60: 0 | O60: 0 | P60: 0 | Q60: 1 | R60: 0 | S60: 0 | U60: 1 | V60: 0.755 | W60: =IF(OFFSET($A60,0,W$1)=W$2,1,0) -> 1 | X60: 1 | Y60: 1 | Z60: 1 | AA60: 1 | AB60: 1 | AC60: 1 | AD60: 1 | AE60: 1 | AF60: 1 | AG60: 1 | AH60: 1 | AI60: 1 | AJ60: 1 | AK60: 0 | AL60: 1 | AM60: 1 | AN60: 0 | AO60: 0 | AP60: 1 | AQ60: 1 | AR60: 1 | AS60: 1 | AT60: 0 | AU60: 1 | AV60: 1 | AW60: 0 | AX60: 0 | AY60: 1 | AZ60: 1 | BA60: 0 | BB60: 1 | BC60: 1 | BD60: 1 | BE60: 0 | BF60: 1 | BG60: 1 | BH60: 1 | BI60: 0 | BJ60: 1 | BK60: 1 | BL60: 1 | BM60: 1 | BN60: 1 | BO60: 1 | BP60: 0 | BQ60: 1 | BR60: 1 | BS60: 1 | BT60: 1 | BU60: 1 | BV60: 0 | BW60: 1 | BX60: 0 | BY60: 1 | BZ60: 1 | CA60: 1 | CB60: 0 | CC60: 0 | CD60: 1 | CE60: 0 | CF60: 1 | CG60: 1 | CH60: 0 | CI60: 0 | CJ60: 0 | CK60: 0 | CL60: 1 | CM60: 0 | CN60: 1 | CO60: 1 | CP60: 1 | CQ60: 1 | CR60: 1 | CS60: 0 | CT60: 0 | CU60: 1 | CV60: 1 | CW60: 1 | CX60: 1 | CY60: 1 | CZ60: 1 | DA60: 1 | DB60: 1 | DC60: 1 | DD60: 0 | DE60: 1 | DF60: 1 | DG60: 1 | DH60: 1 | DI60: 1 | DJ60: 1 | DK60: 0 | DL60: 0 | DM60: 1 | DN60: 1 | DO60: 1 | DP60: 1 | DQ60: 1 | DR60: 1 | DS60: 0 | DT60: 0 | DU60: 1 | DV60: 1 | DW60: 1 | DX60: 1 | DY60: 0 | DZ60: 1 | EA60: 1 | EB60: =IF(OFFSET($A60,0,EB$1)=EB$2,1,0) -> 1 | EC60: 0 | ED60: 1 | EE60: 0 | EF60: 1 | EG60: 0 | EH60: 1 | EI60: 1 | EJ60: 1 | EK60: 0 | EL60: 0 | EM60: 1 | EN60: 0 | EO60: 1 | EP60: 1 | EQ60: 1 | ER60: 1 | ES60: 1 | ET60: 1 | EU60: 1 | EV60: 1 | EW60: 1 | EX60: 1 | EY60: 1 | EZ60: 1 | FA60: 1 | FB60: 1 | FC60: 0 | FD60: 1 | FE60: 1 | FF60: 1 | FG60: 1 | FH60: 1 | FI60: 0 | FJ60: 1 | FK60: 0 | FL60: 1 | FM60: 0 | FN60: 1 | FO60: 1 | FP60: 1 | FQ60: 1 | FR60: 0 | FS60: 1 | FT60: 1 | FU60: 0 | FV60: 0 | FW60: 1 | FX60: 1 | FY60: 0 | FZ60: 1 | GA60: 1 | GB60: 1 | GC60: 0 | GD60: 1 | GE60: 1 | GF60: 1 | GG60: 1 | GH60: 1 | GI60: 1 | GJ60: 1 | GK60: 1 | GL60: 1 | GM60: 0 | GN60: 1 | GO60: 1 | GP60: 1 | GQ60: 1 | GR60: 0 | GS60: 0 | GT60: 1 | GU60: 1 | GV60: 1 | GW60: 0 | GX60: 1 | GY60: 0 | GZ60: 1 | HA60: 1 | HB60: 0 | HC60: 1 | HD60: 1 | HE60: 1 | HF60: 1 | HG60: 1 | HH60: 1 | HI60: 1 | HJ60: 1 | HK60: 1 | HL60: 1 | HM60: 1 | HN60: 1
A61: 1 | B61: 0 | C61: 0 | D61: 0 | E61: 0 | F61: 0 | G61: 0 | H61: 0 | I61: 1 | J61: 0 | K61: 0 | L61: 1 | M61: 0 | N61: 0 | O61: 0 | P61: 0 | Q61: 0 | R61: 0 | S61: 0 | U61: 1 | V61: 0.455 | W61: 1 | X61: 1 | Y61: 0 | Z61: 0 | AA61: 1 | AB61: 1 | AC61: 1 | AD61: 1 | AE61: 1 | AF61: 1 | AG61: 1 | AH61: 1 | AI61: 0 | AJ61: 0 | AK61: 0 | AL61: 0 | AM61: 0 | AN61: 0 | AO61: 0 | AP61: 0 | AQ61: 1 | AR61: 0 | AS61: 1 | AT61: 0 | AU61: 1 | AV61: 0 | AW61: 0 | AX61: 0 | AY61: 1 | AZ61: 0 | BA61: 0 | BB61: 0 | BC61: 1 | BD61: 1 | BE61: 0 | BF61: 0 | BG61: 1 | BH61: 1 | BI61: 0 | BJ61: 1 | BK61: 0 | BL61: 1 | BM61: 1 | BN61: 0 | BO61: 1 | BP61: 0 | BQ61: 0 | BR61: 1 | BS61: 1 | BT61: 0 | BU61: 0 | BV61: 0 | BW61: 1 | BX61: 0 | BY61: 0 | BZ61: 0 | CA61: 0 | CB61: 0 | CC61: 0 | CD61: 0 | CE61: 0 | CF61: 1 | CG61: 1 | CH61: 0 | CI61: 0 | CJ61: 0 | CK61: 0 | CL61: 0 | CM61: 0 | CN61: 0 | CO61: 1 | CP61: 1 | CQ61: 0 | CR61: 0 | CS61: 0 | CT61: 0 | CU61: 0 | CV61: 0 | CW61: 1 | CX61: 1 | CY61: 0 | CZ61: 0 | DA61: 1 | DB61: 1 | DC61: 0 | DD61: 0 | DE61: 0 | DF61: 1 | DG61: 1 | DH61: 1 | DI61: 0 | DJ61: 0 | DK61: 0 | DL61: 0 | DM61: 0 | DN61: 1 | DO61: 0 | DP61: 0 | DQ61: 1 | DR61: 0 | DS61: 0 | DT61: 0 | DU61: 1 | DV61: 1 | DW61: 1 | DX61: 1 | DY61: 0 | DZ61: 0 | EA61: 1 | EB61: 0 | EC61: 0 | ED61: 1 | EE61: 0 | EF61: 1 | EG61: 0 | EH61: 1 | EI61: 1 | EJ61: 1 | EK61: 0 | EL61: 0 | EM61: 1 | EN61: 0 | EO61: 1 | EP61: 0 | EQ61: 1 | ER61: 1 | ES61: 0 | ET61: 0 | EU61: 0 | EV61: 1 | EW61: 1 | EX61: 0 | EY61: =IF(OFFSET($A61,0,EY$1)=EY$2,1,0) -> 1 | EZ61: 0 | FA61: 1 | FB61: 1 | FC61: 0 | FD61: 0 | FE61: 1 | FF61: 1 | FG61: 1 | FH61: 0 | FI61: 0 | FJ61: 0 | FK61: 0 | FL61: 0 | FM61: 0 | FN61: 1 | FO61: 1 | FP61: 0 | FQ61: 1 | FR61: 0 | FS61: 0 | FT61: 1 | FU61: 0 | FV61: 0 | FW61: 1 | FX61: 0 | FY61: 0 | FZ61: 1 | GA61: 1 | GB61: 1 | GC61: 1 | GD61: 1 | GE61: 1 | GF61: 0 | GG61: 1 | GH61: 0 | GI61: 0 | GJ61: 1 | GK61: 1 | GL61: 1 | GM61: 0 | GN61: 1 | GO61: 1 | GP61: 1 | GQ61: 1 | GR61: 0 | GS61: 0 | GT61: 0 | GU61: 1 | GV61: 1 | GW61: 0 | GX61: 1 | GY61: 0 | GZ61: 1 | HA61: 0 | HB61: 0 | HC61: 1 | HD61: 0 | HE61: 1 | HF61: 1 | HG61: 0 | HH61: 1 | HI61: 1 | HJ61: 0 | HK61: 1 | HL61: 1 | HM61: 1 | HN61: 0
A62: 0 | B62: 1 | C62: 0 | D62: 0 | E62: 0 | F62: 0 | G62: 0 | H62: 0 | I62: 1 | J62: 0 | K62: 0 | L62: 0 | M62: 0 | N62: 0 | O62: 0 | P62: 0 | Q62: 0 | R62: 0 | S62: 0 | U62: 1 | V62: 0.455 | W62: 1 | X62: 1 | Y62: 0 | Z62: 0 | AA62: 1 | AB62: 1 | AC62: 1 | AD62: 1 | AE62: 1 | AF62: 1 | AG62: 1 | AH62: 1 | AI62: 0 | AJ62: 0 | AK62: 0 | AL62: 0 | AM62: 0 | AN62: 0 | AO62: 0 | AP62: 0 | AQ62: 1 | AR62: 0 | AS62: 1 | AT62: 0 | AU62: 1 | AV62: 0 | AW62: 0 | AX62: 0 | AY62: 1 | AZ62: 0 | BA62: 0 | BB62: 0 | BC62: 1 | BD62: 1 | BE62: 0 | BF62: 0 | BG62: 1 | BH62: 1 | BI62: 0 | BJ62: 1 | BK62: 0 | BL62: 1 | BM62: 1 | BN62: 0 | BO62: 1 | BP62: 0 | BQ62: =IF(OFFSET($A62,0,BQ$1)=BQ$2,1,0) -> 0 | BR62: 1 | BS62: 1 | BT62: 0 | BU62: 0 | BV62: 0 | BW62: 1 | BX62: 0 | BY62: 0 | BZ62: 0 | CA62: 0 | CB62: 0 | CC62: 1 | CD62: 0 | CE62: 0 | CF62: 1 | CG62: 1 | CH62: 0 | CI62: 0 | CJ62: 0 | CK62: 0 | CL62: 0 | CM62: 0 | CN62: =IF(OFFSET($A62,0,CN$1)=CN$2,1,0) -> 0 | CO62: 1 | CP62: 1 | CQ62: 0 | CR62: 0 | CS62: 0 | CT62: 0 | CU62: 0 | CV62: 0 | CW62: 1 | CX62: 1 | CY62: 0 | CZ62: 0 | DA62: 1 | DB62: 1 | DC62: 0 | DD62: 0 | DE62: 0 | DF62: 1 | DG62: 1 | DH62: 1 | DI62: 0 | DJ62: 0 | DK62: 0 | DL62: 0 | DM62: 0 | DN62: 1 | DO62: 0 | DP62: 0 | DQ62: 1 | DR62: 0 | DS62: 0 | DT62: 0 | DU62: 1 | DV62: 1 | DW62: 1 | DX62: 1 | DY62: 0 | DZ62: 0 | EA62: 1 | EB62: 0 | EC62: 0 | ED62: 1 | EE62: 0 | EF62: 1 | EG62: 0 | EH62: 1 | EI62: 1 | EJ62: 1 | EK62: 0 | EL62: 0 | EM62: 1 | EN62: 0 | EO62: 1 | EP62: 0 | EQ62: 1 | ER62: 1 | ES62: 0 | ET62: 0 | EU62: 0 | EV62: 1 | EW62: 1 | EX62: 0 | EY62: 1 | EZ62: 0 | FA62: 1 | FB62: 1 | FC62: 0 | FD62: 0 | FE62: 1 | FF62: 1 | FG62: 1 | FH62: 0 | FI62: 0 | FJ62: 0 | FK62: 0 | FL62: 0 | FM62: 0 | FN62: 1 | FO62: 1 | FP62: 0 | FQ62: 1 | FR62: 0 | FS62: 0 | FT62: 1 | FU62: 0 | FV62: 0 | FW62: 1 | FX62: 0 | FY62: 0 | FZ62: 1 | GA62: 1 | GB62: 1 | GC62: 0 | GD62: 1 | GE62: 1 | GF62: 0 | GG62: 1 | GH62: 0 | GI62: 0 | GJ62: 1 | GK62: 1 | GL62: 1 | GM62: 0 | GN62: 1 | GO62: 1 | GP62: 1 | GQ62: 1 | GR62: 0 | GS62: 0 | GT62: 0 | GU62: 1 | GV62: 1 | GW62: 0 | GX62: 1 | GY62: 0 | GZ62: 1 | HA62: 0 | HB62: 0 | HC62: 1 | HD62: 0 | HE62: 1 | HF62: 1 | HG62: 0 | HH62: 1 | HI62: 1 | HJ62: 0 | HK62: 1 | HL62: 1 | HM62: 1 | HN62: 0
A63: 0 | B63: 1 | C63: 0 | D63: 0 | E63: 0 | F63: 0 | G63: 0 | H63: 1 | I63: 1 | J63: 0 | K63: 0 | L63: 0 | M63: 0 | N63: 0 | O63: 0 | P63: 0 | Q63: 0 | R63: 0 | S63: 0 | U63: 1 | V63: 0.69 | W63: 1 | X63: 1 | Y63: 1 | Z63: 0 | AA63: 1 | AB63: 1 | AC63: 1 | AD63: 1 | AE63: 1 | AF63: 1 | AG63: 1 | AH63: 1 | AI63: 0 | AJ63: 1 | AK63: 0 | AL63: 1 | AM63: 1 | AN63: 0 | AO63: 0 | AP63: 1 | AQ63: 1 | AR63: 1 | AS63: 1 | AT63: 0 | AU63: 1 | AV63: 1 | AW63: 0 | AX63: 0 | AY63: 1 | AZ63: 1 | BA63: 0 | BB63: =IF(OFFSET($A63,0,BB$1)=BB$2,1,0) -> 1 | BC63: 1 | BD63: 1 | BE63: 0 | BF63: 1 | BG63: 1 | BH63: 1 | BI63: 0 | BJ63: 1 | BK63: 1 | BL63: 1 | BM63: 1 | BN63: 1 | BO63: 1 | BP63: 0 | BQ63: 1 | BR63: 1 | BS63: 1 | BT63: 1 | BU63: 1 | BV63: 0 | BW63: 1 | BX63: 0 | BY63: 1 | BZ63: 1 | CA63: 0 | CB63: 0 | CC63: 1 | CD63: 1 | CE63: 0 | CF63: 1 | CG63: 1 | CH63: =IF(OFFSET($A63,0,CH$1)=CH$2,1,0) -> 0 | CI63: 0 | CJ63: 0 | CK63: 0 | CL63: 0 | CM63: 0 | CN63: 1 | CO63: 1 | CP63: 1 | CQ63: 1 | CR63: 1 | CS63: 0 | CT63: 0 | CU63: 1 | CV63: 1 | CW63: 1 | CX63: 1 | CY63: 0 | CZ63: 1 | DA63: 1 | DB63: 1 | DC63: 1 | DD63: 0 | DE63: 1 | DF63: 1 | DG63: 1 | DH63: 1 | DI63: 0 | DJ63: 0 | DK63: 0 | DL63: 0 | DM63: 1 | DN63: 1 | DO63: 1 | DP63: 0 | DQ63: 1 | DR63: 1 | DS63: 0 | DT63: 0 | DU63: 1 | DV63: 1 | DW63: 1 | DX63: 1 | DY63: 0 | DZ63: 1 | EA63: 1 | EB63: 1 | EC63: 0 | ED63: 1 | EE63: 0 | EF63: 1 | EG63: 0 | EH63: 1 | EI63: 1 | EJ63: 1 | EK63: 0 | EL63: 0 | EM63: 1 | EN63: 0 | EO63: 1 | EP63: 0 | EQ63: 1 | ER63: 1 | ES63: 1 | ET63: 1 | EU63: 1 | EV63: 1 | EW63: 1 | EX63: 1 | EY63: 1 | EZ63: 1 | FA63: 1 | FB63: 1 | FC63: 0 | FD63: 1 | FE63: 1 | FF63: 1 | FG63: 1 | FH63: 0 | FI63: 0 | FJ63: 0 | FK63: 0 | FL63: 1 | FM63: 0 | FN63: 1 | FO63: 1 | FP63: 0 | FQ63: 1 | FR63: 0 | FS63: 1 | FT63: 1 | FU63: 0 | FV63: 0 | FW63: 1 | FX63: 1 | FY63: 0 | FZ63: 1 | GA63: 1 | GB63: 1 | GC63: 0 | GD63: 1 | GE63: 1 | GF63: 1 | GG63: 1 | GH63: 1 | GI63: 1 | GJ63: 1 | GK63: 1 | GL63: 1 | GM63: 0 | GN63: 1 | GO63: 1 | GP63: 1 | GQ63: 1 | GR63: 0 | GS63: 0 | GT63: 0 | GU63: 1 | GV63: 1 | GW63: 0 | GX63: 1 | GY63: 0 | GZ63: 1 | HA63: 1 | HB63: 0 | HC63: 1 | HD63: 1 | HE63: 1 | HF63: 1 | HG63: 1 | HH63: 1 | HI63: 1 | HJ63: 0 | HK63: 1 | HL63: 1 | HM63: 1 | HN63: 1
A64: 1 | B64: 0 | C64: 0 | D64: 1 | E64: 0 | F64: 1 | G64: 0 | H64: 0 | I64: 0 | J64: 0 | K64: 0 | L64: 0 | M64: 0 | N64: 0 | O64: 1 | P64: 0 | Q64: 0 | R64: 0 | S64: 0 | U64: 0 | V64: 0.125 | W64: 1 | X64: 0 | Y64: 0 | Z64: 0 | AA64: 0 | AB64: 0 | AC64: 1 | AD64: 0 | AE64: 0 | AF64: 0 | AG64: 0 | AH64: 0 | AI64: 0 | AJ64: 0 | AK64: 0 | AL64: 0 | AM64: 0 | AN64: 0 | AO64: 0 | AP64: 0 | AQ64: 0 | AR64: 0 | AS64: 0 | AT64: 0 | AU64: 0 | AV64: 0 | AW64: 0 | AX64: 0 | AY64: 1 | AZ64: 0 | BA64: 0 | BB64: 0 | BC64: 0 | BD64: 1 | BE64: 0 | BF64: 0 | BG64: 1 | BH64: 0 | BI64: 0 | BJ64: 0 | BK64: 0 | BL64: 0 | BM64: 1 | BN64: 0 | BO64: 0 | BP64: 0 | BQ64: 0 | BR64: 1 | BS64: 0 | BT64: 0 | BU64: 0 | BV64: 0 | BW64: 0 | BX64: 0 | BY64: 0 | BZ64: 0 | CA64: 0 | CB64: 0 | CC64: 0 | CD64: 0 | CE64: 0 | CF64: 0 | CG64: 0 | CH64: 0 | CI64: 0 | CJ64: 0 | CK64: 0 | CL64: 0 | CM64: 0 | CN64: 0 | CO64: 0 | CP64: 1 | CQ64: 0 | CR64: 0 | CS64: 0 | CT64: 0 | CU64: 0 | CV64: 0 | CW64: 0 | CX64: 0 | CY64: 0 | CZ64: 0 | DA64: 1 | DB64: 0 | DC64: 0 | DD64: 0 | DE64: 0 | DF64: 0 | DG64: 0 | DH64: 0 | DI64: 0 | DJ64: 0 | DK64: 0 | DL64: 0 | DM64: 0 | DN64: 1 | DO64: 0 | DP64: 0 | DQ64: 0 | DR64: 0 | DS64: 0 | DT64: 0 | DU64: 1 | DV64: 1 | DW64: 0 | DX64: 0 | DY64: 0 | DZ64: 0 | EA64: 0 | EB64: 0 | EC64: 0 | ED64: 0 | EE64: 0 | EF64: 1 | EG64: 0 | EH64: 0 | EI64: 0 | EJ64: 0 | EK64: 0 | EL64: 0 | EM64: 0 | EN64: 0 | EO64: 0 | EP64: 0 | EQ64: 1 | ER64: 1 | ES64: 0 | ET64: 0 | EU64: 0 | EV64: 1 | EW64: 0 | EX64: 0 | EY64: 1 | EZ64: 0 | FA64: 0 | FB64: 1 | FC64: 0 | FD64: 0 | FE64: 0 | FF64: 0 | FG64: 1 | FH64: 0 | FI64: 0 | FJ64: 0 | FK64: 0 | FL64: 0 | FM64: 0 | FN64: 1 | FO64: 0 | FP64: 0 | FQ64: 0 | FR64: 0 | FS64: 0 | FT64: 0 | FU64: 0 | FV64: 0 | FW64: 0 | FX64: 0 | FY64: 0 | FZ64: 0 | GA64: 0 | GB64: 0 | GC64: 0 | GD64: 0 | GE64: 0 | GF64: 0 | GG64: 0 | GH64: 0 | GI64: 0 | GJ64: 0 | GK64: 1 | GL64: 0 | GM64: 0 | GN64: 0 | GO64: 0 | GP64: 0 | GQ64: 0 | GR64: 0 | GS64: 0 | GT64: 0 | GU64: 0 | GV64: 0 | GW64: 0 | GX64: 0 | GY64: 0 | GZ64: 1 | HA64: 0 | HB64: 0 | HC64: 0 | HD64: 0 | HE64: 0 | HF64: 1 | HG64: 0 | HH64: 1 | HI64: 0 | HJ64: 0 | HK64: 0 | HL64: 0 | HM64: 1 | HN64: 0
A65: 1 | B65: 0 | C65: 1 | D65: 0 | E65: 0 | F65: 0 | G65: 0 | H65: 0 | I65: 0 | J65: 0 | K65: 0 | L65: 0 | M65: 0 | N65: 0 | O65: 1 | P65: 0 | Q65: 0 | R65: 1 | S65: 1 | U65: 0 | V65: 0.37 | W65: 1 | X65: 0 | Y65: 0 | Z65: 0 | AA65: 0 | AB65: 0 | AC65: 1 | AD65: 1 | AE65: 1 | AF65: 1 | AG65: 1 | AH65: 1 | AI65: 0 | AJ65: 0 | AK65: 1 | AL65: 0 | AM65: 0 | AN65: 1 | AO65: 0 | AP65: 0 | AQ65: 1 | AR65: 0 | AS65: 1 | AT65: 1 | AU65: 0 | AV65: 0 | AW65: 0 | AX65: 1 | AY65: 0 | AZ65: 0 | BA65: 1 | BB65: 0 | BC65: 1 | BD65: 1 | BE65: 1 | BF65: 0 | BG65: 1 | BH65: 0 | BI65: 1 | BJ65: 0 | BK65: 0 | BL65: 1 | BM65: 0 | BN65: 0 | BO65: 0 | BP65: 1 | BQ65: 0 | BR65: 0 | BS65: 0 | BT65: 0 | BU65: 0 | BV65: 1 | BW65: 0 | BX65: 0 | BY65: 0 | BZ65: 0 | CA65: 0 | CB65: 1 | CC65: 0 | CD65: 0 | CE65: 0 | CF65: 1 | CG65: 1 | CH65: 1 | CI65: 1 | CJ65: 0 | CK65: 1 | CL65: 0 | CM65: 1 | CN65: 0 | CO65: 0 | CP65: 0 | CQ65: 0 | CR65: 0 | CS65: 0 | CT65: 1 | CU65: 0 | CV65: 0 | CW65: 1 | CX65: 0 | CY65: 0 | CZ65: 0 | DA65: 0 | DB65: 0 | DC65: 0 | DD65: 0 | DE65: 0 | DF65: 0 | DG65: 1 | DH65: 0 | DI65: =IF(OFFSET($A65,0,DI$1)=DI$2,1,0) -> 0 | DJ65: 0 | DK65: 0 | DL65: 0 | DM65: 0 | DN65: 0 | DO65: 0 | DP65: 0 | DQ65: 1 | DR65: 0 | DS65: 1 | DT65: 1 | DU65: 1 | DV65: 0 | DW65: 1 | DX65: 1 | DY65: 1 | DZ65: 0 | EA65: 1 | EB65: 0 | EC65: 0 | ED65: 0 | EE65: 0 | EF65: 0 | EG65: 0 | EH65: 0 | EI65: 1 | EJ65: 1 | EK65: 1 | EL65: 1 | EM65: 1 | EN65: 1 | EO65: 0 | EP65: 0 | EQ65: 1 | ER65: 1 | ES65: 0 | ET65: 0 | EU65: 0 | EV65: 1 | EW65: 0 | EX65: 0 | EY65: 1 | EZ65: 0 | FA65: 1 | FB65: 0 | FC65: 1 | FD65: 0 | FE65: 1 | FF65: 1 | FG65: 1 | FH65: 0 | FI65: 1 | FJ65: 0 | FK65: 1 | FL65: 0 | FM65: 1 | FN65: 0 | FO65: 1 | FP65: 0 | FQ65: 0 | FR65: 0 | FS65: 0 | FT65: 0 | FU65: 1 | FV65: 1 | FW65: 1 | FX65: 0 | FY65: 0 | FZ65: 1 | GA65: 1 | GB65: 1 | GC65: 0 | GD65: 0 | GE65: 1 | GF65: 0 | GG65: 0 | GH65: 0 | GI65: 0 | GJ65: 0 | GK65: 1 | GL65: 1 | GM65: 0 | GN65: 0 | GO65: 1 | GP65: 1 | GQ65: 0 | GR65: 0 | GS65: 0 | GT65: 0 | GU65: 0 | GV65: 0 | GW65: 0 | GX65: 0 | GY65: 1 | GZ65: 1 | HA65: 0 | HB65: 0 | HC65: 0 | HD65: 0 | HE65: 0 | HF65: 0 | HG65: 0 | HH65: 0 | HI65: 1 | HJ65: 0 | HK65: 0 | HL65: 0 | HM65: 1 | HN65: 0
A66: 0 | B66: 0 | C66: 0 | D66: 0 | E66: 0 | F66: 0 | G66: 0 | H66: 0 | I66: 0 | J66: 0 | K66: 0 | L66: 0 | M66: 0 | N66: 0 | O66: 0 | P66: 0 | Q66: 0 | R66: 1 | S66: 0 | U66: 0 | V66: 0.25 | W66: 1 | X66: 0 | Y66: 0 | Z66: 0 | AA66: 0 | AB66: 0 | AC66: 1 | AD66: 1 | AE66: 1 | AF66: 1 | AG66: 1 | AH66: 1 | AI66: 0 | AJ66: 0 | AK66: 0 | AL66: 0 | AM66: 0 | AN66: 0 | AO66: 0 | AP66: 0 | AQ66: 1 | AR66: 0 | AS66: 1 | AT66: 0 | AU66: 0 | AV66: 0 | AW66: 0 | AX66: 0 | AY66: 0 | AZ66: 0 | BA66: 0 | BB66: 0 | BC66: 1 | BD66: 1 | BE66: 0 | BF66: 0 | BG66: 1 | BH66: 0 | BI66: 0 | BJ66: 0 | BK66: 0 | BL66: 1 | BM66: 0 | BN66: 0 | BO66: 0 | BP66: 0 | BQ66: 0 | BR66: 0 | BS66: 0 | BT66: 0 | BU66: 0 | BV66: 0 | BW66: 0 | BX66: 0 | BY66: 0 | BZ66: 0 | CA66: 0 | CB66: 0 | CC66: 1 | CD66: 0 | CE66: 0 | CF66: 1 | CG66: 1 | CH66: 0 | CI66: 0 | CJ66: 0 | CK66: 0 | CL66: 0 | CM66: 0 | CN66: 0 | CO66: 1 | CP66: 0 | CQ66: 0 | CR66: 0 | CS66: 0 | CT66: 0 | CU66: 0 | CV66: 0 | CW66: 1 | CX66: 0 | CY66: 0 | CZ66: 0 | DA66: 0 | DB66: 0 | DC66: 0 | DD66: =IF(OFFSET($A66,0,DD$1)=DD$2,1,0) -> 0 | DE66: 0 | DF66: 0 | DG66: 1 | DH66: 1 | DI66: 0 | DJ66: 0 | DK66: 0 | DL66: 0 | DM66: 0 | DN66: 0 | DO66: 0 | DP66: 0 | DQ66: 1 | DR66: 0 | DS66: 0 | DT66: 0 | DU66: 1 | DV66: 0 | DW66: 1 | DX66: 1 | DY66: 0 | DZ66: 0 | EA66: 1 | EB66: 0 | EC66: 0 | ED66: 0 | EE66: 0 | EF66: 0 | EG66: 0 | EH66: 0 | EI66: 1 | EJ66: 1 | EK66: 0 | EL66: 0 | EM66: 1 | EN66: 0 | EO66: 0 | EP66: 0 | EQ66: 1 | ER66: 1 | ES66: 0 | ET66: 0 | EU66: 0 | EV66: 1 | EW66: 0 | EX66: 0 | EY66: 1 | EZ66: 0 | FA66: 1 | FB66: 0 | FC66: 0 | FD66: 0 | FE66: 1 | FF66: 1 | FG66: 1 | FH66: 0 | FI66: 0 | FJ66: 0 | FK66: 0 | FL66: 0 | FM66: 0 | FN66: 0 | FO66: 1 | FP66: 0 | FQ66: 0 | FR66: 0 | FS66: 0 | FT66: 0 | FU66: 0 | FV66: 0 | FW66: 1 | FX66: 0 | FY66: 0 | FZ66: 1 | GA66: 1 | GB66: 1 | GC66: 0 | GD66: 0 | GE66: 1 | GF66: 0 | GG66: 0 | GH66: 0 | GI66: 0 | GJ66: 0 | GK66: 1 | GL66: 1 | GM66: 0 | GN66: 0 | GO66: 1 | GP66: 1 | GQ66: 0 | GR66: 0 | GS66: 0 | GT66: 0 | GU66: 0 | GV66: 0 | GW66: 0 | GX66: 0 | GY66: 0 | GZ66: 1 | HA66: 0 | HB66: 0 | HC66: 0 | HD66: 0 | HE66: 1 | HF66: 0 | HG66: 0 | HH66: 0 | HI66: 1 | HJ66: 0 | HK66: 0 | HL66: 0 | HM66: 1 | HN66: 0
A67: 0 | B67: 0 | C67: 1 | D67: 0 | E67: 0 | F67: 0 | G67: 0 | H67: 0 | I67: 0 | J67: 0 | K67: 0 | L67: 0 | M67: 0 | N67: 0 | O67: 1 | P67: 0 | Q67: 0 | R67: 0 | S67: 0 | U67: 0 | V67: 0.295 | W67: 1 | X67: 0 | Y67: 0 | Z67: 0 | AA67: 0 | AB67: 0 | AC67: 1 | AD67: 1 | AE67: 1 | AF67: 1 | AG67: 1 | AH67: 1 | AI67: 0 | AJ67: 0 | AK67: 0 | AL67: 0 | AM67: 0 | AN67: 0 | AO67: 0 | AP67: 0 | AQ67: 1 | AR67: 0 | AS67: 1 | AT67: 0 | AU67: 0 | AV67: 0 | AW67: 0 | AX67: 0 | AY67: 1 | AZ67: 0 | BA67: 0 | BB67: 0 | BC67: 1 | BD67: 1 | BE67: 0 | BF67: 0 | BG67: 1 | BH67: 0 | BI67: 0 | BJ67: 0 | BK67: 0 | BL67: 1 | BM67: 1 | BN67: 0 | BO67: 0 | BP67: 0 | BQ67: 0 | BR67: 1 | BS67: 0 | BT67: 0 | BU67: 0 | BV67: 0 | BW67: 0 | BX67: 0 | BY67: 0 | BZ67: 0 | CA67: 0 | CB67: 0 | CC67: 1 | CD67: 0 | CE67: 0 | CF67: 1 | CG67: 1 | CH67: 0 | CI67: 0 | CJ67: 0 | CK67: 0 | CL67: 0 | CM67: 0 | CN67: 0 | CO67: 0 | CP67: 1 | CQ67: 0 | CR67: 0 | CS67: 0 | CT67: 0 | CU67: 0 | CV67: 0 | CW67: 1 | CX67: 0 | CY67: 0 | CZ67: 0 | DA67: 1 | DB67: 0 | DC67: 0 | DD67: 0 | DE67: 0 | DF67: 0 | DG67: 1 | DH67: 0 | DI67: 0 | DJ67: 0 | DK67: 0 | DL67: 0 | DM67: 0 | DN67: 1 | DO67: 0 | DP67: 0 | DQ67: 1 | DR67: 0 | DS67: 0 | DT67: 0 | DU67: 1 | DV67: 1 | DW67: 1 | DX67: 1 | DY67: 0 | DZ67: 0 | EA67: 1 | EB67: 0 | EC67: 0 | ED67: 0 | EE67: 0 | EF67: 1 | EG67: 0 | EH67: 0 | EI67: 1 | EJ67: 1 | EK67: 0 | EL67: 0 | EM67: 1 | EN67: 0 | EO67: 0 | EP67: 0 | EQ67: 1 | ER67: 1 | ES67: 0 | ET67: 0 | EU67: 0 | EV67: 1 | EW67: 0 | EX67: 0 | EY67: 1 | EZ67: 0 | FA67: 1 | FB67: 1 | FC67: 0 | FD67: 0 | FE67: 1 | FF67: 1 | FG67: 1 | FH67: 0 | FI67: 0 | FJ67: 0 | FK67: 0 | FL67: 0 | FM67: 0 | FN67: 1 | FO67: 1 | FP67: 0 | FQ67: 0 | FR67: 0 | FS67: 0 | FT67: =IF(OFFSET($A67,0,FT$1)=FT$2,1,0) -> 0 | FU67: 0 | FV67: 0 | FW67: 1 | FX67: 0 | FY67: 0 | FZ67: 1 | GA67: 1 | GB67: 1 | GC67: 0 | GD67: 0 | GE67: 1 | GF67: 0 | GG67: 0 | GH67: 0 | GI67: 0 | GJ67: 0 | GK67: 1 | GL67: 1 | GM67: 0 | GN67: 0 | GO67: 1 | GP67: 1 | GQ67: 0 | GR67: 0 | GS67: 0 | GT67: 0 | GU67: 0 | GV67: 0 | GW67: 0 | GX67: 0 | GY67: 0 | GZ67: 1 | HA67: 0 | HB67: 0 | HC67: 0 | HD67: 0 | HE67: 0 | HF67: 1 | HG67: 0 | HH67: 1 | HI67: 1 | HJ67: 0 | HK67: 0 | HL67: 0 | HM67: 1 | HN67: 0
A68: 1 | B68: 0 | C68: 1 | D68: 0 | E68: 0 | F68: 0 | G68: 0 | H68: 0 | I68: 0 | J68: 0 | K68: 0 | L68: 0 | M68: 0 | N68: 0 | O68: 0 | P68: 0 | Q68: 0 | R68: 0 | S68: 0 | U68: 0 | V68: 0.305 | W68: 1 | X68: 0 | Y68: 0 | Z68: 0 | AA68: 0 | AB68: 0 | AC68: 1 | AD68: 1 | AE68: 1 | AF68: 1 | AG68: 1 | AH68: 1 | AI68: 0 | AJ68: 0 | AK68: 0 | AL68: 0 | AM68: 0 | AN68: 0 | AO68: 0 | AP68: 0 | AQ68: 1 | AR68: 0 | AS68: 1 | AT68: 0 | AU68: 0 | AV68: 0 | AW68: 0 | AX68: 0 | AY68: 1 | AZ68: 0 | BA68: 0 | BB68: 0 | BC68: 1 | BD68: 1 | BE68: 0 | BF68: 0 | BG68: 1 | BH68: 0 | BI68: 0 | BJ68: 0 | BK68: 0 | BL68: 1 | BM68: 1 | BN68: 0 | BO68: 0 | BP68: 0 | BQ68: 0 | BR68: 1 | BS68: 0 | BT68: 0 | BU68: 0 | BV68: 0 | BW68: 0 | BX68: 0 | BY68: 0 | BZ68: 0 | CA68: 0 | CB68: 0 | CC68: 0 | CD68: 0 | CE68: 0 | CF68: 1 | CG68: 1 | CH68: 0 | CI68: 0 | CJ68: 0 | CK68: 0 | CL68: 0 | CM68: 0 | CN68: 0 | CO68: 1 | CP68: 1 | CQ68: 0 | CR68: 0 | CS68: 0 | CT68: 0 | CU68: 0 | CV68: 0 | CW68: 1 | CX68: 0 | CY68: 0 | CZ68: 0 | DA68: 1 | DB68: 0 | DC68: 0 | DD68: 0 | DE68: 0 | DF68: 0 | DG68: 1 | DH68: 1 | DI68: 0 | DJ68: 0 | DK68: 0 | DL68: 0 | DM68: 0 | DN68: 1 | DO68: 0 | DP68: 0 | DQ68: 1 | DR68: 0 | DS68: 0 | DT68: 0 | DU68: 1 | DV68: 1 | DW68: 1 | DX68: 1 | DY68: 0 | DZ68: 0 | EA68: 1 | EB68: 0 | EC68: 0 | ED68: 0 | EE68: 0 | EF68: 1 | EG68: 0 | EH68: 0 | EI68: 1 | EJ68: 1 | EK68: 0 | EL68: 0 | EM68: 1 | EN68: 0 | EO68: 0 | EP68: 0 | EQ68: 1 | ER68: 1 | ES68: 0 | ET68: 0 | EU68: 0 | EV68: 1 | EW68: 0 | EX68: 0 | EY68: 1 | EZ68: 0 | FA68: 1 | FB68: 1 | FC68: 0 | FD68: 0 | FE68: 1 | FF68: 1 | FG68: 1 | FH68: 0 | FI68: 0 | FJ68: 0 | FK68: 0 | FL68: 0 | FM68: 0 | FN68: 1 | FO68: =IF(OFFSET($A68,0,FO$1)=FO$2,1,0) -> 1 | FP68: 0 | FQ68: 0 | FR68: 0 | FS68: 0 | FT68: 0 | FU68: 0 | FV68: 0 | FW68: 1 | FX68: 0 | FY68: 0 | FZ68: 1 | GA68: 1 | GB68: 1 | GC68: 0 | GD68: 0 | GE68: 1 | GF68: 0 | GG68: 0 | GH68: 0 | GI68: 0 | GJ68: 0 | GK68: 1 | GL68: 1 | GM68: 0 | GN68: 0 | GO68: 1 | GP68: 1 | GQ68: 0 | GR68: 0 | GS68: 0 | GT68: 0 | GU68: 0 | GV68: 0 | GW68: 0 | GX68: 0 | GY68: 0 | GZ68: 1 | HA68: 0 | HB68: 0 | HC68: 0 | HD68: 0 | HE68: 1 | HF68: 1 | HG68: 0 | HH68: 1 | HI68: 1 | HJ68: 0 | HK68: 0 | HL68: 0 | HM68: 1 | HN68: 0
A69: 0 | B69: 1 | C69: 0 | D69: 0 | E69: 0 | F69: 0 | G69: 0 | H69: 0 | I69: 0 | J69: 0 | K69: 0 | L69: 0 | M69: 0 | N69: 0 | O69: 1 | P69: 0 | Q69: 0 | R69: 1 | S69: 0 | U69: 0 | V69: =AVERAGE(W69:HN69) -> 0.235 | W69: 1 | X69: 0 | Y69: 0 | Z69: 0 | AA69: 0 | AB69: 0 | AC69: 1 | AD69: 1 | AE69: 1 | AF69: 1 | AG69: 1 | AH69: 1 | AI69: 0 | AJ69: 0 | AK69: 0 | AL69: 0 | AM69: 0 | AN69: 0 | AO69: 0 | AP69: 0 | AQ69: 1 | AR69: 0 | AS69: 1 | AT69: 0 | AU69: 0 | AV69: 0 | AW69: 0 | AX69: 0 | AY69: 0 | AZ69: 0 | BA69: 0 | BB69: 0 | BC69: 1 | BD69: 1 | BE69: 0 | BF69: 0 | BG69: 1 | BH69: 0 | BI69: 0 | BJ69: 0 | BK69: 0 | BL69: 1 | BM69: 0 | BN69: 0 | BO69: 0 | BP69: 0 | BQ69: 0 | BR69: 0 | BS69: 0 | BT69: 0 | BU69: 0 | BV69: 0 | BW69: 0 | BX69: 0 | BY69: 0 | BZ69: 0 | CA69: 0 | CB69: 0 | CC69: 1 | CD69: 0 | CE69: 0 | CF69: 1 | CG69: 1 | CH69: 0 | CI69: 0 | CJ69: 0 | CK69: 0 | CL69: 0 | CM69: 0 | CN69: 0 | CO69: 0 | CP69: 0 | CQ69: 0 | CR69: 0 | CS69: 0 | CT69: 0 | CU69: 0 | CV69: 0 | CW69: 1 | CX69: 0 | CY69: 0 | CZ69: 0 | DA69: 0 | DB69: 0 | DC69: 0 | DD69: 0 | DE69: 0 | DF69: 0 | DG69: 1 | DH69: 0 | DI69: 0 | DJ69: 0 | DK69: 0 | DL69: 0 | DM69: 0 | DN69: 0 | DO69: 0 | DP69: 0 | DQ69: 1 | DR69: 0 | DS69: 0 | DT69: 0 | DU69: 1 | DV69: 0 | DW69: 1 | DX69: 1 | DY69: 0 | DZ69: 0 | EA69: 1 | EB69: 0 | EC69: 0 | ED69: 0 | EE69: 0 | EF69: 0 | EG69: 0 | EH69: 0 | EI69: 1 | EJ69: 1 | EK69: 0 | EL69: 0 | EM69: 1 | EN69: 0 | EO69: 0 | EP69: 0 | EQ69: 1 | ER69: 1 | ES69: 0 | ET69: 0 | EU69: 0 | EV69: 1 | EW69: 0 | EX69: 0 | EY69: 1 | EZ69: 0 | FA69: 1 | FB69: 0 | FC69: 0 | FD69: 0 | FE69: 1 | FF69: 1 | FG69: 1 | FH69: 0 | FI69: 0 | FJ69: 0 | FK69: 0 | FL69: 0 | FM69: 0 | FN69: 0 | FO69: 1 | FP69: 0 | FQ69: 0 | FR69: 0 | FS69: 0 | FT69: 0 | FU69: 0 | FV69: 0 | FW69: 1 | FX69: 0 | FY69: 0 | FZ69: 1 | GA69: 1 | GB69: 1 | GC69: 0 | GD69: 0 | GE69: 1 | GF69: 0 | GG69: 0 | GH69: 0 | GI69: 0 | GJ69: 0 | GK69: 1 | GL69: 1 | GM69: 0 | GN69: 0 | GO69: 1 | GP69: 1 | GQ69: 0 | GR69: 0 | GS69: 0 | GT69: 0 | GU69: 0 | GV69: 0 | GW69: 0 | GX69: 0 | GY69: 0 | GZ69: 1 | HA69: 0 | HB69: 0 | HC69: 0 | HD69: 0 | HE69: 0 | HF69: 0 | HG69: 0 | HH69: 0 | HI69: 1 | HJ69: 0 | HK69: 0 | HL69: 0 | HM69: 1 | HN69: 0
A70: 0 | B70: 0 | C70: 0 | D70: 0 | E70: 0 | F70: 0 | G70: 0 | H70: 0 | I70: 0 | J70: 0 | K70: 0 | L70: 0 | M70: 0 | N70: 0 | O70: 1 | P70: 0 | Q70: 0 | R70: 1 | S70: 0 | U70: 0 | V70: 0.235 | W70: 1 | X70: 0 | Y70: 0 | Z70: 0 | AA70: 0 | AB70: 0 | AC70: 1 | AD70: 1 | AE70: 1 | AF70: 1 | AG70: 1 | AH70: 1 | AI70: 0 | AJ70: 0 | AK70: 0 | AL70: 0 | AM70: 0 | AN70: 0 | AO70: 0 | AP70: 0 | AQ70: 1 | AR70: 0 | AS70: 1 | AT70: 0 | AU70: 0 | AV70: 0 | AW70: 0 | AX70: 0 | AY70: 0 | AZ70: 0 | BA70: 0 | BB70: 0 | BC70: 1 | BD70: 1 | BE70: 0 | BF70: 0 | BG70: 1 | BH70: 0 | BI70: 0 | BJ70: 0 | BK70: 0 | BL70: 1 | BM70: 0 | BN70: 0 | BO70: 0 | BP70: 0 | BQ70: 0 | BR70: 0 | BS70: 0 | BT70: 0 | BU70: 0 | BV70: 0 | BW70: 0 | BX70: 0 | BY70: 0 | BZ70: 0 | CA70: 0 | CB70: 0 | CC70: 1 | CD70: 0 | CE70: 0 | CF70: 1 | CG70: 1 | CH70: 0 | CI70: 0 | CJ70: 0 | CK70: 0 | CL70: 0 | CM70: 0 | CN70: 0 | CO70: 0 | CP70: 0 | CQ70: 0 | CR70: 0 | CS70: 0 | CT70: 0 | CU70: 0 | CV70: 0 | CW70: 1 | CX70: 0 | CY70: 0 | CZ70: 0 | DA70: 0 | DB70: 0 | DC70: 0 | DD70: 0 | DE70: 0 | DF70: 0 | DG70: 1 | DH70: 0 | DI70: 0 | DJ70: 0 | DK70: 0 | DL70: 0 | DM70: 0 | DN70: 0 | DO70: 0 | DP70: 0 | DQ70: 1 | DR70: 0 | DS70: 0 | DT70: 0 | DU70: 1 | DV70: 0 | DW70: 1 | DX70: 1 | DY70: 0 | DZ70: 0 | EA70: 1 | EB70: 0 | EC70: 0 | ED70: 0 | EE70: 0 | EF70: 0 | EG70: 0 | EH70: 0 | EI70: 1 | EJ70: 1 | EK70: 0 | EL70: 0 | EM70: 1 | EN70: 0 | EO70: 0 | EP70: 0 | EQ70: 1 | ER70: 1 | ES70: 0 | ET70: 0 | EU70: 0 | EV70: 1 | EW70: 0 | EX70: 0 | EY70: 1 | EZ70: 0 | FA70: 1 | FB70: 0 | FC70: 0 | FD70: 0 | FE70: 1 | FF70: 1 | FG70: 1 | FH70: 0 | FI70: 0 | FJ70: 0 | FK70: 0 | FL70: 0 | FM70: 0 | FN70: 0 | FO70: 1 | FP70: 0 | FQ70: 0 | FR70: 0 | FS70: 0 | FT70: 0 | FU70: 0 | FV70: 0 | FW70: 1 | FX70: 0 | FY70: 0 | FZ70: 1 | GA70: 1 | GB70: 1 | GC70: 0 | GD70: 0 | GE70: 1 | GF70: 0 | GG70: 0 | GH70: 0 | GI70: 0 | GJ70: 0 | GK70: 1 | GL70: 1 | GM70: 0 | GN70: 0 | GO70: 1 | GP70: 1 | GQ70: 0 | GR70: 0 | GS70: 0 | GT70: 0 | GU70: 0 | GV70: 0 | GW70: 0 | GX70: 0 | GY70: 0 | GZ70: 1 | HA70: 0 | HB70: 0 | HC70: 0 | HD70: 0 | HE70: 0 | HF70: 0 | HG70: 0 | HH70: 0 | HI70: 1 | HJ70: 0 | HK70: 0 | HL70: 0 | HM70: 1 | HN70: 0
A71: 0 | B71: 1 | C71: 1 | D71: 0 | E71: 0 | F71: 1 | G71: 0 | H71: 0 | I71: 0 | J71: 0 | K71: 0 | L71: 0 | M71: 0 | N71: 0 | O71: 0 | P71: 0 | Q71: 0 | R71: 0 | S71: 0 | U71: 0 | V71: 0.145 | W71: 1 | X71: 0 | Y71: 0 | Z71: 0 | AA71: 0 | AB71: 0 | AC71: 1 | AD71: 0 | AE71: 0 | AF71: 0 | AG71: 0 | AH71: 0 | AI71: 0 | AJ71: 0 | AK71: 0 | AL71: 0 | AM71: 0 | AN71: 0 | AO71: 0 | AP71: 0 | AQ71: 0 | AR71: 0 | AS71: 0 | AT71: 0 | AU71: 0 | AV71: 0 | AW71: 0 | AX71: 0 | AY71: 1 | AZ71: 0 | BA71: 0 | BB71: 0 | BC71: 0 | BD71: 1 | BE71: 0 | BF71: 0 | BG71: 1 | BH71: 0 | BI71: 0 | BJ71: 0 | BK71: 0 | BL71: 0 | BM71: 1 | BN71: 0 | BO71: 0 | BP71: 0 | BQ71: 0 | BR71: 1 | BS71: 0 | BT71: 0 | BU71: 0 | BV71: 0 | BW71: 0 | BX71: 0 | BY71: 0 | BZ71: 0 | CA71: 0 | CB71: 0 | CC71: 1 | CD71: 0 | CE71: 0 | CF71: 0 | CG71: 0 | CH71: 0 | CI71: 0 | CJ71: 0 | CK71: 0 | CL71: 0 | CM71: 0 | CN71: 0 | CO71: 1 | CP71: 1 | CQ71: 0 | CR71: 0 | CS71: 0 | CT71: 0 | CU71: 0 | CV71: 0 | CW71: 0 | CX71: 0 | CY71: 0 | CZ71: 0 | DA71: 1 | DB71: 0 | DC71: 0 | DD71: 0 | DE71: 0 | DF71: 0 | DG71: 0 | DH71: 1 | DI71: 0 | DJ71: 0 | DK71: 0 | DL71: 0 | DM71: 0 | DN71: 1 | DO71: 0 | DP71: 0 | DQ71: 0 | DR71: 0 | DS71: 0 | DT71: 0 | DU71: 1 | DV71: 1 | DW71: 0 | DX71: 0 | DY71: 0 | DZ71: 0 | EA71: 0 | EB71: 0 | EC71: 0 | ED71: 0 | EE71: 0 | EF71: 1 | EG71: 0 | EH71: 0 | EI71: 0 | EJ71: 0 | EK71: 0 | EL71: 0 | EM71: 0 | EN71: 0 | EO71: 0 | EP71: 0 | EQ71: 1 | ER71: 1 | ES71: 0 | ET71: 0 | EU71: 0 | EV71: 1 | EW71: 0 | EX71: 0 | EY71: 1 | EZ71: 0 | FA71: 0 | FB71: 1 | FC71: 0 | FD71: 0 | FE71: 0 | FF71: 0 | FG71: 1 | FH71: 0 | FI71: 0 | FJ71: 0 | FK71: 0 | FL71: 0 | FM71: 0 | FN71: 1 | FO71: 0 | FP71: 0 | FQ71: 0 | FR71: 0 | FS71: 0 | FT71: 0 | FU71: 0 | FV71: 0 | FW71: 0 | FX71: 0 | FY71: 0 | FZ71: 0 | GA71: 0 | GB71: 0 | GC71: 0 | GD71: 0 | GE71: 0 | GF71: 0 | GG71: 0 | GH71: 0 | GI71: 0 | GJ71: 0 | GK71: 1 | GL71: 0 | GM71: 0 | GN71: 0 | GO71: 0 | GP71: 0 | GQ71: 0 | GR71: 0 | GS71: 0 | GT71: 0 | GU71: 0 | GV71: 0 | GW71: 0 | GX71: 0 | GY71: 0 | GZ71: 1 | HA71: 0 | HB71: 0 | HC71: 0 | HD71: 0 | HE71: 1 | HF71: 1 | HG71: 0 | HH71: 1 | HI71: 0 | HJ71: 0 | HK71: 0 | HL71: 0 | HM71: 1 | HN71: 0
A72: 0 | B72: 0 | C72: 0 | D72: 1 | E72: 0 | F72: 0 | G72: 0 | H72: 0 | I72: 0 | J72: 0 | K72: 0 | L72: 0 | M72: 0 | N72: 0 | O72: 0 | P72: 0 | Q72: 0 | R72: 1 | S72: 0 | U72: 0 | V72: 0.25 | W72: 1 | X72: 0 | Y72: 0 | Z72: 0 | AA72: 0 | AB72: 0 | AC72: 1 | AD72: 1 | AE72: 1 | AF72: 1 | AG72: 1 | AH72: 1 | AI72: 0 | AJ72: 0 | AK72: 0 | AL72: 0 | AM72: 0 | AN72: 0 | AO72: 0 | AP72: 0 | AQ72: 1 | AR72: 0 | AS72: 1 | AT72: 0 | AU72: 0 | AV72: 0 | AW72: 0 | AX72: 0 | AY72: 0 | AZ72: 0 | BA72: 0 | BB72: 0 | BC72: 1 | BD72: 1 | BE72: 0 | BF72: 0 | BG72: 1 | BH72: 0 | BI72: 0 | BJ72: 0 | BK72: 0 | BL72: 1 | BM72: 0 | BN72: 0 | BO72: 0 | BP72: 0 | BQ72: 0 | BR72: 0 | BS72: 0 | BT72: 0 | BU72: 0 | BV72: 0 | BW72: 0 | BX72: 0 | BY72: 0 | BZ72: 0 | CA72: 0 | CB72: 0 | CC72: 1 | CD72: 0 | CE72: 0 | CF72: 1 | CG72: 1 | CH72: 0 | CI72: 0 | CJ72: 0 | CK72: 0 | CL72: 0 | CM72: 0 | CN72: 0 | CO72: 1 | CP72: 0 | CQ72: 0 | CR72: 0 | CS72: 0 | CT72: 0 | CU72: 0 | CV72: 0 | CW72: 1 | CX72: 0 | CY72: 0 | CZ72: 0 | DA72: 0 | DB72: 0 | DC72: 0 | DD72: 0 | DE72: 0 | DF72: 0 | DG72: 1 | DH72: 1 | DI72: 0 | DJ72: 0 | DK72: 0 | DL72: 0 | DM72: 0 | DN72: 0 | DO72: 0 | DP72: 0 | DQ72: 1 | DR72: 0 | DS72: 0 | DT72: 0 | DU72: 1 | DV72: 0 | DW72: 1 | DX72: 1 | DY72: 0 | DZ72: 0 | EA72: 1 | EB72: 0 | EC72: 0 | ED72: 0 | EE72: 0 | EF72: 0 | EG72: 0 | EH72: 0 | EI72: 1 | EJ72: 1 | EK72: 0 | EL72: 0 | EM72: 1 | EN72: 0 | EO72: 0 | EP72: 0 | EQ72: 1 | ER72: 1 | ES72: 0 | ET72: 0 | EU72: 0 | EV72: 1 | EW72: 0 | EX72: 0 | EY72: 1 | EZ72: 0 | FA72: 1 | FB72: 0 | FC72: 0 | FD72: 0 | FE72: 1 | FF72: 1 | FG72: 1 | FH72: 0 | FI72: 0 | FJ72: 0 | FK72: 0 | FL72: 0 | FM72: 0 | FN72: 0 | FO72: 1 | FP72: 0 | FQ72: 0 | FR72: 0 | FS72: 0 | FT72: 0 | FU72: 0 | FV72: 0 | FW72: 1 | FX72: 0 | FY72: 0 | FZ72: 1 | GA72: 1 | GB72: 1 | GC72: 0 | GD72: 0 | GE72: 1 | GF72: 0 | GG72: 0 | GH72: 0 | GI72: 0 | GJ72: 0 | GK72: 1 | GL72: 1 | GM72: 0 | GN72: 0 | GO72: 1 | GP72: 1 | GQ72: 0 | GR72: 0 | GS72: 0 | GT72: 0 | GU72: 0 | GV72: 0 | GW72: 0 | GX72: 0 | GY72: 0 | GZ72: 1 | HA72: 0 | HB72: 0 | HC72: 0 | HD72: 0 | HE72: 1 | HF72: 0 | HG72: 0 | HH72: 0 | HI72: 1 | HJ72: 0 | HK72: 0 | HL72: 0 | HM72: 1 | HN72: 0
A73: 1 | B73: 0 | C73: 1 | D73: 0 | E73: 0 | F73: 0 | G73: 0 | H73: 0 | I73: 0 | J73: 0 | K73: 0 | L73: 0 | M73: 0 | N73: 0 | O73: 0 | P73: 0 | Q73: 0 | R73: 0 | S73: 0 | U73: 0 | V73: 0.305 | W73: 1 | X73: 0 | Y73: 0 | Z73: 0 | AA73: 0 | AB73: 0 | AC73: 1 | AD73: 1 | AE73: 1 | AF73: 1 | AG73: 1 | AH73: 1 | AI73: 0 | AJ73: 0 | AK73: 0 | AL73: 0 | AM73: 0 | AN73: 0 | AO73: 0 | AP73: 0 | AQ73: 1 | AR73: 0 | AS73: 1 | AT73: 0 | AU73: 0 | AV73: 0 | AW73: 0 | AX73: 0 | AY73: 1 | AZ73: 0 | BA73: 0 | BB73: 0 | BC73: 1 | BD73: 1 | BE73: 0 | BF73: 0 | BG73: 1 | BH73: 0 | BI73: 0 | BJ73: 0 | BK73: 0 | BL73: 1 | BM73: 1 | BN73: 0 | BO73: 0 | BP73: 0 | BQ73: 0 | BR73: 1 | BS73: 0 | BT73: 0 | BU73: 0 | BV73: 0 | BW73: 0 | BX73: 0 | BY73: 0 | BZ73: 0 | CA73: 0 | CB73: 0 | CC73: 0 | CD73: 0 | CE73: 0 | CF73: 1 | CG73: 1 | CH73: 0 | CI73: 0 | CJ73: 0 | CK73: 0 | CL73: 0 | CM73: 0 | CN73: 0 | CO73: 1 | CP73: 1 | CQ73: 0 | CR73: 0 | CS73: 0 | CT73: 0 | CU73: 0 | CV73: 0 | CW73: 1 | CX73: 0 | CY73: 0 | CZ73: 0 | DA73: 1 | DB73: 0 | DC73: 0 | DD73: 0 | DE73: 0 | DF73: 0 | DG73: 1 | DH73: 1 | DI73: 0 | DJ73: 0 | DK73: 0 | DL73: 0 | DM73: 0 | DN73: 1 | DO73: 0 | DP73: 0 | DQ73: 1 | DR73: 0 | DS73: 0 | DT73: 0 | DU73: 1 | DV73: 1 | DW73: 1 | DX73: 1 | DY73: 0 | DZ73: 0 | EA73: 1 | EB73: 0 | EC73: 0 | ED73: 0 | EE73: 0 | EF73: 1 | EG73: 0 | EH73: 0 | EI73: 1 | EJ73: 1 | EK73: 0 | EL73: 0 | EM73: 1 | EN73: 0 | EO73: 0 | EP73: 0 | EQ73: 1 | ER73: 1 | ES73: 0 | ET73: 0 | EU73: 0 | EV73: 1 | EW73: 0 | EX73: 0 | EY73: 1 | EZ73: 0 | FA73: 1 | FB73: 1 | FC73: 0 | FD73: 0 | FE73: 1 | FF73: 1 | FG73: 1 | FH73: 0 | FI73: 0 | FJ73: 0 | FK73: 0 | FL73: 0 | FM73: 0 | FN73: 1 | FO73: 1 | FP73: 0 | FQ73: 0 | FR73: 0 | FS73: 0 | FT73: 0 | FU73: 0 | FV73: 0 | FW73: 1 | FX73: 0 | FY73: 0 | FZ73: 1 | GA73: 1 | GB73: 1 | GC73: 0 | GD73: 0 | GE73: 1 | GF73: 0 | GG73: 0 | GH73: 0 | GI73: 0 | GJ73: 0 | GK73: 1 | GL73: 1 | GM73: 0 | GN73: 0 | GO73: 1 | GP73: 1 | GQ73: 0 | GR73: 0 | GS73: 0 | GT73: 0 | GU73: 0 | GV73: 0 | GW73: 0 | GX73: 0 | GY73: 0 | GZ73: 1 | HA73: 0 | HB73: 0 | HC73: 0 | HD73: 0 | HE73: 1 | HF73: 1 | HG73: 0 | HH73: 1 | HI73: 1 | HJ73: 0 | HK73: 0 | HL73: 0 | HM73: 1 | HN73: 0
A74: 0 | B74: 0 | C74: 0 | D74: 1 | E74: 0 | F74: 0 | G74: 0 | H74: 0 | I74: 0 | J74: 0 | K74: 0 | L74: 0 | M74: 0 | N74: 0 | O74: 0 | P74: 0 | Q74: 0 | R74: 0 | S74: 0 | U74: 0 | V74: 0.31 | W74: 1 | X74: 0 | Y74: 0 | Z74: 0 | AA74: 0 | AB74: 0 | AC74: 1 | AD74: 1 | AE74: 1 | AF74: 1 | AG74: 1 | AH74: 1 | AI74: 0 | AJ74: 0 | AK74: 0 | AL74: 0 | AM74: 0 | AN74: 0 | AO74: 0 | AP74: 0 | AQ74: 1 | AR74: 0 | AS74: 1 | AT74: 0 | AU74: 0 | AV74: 0 | AW74: 0 | AX74: 0 | AY74: 1 | AZ74: 0 | BA74: 0 | BB74: 0 | BC74: 1 | BD74: 1 | BE74: 0 | BF74: 0 | BG74: 1 | BH74: 0 | BI74: 0 | BJ74: 0 | BK74: 0 | BL74: 1 | BM74: 1 | BN74: 0 | BO74: 0 | BP74: 0 | BQ74: 0 | BR74: 1 | BS74: 0 | BT74: 0 | BU74: 0 | BV74: 0 | BW74: 0 | BX74: 0 | BY74: 0 | BZ74: 0 | CA74: 0 | CB74: 0 | CC74: 1 | CD74: 0 | CE74: 0 | CF74: 1 | CG74: 1 | CH74: 0 | CI74: 0 | CJ74: 0 | CK74: 0 | CL74: 0 | CM74: 0 | CN74: 0 | CO74: 1 | CP74: 1 | CQ74: 0 | CR74: 0 | CS74: 0 | CT74: 0 | CU74: 0 | CV74: 0 | CW74: 1 | CX74: 0 | CY74: 0 | CZ74: 0 | DA74: 1 | DB74: 0 | DC74: 0 | DD74: 0 | DE74: 0 | DF74: 0 | DG74: 1 | DH74: 1 | DI74: 0 | DJ74: 0 | DK74: 0 | DL74: 0 | DM74: 0 | DN74: 1 | DO74: 0 | DP74: 0 | DQ74: 1 | DR74: 0 | DS74: 0 | DT74: 0 | DU74: 1 | DV74: 1 | DW74: 1 | DX74: 1 | DY74: 0 | DZ74: 0 | EA74: 1 | EB74: 0 | EC74: 0 | ED74: 0 | EE74: 0 | EF74: 1 | EG74: 0 | EH74: 0 | EI74: 1 | EJ74: 1 | EK74: 0 | EL74: 0 | EM74: 1 | EN74: 0 | EO74: 0 | EP74: 0 | EQ74: 1 | ER74: 1 | ES74: 0 | ET74: 0 | EU74: 0 | EV74: 1 | EW74: 0 | EX74: 0 | EY74: 1 | EZ74: 0 | FA74: 1 | FB74: 1 | FC74: 0 | FD74: 0 | FE74: 1 | FF74: 1 | FG74: 1 | FH74: 0 | FI74: 0 | FJ74: 0 | FK74: 0 | FL74: 0 | FM74: 0 | FN74: 1 | FO74: 1 | FP74: 0 | FQ74: 0 | FR74: 0 | FS74: 0 | FT74: 0 | FU74: 0 | FV74: 0 | FW74: 1 | FX74: 0 | FY74: 0 | FZ74: 1 | GA74: 1 | GB74: 1 | GC74: 0 | GD74: 0 | GE74: 1 | GF74: 0 | GG74: 0 | GH74: 0 | GI74: 0 | GJ74: 0 | GK74: 1 | GL74: 1 | GM74: 0 | GN74: 0 | GO74: 1 | GP74: 1 | GQ74: 0 | GR74: 0 | GS74: 0 | GT74: 0 | GU74: 0 | GV74: 0 | GW74: 0 | GX74: 0 | GY74: 0 | GZ74: 1 | HA74: 0 | HB74: 0 | HC74: 0 | HD74: 0 | HE74: 1 | HF74: 1 | HG74: 0 | HH74: 1 | HI74: 1 | HJ74: 0 | HK74: 0 | HL74: 0 | HM74: 1 | HN74: 0
A75: 0 | B75: 1 | C75: 1 | D75: 0 | E75: 0 | F75: 1 | G75: 0 | H75: 0 | I75: 0 | J75: 0 | K75: 0 | L75: 0 | M75: 0 | N75: 0 | O75: 0 | P75: 0 | Q75: 0 | R75: 0 | S75: 0 | U75: 0 | V75: 0.145 | W75: 1 | X75: 0 | Y75: 0 | Z75: 0 | AA75: 0 | AB75: 0 | AC75: 1 | AD75: 0 | AE75: 0 | AF75: 0 | AG75: 0 | AH75: 0 | AI75: 0 | AJ75: 0 | AK75: 0 | AL75: =IF(OFFSET($A75,0,AL$1)=AL$2,1,0) -> 0 | AM75: 0 | AN75: 0 | AO75: 0 | AP75: 0 | AQ75: 0 | AR75: 0 | AS75: 0 | AT75: 0 | AU75: 0 | AV75: 0 | AW75: 0 | AX75: 0 | AY75: 1 | AZ75: 0 | BA75: 0 | BB75: 0 | BC75: 0 | BD75: 1 | BE75: 0 | BF75: 0 | BG75: 1 | BH75: 0 | BI75: 0 | BJ75: 0 | BK75: 0 | BL75: 0 | BM75: 1 | BN75: 0 | BO75: 0 | BP75: 0 | BQ75: 0 | BR75: 1 | BS75: 0 | BT75: 0 | BU75: 0 | BV75: 0 | BW75: 0 | BX75: 0 | BY75: 0 | BZ75: 0 | CA75: 0 | CB75: 0 | CC75: 1 | CD75: 0 | CE75: 0 | CF75: 0 | CG75: 0 | CH75: 0 | CI75: 0 | CJ75: 0 | CK75: 0 | CL75: 0 | CM75: 0 | CN75: 0 | CO75: 1 | CP75: 1 | CQ75: 0 | CR75: 0 | CS75: 0 | CT75: 0 | CU75: 0 | CV75: 0 | CW75: 0 | CX75: 0 | CY75: 0 | CZ75: 0 | DA75: 1 | DB75: 0 | DC75: 0 | DD75: 0 | DE75: 0 | DF75: 0 | DG75: 0 | DH75: 1 | DI75: 0 | DJ75: 0 | DK75: 0 | DL75: 0 | DM75: 0 | DN75: 1 | DO75: 0 | DP75: 0 | DQ75: 0 | DR75: 0 | DS75: 0 | DT75: 0 | DU75: 1 | DV75: 1 | DW75: 0 | DX75: 0 | DY75: 0 | DZ75: 0 | EA75: 0 | EB75: 0 | EC75: 0 | ED75: 0 | EE75: 0 | EF75: 1 | EG75: 0 | EH75: 0 | EI75: 0 | EJ75: 0 | EK75: 0 | EL75: 0 | EM75: 0 | EN75: 0 | EO75: 0 | EP75: 0 | EQ75: =IF(OFFSET($A75,0,EQ$1)=EQ$2,1,0) -> 1 | ER75: 1 | ES75: 0 | ET75: 0 | EU75: 0 | EV75: 1 | EW75: 0 | EX75: 0 | EY75: 1 | EZ75: 0 | FA75: 0 | FB75: 1 | FC75: 0 | FD75: 0 | FE75: 0 | FF75: 0 | FG75: 1 | FH75: 0 | FI75: 0 | FJ75: 0 | FK75: 0 | FL75: 0 | FM75: 0 | FN75: 1 | FO75: 0 | FP75: 0 | FQ75: 0 | FR75: 0 | FS75: 0 | FT75: 0 | FU75: 0 | FV75: 0 | FW75: 0 | FX75: 0 | FY75: 0 | FZ75: 0 | GA75: 0 | GB75: 0 | GC75: 0 | GD75: 0 | GE75: 0 | GF75: 0 | GG75: 0 | GH75: 0 | GI75: 0 | GJ75: 0 | GK75: 1 | GL75: 0 | GM75: 0 | GN75: 0 | GO75: 0 | GP75: 0 | GQ75: 0 | GR75: 0 | GS75: 0 | GT75: 0 | GU75: 0 | GV75: 0 | GW75: 0 | GX75: 0 | GY75: 0 | GZ75: 1 | HA75: 0 | HB75: 0 | HC75: 0 | HD75: 0 | HE75: 1 | HF75: 1 | HG75: 0 | HH75: 1 | HI75: 0 | HJ75: 0 | HK75: 0 | HL75: 0 | HM75: 1 | HN75: 0
A76: 0 | B76: 1 | C76: 0 | D76: 1 | E76: 0 | F76: 0 | G76: 0 | H76: 0 | I76: 0 | J76: 0 | K76: 0 | L76: 0 | M76: 0 | N76: 0 | O76: 0 | P76: 0 | Q76: 0 | R76: 0 | S76: 0 | U76: 0 | V76: 0.31 | W76: =IF(OFFSET($A76,0,W$1)=W$2,1,0) -> 1 | X76: 0 | Y76: 0 | Z76: 0 | AA76: 0 | AB76: 0 | AC76: 1 | AD76: 1 | AE76: 1 | AF76: 1 | AG76: 1 | AH76: 1 | AI76: 0 | AJ76: 0 | AK76: 0 | AL76: 0 | AM76: 0 | AN76: 0 | AO76: 0 | AP76: 0 | AQ76: 1 | AR76: 0 | AS76: 1 | AT76: 0 | AU76: 0 | AV76: 0 | AW76: 0 | AX76: 0 | AY76: 1 | AZ76: 0 | BA76: 0 | BB76: 0 | BC76: 1 | BD76: 1 | BE76: 0 | BF76: 0 | BG76: 1 | BH76: 0 | BI76: 0 | BJ76: 0 | BK76: 0 | BL76: 1 | BM76: 1 | BN76: 0 | BO76: 0 | BP76: 0 | BQ76: 0 | BR76: 1 | BS76: 0 | BT76: 0 | BU76: 0 | BV76: 0 | BW76: 0 | BX76: 0 | BY76: 0 | BZ76: 0 | CA76: 0 | CB76: 0 | CC76: 1 | CD76: 0 | CE76: 0 | CF76: 1 | CG76: 1 | CH76: 0 | CI76: 0 | CJ76: 0 | CK76: 0 | CL76: 0 | CM76: 0 | CN76: 0 | CO76: 1 | CP76: 1 | CQ76: 0 | CR76: 0 | CS76: 0 | CT76: 0 | CU76: 0 | CV76: 0 | CW76: 1 | CX76: 0 | CY76: 0 | CZ76: 0 | DA76: 1 | DB76: 0 | DC76: 0 | DD76: 0 | DE76: 0 | DF76: 0 | DG76: 1 | DH76: 1 | DI76: 0 | DJ76: 0 | DK76: 0 | DL76: 0 | DM76: 0 | DN76: 1 | DO76: 0 | DP76: 0 | DQ76: 1 | DR76: 0 | DS76: 0 | DT76: 0 | DU76: 1 | DV76: 1 | DW76: 1 | DX76: 1 | DY76: 0 | DZ76: 0 | EA76: 1 | EB76: =IF(OFFSET($A76,0,EB$1)=EB$2,1,0) -> 0 | EC76: 0 | ED76: 0 | EE76: 0 | EF76: 1 | EG76: 0 | EH76: 0 | EI76: 1 | EJ76: 1 | EK76: 0 | EL76: 0 | EM76: 1 | EN76: 0 | EO76: 0 | EP76: 0 | EQ76: 1 | ER76: 1 | ES76: 0 | ET76: 0 | EU76: 0 | EV76: 1 | EW76: 0 | EX76: 0 | EY76: 1 | EZ76: 0 | FA76: 1 | FB76: 1 | FC76: 0 | FD76: 0 | FE76: 1 | FF76: 1 | FG76: 1 | FH76: 0 | FI76: 0 | FJ76: 0 | FK76: 0 | FL76: 0 | FM76: 0 | FN76: 1 | FO76: 1 | FP76: 0 | FQ76: 0 | FR76: 0 | FS76: 0 | FT76: 0 | FU76: 0 | FV76: 0 | FW76: 1 | FX76: 0 | FY76: 0 | FZ76: 1 | GA76: 1 | GB76: 1 | GC76: 0 | GD76: 0 | GE76: 1 | GF76: 0 | GG76: 0 | GH76: 0 | GI76: 0 | GJ76: 0 | GK76: 1 | GL76: 1 | GM76: 0 | GN76: 0 | GO76: 1 | GP76: =IF(OFFSET($A76,0,GP$1)=GP$2,1,0) -> 1 | GQ76: 0 | GR76: 0 | GS76: 0 | GT76: 0 | GU76: 0 | GV76: 0 | GW76: 0 | GX76: 0 | GY76: 0 | GZ76: 1 | HA76: 0 | HB76: 0 | HC76: 0 | HD76: 0 | HE76: 1 | HF76: 1 | HG76: 0 | HH76: 1 | HI76: 1 | HJ76: 0 | HK76: 0 | HL76: 0 | HM76: 1 | HN76: 0
A77: 1 | B77: 0 | C77: 1 | D77: 0 | E77: 0 | F77: 0 | G77: 0 | H77: 0 | I77: 0 | J77: 0 | K77: 0 | L77: 0 | M77: 0 | N77: 0 | O77: 0 | P77: 0 | Q77: 1 | R77: 0 | S77: 0 | U77: 0 | V77: 0.375 | W77: 1 | X77: 0 | Y77: 0 | Z77: 1 | AA77: 0 | AB77: 0 | AC77: 1 | AD77: 1 | AE77: 1 | AF77: 1 | AG77: 1 | AH77: 1 | AI77: 1 | AJ77: 0 | AK77: 0 | AL77: 0 | AM77: 0 | AN77: 0 | AO77: 0 | AP77: 0 | AQ77: 1 | AR77: 0 | AS77: 1 | AT77: 0 | AU77: 0 | AV77: 0 | AW77: 0 | AX77: 0 | AY77: 1 | AZ77: 0 | BA77: 0 | BB77: 0 | BC77: 1 | BD77: 1 | BE77: 0 | BF77: 0 | BG77: 1 | BH77: 0 | BI77: 0 | BJ77: 0 | BK77: 0 | BL77: 1 | BM77: 1 | BN77: 0 | BO77: 0 | BP77: 0 | BQ77: 0 | BR77: 1 | BS77: 0 | BT77: 0 | BU77: 0 | BV77: 0 | BW77: 0 | BX77: 0 | BY77: 0 | BZ77: 0 | CA77: 1 | CB77: 0 | CC77: 0 | CD77: 0 | CE77: 0 | CF77: 1 | CG77: =IF(OFFSET($A77,0,CG$1)=CG$2,1,0) -> 1 | CH77: 0 | CI77: 0 | CJ77: 0 | CK77: 0 | CL77: 1 | CM77: 0 | CN77: 0 | CO77: 1 | CP77: 1 | CQ77: 0 | CR77: 0 | CS77: 0 | CT77: 0 | CU77: 0 | CV77: 0 | CW77: 1 | CX77: 0 | CY77: 1 | CZ77: 0 | DA77: 1 | DB77: 0 | DC77: 0 | DD77: 0 | DE77: 0 | DF77: 0 | DG77: 1 | DH77: 1 | DI77: 1 | DJ77: 1 | DK77: 0 | DL77: 0 | DM77: 0 | DN77: 1 | DO77: 0 | DP77: 1 | DQ77: 1 | DR77: 0 | DS77: 0 | DT77: 0 | DU77: 1 | DV77: 1 | DW77: 1 | DX77: 1 | DY77: 0 | DZ77: 0 | EA77: =IF(OFFSET($A77,0,EA$1)=EA$2,1,0) -> 1 | EB77: 0 | EC77: 0 | ED77: 0 | EE77: 0 | EF77: 1 | EG77: 0 | EH77: 0 | EI77: 1 | EJ77: 1 | EK77: 0 | EL77: 0 | EM77: 1 | EN77: 0 | EO77: 0 | EP77: 1 | EQ77: 1 | ER77: 1 | ES77: 0 | ET77: 0 | EU77: 0 | EV77: 1 | EW77: 0 | EX77: 0 | EY77: 1 | EZ77: 0 | FA77: 1 | FB77: 1 | FC77: 0 | FD77: 0 | FE77: 1 | FF77: 1 | FG77: 1 | FH77: 1 | FI77: 0 | FJ77: 1 | FK77: 0 | FL77: 0 | FM77: 0 | FN77: 1 | FO77: 1 | FP77: 1 | FQ77: 0 | FR77: 0 | FS77: 0 | FT77: 0 | FU77: 0 | FV77: 0 | FW77: 1 | FX77: 0 | FY77: 0 | FZ77: 1 | GA77: 1 | GB77: 1 | GC77: 0 | GD77: 0 | GE77: 1 | GF77: 0 | GG77: 0 | GH77: 0 | GI77: 0 | GJ77: 0 | GK77: 1 | GL77: 1 | GM77: 0 | GN77: 0 | GO77: =IF(OFFSET($A77,0,GO$1)=GO$2,1,0) -> 1 | GP77: 1 | GQ77: 0 | GR77: 0 | GS77: 0 | GT77: 1 | GU77: 0 | GV77: 0 | GW77: 0 | GX77: 0 | GY77: 0 | GZ77: 1 | HA77: 0 | HB77: 0 | HC77: 0 | HD77: 0 | HE77: 1 | HF77: 1 | HG77: 0 | HH77: 1 | HI77: 1 | HJ77: 1 | HK77: 0 | HL77: 0 | HM77: 1 | HN77: 0
A78: 0 | B78: 0 | C78: 0 | D78: 0 | E78: 0 | F78: 0 | G78: 0 | H78: 0 | I78: 0 | J78: 0 | K78: 0 | L78: 0 | M78: 0 | N78: 0 | O78: 0 | P78: 0 | Q78: 0 | R78: 1 | S78: 0 | U78: 0 | V78: 0.25 | W78: 1 | X78: 0 | Y78: 0 | Z78: 0 | AA78: 0 | AB78: 0 | AC78: 1 | AD78: 1 | AE78: 1 | AF78: 1 | AG78: 1 | AH78: 1 | AI78: 0 | AJ78: 0 | AK78: 0 | AL78: 0 | AM78: 0 | AN78: 0 | AO78: 0 | AP78: 0 | AQ78: 1 | AR78: 0 | AS78: 1 | AT78: 0 | AU78: 0 | AV78: 0 | AW78: 0 | AX78: 0 | AY78: 0 | AZ78: 0 | BA78: 0 | BB78: 0 | BC78: 1 | BD78: 1 | BE78: 0 | BF78: 0 | BG78: 1 | BH78: 0 | BI78: 0 | BJ78: 0 | BK78: 0 | BL78: 1 | BM78: 0 | BN78: 0 | BO78: 0 | BP78: 0 | BQ78: =IF(OFFSET($A78,0,BQ$1)=BQ$2,1,0) -> 0 | BR78: 0 | BS78: 0 | BT78: 0 | BU78: 0 | BV78: 0 | BW78: 0 | BX78: 0 | BY78: 0 | BZ78: 0 | CA78: 0 | CB78: 0 | CC78: 1 | CD78: 0 | CE78: 0 | CF78: 1 | CG78: 1 | CH78: 0 | CI78: 0 | CJ78: 0 | CK78: 0 | CL78: 0 | CM78: 0 | CN78: 0 | CO78: 1 | CP78: 0 | CQ78: 0 | CR78: 0 | CS78: 0 | CT78: 0 | CU78: 0 | CV78: 0 | CW78: 1 | CX78: 0 | CY78: 0 | CZ78: 0 | DA78: 0 | DB78: 0 | DC78: 0 | DD78: 0 | DE78: 0 | DF78: 0 | DG78: 1 | DH78: 1 | DI78: 0 | DJ78: 0 | DK78: 0 | DL78: 0 | DM78: 0 | DN78: 0 | DO78: 0 | DP78: 0 | DQ78: 1 | DR78: 0 | DS78: 0 | DT78: 0 | DU78: 1 | DV78: 0 | DW78: 1 | DX78: 1 | DY78: =IF(OFFSET($A78,0,DY$1)=DY$2,1,0) -> 0 | DZ78: 0 | EA78: 1 | EB78: 0 | EC78: 0 | ED78: 0 | EE78: 0 | EF78: 0 | EG78: 0 | EH78: 0 | EI78: 1 | EJ78: 1 | EK78: 0 | EL78: 0 | EM78: 1 | EN78: 0 | EO78: 0 | EP78: 0 | EQ78: 1 | ER78: 1 | ES78: 0 | ET78: 0 | EU78: 0 | EV78: 1 | EW78: 0 | EX78: 0 | EY78: 1 | EZ78: 0 | FA78: 1 | FB78: 0 | FC78: 0 | FD78: 0 | FE78: 1 | FF78: 1 | FG78: 1 | FH78: 0 | FI78: 0 | FJ78: 0 | FK78: 0 | FL78: 0 | FM78: 0 | FN78: 0 | FO78: 1 | FP78: 0 | FQ78: 0 | FR78: 0 | FS78: 0 | FT78: 0 | FU78: 0 | FV78: 0 | FW78: 1 | FX78: 0 | FY78: 0 | FZ78: 1 | GA78: 1 | GB78: 1 | GC78: 0 | GD78: 0 | GE78: 1 | GF78: 0 | GG78: 0 | GH78: 0 | GI78: 0 | GJ78: 0 | GK78: 1 | GL78: 1 | GM78: 0 | GN78: 0 | GO78: 1 | GP78: 1 | GQ78: 0 | GR78: 0 | GS78: 0 | GT78: 0 | GU78: 0 | GV78: 0 | GW78: 0 | GX78: 0 | GY78: 0 | GZ78: 1 | HA78: 0 | HB78: 0 | HC78: 0 | HD78: 0 | HE78: 1 | HF78: 0 | HG78: 0 | HH78: 0 | HI78: 1 | HJ78: 0 | HK78: 0 | HL78: 0 | HM78: 1 | HN78: 0
A79: 0 | B79: 0 | C79: 1 | D79: 0 | E79: 0 | F79: 1 | G79: 1 | H79: 0 | I79: 0 | J79: 0 | K79: 0 | L79: 0 | M79: 0 | N79: 0 | O79: 0 | P79: 0 | Q79: 0 | R79: 1 | S79: 0 | U79: 0 | V79: 0.02 | W79: 0 | X79: 0 | Y79: 0 | Z79: 0 | AA79: 0 | AB79: 0 | AC79: 0 | AD79: 0 | AE79: 0 | AF79: 0 | AG79: 0 | AH79: 0 | AI79: 0 | AJ79: 0 | AK79: 0 | AL79: 0 | AM79: 0 | AN79: 0 | AO79: 0 | AP79: 0 | AQ79: 0 | AR79: 0 | AS79: 0 | AT79: 0 | AU79: 0 | AV79: 0 | AW79: 0 | AX79: 0 | AY79: 0 | AZ79: 0 | BA79: 0 | BB79: =IF(OFFSET($A79,0,BB$1)=BB$2,1,0) -> 0 | BC79: 0 | BD79: 0 | BE79: 0 | BF79: 0 | BG79: 0 | BH79: 0 | BI79: 0 | BJ79: 0 | BK79: 0 | BL79: 0 | BM79: 0 | BN79: 0 | BO79: 0 | BP79: 0 | BQ79: 0 | BR79: 0 | BS79: 0 | BT79: 0 | BU79: 0 | BV79: 0 | BW79: 0 | BX79: 0 | BY79: 0 | BZ79: 0 | CA79: 0 | CB79: 0 | CC79: 1 | CD79: 0 | CE79: 0 | CF79: 0 | CG79: 0 | CH79: 0 | CI79: 0 | CJ79: 0 | CK79: 0 | CL79: 0 | CM79: =IF(OFFSET($A79,0,CM$1)=CM$2,1,0) -> 0 | CN79: 0 | CO79: 1 | CP79: 0 | CQ79: 0 | CR79: 0 | CS79: 0 | CT79: 0 | CU79: 0 | CV79: 0 | CW79: 0 | CX79: 0 | CY79: 0 | CZ79: 0 | DA79: 0 | DB79: 0 | DC79: 0 | DD79: 0 | DE79: 0 | DF79: 0 | DG79: 0 | DH79: 1 | DI79: 0 | DJ79: 0 | DK79: 0 | DL79: 0 | DM79: 0 | DN79: 0 | DO79: 0 | DP79: 0 | DQ79: 0 | DR79: 0 | DS79: 0 | DT79: 0 | DU79: 0 | DV79: 0 | DW79: 0 | DX79: 0 | DY79: 0 | DZ79: 0 | EA79: 0 | EB79: 0 | EC79: 0 | ED79: 0 | EE79: 0 | EF79: 0 | EG79: 0 | EH79: 0 | EI79: 0 | EJ79: 0 | EK79: 0 | EL79: 0 | EM79: 0 | EN79: 0 | EO79: 0 | EP79: 0 | EQ79: 0 | ER79: 0 | ES79: 0 | ET79: 0 | EU79: 0 | EV79: 0 | EW79: 0 | EX79: 0 | EY79: 0 | EZ79: 0 | FA79: 0 | FB79: 0 | FC79: 0 | FD79: 0 | FE79: 0 | FF79: 0 | FG79: 0 | FH79: 0 | FI79: 0 | FJ79: 0 | FK79: 0 | FL79: 0 | FM79: 0 | FN79: 0 | FO79: 0 | FP79: 0 | FQ79: 0 | FR79: 0 | FS79: 0 | FT79: 0 | FU79: 0 | FV79: 0 | FW79: 0 | FX79: 0 | FY79: 0 | FZ79: 0 | GA79: 0 | GB79: 0 | GC79: 0 | GD79: 0 | GE79: 0 | GF79: 0 | GG79: 0 | GH79: 0 | GI79: 0 | GJ79: 0 | GK79: 0 | GL79: 0 | GM79: 0 | GN79: 0 | GO79: 0 | GP79: 0 | GQ79: 0 | GR79: 0 | GS79: 0 | GT79: 0 | GU79: 0 | GV79: 0 | GW79: 0 | GX79: 0 | GY79: 0 | GZ79: 0 | HA79: 0 | HB79: 0 | HC79: 0 | HD79: 0 | HE79: 1 | HF79: 0 | HG79: 0 | HH79: 0 | HI79: 0 | HJ79: 0 | HK79: 0 | HL79: 0 | HM79: 0 | HN79: 0
A80: 1 | B80: 0 | C80: 0 | D80: 0 | E80: 0 | F80: 1 | G80: 0 | H80: 0 | I80: 0 | J80: 0 | K80: 0 | L80: 0 | M80: 0 | N80: 0 | O80: 0 | P80: 0 | Q80: 0 | R80: 0 | S80: 0 | U80: 0 | V80: 0.14 | W80: 1 | X80: 0 | Y80: 0 | Z80: 0 | AA80: 0 | AB80: 0 | AC80: 1 | AD80: 0 | AE80: 0 | AF80: 0 | AG80: 0 | AH80: 0 | AI80: 0 | AJ80: 0 | AK80: 0 | AL80: 0 | AM80: 0 | AN80: 0 | AO80: 0 | AP80: 0 | AQ80: 0 | AR80: 0 | AS80: 0 | AT80: 0 | AU80: 0 | AV80: 0 | AW80: 0 | AX80: 0 | AY80: 1 | AZ80: 0 | BA80: 0 | BB80: 0 | BC80: 0 | BD80: 1 | BE80: 0 | BF80: 0 | BG80: 1 | BH80: 0 | BI80: 0 | BJ80: 0 | BK80: 0 | BL80: 0 | BM80: 1 | BN80: 0 | BO80: 0 | BP80: 0 | BQ80: 0 | BR80: 1 | BS80: 0 | BT80: 0 | BU80: 0 | BV80: 0 | BW80: 0 | BX80: 0 | BY80: 0 | BZ80: 0 | CA80: 0 | CB80: 0 | CC80: 0 | CD80: 0 | CE80: 0 | CF80: 0 | CG80: 0 | CH80: 0 | CI80: 0 | CJ80: 0 | CK80: 0 | CL80: 0 | CM80: 0 | CN80: 0 | CO80: 1 | CP80: 1 | CQ80: 0 | CR80: 0 | CS80: 0 | CT80: 0 | CU80: 0 | CV80: 0 | CW80: 0 | CX80: 0 | CY80: 0 | CZ80: 0 | DA80: 1 | DB80: 0 | DC80: 0 | DD80: 0 | DE80: 0 | DF80: 0 | DG80: 0 | DH80: 1 | DI80: 0 | DJ80: 0 | DK80: 0 | DL80: 0 | DM80: 0 | DN80: 1 | DO80: 0 | DP80: 0 | DQ80: 0 | DR80: 0 | DS80: 0 | DT80: 0 | DU80: 1 | DV80: 1 | DW80: 0 | DX80: 0 | DY80: 0 | DZ80: 0 | EA80: 0 | EB80: 0 | EC80: 0 | ED80: 0 | EE80: 0 | EF80: 1 | EG80: 0 | EH80: 0 | EI80: 0 | EJ80: 0 | EK80: 0 | EL80: 0 | EM80: 0 | EN80: 0 | EO80: 0 | EP80: 0 | EQ80: 1 | ER80: 1 | ES80: 0 | ET80: 0 | EU80: 0 | EV80: 1 | EW80: 0 | EX80: 0 | EY80: 1 | EZ80: 0 | FA80: 0 | FB80: 1 | FC80: 0 | FD80: 0 | FE80: =IF(OFFSET($A80,0,FE$1)=FE$2,1,0) -> 0 | FF80: 0 | FG80: 1 | FH80: 0 | FI80: 0 | FJ80: 0 | FK80: 0 | FL80: 0 | FM80: 0 | FN80: 1 | FO80: 0 | FP80: 0 | FQ80: 0 | FR80: 0 | FS80: 0 | FT80: 0 | FU80: 0 | FV80: 0 | FW80: 0 | FX80: 0 | FY80: 0 | FZ80: 0 | GA80: 0 | GB80: 0 | GC80: 0 | GD80: 0 | GE80: 0 | GF80: 0 | GG80: 0 | GH80: 0 | GI80: 0 | GJ80: 0 | GK80: 1 | GL80: 0 | GM80: 0 | GN80: 0 | GO80: 0 | GP80: 0 | GQ80: 0 | GR80: 0 | GS80: 0 | GT80: 0 | GU80: 0 | GV80: 0 | GW80: 0 | GX80: 0 | GY80: 0 | GZ80: 1 | HA80: 0 | HB80: 0 | HC80: 0 | HD80: 0 | HE80: 1 | HF80: 1 | HG80: 0 | HH80: 1 | HI80: 0 | HJ80: 0 | HK80: 0 | HL80: 0 | HM80: 1 | HN80: 0
A81: 0 | B81: 0 | C81: 1 | D81: 0 | E81: 0 | F81: 0 | G81: 0 | H81: 0 | I81: 0 | J81: 0 | K81: 0 | L81: 0 | M81: 0 | N81: 0 | O81: 1 | P81: 0 | Q81: 0 | R81: 1 | S81: 1 | U81: 0 | V81: 0.375 | W81: 1 | X81: 0 | Y81: 0 | Z81: 0 | AA81: 0 | AB81: 0 | AC81: 1 | AD81: 1 | AE81: 1 | AF81: 1 | AG81: 1 | AH81: 1 | AI81: 0 | AJ81: 0 | AK81: 1 | AL81: 0 | AM81: 0 | AN81: 1 | AO81: 0 | AP81: 0 | AQ81: 1 | AR81: 0 | AS81: 1 | AT81: 1 | AU81: 0 | AV81: 0 | AW81: 0 | AX81: 1 | AY81: 0 | AZ81: 0 | BA81: 1 | BB81: 0 | BC81: 1 | BD81: 1 | BE81: 1 | BF81: 0 | BG81: 1 | BH81: 0 | BI81: 1 | BJ81: 0 | BK81: 0 | BL81: 1 | BM81: 0 | BN81: 0 | BO81: 0 | BP81: 1 | BQ81: 0 | BR81: 0 | BS81: 0 | BT81: 0 | BU81: 0 | BV81: 1 | BW81: 0 | BX81: 0 | BY81: 0 | BZ81: 0 | CA81: 0 | CB81: 1 | CC81: 1 | CD81: 0 | CE81: 0 | CF81: 1 | CG81: 1 | CH81: 1 | CI81: 1 | CJ81: 0 | CK81: 1 | CL81: 0 | CM81: 1 | CN81: 0 | CO81: 0 | CP81: 0 | CQ81: 0 | CR81: 0 | CS81: 0 | CT81: 1 | CU81: 0 | CV81: 0 | CW81: 1 | CX81: 0 | CY81: 0 | CZ81: 0 | DA81: 0 | DB81: 0 | DC81: 0 | DD81: 0 | DE81: 0 | DF81: 0 | DG81: 1 | DH81: 0 | DI81: 0 | DJ81: 0 | DK81: 0 | DL81: 0 | DM81: 0 | DN81: 0 | DO81: 0 | DP81: 0 | DQ81: 1 | DR81: 0 | DS81: =IF(OFFSET($A81,0,DS$1)=DS$2,1,0) -> 1 | DT81: 1 | DU81: 1 | DV81: 0 | DW81: 1 | DX81: 1 | DY81: 1 | DZ81: 0 | EA81: 1 | EB81: 0 | EC81: 0 | ED81: 0 | EE81: 0 | EF81: 0 | EG81: 0 | EH81: 0 | EI81: 1 | EJ81: 1 | EK81: 1 | EL81: 1 | EM81: 1 | EN81: 1 | EO81: 0 | EP81: 0 | EQ81: 1 | ER81: 1 | ES81: 0 | ET81: 0 | EU81: 0 | EV81: 1 | EW81: 0 | EX81: 0 | EY81: 1 | EZ81: 0 | FA81: 1 | FB81: 0 | FC81: 1 | FD81: 0 | FE81: 1 | FF81: 1 | FG81: 1 | FH81: 0 | FI81: 1 | FJ81: 0 | FK81: 1 | FL81: 0 | FM81: 1 | FN81: 0 | FO81: 1 | FP81: 0 | FQ81: 0 | FR81: 0 | FS81: 0 | FT81: 0 | FU81: 1 | FV81: 1 | FW81: 1 | FX81: 0 | FY81: 0 | FZ81: 1 | GA81: 1 | GB81: 1 | GC81: 0 | GD81: 0 | GE81: 1 | GF81: 0 | GG81: 0 | GH81: 0 | GI81: 0 | GJ81: 0 | GK81: 1 | GL81: 1 | GM81: 0 | GN81: 0 | GO81: 1 | GP81: 1 | GQ81: 0 | GR81: 0 | GS81: 0 | GT81: 0 | GU81: 0 | GV81: 0 | GW81: 0 | GX81: 0 | GY81: 1 | GZ81: 1 | HA81: 0 | HB81: 0 | HC81: 0 | HD81: 0 | HE81: 0 | HF81: 0 | HG81: 0 | HH81: 0 | HI81: 1 | HJ81: 0 | HK81: 0 | HL81: 0 | HM81: 1 | HN81: 0
A82: 0 | B82: 0 | C82: 1 | D82: 0 | E82: 0 | F82: 0 | G82: 0 | H82: 0 | I82: 0 | J82: 0 | K82: 0 | L82: 0 | M82: 0 | N82: 0 | O82: 0 | P82: 0 | Q82: 0 | R82: 1 | S82: 0 | U82: 0 | V82: 0.25 | W82: 1 | X82: 0 | Y82: 0 | Z82: 0 | AA82: 0 | AB82: 0 | AC82: 1 | AD82: 1 | AE82: 1 | AF82: 1 | AG82: 1 | AH82: 1 | AI82: 0 | AJ82: 0 | AK82: 0 | AL82: 0 | AM82: 0 | AN82: 0 | AO82: 0 | AP82: 0 | AQ82: 1 | AR82: 0 | AS82: 1 | AT82: 0 | AU82: 0 | AV82: 0 | AW82: 0 | AX82: 0 | AY82: 0 | AZ82: 0 | BA82: 0 | BB82: 0 | BC82: 1 | BD82: 1 | BE82: 0 | BF82: 0 | BG82: 1 | BH82: 0 | BI82: 0 | BJ82: 0 | BK82: 0 | BL82: 1 | BM82: 0 | BN82: 0 | BO82: 0 | BP82: 0 | BQ82: 0 | BR82: 0 | BS82: 0 | BT82: 0 | BU82: 0 | BV82: 0 | BW82: 0 | BX82: 0 | BY82: 0 | BZ82: 0 | CA82: 0 | CB82: 0 | CC82: 1 | CD82: 0 | CE82: 0 | CF82: 1 | CG82: 1 | CH82: 0 | CI82: 0 | CJ82: 0 | CK82: 0 | CL82: 0 | CM82: 0 | CN82: 0 | CO82: 1 | CP82: 0 | CQ82: 0 | CR82: 0 | CS82: 0 | CT82: 0 | CU82: 0 | CV82: 0 | CW82: 1 | CX82: 0 | CY82: 0 | CZ82: 0 | DA82: 0 | DB82: 0 | DC82: 0 | DD82: =IF(OFFSET($A82,0,DD$1)=DD$2,1,0) -> 0 | DE82: 0 | DF82: 0 | DG82: 1 | DH82: 1 | DI82: 0 | DJ82: 0 | DK82: 0 | DL82: 0 | DM82: 0 | DN82: 0 | DO82: 0 | DP82: 0 | DQ82: 1 | DR82: 0 | DS82: 0 | DT82: 0 | DU82: 1 | DV82: 0 | DW82: 1 | DX82: 1 | DY82: 0 | DZ82: 0 | EA82: 1 | EB82: 0 | EC82: 0 | ED82: 0 | EE82: 0 | EF82: 0 | EG82: 0 | EH82: 0 | EI82: 1 | EJ82: 1 | EK82: 0 | EL82: 0 | EM82: 1 | EN82: 0 | EO82: 0 | EP82: 0 | EQ82: 1 | ER82: 1 | ES82: 0 | ET82: 0 | EU82: 0 | EV82: 1 | EW82: 0 | EX82: 0 | EY82: 1 | EZ82: 0 | FA82: 1 | FB82: 0 | FC82: 0 | FD82: 0 | FE82: 1 | FF82: 1 | FG82: 1 | FH82: 0 | FI82: 0 | FJ82: 0 | FK82: 0 | FL82: 0 | FM82: 0 | FN82: 0 | FO82: 1 | FP82: 0 | FQ82: 0 | FR82: 0 | FS82: 0 | FT82: 0 | FU82: 0 | FV82: 0 | FW82: 1 | FX82: 0 | FY82: 0 | FZ82: 1 | GA82: 1 | GB82: 1 | GC82: 0 | GD82: 0 | GE82: 1 | GF82: 0 | GG82: 0 | GH82: 0 | GI82: 0 | GJ82: 0 | GK82: 1 | GL82: 1 | GM82: 0 | GN82: 0 | GO82: 1 | GP82: 1 | GQ82: 0 | GR82: 0 | GS82: 0 | GT82: 0 | GU82: 0 | GV82: 0 | GW82: 0 | GX82: 0 | GY82: 0 | GZ82: 1 | HA82: 0 | HB82: 0 | HC82: 0 | HD82: 0 | HE82: 1 | HF82: 0 | HG82: 0 | HH82: 0 | HI82: 1 | HJ82: 0 | HK82: 0 | HL82: 0 | HM82: 1 | HN82: 0
A83: 0 | B83: 1 | C83: 0 | D83: 0 | E83: 0 | F83: 1 | G83: 0 | H83: 0 | I83: 0 | J83: 0 | K83: 0 | L83: 0 | M83: 0 | N83: 0 | O83: 0 | P83: 0 | Q83: 0 | R83: 0 | S83: 0 | U83: 0 | V83: 0.145 | W83: 1 | X83: 0 | Y83: 0 | Z83: 0 | AA83: 0 | AB83: 0 | AC83: 1 | AD83: 0 | AE83: 0 | AF83: 0 | AG83: 0 | AH83: 0 | AI83: 0 | AJ83: 0 | AK83: 0 | AL83: 0 | AM83: 0 | AN83: 0 | AO83: 0 | AP83: 0 | AQ83: 0 | AR83: 0 | AS83: 0 | AT83: 0 | AU83: 0 | AV83: 0 | AW83: 0 | AX83: 0 | AY83: 1 | AZ83: 0 | BA83: 0 | BB83: 0 | BC83: 0 | BD83: 1 | BE83: 0 | BF83: 0 | BG83: 1 | BH83: 0 | BI83: 0 | BJ83: 0 | BK83: 0 | BL83: 0 | BM83: 1 | BN83: 0 | BO83: 0 | BP83: 0 | BQ83: 0 | BR83: 1 | BS83: 0 | BT83: 0 | BU83: 0 | BV83: 0 | BW83: 0 | BX83: 0 | BY83: 0 | BZ83: 0 | CA83: 0 | CB83: 0 | CC83: 1 | CD83: 0 | CE83: 0 | CF83: 0 | CG83: 0 | CH83: 0 | CI83: 0 | CJ83: 0 | CK83: 0 | CL83: 0 | CM83: 0 | CN83: 0 | CO83: 1 | CP83: 1 | CQ83: 0 | CR83: 0 | CS83: 0 | CT83: 0 | CU83: 0 | CV83: 0 | CW83: 0 | CX83: 0 | CY83: 0 | CZ83: 0 | DA83: 1 | DB83: 0 | DC83: 0 | DD83: 0 | DE83: 0 | DF83: 0 | DG83: 0 | DH83: 1 | DI83: 0 | DJ83: 0 | DK83: 0 | DL83: 0 | DM83: 0 | DN83: 1 | DO83: 0 | DP83: 0 | DQ83: 0 | DR83: 0 | DS83: 0 | DT83: 0 | DU83: 1 | DV83: 1 | DW83: 0 | DX83: 0 | DY83: 0 | DZ83: 0 | EA83: 0 | EB83: 0 | EC83: 0 | ED83: 0 | EE83: 0 | EF83: 1 | EG83: 0 | EH83: 0 | EI83: 0 | EJ83: 0 | EK83: 0 | EL83: 0 | EM83: 0 | EN83: 0 | EO83: 0 | EP83: 0 | EQ83: 1 | ER83: 1 | ES83: 0 | ET83: 0 | EU83: 0 | EV83: 1 | EW83: 0 | EX83: 0 | EY83: 1 | EZ83: 0 | FA83: 0 | FB83: 1 | FC83: 0 | FD83: 0 | FE83: 0 | FF83: 0 | FG83: 1 | FH83: 0 | FI83: 0 | FJ83: 0 | FK83: 0 | FL83: 0 | FM83: 0 | FN83: 1 | FO83: 0 | FP83: 0 | FQ83: 0 | FR83: 0 | FS83: 0 | FT83: 0 | FU83: 0 | FV83: 0 | FW83: 0 | FX83: 0 | FY83: 0 | FZ83: 0 | GA83: 0 | GB83: 0 | GC83: 0 | GD83: 0 | GE83: 0 | GF83: 0 | GG83: 0 | GH83: 0 | GI83: 0 | GJ83: 0 | GK83: 1 | GL83: 0 | GM83: 0 | GN83: 0 | GO83: 0 | GP83: 0 | GQ83: 0 | GR83: 0 | GS83: 0 | GT83: 0 | GU83: 0 | GV83: 0 | GW83: 0 | GX83: 0 | GY83: 0 | GZ83: 1 | HA83: 0 | HB83: 0 | HC83: 0 | HD83: 0 | HE83: 1 | HF83: 1 | HG83: 0 | HH83: 1 | HI83: 0 | HJ83: 0 | HK83: 0 | HL83: 0 | HM83: 1 | HN83: 0
A84: 1 | B84: 0 | C84: 1 | D84: 0 | E84: 0 | F84: 0 | G84: 0 | H84: 0 | I84: 0 | J84: 0 | K84: 0 | L84: 0 | M84: 0 | N84: 0 | O84: 1 | P84: 0 | Q84: 0 | R84: 0 | S84: 0 | U84: 0 | V84: 0.29 | W84: 1 | X84: 0 | Y84: 0 | Z84: 0 | AA84: 0 | AB84: 0 | AC84: 1 | AD84: 1 | AE84: 1 | AF84: 1 | AG84: 1 | AH84: 1 | AI84: 0 | AJ84: 0 | AK84: 0 | AL84: 0 | AM84: 0 | AN84: 0 | AO84: 0 | AP84: 0 | AQ84: 1 | AR84: 0 | AS84: 1 | AT84: 0 | AU84: 0 | AV84: 0 | AW84: 0 | AX84: 0 | AY84: 1 | AZ84: 0 | BA84: 0 | BB84: 0 | BC84: 1 | BD84: 1 | BE84: 0 | BF84: 0 | BG84: 1 | BH84: 0 | BI84: 0 | BJ84: 0 | BK84: 0 | BL84: 1 | BM84: 1 | BN84: 0 | BO84: 0 | BP84: 0 | BQ84: 0 | BR84: 1 | BS84: 0 | BT84: 0 | BU84: 0 | BV84: 0 | BW84: 0 | BX84: 0 | BY84: 0 | BZ84: 0 | CA84: 0 | CB84: 0 | CC84: 0 | CD84: 0 | CE84: 0 | CF84: 1 | CG84: 1 | CH84: 0 | CI84: 0 | CJ84: 0 | CK84: 0 | CL84: 0 | CM84: 0 | CN84: 0 | CO84: 0 | CP84: 1 | CQ84: 0 | CR84: 0 | CS84: 0 | CT84: 0 | CU84: 0 | CV84: 0 | CW84: 1 | CX84: 0 | CY84: 0 | CZ84: 0 | DA84: 1 | DB84: 0 | DC84: 0 | DD84: 0 | DE84: 0 | DF84: 0 | DG84: 1 | DH84: 0 | DI84: 0 | DJ84: 0 | DK84: 0 | DL84: 0 | DM84: 0 | DN84: 1 | DO84: 0 | DP84: 0 | DQ84: 1 | DR84: 0 | DS84: 0 | DT84: 0 | DU84: 1 | DV84: 1 | DW84: 1 | DX84: 1 | DY84: 0 | DZ84: 0 | EA84: 1 | EB84: 0 | EC84: 0 | ED84: 0 | EE84: 0 | EF84: 1 | EG84: 0 | EH84: 0 | EI84: 1 | EJ84: 1 | EK84: 0 | EL84: 0 | EM84: 1 | EN84: 0 | EO84: 0 | EP84: 0 | EQ84: 1 | ER84: 1 | ES84: 0 | ET84: 0 | EU84: 0 | EV84: 1 | EW84: 0 | EX84: 0 | EY84: 1 | EZ84: 0 | FA84: 1 | FB84: 1 | FC84: 0 | FD84: 0 | FE84: 1 | FF84: 1 | FG84: 1 | FH84: 0 | FI84: 0 | FJ84: 0 | FK84: 0 | FL84: 0 | FM84: 0 | FN84: 1 | FO84: 1 | FP84: 0 | FQ84: 0 | FR84: 0 | FS84: 0 | FT84: 0 | FU84: 0 | FV84: 0 | FW84: 1 | FX84: 0 | FY84: 0 | FZ84: 1 | GA84: 1 | GB84: 1 | GC84: 0 | GD84: 0 | GE84: 1 | GF84: 0 | GG84: 0 | GH84: 0 | GI84: 0 | GJ84: 0 | GK84: 1 | GL84: 1 | GM84: 0 | GN84: 0 | GO84: 1 | GP84: 1 | GQ84: 0 | GR84: 0 | GS84: 0 | GT84: 0 | GU84: 0 | GV84: 0 | GW84: 0 | GX84: 0 | GY84: 0 | GZ84: 1 | HA84: 0 | HB84: 0 | HC84: 0 | HD84: 0 | HE84: 0 | HF84: 1 | HG84: 0 | HH84: 1 | HI84: 1 | HJ84: 0 | HK84: 0 | HL84: 0 | HM84: 1 | HN84: 0
